Workbook

Sheet Explications
C5: TIERCE | E5: QUARTE | G5: QUINTE+
C6: Nombre | D6: % | E6: Nombre | F6: % | G6: Nombre | H6: %
A7: 01 | B7: AIP | C7: =stats!AJ63 -> 332 | D7: =stats!AM63 -> 0.4069264069 | E7: =stats!AO63 -> 200 | F7: =stats!AR63 -> 0.2380952381 | G7: =stats!AT63 -> 109 | H7: =stats!AW63 -> 0.1298701299
A8: 02 | B8: Bilto (Quaniam - Solers) | C8: =stats!AJ64 -> 355 | D8: =stats!AM64 -> 0.4285714286 | E8: =stats!AO64 -> 211 | F8: =stats!AR64 -> 0.2575757576 | G8: =stats!AT64 -> 112 | H8: =stats!AW64 -> 0.1385281385
A9: 03 | B9: Bilto.fr (Mace-Mortagne) | C9: =stats!AJ65 -> 357 | D9: =stats!AM65 -> 0.4134199134 | E9: =stats!AO65 -> 222 | F9: =stats!AR65 -> 0.2424242424 | G9: =stats!AT65 -> 128 | H9: =stats!AW65 -> 0.1428571429
A10: 04 | B10: Equidia live(Luykx/Barbarin-Hawas Grueau) | C10: =stats!AJ66 -> 318 | D10: =stats!AM66 -> 0.3658008658 | E10: =stats!AO66 -> 179 | F10: =stats!AR66 -> 0.1948051948 | G10: =stats!AT66 -> 94 | H10: =stats!AW66 -> 0.09956709957
A11: 05 | B11: Europe I (J.Coves) | C11: =stats!AJ67 -> 322 | D11: =stats!AM67 -> 0.3874458874 | E11: =stats!AO67 -> 187 | F11: =stats!AR67 -> 0.2337662338 | G11: =stats!AT67 -> 90 | H11: =stats!AW67 -> 0.1103896104
A12: 06 | B12: Gény courses (Casabianca-Afriat) | C12: =stats!AJ68 -> 326 | D12: =stats!AM68 -> 0.3852813853 | E12: =stats!AO68 -> 185 | F12: =stats!AR68 -> 0.2164502165 | G12: =stats!AT68 -> 94 | H12: =stats!AW68 -> 0.1125541126
A13: 07 | B13: Geny,com (Gérard-Daignault) | C13: =stats!AJ69 -> 332 | D13: =stats!AM69 -> 0.3896103896 | E13: =stats!AO69 -> 192 | F13: =stats!AR69 -> 0.2229437229 | G13: =stats!AT69 -> 110 | H13: =stats!AW69 -> 0.1125541126
A14: 08 | B14: La Gazette des Courses (Albouy - Zoldan) | C14: =stats!AJ70 -> 332 | D14: =stats!AM70 -> 0.3917748918 | E14: =stats!AO70 -> 200 | F14: =stats!AR70 -> 0.2402597403 | G14: =stats!AT70 -> 101 | H14: =stats!AW70 -> 0.1212121212
A15: 09 | B15: Le Dauphiné Libéré (Attard-Verger-Caze) | C15: =stats!AJ71 -> 323 | D15: =stats!AM71 -> 0.2212581345 | E15: =stats!AO71 -> 185 | F15: =stats!AR71 -> 0.1106290672 | G15: =stats!AT71 -> 97 | H15: =stats!AW71 -> 0.05422993492
A16: 10 | B16: Le Parisien (La Synthèse) | C16: =stats!AJ72 -> 303 | D16: =stats!AM72 -> 0.3484848485 | E16: =stats!AO72 -> 174 | F16: =stats!AR72 -> 0.1948051948 | G16: =stats!AT72 -> 95 | H16: =stats!AW72 -> 0.0974025974
A17: 11 | B17: Le Républicain Lorrain (G.Vidal) | C17: =stats!AJ73 -> 335 | D17: =stats!AM73 -> 0.4112554113 | E17: =stats!AO73 -> 195 | F17: =stats!AR73 -> 0.2316017316 | G17: =stats!AT73 -> 104 | H17: =stats!AW73 -> 0.1277056277
A18: 12 | B18: Ouest-France (Gimcrack) | C18: =stats!AJ74 -> 338 | D18: =stats!AM74 -> 0.4025974026 | E18: =stats!AO74 -> 195 | F18: =stats!AR74 -> 0.2164502165 | G18: =stats!AT74 -> 106 | H18: =stats!AW74 -> 0.1212121212
A19: 13 | B19: Paris Courses (Conio-Laballeur) | C19: =stats!AJ75 -> 350 | D19: =stats!AM75 -> 0.4199134199 | E19: =stats!AO75 -> 212 | F19: =stats!AR75 -> 0.2424242424 | G19: =stats!AT75 -> 116 | H19: =stats!AW75 -> 0.1255411255
A20: 14 | B20: Paris-Courses.com (Chastin-Klouy-Longubardo) | C20: =stats!AJ76 -> 124 | D20: =stats!AM76 -> 0.368 | E20: =stats!AO76 -> 68 | F20: =stats!AR76 -> 0.18 | G20: =stats!AT76 -> 32 | H20: =stats!AW76 -> 0.088
A21: 15 | B21: Paris-Turf (mon Pronostic QUINTE) | C21: =stats!AJ77 -> 142 | D21: =stats!AM77 -> 0.424 | E21: =stats!AO77 -> 77 | F21: =stats!AR77 -> 0.236 | G21: =stats!AT77 -> 44 | H21: =stats!AW77 -> 0.144
A22: 16 | B22: Paris-Turf TIP (Debruyne-Levy) | C22: =stats!AJ78 -> 348 | D22: =stats!AM78 -> 0.4220779221 | E22: =stats!AO78 -> 213 | F22: =stats!AR78 -> 0.2489177489 | G22: =stats!AT78 -> 117 | H22: =stats!AW78 -> 0.1385281385
A23: 17 | B23: Paris-Turf.com (Beasse-Piazza) | C23: =stats!AJ79 -> 336 | D23: =stats!AM79 -> 0.3896103896 | E23: =stats!AO79 -> 192 | F23: =stats!AR79 -> 0.2164502165 | G23: =stats!AT79 -> 110 | H23: =stats!AW79 -> 0.1233766234
A24: 18 | B24: PronoSMART | C24: =stats!AJ80 -> 294 | D24: =stats!AM80 -> 0.3658008658 | E24: =stats!AO80 -> 188 | F24: =stats!AR80 -> 0.2380952381 | G24: =stats!AT80 -> 99 | H24: =stats!AW80 -> 0.1277056277
A25: 19 | B25: RTL (B.Glass) | C25: =stats!AJ81 -> 236 | D25: =stats!AM81 -> 0.2012987013 | E25: =stats!AO81 -> 185 | F25: =stats!AR81 -> 0.1168831169 | G25: =stats!AT81 -> 93 | H25: =stats!AW81 -> 0.06493506494
A26: 20 | B26: Special Dernière (J.Villa) | C26: =stats!AJ82 -> 338 | D26: =stats!AM82 -> 0.3939393939 | E26: =stats!AO82 -> 191 | F26: =stats!AR82 -> 0.2251082251 | G26: =stats!AT82 -> 107 | H26: =stats!AW82 -> 0.1277056277
A27: 21 | B27: Tiercé Magazine (Schramm-Daheron) | C27: =stats!AJ83 -> 354 | D27: =stats!AM83 -> 0.4264069264 | E27: =stats!AO83 -> 207 | F27: =stats!AR83 -> 0.2445887446 | G27: =stats!AT83 -> 111 | H27: =stats!AW83 -> 0.1298701299
A28: 22 | B28: Tiercé-Magazine.com (Longubardo-Decoopman) | C28: =stats!AJ84 -> 348 | D28: =stats!AM84 -> 0.4177489177 | E28: =stats!AO84 -> 212 | F28: =stats!AR84 -> 0.2445887446 | G28: =stats!AT84 -> 114 | H28: =stats!AW84 -> 0.1298701299
A29: 23 | B29: Tropiques FM (A.Yrius) | C29: =stats!AJ85 -> 325 | D29: =stats!AM85 -> 0.3831168831 | E29: =stats!AO85 -> 174 | F29: =stats!AR85 -> 0.2012987013 | G29: =stats!AT85 -> 88 | H29: =stats!AW85 -> 0.09523809524
A30: 24 | B30: Week-End (Brosselin-Ballot) | C30: =stats!AJ86 -> 338 | D30: =stats!AM86 -> 0.3896103896 | E30: =stats!AO86 -> 199 | F30: =stats!AR86 -> 0.2229437229 | G30: =stats!AT86 -> 107 | H30: =stats!AW86 -> 0.1212121212
A31: 25 | B31: Week-End-Turf.com (Bruyas-Peired) | C31: =stats!AJ87 -> 303 | D31: =stats!AM87 -> 0.367965368 | E31: =stats!AO87 -> 179 | F31: =stats!AR87 -> 0.2207792208 | G31: =stats!AT87 -> 90 | H31: =stats!AW87 -> 0.1017316017
B33: bonjour
B34: serait il possible sur ce tableau de faire un choix de date à date (exemple du 01/01/2016 au 31/12/2016) et nous aurions ainsi le total dans chaque colonne C-E-G de la période demandé pour chaque feuille de 01:25
B35: sachant que
B36: lacolonne C correspond au Total de la colonne AH de la Feuille 01:25 et que nous pourrions faire le calcul du % en se servant de la formule en AH3
B37: lacolonne E correspond au Total de la colonne AJ de la Feuille 01:25 et que nous pourrions faire le calcul du % en se servant de la formule en AJ3
B38: lacolonne C correspond au Total de la colonne AL de la Feuille 01:25 et que nous pourrions faire le calcul du % en se servant de la formule en AL3
B40: est ce faisable avec une formule qui lancerait le tri des dates ou est ce qu'il faut une macro
B41: quoiqu'il en soit je ne suis doué ni pour un, ni pour l'autre
B42: merci par avance

Sheet Affichage
C4: SAMEDI 31 DECEMBRE 2016 | P4: PRONOSTICS DE LA PRESSE POUR LE SAMEDI 31 DECEMBRE 2016 | Z4: DETAIL ET NOMBRE DE FOIS CITES
C5: TIERCE | G5: QUARTE | K5: QUINTE+ | P5: LA PRESSE | Q5: 1 | R5: 2 | S5: 3 | T5: 4 | U5: 5 | V5: 6 | W5: 7 | X5: 8 | Z5: Numéros | AA5: 1° | AB5: 2° | AC5: 3° | AD5: 4° | AE5: 5° | AF5: 6° | AG5: 7° | AH5: 8° | AI5: points | AJ5: nombre
C6: NBR | D6: ACT | E6: MAX | F6: % | G6: NBR | H6: ACT | I6: MAX | J6: % | K6: NBR | L6: ACT | M6: MAX | N6: % | O6: 1 | P6: AIP | Q6: =stats!T33 -> 14 | R6: =stats!U33 -> 15 | S6: =stats!V33 -> 17 | T6: =stats!W33 -> 9 | U6: =stats!X33 -> 10 | V6: =stats!Y33 -> 13 | W6: =stats!Z33 -> 7 | X6: =stats!AA33 -> 18 | Y6: 1 | Z6: 14 | AA6: =IF(COUNTIF($Q$6:$Q$30,$Z6)=0,"",COUNTIF($Q$6:$Q$30,Z6)) -> 17 | AB6: =IF(COUNTIF($R$6:$R$30,$Z6)=0,"",COUNTIF($R$6:$R$30,Z6)) ->  | AC6: =IF(COUNTIF($S$6:$S$30,$Z6)=0,"",COUNTIF($S$6:$S$30,Z6)) -> 2 | AD6: =IF(COUNTIF($T$6:$T$30,$Z6)=0,"",COUNTIF($T$6:$T$30,Z6)) -> 2 | AE6: =IF(COUNTIF($U$6:$U$30,$Z6)=0,"",COUNTIF($U$6:$U$30,Z6)) -> 2 | AF6: =IF(COUNTIF($V$6:$V$30,$Z6)=0,"",COUNTIF($V$6:$V$30,Z6)) -> 1 | AG6: =IF(COUNTIF($W$6:$W$30,$Z6)=0,"",COUNTIF($W$6:$W$30,Z6)) ->  | AH6: =IF(COUNTIF($X$6:$X$30,$Z6)=0,"",COUNTIF($X$6:$X$30,Z6)) ->  | AI6: =SUM(IF($Q$6:$X$30=Z6,25-COLUMN($Q$6:$X$30),0)) -> 169 | AJ6: =COUNTIF($Q$6:$X$46,$Z6) -> 24
A7: 1 | B7: AIP | C7: =stats!AJ63 -> 332 | D7: =stats!AK63 -> 3 | E7: =stats!AL63 -> 9 | F7: =stats!AM63 -> 0.4069264069 | G7: =stats!AO63 -> 200 | H7: =stats!AP63 -> 3 | I7: =stats!AQ63 -> 14 | J7: =stats!AR63 -> 0.2380952381 | K7: =stats!AT63 -> 109 | L7: =stats!AU63 -> 3 | M7: =stats!AV63 -> 24 | N7: =stats!AW63 -> 0.1298701299 | O7: 2 | P7: Bilto | Q7: =SUM(stats!T34) -> 15 | R7: =SUM(stats!U34) -> 17 | S7: =SUM(stats!V34) -> 14 | T7: =SUM(stats!W34) -> 10 | U7: =SUM(stats!X34) -> 13 | V7: =SUM(stats!Y34) -> 16 | W7: =SUM(stats!Z34) -> 6 | X7: =SUM(stats!AA34) -> 2 | Y7: 2 | Z7: 17 | AA7: 3 | AB7: 15 | AC7: 3 | AD7: 1 | AE7: 1 | AF7: 1 | AI7: =SUM(IF($Q$6:$X$30=Z7,25-COLUMN($Q$6:$X$30),0)) -> 159 | AJ7: 24
A8: 2 | B8: Bilto (Quaniam - Solers) | C8: =stats!AJ64 -> 355 | D8: =stats!AK64 -> 3 | E8: =stats!AL64 -> 11 | F8: =stats!AM64 -> 0.4285714286 | G8: =stats!AO64 -> 211 | H8: =stats!AP64 -> 3 | I8: =stats!AQ64 -> 17 | J8: =stats!AR64 -> 0.2575757576 | K8: =stats!AT64 -> 112 | L8: =stats!AU64 -> 3 | M8: =stats!AV64 -> 24 | N8: =stats!AW64 -> 0.1385281385 | O8: 3 | P8: Bilto.fr | Q8: =SUM(stats!T35) -> 14 | R8: =SUM(stats!U35) -> 17 | S8: =SUM(stats!V35) -> 15 | T8: =SUM(stats!W35) -> 16 | U8: 10 | V8: =SUM(stats!Y35) -> 18 | W8: =SUM(stats!Z35) -> 13 | X8: =SUM(stats!AA35) -> 9 | Y8: 3 | Z8: 15 | AA8: 2 | AB8: 5 | AC8: 4 | AD8: 2 | AE8: 3 | AF8: 4 | AH8: 1 | AI8: =SUM(IF($Q$6:$X$30=Z8,25-COLUMN($Q$6:$X$30),0)) -> 110 | AJ8: 21
A9: 3 | B9: Bilto.fr (Mace-Mortagne) | C9: =stats!AJ65 -> 357 | D9: =stats!AK65 -> 3 | E9: =stats!AL65 -> 11 | F9: =stats!AM65 -> 0.4134199134 | G9: =stats!AO65 -> 222 | H9: =stats!AP65 -> 3 | I9: =stats!AQ65 -> 16 | J9: =stats!AR65 -> 0.2424242424 | K9: =stats!AT65 -> 128 | L9: =stats!AU65 -> 3 | M9: =stats!AV65 -> 29 | N9: =stats!AW65 -> 0.1428571429 | O9: 4 | P9: Europe I | Q9: =SUM(stats!T36) -> 2 | R9: =SUM(stats!U36) -> 17 | S9: =SUM(stats!V36) -> 14 | T9: =SUM(stats!W36) -> 1 | U9: =SUM(stats!X36) -> 6 | V9: =SUM(stats!Y36) -> 8 | W9: =SUM(stats!Z36) -> 10 | X9: =SUM(stats!AA36) -> 16 | Y9: 4 | Z9: 10 | AA9: 1 | AB9: 1 | AC9: 1 | AD9: 3 | AE9: 7 | AF9: 2 | AG9: 2 | AH9: 2 | AI9: =SUM(IF($Q$6:$X$30=Z9,25-COLUMN($Q$6:$X$30),0)) -> 76 | AJ9: 19
A10: 4 | B10: Equidia live(Luykx/Barbarin-Hawas Grueau) | C10: =stats!AJ66 -> 318 | D10: =stats!AK66 -> 2 | E10: =stats!AL66 -> 12 | F10: =stats!AM66 -> 0.3658008658 | G10: =stats!AO66 -> 179 | H10: =stats!AP66 -> 3 | I10: =stats!AQ66 -> 28 | J10: =stats!AR66 -> 0.1948051948 | K10: =stats!AT66 -> 94 | L10: =stats!AU66 -> 3 | M10: =stats!AV66 -> 44 | N10: =stats!AW66 -> 0.09956709957 | O10: 5 | P10: La Gazette des Courses | Q10: =SUM(stats!T37) -> 15 | R10: =SUM(stats!U37) -> 7 | S10: =SUM(stats!V37) -> 13 | T10: =SUM(stats!W37) -> 16 | U10: =SUM(stats!X37) -> 11 | V10: =SUM(stats!Y37) -> 17 | W10: =SUM(stats!Z37) -> 6 | X10: =SUM(stats!AA37) -> 2 | Y10: 5 | Z10: 7 | AA10: 1 | AB10: 1 | AC10: 6 | AD10: 2 | AE10: 1 | AF10: 1 | AG10: 3 | AH10: 1 | AI10: =SUM(IF($Q$6:$X$30=Z10,25-COLUMN($Q$6:$X$30),0)) -> 75 | AJ10: 16
A11: 5 | B11: Europe I (J.Coves) | C11: =stats!AJ67 -> 322 | D11: =stats!AK67 -> 1 | E11: =stats!AL67 -> 12 | F11: =stats!AM67 -> 0.3874458874 | G11: =stats!AO67 -> 187 | H11: =stats!AP67 -> 4 | I11: =stats!AQ67 -> 22 | J11: =stats!AR67 -> 0.2337662338 | K11: =stats!AT67 -> 90 | L11: =stats!AU67 -> 4 | M11: =stats!AV67 -> 39 | N11: =stats!AW67 -> 0.1103896104 | O11: 6 | P11: Le Dauphiné Libéré | Q11: =SUM(stats!T38) -> 14 | R11: =SUM(stats!U38) -> 17 | S11: =SUM(stats!V38) -> 6 | T11: =SUM(stats!W38) -> 7 | U11: =SUM(stats!X38) -> 10 | V11: =SUM(stats!Y38) -> 9 | W11: =SUM(stats!Z38) -> 8 | X11: =SUM(stats!AA38) -> 13 | Y11: 6 | Z11: 13 | AB11: 1 | AC11: 1 | AD11: 3 | AE11: 3 | AF11: 4 | AG11: 4 | AH11: 2 | AI11: =SUM(IF($Q$6:$X$30=Z11,25-COLUMN($Q$6:$X$30),0)) -> 62 | AJ11: 18
A12: 6 | B12: Gény courses (Casabianca-Afriat) | C12: =stats!AJ68 -> 326 | D12: =stats!AK68 -> 3 | E12: =stats!AL68 -> 9 | F12: =stats!AM68 -> 0.3852813853 | G12: =stats!AO68 -> 185 | H12: =stats!AP68 -> 3 | I12: =stats!AQ68 -> 15 | J12: =stats!AR68 -> 0.2164502165 | K12: =stats!AT68 -> 94 | L12: =stats!AU68 -> 3 | M12: =stats!AV68 -> 26 | N12: =stats!AW68 -> 0.1125541126 | O12: 7 | P12: Le Parisien | Q12: =SUM(stats!T39) -> 14 | R12: =SUM(stats!U39) -> 17 | S12: =SUM(stats!V39) -> 10 | T12: =SUM(stats!W39) -> 13 | U12: =SUM(stats!X39) -> 15 | V12: =SUM(stats!Y39) -> 16 | W12: =SUM(stats!Z39) -> 18 | X12: =SUM(stats!AA39) -> 6 | Y12: 7 | Z12: 6 | AB12: 1 | AC12: 4 | AD12: 2 | AE12: 3 | AG12: 2 | AH12: 4 | AI12: =SUM(IF($Q$6:$X$30=Z12,25-COLUMN($Q$6:$X$30),0)) -> 61 | AJ12: 16
A13: 7 | B13: Geny,com (Gérard-Daignault) | C13: =stats!AJ69 -> 332 | D13: =stats!AK69 -> 2 | E13: =stats!AL69 -> 8 | F13: =stats!AM69 -> 0.3896103896 | G13: =stats!AO69 -> 192 | H13: =stats!AP69 -> 4 | I13: =stats!AQ69 -> 15 | J13: =stats!AR69 -> 0.2229437229 | K13: =stats!AT69 -> 110 | L13: =stats!AU69 -> 4 | M13: =stats!AV69 -> 40 | N13: =stats!AW69 -> 0.1125541126 | O13: 8 | P13: Le Républicain Lorrain | Q13: =SUM(stats!T40) -> 14 | R13: =SUM(stats!U40) -> 17 | S13: =SUM(stats!V40) -> 7 | T13: =SUM(stats!W40) -> 10 | U13: =SUM(stats!X40) -> 15 | V13: =SUM(stats!Y40) -> 13 | W13: =SUM(stats!Z40) -> 18 | X13: =SUM(stats!AA40) -> 6 | Y13: 8 | Z13: 16 | AC13: 1 | AD13: 4 | AE13: 1 | AF13: 3 | AG13: 1 | AH13: 2 | AI13: =SUM(IF($Q$6:$X$30=Z13,25-COLUMN($Q$6:$X$30),0)) -> 43 | AJ13: 12
A14: 8 | B14: La Gazette des Courses (Albouy - Zoldan) | C14: =stats!AJ70 -> 332 | D14: =stats!AK70 -> 2 | E14: =stats!AL70 -> 10 | F14: =stats!AM70 -> 0.3917748918 | G14: =stats!AO70 -> 200 | H14: =stats!AP70 -> 3 | I14: =stats!AQ70 -> 21 | J14: =stats!AR70 -> 0.2402597403 | K14: =stats!AT70 -> 101 | L14: =stats!AU70 -> 3 | M14: =stats!AV70 -> 38 | N14: =stats!AW70 -> 0.1212121212 | O14: 9 | P14: Geny,com | Q14: =SUM(stats!T41) -> 14 | R14: =SUM(stats!U41) -> 17 | S14: =SUM(stats!V41) -> 7 | T14: =SUM(stats!W41) -> 18 | U14: =SUM(stats!X41) -> 13 | V14: =SUM(stats!Y41) -> 15 | W14: =SUM(stats!Z41) -> 10 | X14: =SUM(stats!AA41) -> 6 | Y14: 9 | Z14: 8 | AC14: 2 | AE14: 2 | AF14: 3 | AG14: 4 | AI14: =SUM(IF($Q$6:$X$30=Z14,25-COLUMN($Q$6:$X$30),0)) -> 37 | AJ14: 11
A15: 9 | B15: Le Dauphiné Libéré (Attard-Verger-Caze) | C15: =stats!AJ71 -> 323 | D15: =stats!AK71 -> 4 | E15: =stats!AL71 -> 13 | F15: =stats!AM71 -> 0.2212581345 | G15: =stats!AO71 -> 185 | H15: =stats!AP71 -> 4 | I15: =stats!AQ71 -> 14 | J15: =stats!AR71 -> 0.1106290672 | K15: =stats!AT71 -> 97 | L15: =stats!AU71 -> 14 | M15: =stats!AV71 -> 32 | N15: =stats!AW71 -> 0.05422993492 | O15: 10 | P15: Ouest-France | Q15: =SUM(stats!T42) -> 14 | R15: =SUM(stats!U42) -> 17 | S15: =SUM(stats!V42) -> 7 | T15: =SUM(stats!W42) -> 10 | U15: =SUM(stats!X42) -> 8 | V15: =SUM(stats!Y42) -> 1 | W15: =SUM(stats!Z42) -> 16 | X15: =SUM(stats!AA42) -> 9 | Y15: 10 | Z15: 9 | AD15: 2 | AE15: 1 | AF15: 3 | AG15: 4 | AH15: 6 | AI15: =SUM(IF($Q$6:$X$30=Z15,25-COLUMN($Q$6:$X$30),0)) -> 37 | AJ15: 16
A16: 10 | B16: Le Parisien (La Synthèse) | C16: =stats!AJ72 -> 303 | D16: =stats!AK72 -> 3 | E16: =stats!AL72 -> 14 | F16: =stats!AM72 -> 0.3484848485 | G16: =stats!AO72 -> 174 | H16: =stats!AP72 -> 3 | I16: =stats!AQ72 -> 27 | J16: =stats!AR72 -> 0.1948051948 | K16: =stats!AT72 -> 95 | L16: =stats!AU72 -> 3 | M16: =stats!AV72 -> 40 | N16: =stats!AW72 -> 0.0974025974 | O16: 11 | P16: Paris Courses | Q16: =SUM(stats!T43) -> 14 | R16: =SUM(stats!U43) -> 17 | S16: =SUM(stats!V43) -> 15 | T16: =SUM(stats!W43) -> 3 | U16: =SUM(stats!X43) -> 6 | V16: =SUM(stats!Y43) -> 10 | W16: =SUM(stats!Z43) -> 9 | X16: =SUM(stats!AA43) -> 18 | Y16: 11 | Z16: 18 | AD16: 1 | AF16: 1 | AG16: 4 | AH16: 3 | AI16: =SUM(IF($Q$6:$X$30=Z16,25-COLUMN($Q$6:$X$30),0)) -> 19 | AJ16: 9
A17: 11 | B17: Le Républicain Lorrain (G.Vidal) | C17: =stats!AJ73 -> 335 | D17: =stats!AK73 -> 3 | E17: =stats!AL73 -> 12 | F17: =stats!AM73 -> 0.4112554113 | G17: =stats!AO73 -> 195 | H17: =stats!AP73 -> 3 | I17: =stats!AQ73 -> 14 | J17: =stats!AR73 -> 0.2316017316 | K17: =stats!AT73 -> 104 | L17: =stats!AU73 -> 3 | M17: =stats!AV73 -> 22 | N17: =stats!AW73 -> 0.1277056277 | O17: 12 | P17: Paris-Courses.com | Q17: =SUM(stats!T44) -> 14 | R17: =SUM(stats!U44) -> 17 | S17: =SUM(stats!V44) -> 110 | T17: =SUM(stats!W44) -> 13 | U17: =SUM(stats!X44) -> 15 | V17: =SUM(stats!Y44) -> 7 | W17: =SUM(stats!Z44) -> 9 | X17: =SUM(stats!AA44) -> 16 | Y17: 12 | Z17: 2 | AA17: 1 | AD17: 1 | AH17: 2 | AI17: =SUM(IF($Q$6:$X$30=Z17,25-COLUMN($Q$6:$X$30),0)) -> 15 | AJ17: 4
A18: 12 | B18: Ouest-France (Gimcrack) | C18: =stats!AJ74 -> 338 | D18: =stats!AK74 -> 2 | E18: =stats!AL74 -> 9 | F18: =stats!AM74 -> 0.4025974026 | G18: =stats!AO74 -> 195 | H18: =stats!AP74 -> 2 | I18: =stats!AQ74 -> 26 | J18: =stats!AR74 -> 0.2164502165 | K18: =stats!AT74 -> 106 | L18: =stats!AU74 -> 2 | M18: =stats!AV74 -> 26 | N18: =stats!AW74 -> 0.1212121212 | O18: 13 | P18: Paris-Turf | Q18: =SUM(stats!T45) -> 14 | R18: =SUM(stats!U45) -> 17 | S18: =SUM(stats!V45) -> 7 | T18: =SUM(stats!W45) -> 15 | U18: =SUM(stats!X45) -> 10 | V18: =SUM(stats!Y45) -> 13 | W18: =SUM(stats!Z45) -> 18 | X18: =SUM(stats!AA45) -> 9 | Y18: 13 | Z18: 11 | AB18: 1 | AE18: 1 | AH18: 1 | AI18: =SUM(IF($Q$6:$X$30=Z18,25-COLUMN($Q$6:$X$30),0)) -> 12 | AJ18: 3
A19: 13 | B19: Paris Courses (Conio-Laballeur) | C19: =stats!AJ75 -> 350 | D19: =stats!AK75 -> 3 | E19: =stats!AL75 -> 8 | F19: =stats!AM75 -> 0.4199134199 | G19: =stats!AO75 -> 212 | H19: =stats!AP75 -> 3 | I19: =stats!AQ75 -> 17 | J19: =stats!AR75 -> 0.2424242424 | K19: =stats!AT75 -> 116 | L19: =stats!AU75 -> 3 | M19: =stats!AV75 -> 29 | N19: =stats!AW75 -> 0.1255411255 | O19: 14 | P19: Gény courses | Q19: =SUM(stats!T46) -> 14 | R19: =SUM(stats!U46) -> 6 | S19: =SUM(stats!V46) -> 7 | T19: =SUM(stats!W46) -> 17 | U19: =SUM(stats!X46) -> 9 | V19: =SUM(stats!Y46) -> 15 | W19: =SUM(stats!Z46) -> 8 | X19: =SUM(stats!AA46) -> 10 | Y19: 14 | Z19: 3 | AD19: 1 | AF19: 1 | AG19: 1 | AI19: =SUM(IF($Q$6:$X$30=Z19,25-COLUMN($Q$6:$X$30),0)) -> 10 | AJ19: 3
A20: 14 | B20: Paris-Courses.com (Chastin-Klouy-Longubardo) | C20: =stats!AJ76 -> 124 | D20: =stats!AK76 -> 2 | E20: =stats!AL76 -> 11 | F20: =stats!AM76 -> 0.368 | G20: =stats!AO76 -> 68 | H20: =stats!AP76 -> 2 | I20: =stats!AQ76 -> 21 | J20: =stats!AR76 -> 0.18 | K20: =stats!AT76 -> 32 | L20: =stats!AU76 -> 14 | M20: =stats!AV76 -> 34 | N20: =stats!AW76 -> 0.088 | O20: 15 | P20: Paris-Turf TIP | Q20: =SUM(stats!T47) -> 14 | R20: =SUM(stats!U47) -> 17 | S20: =SUM(stats!V47) -> 6 | T20: =SUM(stats!W47) -> 16 | U20: =SUM(stats!X47) -> 10 | V20: =SUM(stats!Y47) -> 15 | W20: =SUM(stats!Z47) -> 13 | X20: =SUM(stats!AA47) -> 9 | Y20: 15 | Z20: 1 | AD20: 1 | AF20: 1 | AH20: 1 | AI20: =SUM(IF($Q$6:$X$30=Z20,25-COLUMN($Q$6:$X$30),0)) -> 9 | AJ20: 3
A21: 15 | B21: Paris-Turf (mon Pronostic QUINTE) | C21: =stats!AJ77 -> 142 | D21: =stats!AK77 -> 3 | E21: =stats!AL77 -> 10 | F21: =stats!AM77 -> 0.424 | G21: =stats!AO77 -> 77 | H21: =stats!AP77 -> 11 | I21: =stats!AQ77 -> 19 | J21: =stats!AR77 -> 0.236 | K21: =stats!AT77 -> 44 | L21: =stats!AU77 -> 11 | M21: =stats!AV77 -> 19 | N21: =stats!AW77 -> 0.144 | O21: 16 | P21: Paris-Turf.com | Q21: =SUM(stats!T48) -> 14 | R21: =SUM(stats!U48) -> 17 | S21: =SUM(stats!V48) -> 6 | T21: =SUM(stats!W48) -> 15 | U21: =SUM(stats!X48) -> 7 | V21: =SUM(stats!Y48) -> 13 | W21: =SUM(stats!Z48) -> 9 | X21: =SUM(stats!AA48) -> 10 | Y21: 16 | Z21: 4 | AI21: =SUM(IF($Q$6:$X$30=Z21,25-COLUMN($Q$6:$X$30),0)) -> 0 | AJ21: 0
A22: 16 | B22: Paris-Turf TIP (Debruyne-Levy) | C22: =stats!AJ78 -> 348 | D22: =stats!AK78 -> 3 | E22: =stats!AL78 -> 8 | F22: =stats!AM78 -> 0.4220779221 | G22: =stats!AO78 -> 213 | H22: =stats!AP78 -> 3 | I22: =stats!AQ78 -> 15 | J22: =stats!AR78 -> 0.2489177489 | K22: =stats!AT78 -> 117 | L22: =stats!AU78 -> 3 | M22: =stats!AV78 -> 27 | N22: =stats!AW78 -> 0.1385281385 | O22: 17 | P22: PronoSMART | Q22: =SUM(stats!T49) -> 17 | R22: =SUM(stats!U49) -> 13 | S22: =SUM(stats!V49) -> 15 | T22: =SUM(stats!W49) -> 9 | U22: =SUM(stats!X49) -> 14 | V22: =SUM(stats!Y49) -> 16 | W22: =SUM(stats!Z49) -> 18 | X22: =SUM(stats!AA49) -> 7 | Y22: 17 | Z22: 5 | AI22: =SUM(IF($Q$6:$X$30=Z22,25-COLUMN($Q$6:$X$30),0)) -> 0 | AJ22: 0
A23: 17 | B23: Paris-Turf.com (Beasse-Piazza) | C23: =stats!AJ79 -> 336 | D23: =stats!AK79 -> 4 | E23: =stats!AL79 -> 11 | F23: =stats!AM79 -> 0.3896103896 | G23: =stats!AO79 -> 192 | H23: =stats!AP79 -> 4 | I23: =stats!AQ79 -> 21 | J23: =stats!AR79 -> 0.2164502165 | K23: =stats!AT79 -> 110 | L23: =stats!AU79 -> 7 | M23: =stats!AV79 -> 24 | N23: =stats!AW79 -> 0.1233766234 | O23: 18 | P23: RTL | Q23: =SUM(stats!T50) -> 10 | R23: =SUM(stats!U50) -> 15 | S23: =SUM(stats!V50) -> 17 | T23: =SUM(stats!W50) -> 16 | U23: =SUM(stats!X50) -> 14 | V23: =SUM(stats!Y50) -> 8 | W23: =SUM(stats!Z50) -> 13 | X23: =SUM(stats!AA50) -> 1 | Y23: 18 | Z23: 12 | AI23: =SUM(IF($Q$6:$X$30=Z23,25-COLUMN($Q$6:$X$30),0)) -> 0 | AJ23: 0
A24: 18 | B24: PronoSMART | C24: =stats!AJ80 -> 294 | D24: =stats!AK80 -> 3 | E24: =stats!AL80 -> 16 | F24: =stats!AM80 -> 0.3658008658 | G24: =stats!AO80 -> 188 | H24: =stats!AP80 -> 3 | I24: =stats!AQ80 -> 17 | J24: =stats!AR80 -> 0.2380952381 | K24: =stats!AT80 -> 99 | L24: =stats!AU80 -> 3 | M24: =stats!AV80 -> 35 | N24: =stats!AW80 -> 0.1277056277 | O24: 19 | P24: Equidia live | Q24: =SUM(stats!T51) -> 14 | R24: =SUM(stats!U51) -> 17 | S24: =SUM(stats!V51) -> 8 | T24: =SUM(stats!W51) -> 2 | U24: =SUM(stats!X51) -> 13 | V24: =SUM(stats!Y51) -> 15 | W24: =SUM(stats!Z51) -> 3 | X24: =SUM(stats!AA51) -> 9 | Y24: 19 | Z24: 19 | AI24: =SUM(IF($Q$6:$X$30=Z24,25-COLUMN($Q$6:$X$30),0)) -> 0 | AJ24: 0
A25: 19 | B25: RTL (B.Glass) | C25: =stats!AJ81 -> 236 | D25: =stats!AK81 -> 3 | E25: =stats!AL81 -> 14 | F25: =stats!AM81 -> 0.2012987013 | G25: =stats!AO81 -> 185 | H25: =stats!AP81 -> 3 | I25: =stats!AQ81 -> 27 | J25: =stats!AR81 -> 0.1168831169 | K25: =stats!AT81 -> 93 | L25: =stats!AU81 -> 3 | M25: =stats!AV81 -> 55 | N25: =stats!AW81 -> 0.06493506494 | O25: 20 | P25: Stato Turf | Q25: =SUM(stats!T52) -> 7 | R25: =SUM(stats!U52) -> 11 | S25: =SUM(stats!V52) -> 15 | T25: =SUM(stats!W52) -> 14 | U25: =SUM(stats!X52) -> 6 | V25: =SUM(stats!Y52) -> 8 | W25: =SUM(stats!Z52) -> 9 | X25: =SUM(stats!AA52) -> 11 | Y25: 20 | Z25: 20 | AI25: =SUM(IF($Q$6:$X$30=Z25,25-COLUMN($Q$6:$X$30),0)) -> 0 | AJ25: 0
A26: 20 | B26: Special Dernière (J.Villa) | C26: =stats!AJ82 -> 338 | D26: =stats!AK82 -> 3 | E26: =stats!AL82 -> 14 | F26: =stats!AM82 -> 0.3939393939 | G26: =stats!AO82 -> 191 | H26: =stats!AP82 -> 3 | I26: =stats!AQ82 -> 17 | J26: =stats!AR82 -> 0.2251082251 | K26: =stats!AT82 -> 107 | L26: =stats!AU82 -> 3 | M26: =stats!AV82 -> 26 | N26: =stats!AW82 -> 0.1277056277 | O26: 21 | P26: Tiercé Magazine | Q26: =SUM(stats!T53) -> 14 | R26: =SUM(stats!U53) -> 15 | S26: =SUM(stats!V53) -> 17 | T26: =SUM(stats!W53) -> 13 | U26: =SUM(stats!X53) -> 16 | V26: =SUM(stats!Y53) -> 10 | W26: =SUM(stats!Z53) -> 8 | X26: =SUM(stats!AA53) -> 9
A27: 21 | B27: Tiercé Magazine (Schramm-Daheron) | C27: =stats!AJ83 -> 354 | D27: =stats!AK83 -> 3 | E27: =stats!AL83 -> 11 | F27: =stats!AM83 -> 0.4264069264 | G27: =stats!AO83 -> 207 | H27: =stats!AP83 -> 3 | I27: =stats!AQ83 -> 14 | J27: =stats!AR83 -> 0.2445887446 | K27: =stats!AT83 -> 111 | L27: =stats!AU83 -> 3 | M27: =stats!AV83 -> 25 | N27: =stats!AW83 -> 0.1298701299 | O27: 22 | P27: Tiercé-Magazine.com | Q27: =SUM(stats!T54) -> 14 | R27: =SUM(stats!U54) -> 17 | S27: =SUM(stats!V54) -> 6 | T27: =SUM(stats!W54) -> 7 | U27: =SUM(stats!X54) -> 10 | V27: =SUM(stats!Y54) -> 9 | W27: =SUM(stats!Z54) -> 8 | X27: =SUM(stats!AA54) -> 13
A28: 22 | B28: Tiercé-Magazine.com (Longubardo-Decoopman) | C28: =stats!AJ84 -> 348 | D28: =stats!AK84 -> 3 | E28: =stats!AL84 -> 7 | F28: =stats!AM84 -> 0.4177489177 | G28: =stats!AO84 -> 212 | H28: =stats!AP84 -> 3 | I28: =stats!AQ84 -> 14 | J28: =stats!AR84 -> 0.2445887446 | K28: =stats!AT84 -> 114 | L28: =stats!AU84 -> 3 | M28: =stats!AV84 -> 29 | N28: =stats!AW84 -> 0.1298701299 | O28: 23 | P28: Tropiques FM | Q28: =SUM(stats!T55) -> 17 | R28: =SUM(stats!U55) -> 10 | S28: =SUM(stats!V55) -> 7 | T28: =SUM(stats!W55) -> 6 | U28: =SUM(stats!X55) -> 8 | V28: =SUM(stats!Y55) -> 14 | W28: =SUM(stats!Z55) -> 13 | X28: =SUM(stats!AA55) -> 15
A29: 23 | B29: Tropiques FM (A.Yrius) | C29: =stats!AJ85 -> 325 | D29: =stats!AK85 -> 3 | E29: =stats!AL85 -> 10 | F29: =stats!AM85 -> 0.3831168831 | G29: =stats!AO85 -> 174 | H29: =stats!AP85 -> 3 | I29: =stats!AQ85 -> 30 | J29: =stats!AR85 -> 0.2012987013 | K29: =stats!AT85 -> 88 | L29: =stats!AU85 -> 3 | M29: =stats!AV85 -> 36 | N29: =stats!AW85 -> 0.09523809524 | O29: 24 | P29: Week-End | Q29: =SUM(stats!T56) -> 14 | R29: =SUM(stats!U56) -> 15 | S29: =SUM(stats!V56) -> 8 | T29: =SUM(stats!W56) -> 6 | U29: =SUM(stats!X56) -> 17 | V29: =SUM(stats!Y56) -> 9 | W29: =SUM(stats!Z56) -> 7 | X29: =SUM(stats!AA56) -> 18
A30: 254 | B30: Week-End (Brosselin-Ballot) | C30: =stats!AJ86 -> 338 | D30: =stats!AK86 -> 3 | E30: =stats!AL86 -> 10 | F30: =stats!AM86 -> 0.3896103896 | G30: =stats!AO86 -> 199 | H30: =stats!AP86 -> 3 | I30: =stats!AQ86 -> 12 | J30: =stats!AR86 -> 0.2229437229 | K30: =stats!AT86 -> 107 | L30: =stats!AU86 -> 3 | M30: =stats!AV86 -> 27 | N30: =stats!AW86 -> 0.1212121212 | O30: 25 | P30: Week-End-Turf.com | Q30: =SUM(stats!T57) -> 17 | R30: =SUM(stats!U57) -> 15 | S30: =SUM(stats!V57) -> 16 | T30: =SUM(stats!W57) -> 14 | U30: =SUM(stats!X57) -> 10 | V30: =SUM(stats!Y57) -> 3 | W30: =SUM(stats!Z57) -> 7 | X30: =SUM(stats!AA57) -> 6
A31: 25 | B31: Week-End-Turf.com (Bruyas-Peired) | C31: =stats!AJ87 -> 303 | D31: =stats!AK87 -> 4 | E31: =stats!AL87 -> 10 | F31: =stats!AM87 -> 0.367965368 | G31: =stats!AO87 -> 179 | H31: =stats!AP87 -> 14 | I31: =stats!AQ87 -> 24 | J31: =stats!AR87 -> 0.2207792208 | K31: =stats!AT87 -> 90 | L31: =stats!AU87 -> 14 | M31: =stats!AV87 -> 43 | N31: =stats!AW87 -> 0.1017316017

Sheet stats
C2: TIERCE | E2: QUARTE | G2: QUINTE | M2: QUARTE | O2: QUINTE | AJ2: TIERCE | AL2: QUARTE | AN2: QUINTE
C3: Actuel | D3: Maxi | E3: Actuel | F3: Maxi | G3: Actuel | H3: Maxi | M3: NBRE | N3: % | O3: NBRE | P3: % | AJ3: NBRE | AK3: % | AL3: NBRE | AM3: % | AN3: NBRE | AO3: %
A4: 1 | B4: Agence TIP | C4: =LOOKUP(9^9,INDIRECT("'"&TEXT(ROW(A1),"00")&"'!$Ai$6:$Ai$1000")) -> 3 | D4: =INDIRECT(TEXT(ROWS($1:1),"00")&"!AI3") -> 9 | E4: =LOOKUP(9^9,INDIRECT("'"&TEXT(ROW(C1),"00")&"'!$Ak$6:$Ak$1000")) -> 3 | F4: =INDIRECT(TEXT(ROWS($1:1),"00")&"!AK3") -> 14 | G4: =LOOKUP(9^9,INDIRECT("'"&TEXT(ROW(E1),"00")&"'!$AM$6:$AM$1000")) -> 3 | H4: =INDIRECT(TEXT(ROWS($1:1),"00")&"!AM3") -> 24 | M4: =IFERROR(SUM(INDIRECT("'"&TEXT(ROW(A1),"00")&"'!AJ7:AJ1000")),"") -> 200 | N4: =INDIRECT(TEXT(ROWS($1:1),"00")&"!AJ3") -> 0.2380952381 | O4: =IFERROR(SUM(INDIRECT("'"&TEXT(ROW(A1),"00")&"'!AL7:AL1000")),"") -> 109 | P4: =INDIRECT(TEXT(ROWS($1:1),"00")&"!AL3") -> 0.1298701299 | AJ4: =IFERROR(SUM(INDIRECT("'"&TEXT(ROW(Z1),"00")&"'!AH7:AH1000")),"") -> 332 | AK4: =INDIRECT(TEXT(ROWS($1:1),"00")&"!Ah3") -> 0.4069264069 | AL4: =IFERROR(SUM(INDIRECT("'"&TEXT(ROW(Z1),"00")&"'!AJ7:AJ1000")),"") -> 200 | AM4: =INDIRECT(TEXT(ROWS($1:1),"00")&"!AJ3") -> 0.2380952381 | AN4: =IFERROR(SUM(INDIRECT("'"&TEXT(ROW(Z1),"00")&"'!AL7:AL1000")),"") -> 109 | AO4: =INDIRECT(TEXT(ROWS($1:1),"00")&"!AL3") -> 0.1298701299
A5: 2 | B5: Bilto | C5: =LOOKUP(9^9,INDIRECT("'"&TEXT(ROW(A2),"00")&"'!$Ai$6:$Ai$1000")) -> 3 | D5: =INDIRECT(TEXT(ROWS($1:2),"00")&"!AI3") -> 11 | E5: 3 | F5: =INDIRECT(TEXT(ROWS($1:2),"00")&"!AK3") -> 17 | G5: =LOOKUP(9^9,INDIRECT("'"&TEXT(ROW(E2),"00")&"'!$AM$6:$AM$1000")) -> 3 | H5: =INDIRECT(TEXT(ROWS($1:2),"00")&"!AM3") -> 24 | M5: 211 | N5: =INDIRECT(TEXT(ROWS($1:2),"00")&"!AJ3") -> 0.2575757576 | O5: 112 | P5: =INDIRECT(TEXT(ROWS($1:2),"00")&"!AL3") -> 0.1385281385 | AJ5: 355 | AK5: =INDIRECT(TEXT(ROWS($1:2),"00")&"!Ah3") -> 0.4285714286 | AL5: 211 | AM5: =INDIRECT(TEXT(ROWS($1:2),"00")&"!AJ3") -> 0.2575757576 | AN5: 112 | AO5: =INDIRECT(TEXT(ROWS($1:2),"00")&"!AL3") -> 0.1385281385
A6: 3 | B6: Bilto.fr | C6: 3 | D6: =INDIRECT(TEXT(ROWS($1:3),"00")&"!AI3") -> 11 | E6: 3 | F6: =INDIRECT(TEXT(ROWS($1:3),"00")&"!AK3") -> 16 | G6: 3 | H6: =INDIRECT(TEXT(ROWS($1:3),"00")&"!AM3") -> 29 | M6: 222 | N6: =INDIRECT(TEXT(ROWS($1:3),"00")&"!AJ3") -> 0.2424242424 | O6: 128 | P6: =INDIRECT(TEXT(ROWS($1:3),"00")&"!AL3") -> 0.1428571429 | AJ6: 357 | AK6: =INDIRECT(TEXT(ROWS($1:3),"00")&"!Ah3") -> 0.4134199134 | AL6: 222 | AM6: =INDIRECT(TEXT(ROWS($1:3),"00")&"!AJ3") -> 0.2424242424 | AN6: 128 | AO6: =INDIRECT(TEXT(ROWS($1:3),"00")&"!AL3") -> 0.1428571429
A7: 4 | B7: Europe I | C7: 2 | D7: =INDIRECT(TEXT(ROWS($1:4),"00")&"!AI3") -> 12 | E7: 3 | F7: =INDIRECT(TEXT(ROWS($1:4),"00")&"!AK3") -> 28 | G7: 3 | H7: =INDIRECT(TEXT(ROWS($1:4),"00")&"!AM3") -> 44 | M7: 179 | N7: =INDIRECT(TEXT(ROWS($1:4),"00")&"!AJ3") -> 0.1948051948 | O7: 94 | P7: =INDIRECT(TEXT(ROWS($1:4),"00")&"!AL3") -> 0.09956709957 | AJ7: 318 | AK7: =INDIRECT(TEXT(ROWS($1:4),"00")&"!Ah3") -> 0.3658008658 | AL7: 179 | AM7: =INDIRECT(TEXT(ROWS($1:4),"00")&"!AJ3") -> 0.1948051948 | AN7: 94 | AO7: =INDIRECT(TEXT(ROWS($1:4),"00")&"!AL3") -> 0.09956709957
A8: 5 | B8: La Gazette des Courses | C8: 1 | D8: =INDIRECT(TEXT(ROWS($1:5),"00")&"!AI3") -> 12 | E8: 4 | F8: =INDIRECT(TEXT(ROWS($1:5),"00")&"!AK3") -> 22 | G8: 4 | H8: =INDIRECT(TEXT(ROWS($1:5),"00")&"!AM3") -> 39 | M8: 187 | N8: =INDIRECT(TEXT(ROWS($1:5),"00")&"!AJ3") -> 0.2337662338 | O8: 90 | P8: =INDIRECT(TEXT(ROWS($1:5),"00")&"!AL3") -> 0.1103896104 | AJ8: 322 | AK8: =INDIRECT(TEXT(ROWS($1:5),"00")&"!Ah3") -> 0.3874458874 | AL8: 187 | AM8: =INDIRECT(TEXT(ROWS($1:5),"00")&"!AJ3") -> 0.2337662338 | AN8: 90 | AO8: =INDIRECT(TEXT(ROWS($1:5),"00")&"!AL3") -> 0.1103896104
A9: 6 | B9: Le Dauphiné Libéré | C9: 3 | D9: =INDIRECT(TEXT(ROWS($1:6),"00")&"!AI3") -> 9 | E9: 3 | F9: =INDIRECT(TEXT(ROWS($1:6),"00")&"!AK3") -> 15 | G9: 3 | H9: =INDIRECT(TEXT(ROWS($1:6),"00")&"!AM3") -> 26 | M9: 185 | N9: =INDIRECT(TEXT(ROWS($1:6),"00")&"!AJ3") -> 0.2164502165 | O9: 94 | P9: =INDIRECT(TEXT(ROWS($1:6),"00")&"!AL3") -> 0.1125541126 | AJ9: 326 | AK9: =INDIRECT(TEXT(ROWS($1:6),"00")&"!Ah3") -> 0.3852813853 | AL9: 185 | AM9: =INDIRECT(TEXT(ROWS($1:6),"00")&"!AJ3") -> 0.2164502165 | AN9: 94 | AO9: =INDIRECT(TEXT(ROWS($1:6),"00")&"!AL3") -> 0.1125541126
A10: 7 | B10: Le Parisien | C10: 2 | D10: =INDIRECT(TEXT(ROWS($1:7),"00")&"!AI3") -> 8 | E10: 4 | F10: =INDIRECT(TEXT(ROWS($1:7),"00")&"!AK3") -> 15 | G10: 4 | H10: =INDIRECT(TEXT(ROWS($1:7),"00")&"!AM3") -> 40 | M10: 192 | N10: =INDIRECT(TEXT(ROWS($1:7),"00")&"!AJ3") -> 0.2229437229 | O10: 110 | P10: =INDIRECT(TEXT(ROWS($1:7),"00")&"!AL3") -> 0.1125541126 | AJ10: 332 | AK10: =INDIRECT(TEXT(ROWS($1:7),"00")&"!Ah3") -> 0.3896103896 | AL10: 192 | AM10: =INDIRECT(TEXT(ROWS($1:7),"00")&"!AJ3") -> 0.2229437229 | AN10: 110 | AO10: =INDIRECT(TEXT(ROWS($1:7),"00")&"!AL3") -> 0.1125541126
A11: 8 | B11: Le Républicain Lorrain | C11: 2 | D11: =INDIRECT(TEXT(ROWS($1:8),"00")&"!AI3") -> 10 | E11: 3 | F11: =INDIRECT(TEXT(ROWS($1:8),"00")&"!AK3") -> 21 | G11: 3 | H11: =INDIRECT(TEXT(ROWS($1:8),"00")&"!AM3") -> 38 | M11: =IFERROR(SUM(INDIRECT("'"&TEXT(ROW(A8),"00")&"'!AJ7:AJ1000")),"") -> 200 | N11: =INDIRECT(TEXT(ROWS($1:8),"00")&"!AJ3") -> 0.2402597403 | O11: =IFERROR(SUM(INDIRECT("'"&TEXT(ROW(A8),"00")&"'!AL7:AL1000")),"") -> 101 | P11: =INDIRECT(TEXT(ROWS($1:8),"00")&"!AL3") -> 0.1212121212 | AJ11: =IFERROR(SUM(INDIRECT("'"&TEXT(ROW(Z8),"00")&"'!AH7:AH1000")),"") -> 332 | AK11: =INDIRECT(TEXT(ROWS($1:8),"00")&"!Ah3") -> 0.3917748918 | AL11: =IFERROR(SUM(INDIRECT("'"&TEXT(ROW(Z8),"00")&"'!AJ7:AJ1000")),"") -> 200 | AM11: =INDIRECT(TEXT(ROWS($1:8),"00")&"!AJ3") -> 0.2402597403 | AN11: =IFERROR(SUM(INDIRECT("'"&TEXT(ROW(Z8),"00")&"'!AL7:AL1000")),"") -> 101 | AO11: =INDIRECT(TEXT(ROWS($1:8),"00")&"!AL3") -> 0.1212121212
A12: 9 | B12: Le Turf | C12: 4 | D12: =INDIRECT(TEXT(ROWS($1:9),"00")&"!AI3") -> 13 | E12: 4 | F12: =INDIRECT(TEXT(ROWS($1:9),"00")&"!AK3") -> 14 | G12: 14 | H12: =INDIRECT(TEXT(ROWS($1:9),"00")&"!AM3") -> 32 | M12: =IFERROR(SUM(INDIRECT("'"&TEXT(ROW(A9),"00")&"'!AJ213:AJ1000")),"") -> 137 | N12: =INDIRECT(TEXT(ROWS($1:9),"00")&"!AJ3") -> 0.1106290672 | O12: =IFERROR(SUM(INDIRECT("'"&TEXT(ROW(A9),"00")&"'!AL213:AL1000")),"") -> 75 | P12: =INDIRECT(TEXT(ROWS($1:9),"00")&"!AL3") -> 0.05422993492 | AJ12: =IFERROR(SUM(INDIRECT("'"&TEXT(ROW(Z9),"00")&"'!AH213:AH1000")),"") -> 243 | AK12: =INDIRECT(TEXT(ROWS($1:9),"00")&"!Ah3") -> 0.2212581345 | AL12: =IFERROR(SUM(INDIRECT("'"&TEXT(ROW(Z9),"00")&"'!AJ213:AJ1000")),"") -> 137 | AM12: =INDIRECT(TEXT(ROWS($1:9),"00")&"!AJ3") -> 0.1106290672 | AN12: =IFERROR(SUM(INDIRECT("'"&TEXT(ROW(Z9),"00")&"'!AL213:AL1000")),"") -> 75 | AO12: =INDIRECT(TEXT(ROWS($1:9),"00")&"!AL3") -> 0.05422993492
A13: 10 | B13: Ouest-France | C13: 3 | D13: =INDIRECT(TEXT(ROWS($1:10),"00")&"!AI3") -> 14 | E13: 3 | F13: =INDIRECT(TEXT(ROWS($1:10),"00")&"!AK3") -> 27 | G13: 3 | H13: =INDIRECT(TEXT(ROWS($1:10),"00")&"!AM3") -> 40 | M13: 174 | N13: =INDIRECT(TEXT(ROWS($1:10),"00")&"!AJ3") -> 0.1948051948 | O13: 95 | P13: =INDIRECT(TEXT(ROWS($1:10),"00")&"!AL3") -> 0.0974025974 | AJ13: =IFERROR(SUM(INDIRECT("'"&TEXT(ROW(Z10),"00")&"'!AH7:AH1000")),"") -> 303 | AK13: =INDIRECT(TEXT(ROWS($1:10),"00")&"!Ah3") -> 0.3484848485 | AL13: =IFERROR(SUM(INDIRECT("'"&TEXT(ROW(Z10),"00")&"'!AJ7:AJ1000")),"") -> 174 | AM13: =INDIRECT(TEXT(ROWS($1:10),"00")&"!AJ3") -> 0.1948051948 | AN13: =IFERROR(SUM(INDIRECT("'"&TEXT(ROW(Z10),"00")&"'!AL7:AL1000")),"") -> 95 | AO13: =INDIRECT(TEXT(ROWS($1:10),"00")&"!AL3") -> 0.0974025974
A14: 11 | B14: Paris Courses | C14: 3 | D14: =INDIRECT(TEXT(ROWS($1:11),"00")&"!AI3") -> 12 | E14: 3 | F14: =INDIRECT(TEXT(ROWS($1:11),"00")&"!AK3") -> 14 | G14: 3 | H14: =INDIRECT(TEXT(ROWS($1:11),"00")&"!AM3") -> 22 | M14: 195 | N14: =INDIRECT(TEXT(ROWS($1:11),"00")&"!AJ3") -> 0.2316017316 | O14: 104 | P14: =INDIRECT(TEXT(ROWS($1:11),"00")&"!AL3") -> 0.1277056277 | AJ14: 335 | AK14: =INDIRECT(TEXT(ROWS($1:11),"00")&"!Ah3") -> 0.4112554113 | AL14: 195 | AM14: =INDIRECT(TEXT(ROWS($1:11),"00")&"!AJ3") -> 0.2316017316 | AN14: 104 | AO14: =INDIRECT(TEXT(ROWS($1:11),"00")&"!AL3") -> 0.1277056277
A15: 12 | B15: Paris-Courses.com | C15: 2 | D15: =INDIRECT(TEXT(ROWS($1:12),"00")&"!AI3") -> 9 | E15: 2 | F15: =INDIRECT(TEXT(ROWS($1:12),"00")&"!AK3") -> 26 | G15: 2 | H15: =INDIRECT(TEXT(ROWS($1:12),"00")&"!AM3") -> 26 | M15: 195 | N15: =INDIRECT(TEXT(ROWS($1:12),"00")&"!AJ3") -> 0.2164502165 | O15: 106 | P15: =INDIRECT(TEXT(ROWS($1:12),"00")&"!AL3") -> 0.1212121212 | AJ15: 338 | AK15: =INDIRECT(TEXT(ROWS($1:12),"00")&"!Ah3") -> 0.4025974026 | AL15: 195 | AM15: =INDIRECT(TEXT(ROWS($1:12),"00")&"!AJ3") -> 0.2164502165 | AN15: 106 | AO15: =INDIRECT(TEXT(ROWS($1:12),"00")&"!AL3") -> 0.1212121212
A16: 13 | B16: Paris-Turf | C16: 3 | D16: =INDIRECT(TEXT(ROWS($1:13),"00")&"!AI3") -> 8 | E16: 3 | F16: =INDIRECT(TEXT(ROWS($1:13),"00")&"!AK3") -> 17 | G16: 3 | H16: =INDIRECT(TEXT(ROWS($1:13),"00")&"!AM3") -> 29 | M16: 212 | N16: =INDIRECT(TEXT(ROWS($1:13),"00")&"!AJ3") -> 0.2424242424 | O16: 116 | P16: =INDIRECT(TEXT(ROWS($1:13),"00")&"!AL3") -> 0.1255411255 | AJ16: 350 | AK16: =INDIRECT(TEXT(ROWS($1:13),"00")&"!Ah3") -> 0.4199134199 | AL16: 212 | AM16: =INDIRECT(TEXT(ROWS($1:13),"00")&"!AJ3") -> 0.2424242424 | AN16: 116 | AO16: =INDIRECT(TEXT(ROWS($1:13),"00")&"!AL3") -> 0.1255411255
A17: 14 | B17: Paris-Turf Maroc | C17: 2 | D17: =INDIRECT(TEXT(ROWS($1:14),"00")&"!AI3") -> 11 | E17: 2 | F17: =INDIRECT(TEXT(ROWS($1:14),"00")&"!AK3") -> 21 | G17: 14 | H17: =INDIRECT(TEXT(ROWS($1:14),"00")&"!AM3") -> 34 | M17: 68 | N17: =INDIRECT(TEXT(ROWS($1:14),"00")&"!AJ3") -> 0.18 | O17: 32 | P17: =INDIRECT(TEXT(ROWS($1:14),"00")&"!AL3") -> 0.088 | AJ17: 124 | AK17: =INDIRECT(TEXT(ROWS($1:14),"00")&"!Ah3") -> 0.368 | AL17: 68 | AM17: =INDIRECT(TEXT(ROWS($1:14),"00")&"!AJ3") -> 0.18 | AN17: 32 | AO17: =INDIRECT(TEXT(ROWS($1:14),"00")&"!AL3") -> 0.088
A18: 15 | B18: Paris-Turf TIP | C18: 3 | D18: =INDIRECT(TEXT(ROWS($1:15),"00")&"!AI3") -> 10 | E18: 11 | F18: =INDIRECT(TEXT(ROWS($1:15),"00")&"!AK3") -> 19 | G18: 11 | H18: =INDIRECT(TEXT(ROWS($1:15),"00")&"!AM3") -> 19 | M18: 77 | N18: =INDIRECT(TEXT(ROWS($1:15),"00")&"!AJ3") -> 0.236 | O18: 44 | P18: =INDIRECT(TEXT(ROWS($1:15),"00")&"!AL3") -> 0.144 | AJ18: 142 | AK18: =INDIRECT(TEXT(ROWS($1:15),"00")&"!Ah3") -> 0.424 | AL18: 77 | AM18: =INDIRECT(TEXT(ROWS($1:15),"00")&"!AJ3") -> 0.236 | AN18: 44 | AO18: =INDIRECT(TEXT(ROWS($1:15),"00")&"!AL3") -> 0.144
A19: 16 | B19: Paris-Turf.com | C19: 3 | D19: =INDIRECT(TEXT(ROWS($1:16),"00")&"!AI3") -> 8 | E19: 3 | F19: =INDIRECT(TEXT(ROWS($1:16),"00")&"!AK3") -> 15 | G19: 3 | H19: =INDIRECT(TEXT(ROWS($1:16),"00")&"!AM3") -> 27 | M19: 213 | N19: =INDIRECT(TEXT(ROWS($1:16),"00")&"!AJ3") -> 0.2489177489 | O19: 117 | P19: =INDIRECT(TEXT(ROWS($1:16),"00")&"!AL3") -> 0.1385281385 | AJ19: 348 | AK19: =INDIRECT(TEXT(ROWS($1:16),"00")&"!Ah3") -> 0.4220779221 | AL19: 213 | AM19: =INDIRECT(TEXT(ROWS($1:16),"00")&"!AJ3") -> 0.2489177489 | AN19: 117 | AO19: =INDIRECT(TEXT(ROWS($1:16),"00")&"!AL3") -> 0.1385281385
A20: 17 | B20: PronoSMART | C20: 4 | D20: =INDIRECT(TEXT(ROWS($1:17),"00")&"!AI3") -> 11 | E20: 4 | F20: =INDIRECT(TEXT(ROWS($1:17),"00")&"!AK3") -> 21 | G20: 7 | H20: =INDIRECT(TEXT(ROWS($1:17),"00")&"!AM3") -> 24 | M20: 192 | N20: =INDIRECT(TEXT(ROWS($1:17),"00")&"!AJ3") -> 0.2164502165 | O20: 110 | P20: =INDIRECT(TEXT(ROWS($1:17),"00")&"!AL3") -> 0.1233766234 | AJ20: 336 | AK20: =INDIRECT(TEXT(ROWS($1:17),"00")&"!Ah3") -> 0.3896103896 | AL20: 192 | AM20: =INDIRECT(TEXT(ROWS($1:17),"00")&"!AJ3") -> 0.2164502165 | AN20: 110 | AO20: =INDIRECT(TEXT(ROWS($1:17),"00")&"!AL3") -> 0.1233766234
A21: 18 | B21: RTL | C21: 3 | D21: =INDIRECT(TEXT(ROWS($1:18),"00")&"!AI3") -> 16 | E21: 3 | F21: =INDIRECT(TEXT(ROWS($1:18),"00")&"!AK3") -> 17 | G21: 3 | H21: =INDIRECT(TEXT(ROWS($1:18),"00")&"!AM3") -> 35 | M21: 188 | N21: =INDIRECT(TEXT(ROWS($1:18),"00")&"!AJ3") -> 0.2380952381 | O21: 99 | P21: =INDIRECT(TEXT(ROWS($1:18),"00")&"!AL3") -> 0.1277056277 | AJ21: 294 | AK21: =INDIRECT(TEXT(ROWS($1:18),"00")&"!Ah3") -> 0.3658008658 | AL21: 188 | AM21: =INDIRECT(TEXT(ROWS($1:18),"00")&"!AJ3") -> 0.2380952381 | AN21: 99 | AO21: =INDIRECT(TEXT(ROWS($1:18),"00")&"!AL3") -> 0.1277056277
A22: 19 | B22: Turf Magazine | C22: 3 | D22: =INDIRECT(TEXT(ROWS($1:19),"00")&"!AI3") -> 14 | E22: 3 | F22: =INDIRECT(TEXT(ROWS($1:19),"00")&"!AK3") -> 27 | G22: 3 | H22: =INDIRECT(TEXT(ROWS($1:19),"00")&"!AM3") -> 55 | M22: =IFERROR(SUM(INDIRECT("'"&TEXT(ROW(A19),"00")&"'!AJ213:AJ1000")),"") -> 141 | N22: =INDIRECT(TEXT(ROWS($1:19),"00")&"!AJ3") -> 0.1168831169 | O22: =IFERROR(SUM(INDIRECT("'"&TEXT(ROW(A19),"00")&"'!AL213:AL1000")),"") -> 76 | P22: =INDIRECT(TEXT(ROWS($1:19),"00")&"!AL3") -> 0.06493506494 | AJ22: =IFERROR(SUM(INDIRECT("'"&TEXT(ROW(Z19),"00")&"'!AH213:AH1000")),"") -> 239 | AK22: =INDIRECT(TEXT(ROWS($1:19),"00")&"!Ah3") -> 0.2012987013 | AL22: =IFERROR(SUM(INDIRECT("'"&TEXT(ROW(Z19),"00")&"'!AJ213:AJ1000")),"") -> 141 | AM22: =INDIRECT(TEXT(ROWS($1:19),"00")&"!AJ3") -> 0.1168831169 | AN22: =IFERROR(SUM(INDIRECT("'"&TEXT(ROW(Z19),"00")&"'!AL213:AL1000")),"") -> 76 | AO22: =INDIRECT(TEXT(ROWS($1:19),"00")&"!AL3") -> 0.06493506494
A23: 20 | B23: Stato Turf | C23: 3 | D23: =INDIRECT(TEXT(ROWS($1:20),"00")&"!AI3") -> 14 | E23: 3 | F23: =INDIRECT(TEXT(ROWS($1:20),"00")&"!AK3") -> 17 | G23: 3 | H23: =INDIRECT(TEXT(ROWS($1:20),"00")&"!AM3") -> 26 | M23: 191 | N23: =INDIRECT(TEXT(ROWS($1:20),"00")&"!AJ3") -> 0.2251082251 | O23: 107 | P23: =INDIRECT(TEXT(ROWS($1:20),"00")&"!AL3") -> 0.1277056277 | AJ23: =IFERROR(SUM(INDIRECT("'"&TEXT(ROW(Z20),"00")&"'!AH7:AH1000")),"") -> 338 | AK23: =INDIRECT(TEXT(ROWS($1:20),"00")&"!Ah3") -> 0.3939393939 | AL23: =IFERROR(SUM(INDIRECT("'"&TEXT(ROW(Z20),"00")&"'!AJ7:AJ1000")),"") -> 191 | AM23: =INDIRECT(TEXT(ROWS($1:20),"00")&"!AJ3") -> 0.2251082251 | AN23: =IFERROR(SUM(INDIRECT("'"&TEXT(ROW(Z20),"00")&"'!AL7:AL1000")),"") -> 107 | AO23: =INDIRECT(TEXT(ROWS($1:20),"00")&"!AL3") -> 0.1277056277
A24: 21 | B24: Tiercé Magazine | C24: 3 | D24: =INDIRECT(TEXT(ROWS($1:21),"00")&"!AI3") -> 11 | E24: 3 | F24: =INDIRECT(TEXT(ROWS($1:21),"00")&"!AK3") -> 14 | G24: 3 | H24: =INDIRECT(TEXT(ROWS($1:21),"00")&"!AM3") -> 25 | M24: 207 | N24: =INDIRECT(TEXT(ROWS($1:21),"00")&"!AJ3") -> 0.2445887446 | O24: 111 | P24: =INDIRECT(TEXT(ROWS($1:21),"00")&"!AL3") -> 0.1298701299 | AJ24: 354 | AK24: =INDIRECT(TEXT(ROWS($1:21),"00")&"!Ah3") -> 0.4264069264 | AL24: 207 | AM24: =INDIRECT(TEXT(ROWS($1:21),"00")&"!AJ3") -> 0.2445887446 | AN24: 111 | AO24: =INDIRECT(TEXT(ROWS($1:21),"00")&"!AL3") -> 0.1298701299
A25: 22 | B25: Tiercé-Magazine.com | C25: 3 | D25: =INDIRECT(TEXT(ROWS($1:22),"00")&"!AI3") -> 7 | E25: 3 | F25: =INDIRECT(TEXT(ROWS($1:22),"00")&"!AK3") -> 14 | G25: 3 | H25: =INDIRECT(TEXT(ROWS($1:22),"00")&"!AM3") -> 29 | M25: 212 | N25: =INDIRECT(TEXT(ROWS($1:22),"00")&"!AJ3") -> 0.2445887446 | O25: 114 | P25: =INDIRECT(TEXT(ROWS($1:22),"00")&"!AL3") -> 0.1298701299 | AJ25: 348 | AK25: =INDIRECT(TEXT(ROWS($1:22),"00")&"!Ah3") -> 0.4177489177 | AL25: 212 | AM25: =INDIRECT(TEXT(ROWS($1:22),"00")&"!AJ3") -> 0.2445887446 | AN25: 114 | AO25: =INDIRECT(TEXT(ROWS($1:22),"00")&"!AL3") -> 0.1298701299
A26: 23 | B26: Tropiques FM | C26: 3 | D26: =INDIRECT(TEXT(ROWS($1:23),"00")&"!AI3") -> 10 | E26: 3 | F26: =INDIRECT(TEXT(ROWS($1:23),"00")&"!AK3") -> 30 | G26: 3 | H26: =INDIRECT(TEXT(ROWS($1:23),"00")&"!AM3") -> 36 | M26: 174 | N26: =INDIRECT(TEXT(ROWS($1:23),"00")&"!AJ3") -> 0.2012987013 | O26: 88 | P26: =INDIRECT(TEXT(ROWS($1:23),"00")&"!AL3") -> 0.09523809524 | AJ26: 325 | AK26: =INDIRECT(TEXT(ROWS($1:23),"00")&"!Ah3") -> 0.3831168831 | AL26: 174 | AM26: =INDIRECT(TEXT(ROWS($1:23),"00")&"!AJ3") -> 0.2012987013 | AN26: 88 | AO26: =INDIRECT(TEXT(ROWS($1:23),"00")&"!AL3") -> 0.09523809524
A27: 24 | B27: Week-End | C27: 3 | D27: =INDIRECT(TEXT(ROWS($1:24),"00")&"!AI3") -> 10 | E27: 3 | F27: =INDIRECT(TEXT(ROWS($1:24),"00")&"!AK3") -> 12 | G27: 3 | H27: =INDIRECT(TEXT(ROWS($1:24),"00")&"!AM3") -> 27 | M27: 199 | N27: =INDIRECT(TEXT(ROWS($1:24),"00")&"!AJ3") -> 0.2229437229 | O27: 107 | P27: =INDIRECT(TEXT(ROWS($1:24),"00")&"!AL3") -> 0.1212121212 | AJ27: 338 | AK27: =INDIRECT(TEXT(ROWS($1:24),"00")&"!Ah3") -> 0.3896103896 | AL27: 199 | AM27: =INDIRECT(TEXT(ROWS($1:24),"00")&"!AJ3") -> 0.2229437229 | AN27: 107 | AO27: =INDIRECT(TEXT(ROWS($1:24),"00")&"!AL3") -> 0.1212121212
A28: 25 | B28: Week-End-Turf.com | C28: 4 | D28: =SUM(INDIRECT(TEXT(ROWS($1:25),"00")&"!$AI$3")) -> 10 | E28: 14 | F28: =INDIRECT(TEXT(ROWS($1:25),"00")&"!AK3") -> 24 | G28: 14 | H28: =INDIRECT(TEXT(ROWS($1:25),"00")&"!AM3") -> 43 | M28: 179 | N28: =INDIRECT(TEXT(ROWS($1:25),"00")&"!AJ3") -> 0.2207792208 | O28: 90 | P28: =INDIRECT(TEXT(ROWS($1:25),"00")&"!AL3") -> 0.1017316017 | AJ28: 303 | AK28: =INDIRECT(TEXT(ROWS($1:25),"00")&"!Ah3") -> 0.367965368 | AL28: 179 | AM28: =INDIRECT(TEXT(ROWS($1:25),"00")&"!AJ3") -> 0.2207792208 | AN28: 90 | AO28: =INDIRECT(TEXT(ROWS($1:25),"00")&"!AL3") -> 0.1017316017
U30: 2016-12-02
C31: 1 | E31: 2 | G31: 3 | I31: 4 | K31: 5 | M31: 6 | O31: 7 | Q31: 8
C32: Act | D32: Max | E32: Act | F32: Max | G32: Act | H32: Max | I32: Act | J32: Max | K32: Act | L32: Max | M32: Act | N32: Max | O32: Act | P32: Max | Q32: Act | R32: Max | T32: 1 | U32: 2 | V32: 3 | W32: 4 | X32: 5 | Y32: 6 | Z32: 7 | AA32: 8
A33: 1 | B33: AIP | C33: =LOOKUP(9^9,INDIRECT("'"&TEXT(ROW(A1),"00")&"'!$AO$6:$AO$1000")) -> 2 | D33: =SUM(INDIRECT(TEXT(ROWS($1:1),"00")&"!$AO$3")) -> 8 | E33: =LOOKUP(9^9,INDIRECT("'"&TEXT(ROW(C1),"00")&"'!$AQ$6:$AQ$1000")) -> 3 | F33: =SUM(INDIRECT(TEXT(ROWS($1:1),"00")&"!$AQ$3")) -> 14 | G33: =LOOKUP(9^9,INDIRECT("'"&TEXT(ROW(C1),"00")&"'!$AS$6:$AS$1000")) -> 8 | H33: =SUM(INDIRECT(TEXT(ROWS($1:1),"00")&"!$AS$3")) -> 19 | I33: =LOOKUP(9^9,INDIRECT("'"&TEXT(ROW(E1),"00")&"'!$AU$6:$AU1000")) -> 4 | J33: =SUM(INDIRECT(TEXT(ROWS($1:1),"00")&"!$AU$3")) -> 17 | K33: =LOOKUP(9^9,INDIRECT("'"&TEXT(ROW(G1),"00")&"'!$AW$6:$AW$1000")) -> 1 | L33: =SUM(INDIRECT(TEXT(ROWS($1:1),"00")&"!$AW$3")) -> 23 | M33: =LOOKUP(9^9,INDIRECT("'"&TEXT(ROW(I1),"00")&"'!$AY$6:$AY$1000")) -> 9 | N33: =SUM(INDIRECT(TEXT(ROWS($1:1),"00")&"!$AY$3")) -> 14 | O33: =LOOKUP(9^9,INDIRECT("'"&TEXT(ROW(K1),"00")&"'!$BA$6:$BA$1000")) -> 3 | P33: =SUM(INDIRECT(TEXT(ROWS($1:1),"00")&"!$BA$3")) -> 22 | Q33: =LOOKUP(9^9,INDIRECT("'"&TEXT(ROW(M1),"00")&"'!$BC$6:$BC$1000")) -> 1 | R33: =SUM(INDIRECT(TEXT(ROWS($1:1),"00")&"!$BC$3")) -> 24 | T33: =pronos!B3 -> 14 | U33: =pronos!C3 -> 15 | V33: =pronos!D3 -> 17 | W33: =pronos!E3 -> 9 | X33: =pronos!F3 -> 10 | Y33: =pronos!G3 -> 13 | Z33: =pronos!H3 -> 7 | AA33: =pronos!I3 -> 18
A34: 2 | B34: Bilto | C34: =LOOKUP(9^9,INDIRECT("'"&TEXT(ROW(A2),"00")&"'!$AO$6:$AO$1000")) -> 2 | D34: =SUM(INDIRECT(TEXT(ROWS($1:2),"00")&"!$AO$3")) -> 8 | E34: =LOOKUP(9^9,INDIRECT("'"&TEXT(ROW(C2),"00")&"'!$AQ$6:$AQ$1000")) -> 2 | F34: =SUM(INDIRECT(TEXT(ROWS($1:2),"00")&"!$AQ$3")) -> 21 | G34: =LOOKUP(9^9,INDIRECT("'"&TEXT(ROW(C2),"00")&"'!$AS$6:$AS$1000")) -> 3 | H34: =SUM(INDIRECT(TEXT(ROWS($1:2),"00")&"!$AS$3")) -> 9 | I34: =LOOKUP(9^9,INDIRECT("'"&TEXT(ROW(E2),"00")&"'!$AU$6:$AU1000")) -> 3 | J34: =SUM(INDIRECT(TEXT(ROWS($1:2),"00")&"!$AU$3")) -> 14 | K34: =LOOKUP(9^9,INDIRECT("'"&TEXT(ROW(G2),"00")&"'!$AW$6:$AW$1000")) -> 1 | L34: =SUM(INDIRECT(TEXT(ROWS($1:2),"00")&"!$AW$3")) -> 15 | M34: =LOOKUP(9^9,INDIRECT("'"&TEXT(ROW(I2),"00")&"'!$AY$6:$AY$1000")) -> 3 | N34: =SUM(INDIRECT(TEXT(ROWS($1:2),"00")&"!$AY$3")) -> 20 | O34: =LOOKUP(9^9,INDIRECT("'"&TEXT(ROW(K2),"00")&"'!$BA$6:$BA$1000")) -> 17 | P34: =SUM(INDIRECT(TEXT(ROWS($1:2),"00")&"!$BA$3")) -> 18 | Q34: =LOOKUP(9^9,INDIRECT("'"&TEXT(ROW(M2),"00")&"'!$BC$6:$BC$1000")) -> 1 | R34: =SUM(INDIRECT(TEXT(ROWS($1:2),"00")&"!$BC$3")) -> 19 | T34: =pronos!B4 -> 15 | U34: =pronos!C4 -> 17 | V34: =pronos!D4 -> 14 | W34: =pronos!E4 -> 10 | X34: =pronos!F4 -> 13 | Y34: =pronos!G4 -> 16 | Z34: =pronos!H4 -> 6 | AA34: =pronos!I4 -> 2
A35: 3 | B35: Bilto.fr | C35: =LOOKUP(9^9,INDIRECT("'"&TEXT(ROW(A3),"00")&"'!$AO$6:$AO$1000")) -> 2 | D35: =SUM(INDIRECT(TEXT(ROWS($1:3),"00")&"!$AO$3")) -> 13 | E35: 2 | F35: =SUM(INDIRECT(TEXT(ROWS($1:3),"00")&"!$AQ$3")) -> 8 | G35: 3 | H35: =SUM(INDIRECT(TEXT(ROWS($1:3),"00")&"!$AS$3")) -> 14 | I35: 4 | J35: =SUM(INDIRECT(TEXT(ROWS($1:3),"00")&"!$AU$3")) -> 16 | K35: 5 | L35: =SUM(INDIRECT(TEXT(ROWS($1:3),"00")&"!$AW$3")) -> 13 | M35: 3 | N35: =SUM(INDIRECT(TEXT(ROWS($1:3),"00")&"!$AY$3")) -> 40 | O35: 4 | P35: =SUM(INDIRECT(TEXT(ROWS($1:3),"00")&"!$BA$3")) -> 16 | Q35: 1 | R35: =SUM(INDIRECT(TEXT(ROWS($1:3),"00")&"!$BC$3")) -> 20 | T35: =pronos!B5 -> 14 | U35: =pronos!C5 -> 17 | V35: =pronos!D5 -> 15 | W35: =pronos!E5 -> 16 | X35: =pronos!F5 -> 6 | Y35: =pronos!G5 -> 18 | Z35: =pronos!H5 -> 13 | AA35: =pronos!I5 -> 9
A36: 4 | B36: Europe I | C36: 2 | D36: =SUM(INDIRECT(TEXT(ROWS($1:4),"00")&"!$AO$3")) -> 12 | E36: 4 | F36: =SUM(INDIRECT(TEXT(ROWS($1:4),"00")&"!$AQ$3")) -> 11 | G36: 1 | H36: =SUM(INDIRECT(TEXT(ROWS($1:4),"00")&"!$AS$3")) -> 12 | I36: 3 | J36: =SUM(INDIRECT(TEXT(ROWS($1:4),"00")&"!$AU$3")) -> 12 | K36: 10 | L36: =SUM(INDIRECT(TEXT(ROWS($1:4),"00")&"!$AW$3")) -> 12 | M36: 14 | N36: =SUM(INDIRECT(TEXT(ROWS($1:4),"00")&"!$AY$3")) -> 14 | O36: 9 | P36: =SUM(INDIRECT(TEXT(ROWS($1:4),"00")&"!$BA$3")) -> 20 | Q36: 2 | R36: =SUM(INDIRECT(TEXT(ROWS($1:4),"00")&"!$BC$3")) -> 25 | T36: =pronos!B6 -> 2 | U36: =pronos!C6 -> 17 | V36: =pronos!D6 -> 14 | W36: =pronos!E6 -> 1 | X36: =pronos!F6 -> 6 | Y36: =pronos!G6 -> 8 | Z36: =pronos!H6 -> 10 | AA36: =pronos!I6 -> 16
A37: 5 | B37: La Gazette des Courses | C37: 2 | D37: =SUM(INDIRECT(TEXT(ROWS($1:5),"00")&"!$AO$3")) -> 9 | E37: 1 | F37: =SUM(INDIRECT(TEXT(ROWS($1:5),"00")&"!$AQ$3")) -> 15 | G37: 2 | H37: =SUM(INDIRECT(TEXT(ROWS($1:5),"00")&"!$AS$3")) -> 14 | I37: 4 | J37: =SUM(INDIRECT(TEXT(ROWS($1:5),"00")&"!$AU$3")) -> 19 | K37: 8 | L37: =SUM(INDIRECT(TEXT(ROWS($1:5),"00")&"!$AW$3")) -> 19 | M37: 1 | N37: =SUM(INDIRECT(TEXT(ROWS($1:5),"00")&"!$AY$3")) -> 17 | O37: 1 | P37: =SUM(INDIRECT(TEXT(ROWS($1:5),"00")&"!$BA$3")) -> 19 | Q37: 6 | R37: =SUM(INDIRECT(TEXT(ROWS($1:5),"00")&"!$BC$3")) -> 29 | T37: =pronos!B7 -> 15 | U37: =pronos!C7 -> 7 | V37: =pronos!D7 -> 13 | W37: =pronos!E7 -> 16 | X37: =pronos!F7 -> 11 | Y37: =pronos!G7 -> 17 | Z37: =pronos!H7 -> 6 | AA37: =pronos!I7 -> 2
A38: 6 | B38: Le Dauphiné Libéré | C38: 2 | D38: =SUM(INDIRECT(TEXT(ROWS($1:6),"00")&"!$AO$3")) -> 9 | E38: 3 | F38: =SUM(INDIRECT(TEXT(ROWS($1:6),"00")&"!$AQ$3")) -> 13 | G38: 2 | H38: =SUM(INDIRECT(TEXT(ROWS($1:6),"00")&"!$AS$3")) -> 10 | I38: 3 | J38: =SUM(INDIRECT(TEXT(ROWS($1:6),"00")&"!$AU$3")) -> 23 | K38: 4 | L38: =SUM(INDIRECT(TEXT(ROWS($1:6),"00")&"!$AW$3")) -> 16 | M38: 3 | N38: =SUM(INDIRECT(TEXT(ROWS($1:6),"00")&"!$AY$3")) -> 26 | O38: 1 | P38: =SUM(INDIRECT(TEXT(ROWS($1:6),"00")&"!$BA$3")) -> 20 | Q38: 11 | R38: =SUM(INDIRECT(TEXT(ROWS($1:6),"00")&"!$BC$3")) -> 30 | T38: =pronos!B8 -> 14 | U38: =pronos!C8 -> 17 | V38: =pronos!D8 -> 6 | W38: =pronos!E8 -> 7 | X38: =pronos!F8 -> 10 | Y38: =pronos!G8 -> 9 | Z38: =pronos!H8 -> 8 | AA38: =pronos!I8 -> 13
A39: 7 | B39: Le Parisien | C39: 2 | D39: =SUM(INDIRECT(TEXT(ROWS($1:7),"00")&"!$AO$3")) -> 10 | E39: 3 | F39: =SUM(INDIRECT(TEXT(ROWS($1:7),"00")&"!$AQ$3")) -> 11 | G39: 3 | H39: =SUM(INDIRECT(TEXT(ROWS($1:7),"00")&"!$AS$3")) -> 19 | I39: 6 | J39: =SUM(INDIRECT(TEXT(ROWS($1:7),"00")&"!$AU$3")) -> 18 | K39: 2 | L39: =SUM(INDIRECT(TEXT(ROWS($1:7),"00")&"!$AW$3")) -> 18 | M39: 2 | N39: =SUM(INDIRECT(TEXT(ROWS($1:7),"00")&"!$AY$3")) -> 22 | O39: 1 | P39: =SUM(INDIRECT(TEXT(ROWS($1:7),"00")&"!$BA$3")) -> 17 | Q39: 12 | R39: =SUM(INDIRECT(TEXT(ROWS($1:7),"00")&"!$BC$3")) -> 34 | T39: =pronos!B9 -> 14 | U39: =pronos!C9 -> 17 | V39: =pronos!D9 -> 10 | W39: =pronos!E9 -> 13 | X39: =pronos!F9 -> 15 | Y39: =pronos!G9 -> 16 | Z39: =pronos!H9 -> 18 | AA39: =pronos!I9 -> 6
A40: 8 | B40: Le Républicain Lorrain | C40: 2 | D40: =SUM(INDIRECT(TEXT(ROWS($1:8),"00")&"!$AO$3")) -> 12 | E40: 4 | F40: =SUM(INDIRECT(TEXT(ROWS($1:8),"00")&"!$AQ$3")) -> 16 | G40: 1 | H40: =SUM(INDIRECT(TEXT(ROWS($1:8),"00")&"!$AS$3")) -> 21 | I40: 4 | J40: =SUM(INDIRECT(TEXT(ROWS($1:8),"00")&"!$AU$3")) -> 17 | K40: 8 | L40: =SUM(INDIRECT(TEXT(ROWS($1:8),"00")&"!$AW$3")) -> 12 | M40: 3 | N40: =SUM(INDIRECT(TEXT(ROWS($1:8),"00")&"!$AY$3")) -> 27 | O40: 3 | P40: =SUM(INDIRECT(TEXT(ROWS($1:8),"00")&"!$BA$3")) -> 26 | Q40: 1 | R40: =SUM(INDIRECT(TEXT(ROWS($1:8),"00")&"!$BC$3")) -> 16 | T40: =pronos!B10 -> 14 | U40: =pronos!C10 -> 17 | V40: =pronos!D10 -> 7 | W40: =pronos!E10 -> 10 | X40: =pronos!F10 -> 15 | Y40: =pronos!G10 -> 13 | Z40: =pronos!H10 -> 18 | AA40: =pronos!I10 -> 6
A41: 9 | B41: Geny,com | C41: 2 | D41: =SUM(INDIRECT(TEXT(ROWS($1:9),"00")&"!$AO$3")) -> 9 | E41: 3 | F41: =SUM(INDIRECT(TEXT(ROWS($1:9),"00")&"!$AQ$3")) -> 16 | G41: 5 | H41: =SUM(INDIRECT(TEXT(ROWS($1:9),"00")&"!$AS$3")) -> 14 | I41: 6 | J41: =SUM(INDIRECT(TEXT(ROWS($1:9),"00")&"!$AU$3")) -> 13 | K41: 2 | L41: =SUM(INDIRECT(TEXT(ROWS($1:9),"00")&"!$AW$3")) -> 25 | M41: 10 | N41: =SUM(INDIRECT(TEXT(ROWS($1:9),"00")&"!$AY$3")) -> 31 | O41: 1 | P41: =SUM(INDIRECT(TEXT(ROWS($1:9),"00")&"!$BA$3")) -> 24 | Q41: 4 | R41: =SUM(INDIRECT(TEXT(ROWS($1:9),"00")&"!$BC$3")) -> 24 | T41: =pronos!B11 -> 14 | U41: =pronos!C11 -> 17 | V41: =pronos!D11 -> 7 | W41: =pronos!E11 -> 18 | X41: =pronos!F11 -> 13 | Y41: =pronos!G11 -> 15 | Z41: =pronos!H11 -> 10 | AA41: =pronos!I11 -> 6
A42: 10 | B42: Ouest-France | C42: 4 | D42: =SUM(INDIRECT(TEXT(ROWS($1:10),"00")&"!$AO$3")) -> 10 | E42: 2 | F42: =SUM(INDIRECT(TEXT(ROWS($1:10),"00")&"!$AQ$3")) -> 9 | G42: 3 | H42: =SUM(INDIRECT(TEXT(ROWS($1:10),"00")&"!$AS$3")) -> 14 | I42: 3 | J42: =SUM(INDIRECT(TEXT(ROWS($1:10),"00")&"!$AU$3")) -> 16 | K42: 6 | L42: =SUM(INDIRECT(TEXT(ROWS($1:10),"00")&"!$AW$3")) -> 19 | M42: 1 | N42: =SUM(INDIRECT(TEXT(ROWS($1:10),"00")&"!$AY$3")) -> 27 | O42: 8 | P42: =SUM(INDIRECT(TEXT(ROWS($1:10),"00")&"!$BA$3")) -> 26 | Q42: 12 | R42: =SUM(INDIRECT(TEXT(ROWS($1:10),"00")&"!$BC$3")) -> 37 | T42: =pronos!B12 -> 14 | U42: =pronos!C12 -> 17 | V42: =pronos!D12 -> 7 | W42: =pronos!E12 -> 10 | X42: =pronos!F12 -> 8 | Y42: =pronos!G12 -> 1 | Z42: =pronos!H12 -> 16 | AA42: =pronos!I12 -> 9
A43: 11 | B43: Paris Courses | C43: 2 | D43: =SUM(INDIRECT(TEXT(ROWS($1:11),"00")&"!$AO$3")) -> 8 | E43: 4 | F43: =SUM(INDIRECT(TEXT(ROWS($1:11),"00")&"!$AQ$3")) -> 11 | G43: 3 | H43: =SUM(INDIRECT(TEXT(ROWS($1:11),"00")&"!$AS$3")) -> 12 | I43: 1 | J43: =SUM(INDIRECT(TEXT(ROWS($1:11),"00")&"!$AU$3")) -> 15 | K43: 2 | L43: =SUM(INDIRECT(TEXT(ROWS($1:11),"00")&"!$AW$3")) -> 11 | M43: 10 | N43: =SUM(INDIRECT(TEXT(ROWS($1:11),"00")&"!$AY$3")) -> 18 | O43: 5 | P43: =SUM(INDIRECT(TEXT(ROWS($1:11),"00")&"!$BA$3")) -> 34 | Q43: 12 | R43: =SUM(INDIRECT(TEXT(ROWS($1:11),"00")&"!$BC$3")) -> 33 | T43: =pronos!B13 -> 14 | U43: =pronos!C13 -> 17 | V43: =pronos!D13 -> 15 | W43: =pronos!E13 -> 3 | X43: =pronos!F13 -> 6 | Y43: =pronos!G13 -> 10 | Z43: =pronos!H13 -> 9 | AA43: =pronos!I13 -> 18
A44: 12 | B44: Paris-Courses.com | C44: 2 | D44: =SUM(INDIRECT(TEXT(ROWS($1:12),"00")&"!$AO$3")) -> 11 | E44: 2 | F44: =SUM(INDIRECT(TEXT(ROWS($1:12),"00")&"!$AQ$3")) -> 11 | G44: 5 | H44: =SUM(INDIRECT(TEXT(ROWS($1:12),"00")&"!$AS$3")) -> 13 | I44: 12 | J44: =SUM(INDIRECT(TEXT(ROWS($1:12),"00")&"!$AU$3")) -> 20 | K44: 3 | L44: =SUM(INDIRECT(TEXT(ROWS($1:12),"00")&"!$AW$3")) -> 18 | M44: 7 | N44: =SUM(INDIRECT(TEXT(ROWS($1:12),"00")&"!$AY$3")) -> 17 | O44: 1 | P44: =SUM(INDIRECT(TEXT(ROWS($1:12),"00")&"!$BA$3")) -> 20 | Q44: 2 | R44: =SUM(INDIRECT(TEXT(ROWS($1:12),"00")&"!$BC$3")) -> 21 | T44: =pronos!B14 -> 14 | U44: =pronos!C14 -> 17 | V44: =pronos!D14 -> 110 | W44: =pronos!E14 -> 13 | X44: =pronos!F14 -> 15 | Y44: =pronos!G14 -> 7 | Z44: =pronos!H14 -> 9 | AA44: =pronos!I14 -> 16
A45: 13 | B45: Paris-Turf | C45: 2 | D45: =SUM(INDIRECT(TEXT(ROWS($1:13),"00")&"!$AO$3")) -> 9 | E45: 2 | F45: =SUM(INDIRECT(TEXT(ROWS($1:13),"00")&"!$AQ$3")) -> 15 | G45: 1 | H45: =SUM(INDIRECT(TEXT(ROWS($1:13),"00")&"!$AS$3")) -> 12 | I45: 10 | J45: =SUM(INDIRECT(TEXT(ROWS($1:13),"00")&"!$AU$3")) -> 16 | K45: 3 | L45: =SUM(INDIRECT(TEXT(ROWS($1:13),"00")&"!$AW$3")) -> 32 | M45: 3 | N45: =SUM(INDIRECT(TEXT(ROWS($1:13),"00")&"!$AY$3")) -> 17 | O45: 20 | P45: =SUM(INDIRECT(TEXT(ROWS($1:13),"00")&"!$BA$3")) -> 30 | Q45: 8 | R45: =SUM(INDIRECT(TEXT(ROWS($1:13),"00")&"!$BC$3")) -> 22 | T45: =pronos!B15 -> 14 | U45: =pronos!C15 -> 17 | V45: =pronos!D15 -> 7 | W45: =pronos!E15 -> 15 | X45: =pronos!F15 -> 10 | Y45: =pronos!G15 -> 13 | Z45: =pronos!H15 -> 18 | AA45: =pronos!I15 -> 9
A46: 14 | B46: Gény courses | C46: 11 | D46: =SUM(INDIRECT(TEXT(ROWS($1:14),"00")&"!$AO$3")) -> 10 | E46: 2 | F46: =SUM(INDIRECT(TEXT(ROWS($1:14),"00")&"!$AQ$3")) -> 13 | G46: 3 | H46: =SUM(INDIRECT(TEXT(ROWS($1:14),"00")&"!$AS$3")) -> 12 | I46: 5 | J46: =SUM(INDIRECT(TEXT(ROWS($1:14),"00")&"!$AU$3")) -> 10 | K46: 2 | L46: =SUM(INDIRECT(TEXT(ROWS($1:14),"00")&"!$AW$3")) -> 13 | M46: 2 | N46: =SUM(INDIRECT(TEXT(ROWS($1:14),"00")&"!$AY$3")) -> 12 | O46: 10 | P46: =SUM(INDIRECT(TEXT(ROWS($1:14),"00")&"!$BA$3")) -> 20 | Q46: 9 | R46: =SUM(INDIRECT(TEXT(ROWS($1:14),"00")&"!$BC$3")) -> 15 | T46: =pronos!B16 -> 14 | U46: =pronos!C16 -> 6 | V46: =pronos!D16 -> 7 | W46: =pronos!E16 -> 17 | X46: =pronos!F16 -> 9 | Y46: =pronos!G16 -> 15 | Z46: =pronos!H16 -> 8 | AA46: =pronos!I16 -> 10
A47: 15 | B47: Paris-Turf TIP | C47: 3 | D47: =SUM(INDIRECT(TEXT(ROWS($1:15),"00")&"!$AO$3")) -> 6 | E47: 3 | F47: =SUM(INDIRECT(TEXT(ROWS($1:15),"00")&"!$AQ$3")) -> 7 | G47: 2 | H47: =SUM(INDIRECT(TEXT(ROWS($1:15),"00")&"!$AS$3")) -> 12 | I47: 2 | J47: =SUM(INDIRECT(TEXT(ROWS($1:15),"00")&"!$AU$3")) -> 14 | K47: 4 | L47: =SUM(INDIRECT(TEXT(ROWS($1:15),"00")&"!$AW$3")) -> 12 | M47: 6 | N47: =SUM(INDIRECT(TEXT(ROWS($1:15),"00")&"!$AY$3")) -> 27 | O47: 6 | P47: =SUM(INDIRECT(TEXT(ROWS($1:15),"00")&"!$BA$3")) -> 24 | Q47: 8 | R47: =SUM(INDIRECT(TEXT(ROWS($1:15),"00")&"!$BC$3")) -> 12 | T47: =pronos!B17 -> 14 | U47: =pronos!C17 -> 17 | V47: =pronos!D17 -> 6 | W47: =pronos!E17 -> 16 | X47: =pronos!F17 -> 10 | Y47: =pronos!G17 -> 15 | Z47: =pronos!H17 -> 13 | AA47: =pronos!I17 -> 9
A48: 16 | B48: Paris-Turf.com | C48: 2 | D48: =SUM(INDIRECT(TEXT(ROWS($1:16),"00")&"!$AO$3")) -> 12 | E48: 4 | F48: =SUM(INDIRECT(TEXT(ROWS($1:16),"00")&"!$AQ$3")) -> 13 | G48: 1 | H48: =SUM(INDIRECT(TEXT(ROWS($1:16),"00")&"!$AS$3")) -> 16 | I48: 5 | J48: =SUM(INDIRECT(TEXT(ROWS($1:16),"00")&"!$AU$3")) -> 15 | K48: 3 | L48: =SUM(INDIRECT(TEXT(ROWS($1:16),"00")&"!$AW$3")) -> 35 | M48: 14 | N48: =SUM(INDIRECT(TEXT(ROWS($1:16),"00")&"!$AY$3")) -> 18 | O48: 3 | P48: =SUM(INDIRECT(TEXT(ROWS($1:16),"00")&"!$BA$3")) -> 38 | Q48: 3 | R48: =SUM(INDIRECT(TEXT(ROWS($1:16),"00")&"!$BC$3")) -> 19 | T48: =pronos!B18 -> 14 | U48: =pronos!C18 -> 17 | V48: =pronos!D18 -> 6 | W48: =pronos!E18 -> 15 | X48: =pronos!F18 -> 7 | Y48: =pronos!G18 -> 13 | Z48: =pronos!H18 -> 9 | AA48: =pronos!I18 -> 10
A49: 17 | B49: PronoSMART | C49: 1 | D49: =SUM(INDIRECT(TEXT(ROWS($1:17),"00")&"!$AO$3")) -> 9 | E49: 2 | F49: =SUM(INDIRECT(TEXT(ROWS($1:17),"00")&"!$AQ$3")) -> 15 | G49: 4 | H49: =SUM(INDIRECT(TEXT(ROWS($1:17),"00")&"!$AS$3")) -> 16 | I49: 4 | J49: =SUM(INDIRECT(TEXT(ROWS($1:17),"00")&"!$AU$3")) -> 17 | K49: 3 | L49: =SUM(INDIRECT(TEXT(ROWS($1:17),"00")&"!$AW$3")) -> 16 | M49: 3 | N49: =SUM(INDIRECT(TEXT(ROWS($1:17),"00")&"!$AY$3")) -> 17 | O49: 10 | P49: =SUM(INDIRECT(TEXT(ROWS($1:17),"00")&"!$BA$3")) -> 23 | Q49: 10 | R49: =SUM(INDIRECT(TEXT(ROWS($1:17),"00")&"!$BC$3")) -> 20 | T49: =pronos!B19 -> 17 | U49: =pronos!C19 -> 13 | V49: =pronos!D19 -> 15 | W49: =pronos!E19 -> 9 | X49: =pronos!F19 -> 14 | Y49: =pronos!G19 -> 16 | Z49: =pronos!H19 -> 18 | AA49: =pronos!I19 -> 7
A50: 18 | B50: RTL | C50: 4 | D50: =SUM(INDIRECT(TEXT(ROWS($1:18),"00")&"!$AO$3")) -> 16 | E50: 2 | F50: =SUM(INDIRECT(TEXT(ROWS($1:18),"00")&"!$AQ$3")) -> 12 | G50: 4 | H50: =SUM(INDIRECT(TEXT(ROWS($1:18),"00")&"!$AS$3")) -> 12 | I50: 2 | J50: =SUM(INDIRECT(TEXT(ROWS($1:18),"00")&"!$AU$3")) -> 16 | K50: 5 | L50: =SUM(INDIRECT(TEXT(ROWS($1:18),"00")&"!$AW$3")) -> 16 | M50: 5 | N50: =SUM(INDIRECT(TEXT(ROWS($1:18),"00")&"!$AY$3")) -> 16 | O50: 1 | P50: =SUM(INDIRECT(TEXT(ROWS($1:18),"00")&"!$BA$3")) -> 23 | Q50: 11 | R50: =SUM(INDIRECT(TEXT(ROWS($1:18),"00")&"!$BC$3")) -> 30 | T50: =pronos!B20 -> 10 | U50: =pronos!C20 -> 15 | V50: =pronos!D20 -> 17 | W50: =pronos!E20 -> 16 | X50: =pronos!F20 -> 14 | Y50: =pronos!G20 -> 8 | Z50: =pronos!H20 -> 13 | AA50: =pronos!I20 -> 1
A51: 19 | B51: Equidia live | C51: 2 | D51: =SUM(INDIRECT(TEXT(ROWS($1:19),"00")&"!$AO$3")) -> 8 | E51: 6 | F51: =SUM(INDIRECT(TEXT(ROWS($1:19),"00")&"!$AQ$3")) -> 14 | G51: 6 | H51: =SUM(INDIRECT(TEXT(ROWS($1:19),"00")&"!$AS$3")) -> 13 | I51: 5 | J51: =SUM(INDIRECT(TEXT(ROWS($1:19),"00")&"!$AU$3")) -> 13 | K51: 2 | L51: =SUM(INDIRECT(TEXT(ROWS($1:19),"00")&"!$AW$3")) -> 14 | M51: 1 | N51: =SUM(INDIRECT(TEXT(ROWS($1:19),"00")&"!$AY$3")) -> 18 | O51: 1 | P51: =SUM(INDIRECT(TEXT(ROWS($1:19),"00")&"!$BA$3")) -> 29 | Q51: 10 | R51: =SUM(INDIRECT(TEXT(ROWS($1:19),"00")&"!$BC$3")) -> 24 | T51: =pronos!B21 -> 14 | U51: =pronos!C21 -> 17 | V51: =pronos!D21 -> 8 | W51: =pronos!E21 -> 2 | X51: =pronos!F21 -> 13 | Y51: =pronos!G21 -> 15 | Z51: =pronos!H21 -> 3 | AA51: =pronos!I21 -> 9
A52: 20 | B52: Stato Turf | C52: 4 | D52: =SUM(INDIRECT(TEXT(ROWS($1:20),"00")&"!$AO$3")) -> 12 | E52: 2 | F52: =SUM(INDIRECT(TEXT(ROWS($1:20),"00")&"!$AQ$3")) -> 11 | G52: 4 | H52: =SUM(INDIRECT(TEXT(ROWS($1:20),"00")&"!$AS$3")) -> 17 | I52: 3 | J52: =SUM(INDIRECT(TEXT(ROWS($1:20),"00")&"!$AU$3")) -> 18 | K52: 2 | L52: =SUM(INDIRECT(TEXT(ROWS($1:20),"00")&"!$AW$3")) -> 21 | M52: 3 | N52: =SUM(INDIRECT(TEXT(ROWS($1:20),"00")&"!$AY$3")) -> 25 | O52: 1 | P52: =SUM(INDIRECT(TEXT(ROWS($1:20),"00")&"!$BA$3")) -> 29 | Q52: 12 | R52: =SUM(INDIRECT(TEXT(ROWS($1:20),"00")&"!$BC$3")) -> 22 | T52: =pronos!B22 -> 7 | U52: =pronos!C22 -> 11 | V52: =pronos!D22 -> 15 | W52: =pronos!E22 -> 14 | X52: =pronos!F22 -> 6 | Y52: =pronos!G22 -> 8 | Z52: =pronos!H22 -> 9 | AA52: =pronos!I22 -> 11
A53: 21 | B53: Tiercé Magazine | C53: 2 | D53: =SUM(INDIRECT(TEXT(ROWS($1:21),"00")&"!$AO$3")) -> 13 | E53: 2 | F53: =SUM(INDIRECT(TEXT(ROWS($1:21),"00")&"!$AQ$3")) -> 14 | G53: 3 | H53: =SUM(INDIRECT(TEXT(ROWS($1:21),"00")&"!$AS$3")) -> 12 | I53: 3 | J53: =SUM(INDIRECT(TEXT(ROWS($1:21),"00")&"!$AU$3")) -> 17 | K53: 12 | L53: =SUM(INDIRECT(TEXT(ROWS($1:21),"00")&"!$AW$3")) -> 16 | M53: 1 | N53: =SUM(INDIRECT(TEXT(ROWS($1:21),"00")&"!$AY$3")) -> 18 | O53: 1 | P53: =SUM(INDIRECT(TEXT(ROWS($1:21),"00")&"!$BA$3")) -> 18 | Q53: 7 | R53: =SUM(INDIRECT(TEXT(ROWS($1:21),"00")&"!$BC$3")) -> 26 | T53: =pronos!B23 -> 14 | U53: =pronos!C23 -> 15 | V53: =pronos!D23 -> 17 | W53: =pronos!E23 -> 13 | X53: =pronos!F23 -> 16 | Y53: =pronos!G23 -> 10 | Z53: =pronos!H23 -> 8 | AA53: =pronos!I23 -> 9
A54: 22 | B54: Tiercé-Magazine.com | C54: 2 | D54: =SUM(INDIRECT(TEXT(ROWS($1:22),"00")&"!$AO$3")) -> 8 | E54: 4 | F54: =SUM(INDIRECT(TEXT(ROWS($1:22),"00")&"!$AQ$3")) -> 17 | G54: 5 | H54: =SUM(INDIRECT(TEXT(ROWS($1:22),"00")&"!$AS$3")) -> 11 | I54: 3 | J54: =SUM(INDIRECT(TEXT(ROWS($1:22),"00")&"!$AU$3")) -> 22 | K54: 2 | L54: =SUM(INDIRECT(TEXT(ROWS($1:22),"00")&"!$AW$3")) -> 13 | M54: 3 | N54: =SUM(INDIRECT(TEXT(ROWS($1:22),"00")&"!$AY$3")) -> 20 | O54: 1 | P54: =SUM(INDIRECT(TEXT(ROWS($1:22),"00")&"!$BA$3")) -> 18 | Q54: 7 | R54: =SUM(INDIRECT(TEXT(ROWS($1:22),"00")&"!$BC$3")) -> 40 | T54: =pronos!B24 -> 14 | U54: =pronos!C24 -> 17 | V54: =pronos!D24 -> 6 | W54: =pronos!E24 -> 7 | X54: =pronos!F24 -> 10 | Y54: =pronos!G24 -> 9 | Z54: =pronos!H24 -> 8 | AA54: =pronos!I24 -> 13
A55: 23 | B55: Tropiques FM | C55: 1 | D55: =SUM(INDIRECT(TEXT(ROWS($1:23),"00")&"!$AO$3")) -> 7 | E55: 2 | F55: =SUM(INDIRECT(TEXT(ROWS($1:23),"00")&"!$AQ$3")) -> 15 | G55: 2 | H55: =SUM(INDIRECT(TEXT(ROWS($1:23),"00")&"!$AS$3")) -> 13 | I55: 6 | J55: =SUM(INDIRECT(TEXT(ROWS($1:23),"00")&"!$AU$3")) -> 15 | K55: 5 | L55: =SUM(INDIRECT(TEXT(ROWS($1:23),"00")&"!$AW$3")) -> 14 | M55: 3 | N55: =SUM(INDIRECT(TEXT(ROWS($1:23),"00")&"!$AY$3")) -> 14 | O55: 8 | P55: =SUM(INDIRECT(TEXT(ROWS($1:23),"00")&"!$BA$3")) -> 28 | Q55: 1 | R55: =SUM(INDIRECT(TEXT(ROWS($1:23),"00")&"!$BC$3")) -> 13 | T55: =pronos!B25 -> 17 | U55: =pronos!C25 -> 10 | V55: =pronos!D25 -> 7 | W55: =pronos!E25 -> 6 | X55: =pronos!F25 -> 8 | Y55: =pronos!G25 -> 14 | Z55: =pronos!H25 -> 13 | AA55: =pronos!I25 -> 15
A56: 24 | B56: Week-End | C56: 4 | D56: =SUM(INDIRECT(TEXT(ROWS($1:24),"00")&"!$AO$3")) -> 9 | E56: 2 | F56: =SUM(INDIRECT(TEXT(ROWS($1:24),"00")&"!$AQ$3")) -> 16 | G56: 1 | H56: =SUM(INDIRECT(TEXT(ROWS($1:24),"00")&"!$AS$3")) -> 12 | I56: 9 | J56: =SUM(INDIRECT(TEXT(ROWS($1:24),"00")&"!$AU$3")) -> 28 | K56: 5 | L56: =SUM(INDIRECT(TEXT(ROWS($1:24),"00")&"!$AW$3")) -> 21 | M56: 6 | N56: =SUM(INDIRECT(TEXT(ROWS($1:24),"00")&"!$AY$3")) -> 18 | O56: 3 | P56: =SUM(INDIRECT(TEXT(ROWS($1:24),"00")&"!$BA$3")) -> 21 | Q56: 9 | R56: =SUM(INDIRECT(TEXT(ROWS($1:24),"00")&"!$BC$3")) -> 27 | T56: =pronos!B26 -> 14 | U56: =pronos!C26 -> 15 | V56: =pronos!D26 -> 8 | W56: =pronos!E26 -> 6 | X56: =pronos!F26 -> 17 | Y56: =pronos!G26 -> 9 | Z56: =pronos!H26 -> 7 | AA56: =pronos!I26 -> 18
A57: 25 | B57: Week-End-Turf.com | C57: 1 | D57: =SUM(INDIRECT(TEXT(ROWS($1:25),"00")&"!$AO$3")) -> 10 | E57: 4 | F57: =SUM(INDIRECT(TEXT(ROWS($1:25),"00")&"!$AQ$3")) -> 12 | G57: 4 | H57: =SUM(INDIRECT(TEXT(ROWS($1:25),"00")&"!$AS$3")) -> 14 | I57: 2 | J57: =SUM(INDIRECT(TEXT(ROWS($1:25),"00")&"!$AU$3")) -> 17 | K57: 1 | L57: =SUM(INDIRECT(TEXT(ROWS($1:25),"00")&"!$AW$3")) -> 14 | M57: 23 | N57: =SUM(INDIRECT(TEXT(ROWS($1:25),"00")&"!$AY$3")) -> 20 | O57: 9 | P57: =SUM(INDIRECT(TEXT(ROWS($1:25),"00")&"!$BA$3")) -> 21 | Q57: 20 | R57: =SUM(INDIRECT(TEXT(ROWS($1:25),"00")&"!$BC$3")) -> 18 | T57: =pronos!B27 -> 17 | U57: =pronos!C27 -> 15 | V57: =pronos!D27 -> 16 | W57: =pronos!E27 -> 14 | X57: =pronos!F27 -> 10 | Y57: =pronos!G27 -> 3 | Z57: =pronos!H27 -> 7 | AA57: =pronos!I27 -> 6
C61: 1 | G61: 2 | K61: 3 | O61: 4 | S61: 5 | W61: 6 | AA61: 7 | AE61: 8 | AJ61: TIERCE | AO61: QUARTE | AT61: QUINTE+
C62: Nbre | D62: Act | E62: Max | F62: N° | G62: Nbre | H62: Act | I62: Max | J62: N° | K62: Nbre | L62: Act | M62: Max | N62: N° | O62: Nbre | P62: Act | Q62: Max | R62: N° | S62: Nbre | T62: Act | U62: Max | V62: N° | W62: Nbre | X62: Act | Y62: Max | Z62: N° | AA62: Nbre | AB62: Act | AC62: Max | AD62: N° | AE62: Nbre | AF62: Act | AG62: Max | AH62: N° | AJ62: NBR | AK62: ACT | AL62: MAX | AM62: % | AO62: NBR | AP62: ACT | AQ62: MAX | AR62: % | AT62: NBR | AU62: ACT | AV62: MAX | AW62: %
A63: 1 | B63: AIP | C63: =SUM(INDIRECT(TEXT(ROWS($1:1),"00")&"!$AN$3")) -> 194 | D63: =LOOKUP(9^9,INDIRECT("'"&TEXT(ROW(A1),"00")&"'!$AO$6:$AO$1000")) -> 2 | E63: =SUM(INDIRECT(TEXT(ROWS($1:1),"00")&"!$AO$3")) -> 8 | F63: =SUM(T33) -> 14 | G63: =SUM(INDIRECT(TEXT(ROWS($1:1),"00")&"!$AP$3")) -> 164 | H63: =LOOKUP(9^9,INDIRECT("'"&TEXT(ROW(C1),"00")&"'!$AQ$6:$AQ$1000")) -> 3 | I63: =SUM(INDIRECT(TEXT(ROWS($1:1),"00")&"!$AQ$3")) -> 14 | J63: =SUM(U33) -> 15 | K63: =SUM(INDIRECT(TEXT(ROWS($1:1),"00")&"!$AR$3")) -> 147 | L63: =LOOKUP(9^9,INDIRECT("'"&TEXT(ROW(C1),"00")&"'!$AS$6:$AS$1000")) -> 8 | M63: =SUM(INDIRECT(TEXT(ROWS($1:1),"00")&"!$AS$3")) -> 19 | N63: =SUM(V33) -> 17 | O63: =SUM(INDIRECT(TEXT(ROWS($1:1),"00")&"!$AT$3")) -> 124 | P63: =LOOKUP(9^9,INDIRECT("'"&TEXT(ROW(E1),"00")&"'!$AU$6:$AU1000")) -> 4 | Q63: =SUM(INDIRECT(TEXT(ROWS($1:1),"00")&"!$AU$3")) -> 17 | R63: =SUM(W33) -> 9 | S63: =SUM(INDIRECT(TEXT(ROWS($1:1),"00")&"!$AV$3")) -> 132 | T63: =LOOKUP(9^9,INDIRECT("'"&TEXT(ROW(G1),"00")&"'!$AW$6:$AW$1000")) -> 1 | U63: =SUM(INDIRECT(TEXT(ROWS($1:1),"00")&"!$AW$3")) -> 23 | V63: =SUM(X33) -> 10 | W63: =SUM(INDIRECT(TEXT(ROWS($1:1),"00")&"!$AX$3")) -> 127 | X63: =LOOKUP(9^9,INDIRECT("'"&TEXT(ROW(I1),"00")&"'!$AY$6:$AY$1000")) -> 9 | Y63: =SUM(INDIRECT(TEXT(ROWS($1:1),"00")&"!$AY$3")) -> 14 | Z63: =SUM(Y33) -> 13 | AA63: =SUM(INDIRECT(TEXT(ROWS($1:1),"00")&"!$AZ$3")) -> 94 | AB63: =LOOKUP(9^9,INDIRECT("'"&TEXT(ROW(K1),"00")&"'!$BA$6:$BA$1000")) -> 3 | AC63: =SUM(INDIRECT(TEXT(ROWS($1:1),"00")&"!$BA$3")) -> 22 | AD63: =SUM(Z33) -> 7 | AE63: =SUM(INDIRECT(TEXT(ROWS($1:1),"00")&"!$BB$3")) -> 86 | AF63: =LOOKUP(9^9,INDIRECT("'"&TEXT(ROW(O1),"00")&"'!$Bc$6:$Bc$1000")) -> 1 | AG63: =SUM(INDIRECT(TEXT(ROWS($1:1),"00")&"!$BC$3")) -> 24 | AH63: =SUM(AA33) -> 18 | AJ63: =SUM(pronos_journalier!N6) -> 332 | AK63: =LOOKUP(9^9,INDIRECT("'"&TEXT(ROW(A1),"00")&"'!$Ai$6:$Ai$1000")) -> 3 | AL63: =INDIRECT(TEXT(ROWS($1:1),"00")&"!AI3") -> 9 | AM63: =INDIRECT(TEXT(ROWS($1:1),"00")&"!Ah3") -> 0.4069264069 | AO63: =SUM(pronos_journalier!P6) -> 200 | AP63: =LOOKUP(9^9,INDIRECT("'"&TEXT(ROW(C1),"00")&"'!$AK$6:$Ak$1000")) -> 3 | AQ63: =INDIRECT(TEXT(ROWS($1:1),"00")&"!AK3") -> 14 | AR63: =INDIRECT(TEXT(ROWS($1:1),"00")&"!AJ3") -> 0.2380952381 | AT63: =SUM(pronos_journalier!R6) -> 109 | AU63: =LOOKUP(9^9,INDIRECT("'"&TEXT(ROW(E1),"00")&"'!$AM$6:$AM$1000")) -> 3 | AV63: =INDIRECT(TEXT(ROWS($1:1),"00")&"!AM3") -> 24 | AW63: =INDIRECT(TEXT(ROWS($1:1),"00")&"!AL3") -> 0.1298701299
A64: 2 | B64: Bilto | C64: =SUM(INDIRECT(TEXT(ROWS($1:2),"00")&"!$AN$3")) -> 206 | D64: 2 | E64: =SUM(INDIRECT(TEXT(ROWS($1:2),"00")&"!$AO$3")) -> 8 | F64: 15 | G64: =SUM(INDIRECT(TEXT(ROWS($1:2),"00")&"!$AP$3")) -> 171 | H64: =LOOKUP(9^9,INDIRECT("'"&TEXT(ROW(C2),"00")&"'!$AQ$6:$AQ$1000")) -> 2 | I64: =SUM(INDIRECT(TEXT(ROWS($1:2),"00")&"!$AQ$3")) -> 21 | J64: =SUM(U34) -> 17 | K64: =SUM(INDIRECT(TEXT(ROWS($1:2),"00")&"!$AR$3")) -> 152 | L64: 3 | M64: =SUM(INDIRECT(TEXT(ROWS($1:2),"00")&"!$AS$3")) -> 9 | N64: 14 | O64: =SUM(INDIRECT(TEXT(ROWS($1:2),"00")&"!$AT$3")) -> 125 | P64: 3 | Q64: =SUM(INDIRECT(TEXT(ROWS($1:2),"00")&"!$AU$3")) -> 14 | R64: 10 | S64: =SUM(INDIRECT(TEXT(ROWS($1:2),"00")&"!$AV$3")) -> 119 | T64: 1 | U64: =SUM(INDIRECT(TEXT(ROWS($1:2),"00")&"!$AW$3")) -> 15 | V64: 13 | W64: =SUM(INDIRECT(TEXT(ROWS($1:2),"00")&"!$AX$3")) -> 114 | X64: 3 | Y64: =SUM(INDIRECT(TEXT(ROWS($1:2),"00")&"!$AY$3")) -> 20 | Z64: 16 | AA64: =SUM(INDIRECT(TEXT(ROWS($1:2),"00")&"!$AZ$3")) -> 97 | AB64: 17 | AC64: =SUM(INDIRECT(TEXT(ROWS($1:2),"00")&"!$BA$3")) -> 18 | AD64: 6 | AE64: =SUM(INDIRECT(TEXT(ROWS($1:2),"00")&"!$BB$3")) -> 109 | AF64: =LOOKUP(9^9,INDIRECT("'"&TEXT(ROW(M2),"00")&"'!$BC$6:$BC$1000")) -> 1 | AG64: =SUM(INDIRECT(TEXT(ROWS($1:2),"00")&"!$BC$3")) -> 19 | AH64: 2 | AJ64: =SUM(pronos_journalier!N7) -> 355 | AK64: 3 | AL64: =INDIRECT(TEXT(ROWS($1:2),"00")&"!AI3") -> 11 | AM64: =INDIRECT(TEXT(ROWS($1:2),"00")&"!Ah3") -> 0.4285714286 | AO64: =SUM(pronos_journalier!P7) -> 211 | AP64: 3 | AQ64: =INDIRECT(TEXT(ROWS($1:2),"00")&"!AK3") -> 17 | AR64: =INDIRECT(TEXT(ROWS($1:2),"00")&"!AJ3") -> 0.2575757576 | AT64: =SUM(pronos_journalier!R7) -> 112 | AU64: 3 | AV64: =INDIRECT(TEXT(ROWS($1:2),"00")&"!AM3") -> 24 | AW64: =INDIRECT(TEXT(ROWS($1:2),"00")&"!AL3") -> 0.1385281385
A65: 3 | B65: Bilto.fr | C65: =SUM(INDIRECT(TEXT(ROWS($1:3),"00")&"!$AN$3")) -> 198 | D65: 2 | E65: =SUM(INDIRECT(TEXT(ROWS($1:3),"00")&"!$AO$3")) -> 13 | F65: 14 | G65: =SUM(INDIRECT(TEXT(ROWS($1:3),"00")&"!$AP$3")) -> 184 | H65: 2 | I65: =SUM(INDIRECT(TEXT(ROWS($1:3),"00")&"!$AQ$3")) -> 8 | J65: 17 | K65: =SUM(INDIRECT(TEXT(ROWS($1:3),"00")&"!$AR$3")) -> 148 | L65: 3 | M65: =SUM(INDIRECT(TEXT(ROWS($1:3),"00")&"!$AS$3")) -> 14 | N65: 15 | O65: =SUM(INDIRECT(TEXT(ROWS($1:3),"00")&"!$AT$3")) -> 135 | P65: 4 | Q65: =SUM(INDIRECT(TEXT(ROWS($1:3),"00")&"!$AU$3")) -> 16 | R65: 16 | S65: =SUM(INDIRECT(TEXT(ROWS($1:3),"00")&"!$AV$3")) -> 132 | T65: 5 | U65: =SUM(INDIRECT(TEXT(ROWS($1:3),"00")&"!$AW$3")) -> 13 | V65: 6 | W65: =SUM(INDIRECT(TEXT(ROWS($1:3),"00")&"!$AX$3")) -> 103 | X65: 3 | Y65: =SUM(INDIRECT(TEXT(ROWS($1:3),"00")&"!$AY$3")) -> 40 | Z65: 18 | AA65: =SUM(INDIRECT(TEXT(ROWS($1:3),"00")&"!$AZ$3")) -> 110 | AB65: 4 | AC65: =SUM(INDIRECT(TEXT(ROWS($1:3),"00")&"!$BA$3")) -> 16 | AD65: 13 | AE65: =SUM(INDIRECT(TEXT(ROWS($1:3),"00")&"!$BB$3")) -> 80 | AF65: 1 | AG65: =SUM(INDIRECT(TEXT(ROWS($1:3),"00")&"!$BC$3")) -> 20 | AH65: 9 | AJ65: =SUM(pronos_journalier!N8) -> 357 | AK65: 3 | AL65: =INDIRECT(TEXT(ROWS($1:3),"00")&"!AI3") -> 11 | AM65: =INDIRECT(TEXT(ROWS($1:3),"00")&"!Ah3") -> 0.4134199134 | AO65: =SUM(pronos_journalier!P8) -> 222 | AP65: 3 | AQ65: =INDIRECT(TEXT(ROWS($1:3),"00")&"!AK3") -> 16 | AR65: =INDIRECT(TEXT(ROWS($1:3),"00")&"!AJ3") -> 0.2424242424 | AT65: =SUM(pronos_journalier!R8) -> 128 | AU65: 3 | AV65: =INDIRECT(TEXT(ROWS($1:3),"00")&"!AM3") -> 29 | AW65: =INDIRECT(TEXT(ROWS($1:3),"00")&"!AL3") -> 0.1428571429
A66: 4 | B66: Europe I | C66: =SUM(INDIRECT(TEXT(ROWS($1:4),"00")&"!$AN$3")) -> 194 | D66: 2 | E66: =SUM(INDIRECT(TEXT(ROWS($1:4),"00")&"!$AO$3")) -> 12 | F66: 2 | G66: =SUM(INDIRECT(TEXT(ROWS($1:4),"00")&"!$AP$3")) -> 158 | H66: 4 | I66: =SUM(INDIRECT(TEXT(ROWS($1:4),"00")&"!$AQ$3")) -> 11 | J66: 17 | K66: =SUM(INDIRECT(TEXT(ROWS($1:4),"00")&"!$AR$3")) -> 155 | L66: 1 | M66: =SUM(INDIRECT(TEXT(ROWS($1:4),"00")&"!$AS$3")) -> 12 | N66: 14 | O66: =SUM(INDIRECT(TEXT(ROWS($1:4),"00")&"!$AT$3")) -> 148 | P66: 3 | Q66: =SUM(INDIRECT(TEXT(ROWS($1:4),"00")&"!$AU$3")) -> 12 | R66: 1 | S66: =SUM(INDIRECT(TEXT(ROWS($1:4),"00")&"!$AV$3")) -> 113 | T66: 10 | U66: =SUM(INDIRECT(TEXT(ROWS($1:4),"00")&"!$AW$3")) -> 12 | V66: 6 | W66: =SUM(INDIRECT(TEXT(ROWS($1:4),"00")&"!$AX$3")) -> 119 | X66: 14 | Y66: =SUM(INDIRECT(TEXT(ROWS($1:4),"00")&"!$AY$3")) -> 14 | Z66: 8 | AA66: =SUM(INDIRECT(TEXT(ROWS($1:4),"00")&"!$AZ$3")) -> 82 | AB66: 9 | AC66: =SUM(INDIRECT(TEXT(ROWS($1:4),"00")&"!$BA$3")) -> 20 | AD66: 10 | AE66: =SUM(INDIRECT(TEXT(ROWS($1:4),"00")&"!$BB$3")) -> 81 | AF66: 2 | AG66: =SUM(INDIRECT(TEXT(ROWS($1:4),"00")&"!$BC$3")) -> 25 | AH66: 16 | AJ66: =SUM(pronos_journalier!N9) -> 318 | AK66: 2 | AL66: =INDIRECT(TEXT(ROWS($1:4),"00")&"!AI3") -> 12 | AM66: =INDIRECT(TEXT(ROWS($1:4),"00")&"!Ah3") -> 0.3658008658 | AO66: =SUM(pronos_journalier!P9) -> 179 | AP66: 3 | AQ66: =INDIRECT(TEXT(ROWS($1:4),"00")&"!AK3") -> 28 | AR66: =INDIRECT(TEXT(ROWS($1:4),"00")&"!AJ3") -> 0.1948051948 | AT66: =SUM(pronos_journalier!R9) -> 94 | AU66: 3 | AV66: =INDIRECT(TEXT(ROWS($1:4),"00")&"!AM3") -> 44 | AW66: =INDIRECT(TEXT(ROWS($1:4),"00")&"!AL3") -> 0.09956709957
A67: 5 | B67: La Gazette des Courses | C67: =SUM(INDIRECT(TEXT(ROWS($1:5),"00")&"!$AN$3")) -> 199 | D67: 2 | E67: =SUM(INDIRECT(TEXT(ROWS($1:5),"00")&"!$AO$3")) -> 9 | F67: 15 | G67: =SUM(INDIRECT(TEXT(ROWS($1:5),"00")&"!$AP$3")) -> 162 | H67: 1 | I67: =SUM(INDIRECT(TEXT(ROWS($1:5),"00")&"!$AQ$3")) -> 15 | J67: 7 | K67: =SUM(INDIRECT(TEXT(ROWS($1:5),"00")&"!$AR$3")) -> 157 | L67: 2 | M67: =SUM(INDIRECT(TEXT(ROWS($1:5),"00")&"!$AS$3")) -> 14 | N67: 13 | O67: =SUM(INDIRECT(TEXT(ROWS($1:5),"00")&"!$AT$3")) -> 141 | P67: 4 | Q67: =SUM(INDIRECT(TEXT(ROWS($1:5),"00")&"!$AU$3")) -> 19 | R67: 16 | S67: =SUM(INDIRECT(TEXT(ROWS($1:5),"00")&"!$AV$3")) -> 106 | T67: 8 | U67: =SUM(INDIRECT(TEXT(ROWS($1:5),"00")&"!$AW$3")) -> 19 | V67: 11 | W67: =SUM(INDIRECT(TEXT(ROWS($1:5),"00")&"!$AX$3")) -> 113 | X67: 1 | Y67: =SUM(INDIRECT(TEXT(ROWS($1:5),"00")&"!$AY$3")) -> 17 | Z67: 17 | AA67: =SUM(INDIRECT(TEXT(ROWS($1:5),"00")&"!$AZ$3")) -> 107 | AB67: 1 | AC67: =SUM(INDIRECT(TEXT(ROWS($1:5),"00")&"!$BA$3")) -> 19 | AD67: 6 | AE67: =SUM(INDIRECT(TEXT(ROWS($1:5),"00")&"!$BB$3")) -> 79 | AF67: 6 | AG67: =SUM(INDIRECT(TEXT(ROWS($1:5),"00")&"!$BC$3")) -> 29 | AH67: 2 | AJ67: =SUM(pronos_journalier!N10) -> 322 | AK67: 1 | AL67: =INDIRECT(TEXT(ROWS($1:5),"00")&"!AI3") -> 12 | AM67: =INDIRECT(TEXT(ROWS($1:5),"00")&"!Ah3") -> 0.3874458874 | AO67: =SUM(pronos_journalier!P10) -> 187 | AP67: 4 | AQ67: =INDIRECT(TEXT(ROWS($1:5),"00")&"!AK3") -> 22 | AR67: =INDIRECT(TEXT(ROWS($1:5),"00")&"!AJ3") -> 0.2337662338 | AT67: =SUM(pronos_journalier!R10) -> 90 | AU67: 4 | AV67: =INDIRECT(TEXT(ROWS($1:5),"00")&"!AM3") -> 39 | AW67: =INDIRECT(TEXT(ROWS($1:5),"00")&"!AL3") -> 0.1103896104
A68: 6 | B68: Le Dauphiné Libéré | C68: =SUM(INDIRECT(TEXT(ROWS($1:6),"00")&"!$AN$3")) -> 197 | D68: 2 | E68: =SUM(INDIRECT(TEXT(ROWS($1:6),"00")&"!$AO$3")) -> 9 | F68: 14 | G68: =SUM(INDIRECT(TEXT(ROWS($1:6),"00")&"!$AP$3")) -> 155 | H68: 3 | I68: =SUM(INDIRECT(TEXT(ROWS($1:6),"00")&"!$AQ$3")) -> 13 | J68: 17 | K68: =SUM(INDIRECT(TEXT(ROWS($1:6),"00")&"!$AR$3")) -> 170 | L68: 2 | M68: =SUM(INDIRECT(TEXT(ROWS($1:6),"00")&"!$AS$3")) -> 10 | N68: 6 | O68: =SUM(INDIRECT(TEXT(ROWS($1:6),"00")&"!$AT$3")) -> 118 | P68: 3 | Q68: =SUM(INDIRECT(TEXT(ROWS($1:6),"00")&"!$AU$3")) -> 23 | R68: 7 | S68: =SUM(INDIRECT(TEXT(ROWS($1:6),"00")&"!$AV$3")) -> 129 | T68: 4 | U68: =SUM(INDIRECT(TEXT(ROWS($1:6),"00")&"!$AW$3")) -> 16 | V68: 10 | W68: =SUM(INDIRECT(TEXT(ROWS($1:6),"00")&"!$AX$3")) -> 104 | X68: 3 | Y68: =SUM(INDIRECT(TEXT(ROWS($1:6),"00")&"!$AY$3")) -> 26 | Z68: 9 | AA68: =SUM(INDIRECT(TEXT(ROWS($1:6),"00")&"!$AZ$3")) -> 113 | AB68: 1 | AC68: =SUM(INDIRECT(TEXT(ROWS($1:6),"00")&"!$BA$3")) -> 20 | AD68: 8 | AE68: =SUM(INDIRECT(TEXT(ROWS($1:6),"00")&"!$BB$3")) -> 77 | AF68: 11 | AG68: =SUM(INDIRECT(TEXT(ROWS($1:6),"00")&"!$BC$3")) -> 30 | AH68: 13 | AJ68: =SUM(pronos_journalier!N11) -> 326 | AK68: 3 | AL68: =INDIRECT(TEXT(ROWS($1:6),"00")&"!AI3") -> 9 | AM68: =INDIRECT(TEXT(ROWS($1:6),"00")&"!Ah3") -> 0.3852813853 | AO68: =SUM(pronos_journalier!P11) -> 185 | AP68: 3 | AQ68: =INDIRECT(TEXT(ROWS($1:6),"00")&"!AK3") -> 15 | AR68: =INDIRECT(TEXT(ROWS($1:6),"00")&"!AJ3") -> 0.2164502165 | AT68: =SUM(pronos_journalier!R11) -> 94 | AU68: 3 | AV68: =INDIRECT(TEXT(ROWS($1:6),"00")&"!AM3") -> 26 | AW68: =INDIRECT(TEXT(ROWS($1:6),"00")&"!AL3") -> 0.1125541126
A69: 7 | B69: Le Parisien | C69: =SUM(INDIRECT(TEXT(ROWS($1:7),"00")&"!$AN$3")) -> 204 | D69: 2 | E69: =SUM(INDIRECT(TEXT(ROWS($1:7),"00")&"!$AO$3")) -> 10 | F69: 14 | G69: =SUM(INDIRECT(TEXT(ROWS($1:7),"00")&"!$AP$3")) -> 175 | H69: 3 | I69: =SUM(INDIRECT(TEXT(ROWS($1:7),"00")&"!$AQ$3")) -> 11 | J69: 17 | K69: =SUM(INDIRECT(TEXT(ROWS($1:7),"00")&"!$AR$3")) -> 132 | L69: 3 | M69: =SUM(INDIRECT(TEXT(ROWS($1:7),"00")&"!$AS$3")) -> 19 | N69: 10 | O69: =SUM(INDIRECT(TEXT(ROWS($1:7),"00")&"!$AT$3")) -> 128 | P69: 6 | Q69: =SUM(INDIRECT(TEXT(ROWS($1:7),"00")&"!$AU$3")) -> 18 | R69: 13 | S69: =SUM(INDIRECT(TEXT(ROWS($1:7),"00")&"!$AV$3")) -> 111 | T69: 2 | U69: =SUM(INDIRECT(TEXT(ROWS($1:7),"00")&"!$AW$3")) -> 18 | V69: 15 | W69: =SUM(INDIRECT(TEXT(ROWS($1:7),"00")&"!$AX$3")) -> 122 | X69: 2 | Y69: =SUM(INDIRECT(TEXT(ROWS($1:7),"00")&"!$AY$3")) -> 22 | Z69: 16 | AA69: =SUM(INDIRECT(TEXT(ROWS($1:7),"00")&"!$AZ$3")) -> 113 | AB69: 1 | AC69: =SUM(INDIRECT(TEXT(ROWS($1:7),"00")&"!$BA$3")) -> 17 | AD69: 18 | AE69: =SUM(INDIRECT(TEXT(ROWS($1:7),"00")&"!$BB$3")) -> 74 | AF69: 12 | AG69: =SUM(INDIRECT(TEXT(ROWS($1:7),"00")&"!$BC$3")) -> 34 | AH69: 6 | AJ69: =SUM(pronos_journalier!N12) -> 332 | AK69: 2 | AL69: =INDIRECT(TEXT(ROWS($1:7),"00")&"!AI3") -> 8 | AM69: =INDIRECT(TEXT(ROWS($1:7),"00")&"!Ah3") -> 0.3896103896 | AO69: =SUM(pronos_journalier!P12) -> 192 | AP69: 4 | AQ69: =INDIRECT(TEXT(ROWS($1:7),"00")&"!AK3") -> 15 | AR69: =INDIRECT(TEXT(ROWS($1:7),"00")&"!AJ3") -> 0.2229437229 | AT69: =SUM(pronos_journalier!R12) -> 110 | AU69: 4 | AV69: =INDIRECT(TEXT(ROWS($1:7),"00")&"!AM3") -> 40 | AW69: =INDIRECT(TEXT(ROWS($1:7),"00")&"!AL3") -> 0.1125541126
A70: 8 | B70: Le Républicain Lorrain | C70: =SUM(INDIRECT(TEXT(ROWS($1:8),"00")&"!$AN$3")) -> 197 | D70: 2 | E70: =SUM(INDIRECT(TEXT(ROWS($1:8),"00")&"!$AO$3")) -> 12 | F70: 14 | G70: =SUM(INDIRECT(TEXT(ROWS($1:8),"00")&"!$AP$3")) -> 147 | H70: 4 | I70: =SUM(INDIRECT(TEXT(ROWS($1:8),"00")&"!$AQ$3")) -> 16 | J70: 17 | K70: =SUM(INDIRECT(TEXT(ROWS($1:8),"00")&"!$AR$3")) -> 153 | L70: 1 | M70: =SUM(INDIRECT(TEXT(ROWS($1:8),"00")&"!$AS$3")) -> 21 | N70: 7 | O70: =SUM(INDIRECT(TEXT(ROWS($1:8),"00")&"!$AT$3")) -> 143 | P70: 4 | Q70: =SUM(INDIRECT(TEXT(ROWS($1:8),"00")&"!$AU$3")) -> 17 | R70: 10 | S70: =SUM(INDIRECT(TEXT(ROWS($1:8),"00")&"!$AV$3")) -> 129 | T70: 8 | U70: =SUM(INDIRECT(TEXT(ROWS($1:8),"00")&"!$AW$3")) -> 12 | V70: 15 | W70: =SUM(INDIRECT(TEXT(ROWS($1:8),"00")&"!$AX$3")) -> 120 | X70: 3 | Y70: =SUM(INDIRECT(TEXT(ROWS($1:8),"00")&"!$AY$3")) -> 27 | Z70: 13 | AA70: =SUM(INDIRECT(TEXT(ROWS($1:8),"00")&"!$AZ$3")) -> 92 | AB70: 3 | AC70: =SUM(INDIRECT(TEXT(ROWS($1:8),"00")&"!$BA$3")) -> 26 | AD70: 18 | AE70: =SUM(INDIRECT(TEXT(ROWS($1:8),"00")&"!$BB$3")) -> 102 | AF70: 1 | AG70: =SUM(INDIRECT(TEXT(ROWS($1:8),"00")&"!$BC$3")) -> 16 | AH70: 6 | AJ70: =SUM(pronos_journalier!N13) -> 332 | AK70: 2 | AL70: =INDIRECT(TEXT(ROWS($1:8),"00")&"!AI3") -> 10 | AM70: =INDIRECT(TEXT(ROWS($1:8),"00")&"!Ah3") -> 0.3917748918 | AO70: =SUM(pronos_journalier!P13) -> 200 | AP70: 3 | AQ70: =INDIRECT(TEXT(ROWS($1:8),"00")&"!AK3") -> 21 | AR70: =INDIRECT(TEXT(ROWS($1:8),"00")&"!AJ3") -> 0.2402597403 | AT70: =SUM(pronos_journalier!R13) -> 101 | AU70: 3 | AV70: =INDIRECT(TEXT(ROWS($1:8),"00")&"!AM3") -> 38 | AW70: =INDIRECT(TEXT(ROWS($1:8),"00")&"!AL3") -> 0.1212121212
A71: 9 | B71: Geny,com | C71: =SUM(INDIRECT(TEXT(ROWS($1:9),"00")&"!$AN$3")) -> 117 | D71: 2 | E71: =SUM(INDIRECT(TEXT(ROWS($1:9),"00")&"!$AO$3")) -> 9 | F71: 14 | G71: =SUM(INDIRECT(TEXT(ROWS($1:9),"00")&"!$AP$3")) -> 105 | H71: 3 | I71: =SUM(INDIRECT(TEXT(ROWS($1:9),"00")&"!$AQ$3")) -> 16 | J71: 17 | K71: =SUM(INDIRECT(TEXT(ROWS($1:9),"00")&"!$AR$3")) -> 77 | L71: 5 | M71: =SUM(INDIRECT(TEXT(ROWS($1:9),"00")&"!$AS$3")) -> 14 | N71: 7 | O71: =SUM(INDIRECT(TEXT(ROWS($1:9),"00")&"!$AT$3")) -> 89 | P71: 6 | Q71: =SUM(INDIRECT(TEXT(ROWS($1:9),"00")&"!$AU$3")) -> 13 | R71: 18 | S71: =SUM(INDIRECT(TEXT(ROWS($1:9),"00")&"!$AV$3")) -> 72 | T71: 2 | U71: =SUM(INDIRECT(TEXT(ROWS($1:9),"00")&"!$AW$3")) -> 25 | V71: 13 | W71: =SUM(INDIRECT(TEXT(ROWS($1:9),"00")&"!$AX$3")) -> 58 | X71: 10 | Y71: =SUM(INDIRECT(TEXT(ROWS($1:9),"00")&"!$AY$3")) -> 31 | Z71: 15 | AA71: =SUM(INDIRECT(TEXT(ROWS($1:9),"00")&"!$AZ$3")) -> 53 | AB71: 1 | AC71: =SUM(INDIRECT(TEXT(ROWS($1:9),"00")&"!$BA$3")) -> 24 | AD71: 10 | AE71: =SUM(INDIRECT(TEXT(ROWS($1:9),"00")&"!$BB$3")) -> 60 | AF71: 4 | AG71: =SUM(INDIRECT(TEXT(ROWS($1:9),"00")&"!$BC$3")) -> 24 | AH71: 6 | AJ71: =SUM(pronos_journalier!N14) -> 323 | AK71: 4 | AL71: =INDIRECT(TEXT(ROWS($1:9),"00")&"!AI3") -> 13 | AM71: =INDIRECT(TEXT(ROWS($1:9),"00")&"!Ah3") -> 0.2212581345 | AO71: =SUM(pronos_journalier!P14) -> 185 | AP71: 4 | AQ71: =INDIRECT(TEXT(ROWS($1:9),"00")&"!AK3") -> 14 | AR71: =INDIRECT(TEXT(ROWS($1:9),"00")&"!AJ3") -> 0.1106290672 | AT71: =SUM(pronos_journalier!R14) -> 97 | AU71: 14 | AV71: =INDIRECT(TEXT(ROWS($1:9),"00")&"!AM3") -> 32 | AW71: =INDIRECT(TEXT(ROWS($1:9),"00")&"!AL3") -> 0.05422993492
A72: 10 | B72: Ouest-France | C72: =SUM(INDIRECT(TEXT(ROWS($1:10),"00")&"!$AN$3")) -> 186 | D72: 4 | E72: =SUM(INDIRECT(TEXT(ROWS($1:10),"00")&"!$AO$3")) -> 10 | F72: 14 | G72: =SUM(INDIRECT(TEXT(ROWS($1:10),"00")&"!$AP$3")) -> 171 | H72: 2 | I72: =SUM(INDIRECT(TEXT(ROWS($1:10),"00")&"!$AQ$3")) -> 9 | J72: 17 | K72: =SUM(INDIRECT(TEXT(ROWS($1:10),"00")&"!$AR$3")) -> 139 | L72: 3 | M72: =SUM(INDIRECT(TEXT(ROWS($1:10),"00")&"!$AS$3")) -> 14 | N72: 7 | O72: =SUM(INDIRECT(TEXT(ROWS($1:10),"00")&"!$AT$3")) -> 120 | P72: 3 | Q72: =SUM(INDIRECT(TEXT(ROWS($1:10),"00")&"!$AU$3")) -> 16 | R72: 10 | S72: =SUM(INDIRECT(TEXT(ROWS($1:10),"00")&"!$AV$3")) -> 129 | T72: 6 | U72: =SUM(INDIRECT(TEXT(ROWS($1:10),"00")&"!$AW$3")) -> 19 | V72: 8 | W72: =SUM(INDIRECT(TEXT(ROWS($1:10),"00")&"!$AX$3")) -> 95 | X72: 1 | Y72: =SUM(INDIRECT(TEXT(ROWS($1:10),"00")&"!$AY$3")) -> 27 | Z72: 1 | AA72: =SUM(INDIRECT(TEXT(ROWS($1:10),"00")&"!$AZ$3")) -> 109 | AB72: 8 | AC72: =SUM(INDIRECT(TEXT(ROWS($1:10),"00")&"!$BA$3")) -> 26 | AD72: 16 | AE72: =SUM(INDIRECT(TEXT(ROWS($1:10),"00")&"!$BB$3")) -> 83 | AF72: 12 | AG72: =SUM(INDIRECT(TEXT(ROWS($1:10),"00")&"!$BC$3")) -> 37 | AH72: 9 | AJ72: =SUM(pronos_journalier!N15) -> 303 | AK72: 3 | AL72: =INDIRECT(TEXT(ROWS($1:10),"00")&"!AI3") -> 14 | AM72: =INDIRECT(TEXT(ROWS($1:10),"00")&"!Ah3") -> 0.3484848485 | AO72: =SUM(pronos_journalier!P15) -> 174 | AP72: 3 | AQ72: =INDIRECT(TEXT(ROWS($1:10),"00")&"!AK3") -> 27 | AR72: =INDIRECT(TEXT(ROWS($1:10),"00")&"!AJ3") -> 0.1948051948 | AT72: =SUM(pronos_journalier!R15) -> 95 | AU72: 3 | AV72: =INDIRECT(TEXT(ROWS($1:10),"00")&"!AM3") -> 40 | AW72: =INDIRECT(TEXT(ROWS($1:10),"00")&"!AL3") -> 0.0974025974
A73: 11 | B73: Paris Courses | C73: =SUM(INDIRECT(TEXT(ROWS($1:11),"00")&"!$AN$3")) -> 196 | D73: 2 | E73: =SUM(INDIRECT(TEXT(ROWS($1:11),"00")&"!$AO$3")) -> 8 | F73: 14 | G73: =SUM(INDIRECT(TEXT(ROWS($1:11),"00")&"!$AP$3")) -> 183 | H73: 4 | I73: =SUM(INDIRECT(TEXT(ROWS($1:11),"00")&"!$AQ$3")) -> 11 | J73: 17 | K73: =SUM(INDIRECT(TEXT(ROWS($1:11),"00")&"!$AR$3")) -> 156 | L73: 3 | M73: =SUM(INDIRECT(TEXT(ROWS($1:11),"00")&"!$AS$3")) -> 12 | N73: 15 | O73: =SUM(INDIRECT(TEXT(ROWS($1:11),"00")&"!$AT$3")) -> 130 | P73: 1 | Q73: =SUM(INDIRECT(TEXT(ROWS($1:11),"00")&"!$AU$3")) -> 15 | R73: 3 | S73: =SUM(INDIRECT(TEXT(ROWS($1:11),"00")&"!$AV$3")) -> 141 | T73: 2 | U73: =SUM(INDIRECT(TEXT(ROWS($1:11),"00")&"!$AW$3")) -> 11 | V73: 6 | W73: =SUM(INDIRECT(TEXT(ROWS($1:11),"00")&"!$AX$3")) -> 103 | X73: 10 | Y73: =SUM(INDIRECT(TEXT(ROWS($1:11),"00")&"!$AY$3")) -> 18 | Z73: 10 | AA73: =SUM(INDIRECT(TEXT(ROWS($1:11),"00")&"!$AZ$3")) -> 109 | AB73: 5 | AC73: =SUM(INDIRECT(TEXT(ROWS($1:11),"00")&"!$BA$3")) -> 34 | AD73: 9 | AE73: =SUM(INDIRECT(TEXT(ROWS($1:11),"00")&"!$BB$3")) -> 71 | AF73: 12 | AG73: =SUM(INDIRECT(TEXT(ROWS($1:11),"00")&"!$BC$3")) -> 33 | AH73: 18 | AJ73: =SUM(pronos_journalier!N16) -> 335 | AK73: 3 | AL73: =INDIRECT(TEXT(ROWS($1:11),"00")&"!AI3") -> 12 | AM73: =INDIRECT(TEXT(ROWS($1:11),"00")&"!Ah3") -> 0.4112554113 | AO73: =SUM(pronos_journalier!P16) -> 195 | AP73: 3 | AQ73: =INDIRECT(TEXT(ROWS($1:11),"00")&"!AK3") -> 14 | AR73: =INDIRECT(TEXT(ROWS($1:11),"00")&"!AJ3") -> 0.2316017316 | AT73: =SUM(pronos_journalier!R16) -> 104 | AU73: 3 | AV73: =INDIRECT(TEXT(ROWS($1:11),"00")&"!AM3") -> 22 | AW73: =INDIRECT(TEXT(ROWS($1:11),"00")&"!AL3") -> 0.1277056277
A74: 12 | B74: Paris-Courses.com | C74: =SUM(INDIRECT(TEXT(ROWS($1:12),"00")&"!$AN$3")) -> 193 | D74: 2 | E74: =SUM(INDIRECT(TEXT(ROWS($1:12),"00")&"!$AO$3")) -> 11 | F74: 14 | G74: =SUM(INDIRECT(TEXT(ROWS($1:12),"00")&"!$AP$3")) -> 192 | H74: 2 | I74: =SUM(INDIRECT(TEXT(ROWS($1:12),"00")&"!$AQ$3")) -> 11 | J74: 17 | K74: =SUM(INDIRECT(TEXT(ROWS($1:12),"00")&"!$AR$3")) -> 149 | L74: 5 | M74: =SUM(INDIRECT(TEXT(ROWS($1:12),"00")&"!$AS$3")) -> 13 | N74: 110 | O74: =SUM(INDIRECT(TEXT(ROWS($1:12),"00")&"!$AT$3")) -> 130 | P74: 12 | Q74: =SUM(INDIRECT(TEXT(ROWS($1:12),"00")&"!$AU$3")) -> 20 | R74: 13 | S74: =SUM(INDIRECT(TEXT(ROWS($1:12),"00")&"!$AV$3")) -> 110 | T74: 3 | U74: =SUM(INDIRECT(TEXT(ROWS($1:12),"00")&"!$AW$3")) -> 18 | V74: 15 | W74: =SUM(INDIRECT(TEXT(ROWS($1:12),"00")&"!$AX$3")) -> 122 | X74: 7 | Y74: =SUM(INDIRECT(TEXT(ROWS($1:12),"00")&"!$AY$3")) -> 17 | Z74: 7 | AA74: =SUM(INDIRECT(TEXT(ROWS($1:12),"00")&"!$AZ$3")) -> 92 | AB74: 1 | AC74: =SUM(INDIRECT(TEXT(ROWS($1:12),"00")&"!$BA$3")) -> 20 | AD74: 9 | AE74: =SUM(INDIRECT(TEXT(ROWS($1:12),"00")&"!$BB$3")) -> 85 | AF74: 2 | AG74: =SUM(INDIRECT(TEXT(ROWS($1:12),"00")&"!$BC$3")) -> 21 | AH74: 16 | AJ74: =SUM(pronos_journalier!N17) -> 338 | AK74: 2 | AL74: =INDIRECT(TEXT(ROWS($1:12),"00")&"!AI3") -> 9 | AM74: =INDIRECT(TEXT(ROWS($1:12),"00")&"!Ah3") -> 0.4025974026 | AO74: =SUM(pronos_journalier!P17) -> 195 | AP74: 2 | AQ74: =INDIRECT(TEXT(ROWS($1:12),"00")&"!AK3") -> 26 | AR74: =INDIRECT(TEXT(ROWS($1:12),"00")&"!AJ3") -> 0.2164502165 | AT74: =SUM(pronos_journalier!R17) -> 106 | AU74: 2 | AV74: =INDIRECT(TEXT(ROWS($1:12),"00")&"!AM3") -> 26 | AW74: =INDIRECT(TEXT(ROWS($1:12),"00")&"!AL3") -> 0.1212121212
A75: 13 | B75: Paris-Turf | C75: =SUM(INDIRECT(TEXT(ROWS($1:13),"00")&"!$AN$3")) -> 211 | D75: 2 | E75: =SUM(INDIRECT(TEXT(ROWS($1:13),"00")&"!$AO$3")) -> 9 | F75: 14 | G75: =SUM(INDIRECT(TEXT(ROWS($1:13),"00")&"!$AP$3")) -> 167 | H75: 2 | I75: =SUM(INDIRECT(TEXT(ROWS($1:13),"00")&"!$AQ$3")) -> 15 | J75: =SUM(U45) -> 17 | K75: =SUM(INDIRECT(TEXT(ROWS($1:13),"00")&"!$AR$3")) -> 164 | L75: 1 | M75: =SUM(INDIRECT(TEXT(ROWS($1:13),"00")&"!$AS$3")) -> 12 | N75: 7 | O75: =SUM(INDIRECT(TEXT(ROWS($1:13),"00")&"!$AT$3")) -> 138 | P75: 10 | Q75: =SUM(INDIRECT(TEXT(ROWS($1:13),"00")&"!$AU$3")) -> 16 | R75: 15 | S75: =SUM(INDIRECT(TEXT(ROWS($1:13),"00")&"!$AV$3")) -> 125 | T75: 3 | U75: =SUM(INDIRECT(TEXT(ROWS($1:13),"00")&"!$AW$3")) -> 32 | V75: 10 | W75: =SUM(INDIRECT(TEXT(ROWS($1:13),"00")&"!$AX$3")) -> 113 | X75: 3 | Y75: =SUM(INDIRECT(TEXT(ROWS($1:13),"00")&"!$AY$3")) -> 17 | Z75: 13 | AA75: =SUM(INDIRECT(TEXT(ROWS($1:13),"00")&"!$AZ$3")) -> 86 | AB75: 20 | AC75: =SUM(INDIRECT(TEXT(ROWS($1:13),"00")&"!$BA$3")) -> 30 | AD75: 18 | AE75: =SUM(INDIRECT(TEXT(ROWS($1:13),"00")&"!$BB$3")) -> 95 | AF75: 8 | AG75: =SUM(INDIRECT(TEXT(ROWS($1:13),"00")&"!$BC$3")) -> 22 | AH75: 9 | AJ75: =SUM(pronos_journalier!N18) -> 350 | AK75: 3 | AL75: =INDIRECT(TEXT(ROWS($1:13),"00")&"!AI3") -> 8 | AM75: =INDIRECT(TEXT(ROWS($1:13),"00")&"!Ah3") -> 0.4199134199 | AO75: =SUM(pronos_journalier!P18) -> 212 | AP75: 3 | AQ75: =INDIRECT(TEXT(ROWS($1:13),"00")&"!AK3") -> 17 | AR75: =INDIRECT(TEXT(ROWS($1:13),"00")&"!AJ3") -> 0.2424242424 | AT75: =SUM(pronos_journalier!R18) -> 116 | AU75: 3 | AV75: =INDIRECT(TEXT(ROWS($1:13),"00")&"!AM3") -> 29 | AW75: =INDIRECT(TEXT(ROWS($1:13),"00")&"!AL3") -> 0.1255411255
A76: 14 | B76: Gény courses | C76: =SUM(INDIRECT(TEXT(ROWS($1:14),"00")&"!$AN$3")) -> 102 | D76: 11 | E76: =SUM(INDIRECT(TEXT(ROWS($1:14),"00")&"!$AO$3")) -> 10 | F76: 14 | G76: =SUM(INDIRECT(TEXT(ROWS($1:14),"00")&"!$AP$3")) -> 87 | H76: 2 | I76: =SUM(INDIRECT(TEXT(ROWS($1:14),"00")&"!$AQ$3")) -> 13 | J76: 6 | K76: =SUM(INDIRECT(TEXT(ROWS($1:14),"00")&"!$AR$3")) -> 84 | L76: 3 | M76: =SUM(INDIRECT(TEXT(ROWS($1:14),"00")&"!$AS$3")) -> 12 | N76: 7 | O76: =SUM(INDIRECT(TEXT(ROWS($1:14),"00")&"!$AT$3")) -> 81 | P76: 5 | Q76: =SUM(INDIRECT(TEXT(ROWS($1:14),"00")&"!$AU$3")) -> 10 | R76: 17 | S76: =SUM(INDIRECT(TEXT(ROWS($1:14),"00")&"!$AV$3")) -> 65 | T76: 2 | U76: =SUM(INDIRECT(TEXT(ROWS($1:14),"00")&"!$AW$3")) -> 13 | V76: 9 | W76: =SUM(INDIRECT(TEXT(ROWS($1:14),"00")&"!$AX$3")) -> 70 | X76: 2 | Y76: =SUM(INDIRECT(TEXT(ROWS($1:14),"00")&"!$AY$3")) -> 12 | Z76: 15 | AA76: =SUM(INDIRECT(TEXT(ROWS($1:14),"00")&"!$AZ$3")) -> 52 | AB76: 10 | AC76: =SUM(INDIRECT(TEXT(ROWS($1:14),"00")&"!$BA$3")) -> 20 | AD76: 8 | AE76: =SUM(INDIRECT(TEXT(ROWS($1:14),"00")&"!$BB$3")) -> 54 | AF76: 9 | AG76: =SUM(INDIRECT(TEXT(ROWS($1:14),"00")&"!$BC$3")) -> 15 | AH76: 10 | AJ76: =SUM(pronos_journalier!N19) -> 124 | AK76: 2 | AL76: =INDIRECT(TEXT(ROWS($1:14),"00")&"!AI3") -> 11 | AM76: =INDIRECT(TEXT(ROWS($1:14),"00")&"!Ah3") -> 0.368 | AO76: =SUM(pronos_journalier!P19) -> 68 | AP76: 2 | AQ76: =INDIRECT(TEXT(ROWS($1:14),"00")&"!AK3") -> 21 | AR76: =INDIRECT(TEXT(ROWS($1:14),"00")&"!AJ3") -> 0.18 | AT76: =SUM(pronos_journalier!R19) -> 32 | AU76: 14 | AV76: =INDIRECT(TEXT(ROWS($1:14),"00")&"!AM3") -> 34 | AW76: =INDIRECT(TEXT(ROWS($1:14),"00")&"!AL3") -> 0.088
A77: 15 | B77: Paris-Turf TIP | C77: =SUM(INDIRECT(TEXT(ROWS($1:15),"00")&"!$AN$3")) -> 108 | D77: 3 | E77: =SUM(INDIRECT(TEXT(ROWS($1:15),"00")&"!$AO$3")) -> 6 | F77: 14 | G77: =SUM(INDIRECT(TEXT(ROWS($1:15),"00")&"!$AP$3")) -> 113 | H77: 3 | I77: =SUM(INDIRECT(TEXT(ROWS($1:15),"00")&"!$AQ$3")) -> 7 | J77: 17 | K77: =SUM(INDIRECT(TEXT(ROWS($1:15),"00")&"!$AR$3")) -> 87 | L77: 2 | M77: =SUM(INDIRECT(TEXT(ROWS($1:15),"00")&"!$AS$3")) -> 12 | N77: 6 | O77: =SUM(INDIRECT(TEXT(ROWS($1:15),"00")&"!$AT$3")) -> 72 | P77: =LOOKUP(9^9,INDIRECT("'"&TEXT(ROW(E15),"00")&"'!$AU$6:$AU1000")) -> 2 | Q77: =SUM(INDIRECT(TEXT(ROWS($1:15),"00")&"!$AU$3")) -> 14 | R77: 16 | S77: =SUM(INDIRECT(TEXT(ROWS($1:15),"00")&"!$AV$3")) -> 77 | T77: 4 | U77: =SUM(INDIRECT(TEXT(ROWS($1:15),"00")&"!$AW$3")) -> 12 | V77: 10 | W77: =SUM(INDIRECT(TEXT(ROWS($1:15),"00")&"!$AX$3")) -> 61 | X77: 6 | Y77: =SUM(INDIRECT(TEXT(ROWS($1:15),"00")&"!$AY$3")) -> 27 | Z77: 15 | AA77: =SUM(INDIRECT(TEXT(ROWS($1:15),"00")&"!$AZ$3")) -> 53 | AB77: 6 | AC77: =SUM(INDIRECT(TEXT(ROWS($1:15),"00")&"!$BA$3")) -> 24 | AD77: 13 | AE77: =SUM(INDIRECT(TEXT(ROWS($1:15),"00")&"!$BB$3")) -> 54 | AF77: 8 | AG77: =SUM(INDIRECT(TEXT(ROWS($1:15),"00")&"!$BC$3")) -> 12 | AH77: 9 | AJ77: =SUM(pronos_journalier!N20) -> 142 | AK77: 3 | AL77: =INDIRECT(TEXT(ROWS($1:15),"00")&"!AI3") -> 10 | AM77: =INDIRECT(TEXT(ROWS($1:15),"00")&"!Ah3") -> 0.424 | AO77: =SUM(pronos_journalier!P20) -> 77 | AP77: 11 | AQ77: =INDIRECT(TEXT(ROWS($1:15),"00")&"!AK3") -> 19 | AR77: =INDIRECT(TEXT(ROWS($1:15),"00")&"!AJ3") -> 0.236 | AT77: =SUM(pronos_journalier!R20) -> 44 | AU77: 11 | AV77: =INDIRECT(TEXT(ROWS($1:15),"00")&"!AM3") -> 19 | AW77: =INDIRECT(TEXT(ROWS($1:15),"00")&"!AL3") -> 0.144
A78: 16 | B78: Paris-Turf.com | C78: =SUM(INDIRECT(TEXT(ROWS($1:16),"00")&"!$AN$3")) -> 206 | D78: 2 | E78: =SUM(INDIRECT(TEXT(ROWS($1:16),"00")&"!$AO$3")) -> 12 | F78: 14 | G78: =SUM(INDIRECT(TEXT(ROWS($1:16),"00")&"!$AP$3")) -> 179 | H78: 4 | I78: =SUM(INDIRECT(TEXT(ROWS($1:16),"00")&"!$AQ$3")) -> 13 | J78: 17 | K78: =SUM(INDIRECT(TEXT(ROWS($1:16),"00")&"!$AR$3")) -> 158 | L78: 1 | M78: =SUM(INDIRECT(TEXT(ROWS($1:16),"00")&"!$AS$3")) -> 16 | N78: 6 | O78: =SUM(INDIRECT(TEXT(ROWS($1:16),"00")&"!$AT$3")) -> 139 | P78: 5 | Q78: =SUM(INDIRECT(TEXT(ROWS($1:16),"00")&"!$AU$3")) -> 15 | R78: 15 | S78: =SUM(INDIRECT(TEXT(ROWS($1:16),"00")&"!$AV$3")) -> 130 | T78: 3 | U78: =SUM(INDIRECT(TEXT(ROWS($1:16),"00")&"!$AW$3")) -> 35 | V78: 7 | W78: =SUM(INDIRECT(TEXT(ROWS($1:16),"00")&"!$AX$3")) -> 102 | X78: 14 | Y78: =SUM(INDIRECT(TEXT(ROWS($1:16),"00")&"!$AY$3")) -> 18 | Z78: 13 | AA78: =SUM(INDIRECT(TEXT(ROWS($1:16),"00")&"!$AZ$3")) -> 85 | AB78: 3 | AC78: =SUM(INDIRECT(TEXT(ROWS($1:16),"00")&"!$BA$3")) -> 38 | AD78: 9 | AE78: =SUM(INDIRECT(TEXT(ROWS($1:16),"00")&"!$BB$3")) -> 106 | AF78: 3 | AG78: =SUM(INDIRECT(TEXT(ROWS($1:16),"00")&"!$BC$3")) -> 19 | AH78: 10 | AJ78: =SUM(pronos_journalier!N21) -> 348 | AK78: 3 | AL78: =INDIRECT(TEXT(ROWS($1:16),"00")&"!AI3") -> 8 | AM78: =INDIRECT(TEXT(ROWS($1:16),"00")&"!Ah3") -> 0.4220779221 | AO78: =SUM(pronos_journalier!P21) -> 213 | AP78: 3 | AQ78: =INDIRECT(TEXT(ROWS($1:16),"00")&"!AK3") -> 15 | AR78: =INDIRECT(TEXT(ROWS($1:16),"00")&"!AJ3") -> 0.2489177489 | AT78: =SUM(pronos_journalier!R21) -> 117 | AU78: 3 | AV78: =INDIRECT(TEXT(ROWS($1:16),"00")&"!AM3") -> 27 | AW78: =INDIRECT(TEXT(ROWS($1:16),"00")&"!AL3") -> 0.1385281385
A79: 17 | B79: PronoSMART | C79: =SUM(INDIRECT(TEXT(ROWS($1:17),"00")&"!$AN$3")) -> 190 | D79: 1 | E79: =SUM(INDIRECT(TEXT(ROWS($1:17),"00")&"!$AO$3")) -> 9 | F79: 17 | G79: =SUM(INDIRECT(TEXT(ROWS($1:17),"00")&"!$AP$3")) -> 154 | H79: 2 | I79: =SUM(INDIRECT(TEXT(ROWS($1:17),"00")&"!$AQ$3")) -> 15 | J79: 13 | K79: =SUM(INDIRECT(TEXT(ROWS($1:17),"00")&"!$AR$3")) -> 149 | L79: 4 | M79: =SUM(INDIRECT(TEXT(ROWS($1:17),"00")&"!$AS$3")) -> 16 | N79: 15 | O79: =SUM(INDIRECT(TEXT(ROWS($1:17),"00")&"!$AT$3")) -> 120 | P79: 4 | Q79: =SUM(INDIRECT(TEXT(ROWS($1:17),"00")&"!$AU$3")) -> 17 | R79: 9 | S79: =SUM(INDIRECT(TEXT(ROWS($1:17),"00")&"!$AV$3")) -> 151 | T79: 3 | U79: =SUM(INDIRECT(TEXT(ROWS($1:17),"00")&"!$AW$3")) -> 16 | V79: 14 | W79: =SUM(INDIRECT(TEXT(ROWS($1:17),"00")&"!$AX$3")) -> 133 | X79: 3 | Y79: =SUM(INDIRECT(TEXT(ROWS($1:17),"00")&"!$AY$3")) -> 17 | Z79: 16 | AA79: =SUM(INDIRECT(TEXT(ROWS($1:17),"00")&"!$AZ$3")) -> 89 | AB79: 10 | AC79: =SUM(INDIRECT(TEXT(ROWS($1:17),"00")&"!$BA$3")) -> 23 | AD79: 18 | AE79: =SUM(INDIRECT(TEXT(ROWS($1:17),"00")&"!$BB$3")) -> 75 | AF79: 10 | AG79: =SUM(INDIRECT(TEXT(ROWS($1:17),"00")&"!$BC$3")) -> 20 | AH79: 7 | AJ79: =SUM(pronos_journalier!N22) -> 336 | AK79: 4 | AL79: =INDIRECT(TEXT(ROWS($1:17),"00")&"!AI3") -> 11 | AM79: =INDIRECT(TEXT(ROWS($1:17),"00")&"!Ah3") -> 0.3896103896 | AO79: =SUM(pronos_journalier!P22) -> 192 | AP79: 4 | AQ79: =INDIRECT(TEXT(ROWS($1:17),"00")&"!AK3") -> 21 | AR79: =INDIRECT(TEXT(ROWS($1:17),"00")&"!AJ3") -> 0.2164502165 | AT79: =SUM(pronos_journalier!R22) -> 110 | AU79: 7 | AV79: =INDIRECT(TEXT(ROWS($1:17),"00")&"!AM3") -> 24 | AW79: =INDIRECT(TEXT(ROWS($1:17),"00")&"!AL3") -> 0.1233766234
A80: 18 | B80: RTL | C80: =SUM(INDIRECT(TEXT(ROWS($1:18),"00")&"!$AN$3")) -> 204 | D80: 4 | E80: =SUM(INDIRECT(TEXT(ROWS($1:18),"00")&"!$AO$3")) -> 16 | F80: 10 | G80: =SUM(INDIRECT(TEXT(ROWS($1:18),"00")&"!$AP$3")) -> 163 | H80: 2 | I80: =SUM(INDIRECT(TEXT(ROWS($1:18),"00")&"!$AQ$3")) -> 12 | J80: 15 | K80: =SUM(INDIRECT(TEXT(ROWS($1:18),"00")&"!$AR$3")) -> 137 | L80: 4 | M80: =SUM(INDIRECT(TEXT(ROWS($1:18),"00")&"!$AS$3")) -> 12 | N80: 17 | O80: =SUM(INDIRECT(TEXT(ROWS($1:18),"00")&"!$AT$3")) -> 130 | P80: 2 | Q80: =SUM(INDIRECT(TEXT(ROWS($1:18),"00")&"!$AU$3")) -> 16 | R80: 16 | S80: =SUM(INDIRECT(TEXT(ROWS($1:18),"00")&"!$AV$3")) -> 110 | T80: 5 | U80: =SUM(INDIRECT(TEXT(ROWS($1:18),"00")&"!$AW$3")) -> 16 | V80: =SUM(X50) -> 14 | W80: =SUM(INDIRECT(TEXT(ROWS($1:18),"00")&"!$AX$3")) -> 114 | X80: 5 | Y80: =SUM(INDIRECT(TEXT(ROWS($1:18),"00")&"!$AY$3")) -> 16 | Z80: 8 | AA80: =SUM(INDIRECT(TEXT(ROWS($1:18),"00")&"!$AZ$3")) -> 94 | AB80: 1 | AC80: =SUM(INDIRECT(TEXT(ROWS($1:18),"00")&"!$BA$3")) -> 23 | AD80: 13 | AE80: =SUM(INDIRECT(TEXT(ROWS($1:18),"00")&"!$BB$3")) -> 86 | AF80: 11 | AG80: =SUM(INDIRECT(TEXT(ROWS($1:18),"00")&"!$BC$3")) -> 30 | AH80: 1 | AJ80: =SUM(pronos_journalier!N23) -> 294 | AK80: 3 | AL80: =INDIRECT(TEXT(ROWS($1:18),"00")&"!AI3") -> 16 | AM80: =INDIRECT(TEXT(ROWS($1:18),"00")&"!Ah3") -> 0.3658008658 | AO80: =SUM(pronos_journalier!P23) -> 188 | AP80: 3 | AQ80: =INDIRECT(TEXT(ROWS($1:18),"00")&"!AK3") -> 17 | AR80: =INDIRECT(TEXT(ROWS($1:18),"00")&"!AJ3") -> 0.2380952381 | AT80: =SUM(pronos_journalier!R23) -> 99 | AU80: 3 | AV80: =INDIRECT(TEXT(ROWS($1:18),"00")&"!AM3") -> 35 | AW80: =INDIRECT(TEXT(ROWS($1:18),"00")&"!AL3") -> 0.1277056277
A81: 19 | B81: Equidia live | C81: =SUM(INDIRECT(TEXT(ROWS($1:19),"00")&"!$AN$3")) -> 118 | D81: 2 | E81: =SUM(INDIRECT(TEXT(ROWS($1:19),"00")&"!$AO$3")) -> 8 | F81: 14 | G81: =SUM(INDIRECT(TEXT(ROWS($1:19),"00")&"!$AP$3")) -> 92 | H81: 6 | I81: =SUM(INDIRECT(TEXT(ROWS($1:19),"00")&"!$AQ$3")) -> 14 | J81: 17 | K81: =SUM(INDIRECT(TEXT(ROWS($1:19),"00")&"!$AR$3")) -> 92 | L81: 6 | M81: =SUM(INDIRECT(TEXT(ROWS($1:19),"00")&"!$AS$3")) -> 13 | N81: 8 | O81: =SUM(INDIRECT(TEXT(ROWS($1:19),"00")&"!$AT$3")) -> 80 | P81: 5 | Q81: =SUM(INDIRECT(TEXT(ROWS($1:19),"00")&"!$AU$3")) -> 13 | R81: 2 | S81: =SUM(INDIRECT(TEXT(ROWS($1:19),"00")&"!$AV$3")) -> 71 | T81: 2 | U81: =SUM(INDIRECT(TEXT(ROWS($1:19),"00")&"!$AW$3")) -> 14 | V81: 13 | W81: =SUM(INDIRECT(TEXT(ROWS($1:19),"00")&"!$AX$3")) -> 77 | X81: 1 | Y81: =SUM(INDIRECT(TEXT(ROWS($1:19),"00")&"!$AY$3")) -> 18 | Z81: 15 | AA81: =SUM(INDIRECT(TEXT(ROWS($1:19),"00")&"!$AZ$3")) -> 60 | AB81: 1 | AC81: =SUM(INDIRECT(TEXT(ROWS($1:19),"00")&"!$BA$3")) -> 29 | AD81: 3 | AE81: =SUM(INDIRECT(TEXT(ROWS($1:19),"00")&"!$BB$3")) -> 50 | AF81: 10 | AG81: =SUM(INDIRECT(TEXT(ROWS($1:19),"00")&"!$BC$3")) -> 24 | AH81: 9 | AJ81: =SUM(pronos_journalier!N24) -> 236 | AK81: 3 | AL81: =INDIRECT(TEXT(ROWS($1:19),"00")&"!AI3") -> 14 | AM81: =INDIRECT(TEXT(ROWS($1:19),"00")&"!Ah3") -> 0.2012987013 | AO81: =SUM(pronos_journalier!P24) -> 185 | AP81: 3 | AQ81: =INDIRECT(TEXT(ROWS($1:19),"00")&"!AK3") -> 27 | AR81: =INDIRECT(TEXT(ROWS($1:19),"00")&"!AJ3") -> 0.1168831169 | AT81: =SUM(pronos_journalier!R24) -> 93 | AU81: 3 | AV81: =INDIRECT(TEXT(ROWS($1:19),"00")&"!AM3") -> 55 | AW81: =INDIRECT(TEXT(ROWS($1:19),"00")&"!AL3") -> 0.06493506494
A82: 20 | B82: Stato Turf | C82: =SUM(INDIRECT(TEXT(ROWS($1:20),"00")&"!$AN$3")) -> 171 | D82: 4 | E82: =SUM(INDIRECT(TEXT(ROWS($1:20),"00")&"!$AO$3")) -> 12 | F82: 7 | G82: =SUM(INDIRECT(TEXT(ROWS($1:20),"00")&"!$AP$3")) -> 179 | H82: 2 | I82: =SUM(INDIRECT(TEXT(ROWS($1:20),"00")&"!$AQ$3")) -> 11 | J82: 11 | K82: =SUM(INDIRECT(TEXT(ROWS($1:20),"00")&"!$AR$3")) -> 160 | L82: 4 | M82: =SUM(INDIRECT(TEXT(ROWS($1:20),"00")&"!$AS$3")) -> 17 | N82: 15 | O82: =SUM(INDIRECT(TEXT(ROWS($1:20),"00")&"!$AT$3")) -> 146 | P82: 3 | Q82: =SUM(INDIRECT(TEXT(ROWS($1:20),"00")&"!$AU$3")) -> 18 | R82: 14 | S82: =SUM(INDIRECT(TEXT(ROWS($1:20),"00")&"!$AV$3")) -> 122 | T82: 2 | U82: =SUM(INDIRECT(TEXT(ROWS($1:20),"00")&"!$AW$3")) -> 21 | V82: 6 | W82: =SUM(INDIRECT(TEXT(ROWS($1:20),"00")&"!$AX$3")) -> 119 | X82: 3 | Y82: =SUM(INDIRECT(TEXT(ROWS($1:20),"00")&"!$AY$3")) -> 25 | Z82: 8 | AA82: =SUM(INDIRECT(TEXT(ROWS($1:20),"00")&"!$AZ$3")) -> 86 | AB82: 1 | AC82: =SUM(INDIRECT(TEXT(ROWS($1:20),"00")&"!$BA$3")) -> 29 | AD82: 9 | AE82: =SUM(INDIRECT(TEXT(ROWS($1:20),"00")&"!$BB$3")) -> 90 | AF82: 12 | AG82: =SUM(INDIRECT(TEXT(ROWS($1:20),"00")&"!$BC$3")) -> 22 | AH82: 11 | AJ82: =SUM(pronos_journalier!N25) -> 338 | AK82: 3 | AL82: =INDIRECT(TEXT(ROWS($1:20),"00")&"!AI3") -> 14 | AM82: =INDIRECT(TEXT(ROWS($1:20),"00")&"!Ah3") -> 0.3939393939 | AO82: =SUM(pronos_journalier!P25) -> 191 | AP82: 3 | AQ82: =INDIRECT(TEXT(ROWS($1:20),"00")&"!AK3") -> 17 | AR82: =INDIRECT(TEXT(ROWS($1:20),"00")&"!AJ3") -> 0.2251082251 | AT82: =SUM(pronos_journalier!R25) -> 107 | AU82: 3 | AV82: =INDIRECT(TEXT(ROWS($1:20),"00")&"!AM3") -> 26 | AW82: =INDIRECT(TEXT(ROWS($1:20),"00")&"!AL3") -> 0.1277056277
B83: Tiercé Magazine | C83: =SUM(INDIRECT(TEXT(ROWS($1:21),"00")&"!$AN$3")) -> 198 | D83: 2 | E83: =SUM(INDIRECT(TEXT(ROWS($1:21),"00")&"!$AO$3")) -> 13 | F83: 14 | G83: =SUM(INDIRECT(TEXT(ROWS($1:21),"00")&"!$AP$3")) -> 158 | H83: 2 | I83: =SUM(INDIRECT(TEXT(ROWS($1:21),"00")&"!$AQ$3")) -> 14 | J83: 15 | K83: =SUM(INDIRECT(TEXT(ROWS($1:21),"00")&"!$AR$3")) -> 171 | L83: 3 | M83: =SUM(INDIRECT(TEXT(ROWS($1:21),"00")&"!$AS$3")) -> 12 | N83: 17 | O83: =SUM(INDIRECT(TEXT(ROWS($1:21),"00")&"!$AT$3")) -> 137 | P83: 3 | Q83: =SUM(INDIRECT(TEXT(ROWS($1:21),"00")&"!$AU$3")) -> 17 | R83: 13 | S83: =SUM(INDIRECT(TEXT(ROWS($1:21),"00")&"!$AV$3")) -> 116 | T83: 12 | U83: =SUM(INDIRECT(TEXT(ROWS($1:21),"00")&"!$AW$3")) -> 16 | V83: 16 | W83: =SUM(INDIRECT(TEXT(ROWS($1:21),"00")&"!$AX$3")) -> 108 | X83: 1 | Y83: =SUM(INDIRECT(TEXT(ROWS($1:21),"00")&"!$AY$3")) -> 18 | Z83: 10 | AA83: =SUM(INDIRECT(TEXT(ROWS($1:21),"00")&"!$AZ$3")) -> 113 | AB83: 1 | AC83: =SUM(INDIRECT(TEXT(ROWS($1:21),"00")&"!$BA$3")) -> 18 | AD83: 8 | AE83: =SUM(INDIRECT(TEXT(ROWS($1:21),"00")&"!$BB$3")) -> 93 | AF83: 7 | AG83: =SUM(INDIRECT(TEXT(ROWS($1:21),"00")&"!$BC$3")) -> 26 | AH83: 9 | AJ83: =SUM(pronos_journalier!N26) -> 354 | AK83: 3 | AL83: =INDIRECT(TEXT(ROWS($1:21),"00")&"!AI3") -> 11 | AM83: =INDIRECT(TEXT(ROWS($1:21),"00")&"!Ah3") -> 0.4264069264 | AO83: =SUM(pronos_journalier!P26) -> 207 | AP83: 3 | AQ83: =INDIRECT(TEXT(ROWS($1:21),"00")&"!AK3") -> 14 | AR83: =INDIRECT(TEXT(ROWS($1:21),"00")&"!AJ3") -> 0.2445887446 | AT83: =SUM(pronos_journalier!R26) -> 111 | AU83: 3 | AV83: =INDIRECT(TEXT(ROWS($1:21),"00")&"!AM3") -> 25 | AW83: =INDIRECT(TEXT(ROWS($1:21),"00")&"!AL3") -> 0.1298701299
A84: 22 | B84: Tiercé-Magazine.com | C84: =SUM(INDIRECT(TEXT(ROWS($1:22),"00")&"!$AN$3")) -> 208 | D84: 2 | E84: =SUM(INDIRECT(TEXT(ROWS($1:22),"00")&"!$AO$3")) -> 8 | F84: 14 | G84: =SUM(INDIRECT(TEXT(ROWS($1:22),"00")&"!$AP$3")) -> 172 | H84: 4 | I84: =SUM(INDIRECT(TEXT(ROWS($1:22),"00")&"!$AQ$3")) -> 17 | J84: 17 | K84: =SUM(INDIRECT(TEXT(ROWS($1:22),"00")&"!$AR$3")) -> 149 | L84: 5 | M84: =SUM(INDIRECT(TEXT(ROWS($1:22),"00")&"!$AS$3")) -> 11 | N84: 6 | O84: =SUM(INDIRECT(TEXT(ROWS($1:22),"00")&"!$AT$3")) -> 130 | P84: 3 | Q84: =SUM(INDIRECT(TEXT(ROWS($1:22),"00")&"!$AU$3")) -> 22 | R84: 7 | S84: =SUM(INDIRECT(TEXT(ROWS($1:22),"00")&"!$AV$3")) -> 148 | T84: 2 | U84: =SUM(INDIRECT(TEXT(ROWS($1:22),"00")&"!$AW$3")) -> 13 | V84: 10 | W84: =SUM(INDIRECT(TEXT(ROWS($1:22),"00")&"!$AX$3")) -> 110 | X84: 3 | Y84: =SUM(INDIRECT(TEXT(ROWS($1:22),"00")&"!$AY$3")) -> 20 | Z84: 9 | AA84: =SUM(INDIRECT(TEXT(ROWS($1:22),"00")&"!$AZ$3")) -> 97 | AB84: 1 | AC84: =SUM(INDIRECT(TEXT(ROWS($1:22),"00")&"!$BA$3")) -> 18 | AD84: 8 | AE84: =SUM(INDIRECT(TEXT(ROWS($1:22),"00")&"!$BB$3")) -> 83 | AF84: 7 | AG84: =SUM(INDIRECT(TEXT(ROWS($1:22),"00")&"!$BC$3")) -> 40 | AH84: 13 | AJ84: =SUM(pronos_journalier!N27) -> 348 | AK84: 3 | AL84: =INDIRECT(TEXT(ROWS($1:22),"00")&"!AI3") -> 7 | AM84: =INDIRECT(TEXT(ROWS($1:22),"00")&"!Ah3") -> 0.4177489177 | AO84: =SUM(pronos_journalier!P27) -> 212 | AP84: 3 | AQ84: =INDIRECT(TEXT(ROWS($1:22),"00")&"!AK3") -> 14 | AR84: =INDIRECT(TEXT(ROWS($1:22),"00")&"!AJ3") -> 0.2445887446 | AT84: =SUM(pronos_journalier!R27) -> 114 | AU84: 3 | AV84: =INDIRECT(TEXT(ROWS($1:22),"00")&"!AM3") -> 29 | AW84: =INDIRECT(TEXT(ROWS($1:22),"00")&"!AL3") -> 0.1298701299
A85: 23 | B85: Tropiques FM | C85: =SUM(INDIRECT(TEXT(ROWS($1:23),"00")&"!$AN$3")) -> 181 | D85: 1 | E85: =SUM(INDIRECT(TEXT(ROWS($1:23),"00")&"!$AO$3")) -> 7 | F85: 17 | G85: =SUM(INDIRECT(TEXT(ROWS($1:23),"00")&"!$AP$3")) -> 180 | H85: 2 | I85: =SUM(INDIRECT(TEXT(ROWS($1:23),"00")&"!$AQ$3")) -> 15 | J85: 10 | K85: =SUM(INDIRECT(TEXT(ROWS($1:23),"00")&"!$AR$3")) -> 148 | L85: 2 | M85: =SUM(INDIRECT(TEXT(ROWS($1:23),"00")&"!$AS$3")) -> 13 | N85: 7 | O85: =SUM(INDIRECT(TEXT(ROWS($1:23),"00")&"!$AT$3")) -> 130 | P85: 6 | Q85: =SUM(INDIRECT(TEXT(ROWS($1:23),"00")&"!$AU$3")) -> 15 | R85: 6 | S85: =SUM(INDIRECT(TEXT(ROWS($1:23),"00")&"!$AV$3")) -> 126 | T85: 5 | U85: =SUM(INDIRECT(TEXT(ROWS($1:23),"00")&"!$AW$3")) -> 14 | V85: 8 | W85: =SUM(INDIRECT(TEXT(ROWS($1:23),"00")&"!$AX$3")) -> 119 | X85: 3 | Y85: =SUM(INDIRECT(TEXT(ROWS($1:23),"00")&"!$AY$3")) -> 14 | Z85: 14 | AA85: =SUM(INDIRECT(TEXT(ROWS($1:23),"00")&"!$AZ$3")) -> 87 | AB85: 8 | AC85: =SUM(INDIRECT(TEXT(ROWS($1:23),"00")&"!$BA$3")) -> 28 | AD85: 13 | AE85: =SUM(INDIRECT(TEXT(ROWS($1:23),"00")&"!$BB$3")) -> 100 | AF85: 1 | AG85: =SUM(INDIRECT(TEXT(ROWS($1:23),"00")&"!$BC$3")) -> 13 | AH85: 15 | AJ85: =SUM(pronos_journalier!N28) -> 325 | AK85: 3 | AL85: =INDIRECT(TEXT(ROWS($1:23),"00")&"!AI3") -> 10 | AM85: =INDIRECT(TEXT(ROWS($1:23),"00")&"!Ah3") -> 0.3831168831 | AO85: =SUM(pronos_journalier!P28) -> 174 | AP85: 3 | AQ85: =INDIRECT(TEXT(ROWS($1:23),"00")&"!AK3") -> 30 | AR85: =INDIRECT(TEXT(ROWS($1:23),"00")&"!AJ3") -> 0.2012987013 | AT85: =SUM(pronos_journalier!R28) -> 88 | AU85: 3 | AV85: =INDIRECT(TEXT(ROWS($1:23),"00")&"!AM3") -> 36 | AW85: =INDIRECT(TEXT(ROWS($1:23),"00")&"!AL3") -> 0.09523809524
A86: 24 | B86: Week-End | C86: =SUM(INDIRECT(TEXT(ROWS($1:24),"00")&"!$AN$3")) -> 204 | D86: 4 | E86: =SUM(INDIRECT(TEXT(ROWS($1:24),"00")&"!$AO$3")) -> 9 | F86: 14 | G86: =SUM(INDIRECT(TEXT(ROWS($1:24),"00")&"!$AP$3")) -> 155 | H86: 2 | I86: =SUM(INDIRECT(TEXT(ROWS($1:24),"00")&"!$AQ$3")) -> 16 | J86: 15 | K86: =SUM(INDIRECT(TEXT(ROWS($1:24),"00")&"!$AR$3")) -> 165 | L86: 1 | M86: =SUM(INDIRECT(TEXT(ROWS($1:24),"00")&"!$AS$3")) -> 12 | N86: 8 | O86: =SUM(INDIRECT(TEXT(ROWS($1:24),"00")&"!$AT$3")) -> 127 | P86: 9 | Q86: =SUM(INDIRECT(TEXT(ROWS($1:24),"00")&"!$AU$3")) -> 28 | R86: 6 | S86: =SUM(INDIRECT(TEXT(ROWS($1:24),"00")&"!$AV$3")) -> 112 | T86: 5 | U86: =SUM(INDIRECT(TEXT(ROWS($1:24),"00")&"!$AW$3")) -> 21 | V86: 17 | W86: =SUM(INDIRECT(TEXT(ROWS($1:24),"00")&"!$AX$3")) -> 121 | X86: 6 | Y86: =SUM(INDIRECT(TEXT(ROWS($1:24),"00")&"!$AY$3")) -> 18 | Z86: 9 | AA86: =SUM(INDIRECT(TEXT(ROWS($1:24),"00")&"!$AZ$3")) -> 110 | AB86: 3 | AC86: =SUM(INDIRECT(TEXT(ROWS($1:24),"00")&"!$BA$3")) -> 21 | AD86: 7 | AE86: =SUM(INDIRECT(TEXT(ROWS($1:24),"00")&"!$BB$3")) -> 68 | AF86: 9 | AG86: =SUM(INDIRECT(TEXT(ROWS($1:24),"00")&"!$BC$3")) -> 27 | AH86: 18 | AJ86: =SUM(pronos_journalier!N29) -> 338 | AK86: 3 | AL86: =INDIRECT(TEXT(ROWS($1:24),"00")&"!AI3") -> 10 | AM86: =INDIRECT(TEXT(ROWS($1:24),"00")&"!Ah3") -> 0.3896103896 | AO86: =SUM(pronos_journalier!P29) -> 199 | AP86: 3 | AQ86: =INDIRECT(TEXT(ROWS($1:24),"00")&"!AK3") -> 12 | AR86: =INDIRECT(TEXT(ROWS($1:24),"00")&"!AJ3") -> 0.2229437229 | AT86: =SUM(pronos_journalier!R29) -> 107 | AU86: 3 | AV86: =INDIRECT(TEXT(ROWS($1:24),"00")&"!AM3") -> 27 | AW86: =INDIRECT(TEXT(ROWS($1:24),"00")&"!AL3") -> 0.1212121212
A87: 25 | B87: Week-End-Turf.com | C87: =SUM(INDIRECT(TEXT(ROWS($1:25),"00")&"!$AN$3")) -> 174 | D87: 1 | E87: =SUM(INDIRECT(TEXT(ROWS($1:25),"00")&"!$AO$3")) -> 10 | F87: 17 | G87: =SUM(INDIRECT(TEXT(ROWS($1:25),"00")&"!$AP$3")) -> 181 | H87: 4 | I87: =SUM(INDIRECT(TEXT(ROWS($1:25),"00")&"!$AQ$3")) -> 12 | J87: 15 | K87: =SUM(INDIRECT(TEXT(ROWS($1:25),"00")&"!$AR$3")) -> 145 | L87: 4 | M87: =SUM(INDIRECT(TEXT(ROWS($1:25),"00")&"!$AS$3")) -> 14 | N87: 16 | O87: =SUM(INDIRECT(TEXT(ROWS($1:25),"00")&"!$AT$3")) -> 127 | P87: 2 | Q87: =SUM(INDIRECT(TEXT(ROWS($1:25),"00")&"!$AU$3")) -> 17 | R87: 14 | S87: =SUM(INDIRECT(TEXT(ROWS($1:25),"00")&"!$AV$3")) -> 127 | T87: 1 | U87: =SUM(INDIRECT(TEXT(ROWS($1:25),"00")&"!$AW$3")) -> 14 | V87: 10 | W87: =SUM(INDIRECT(TEXT(ROWS($1:25),"00")&"!$AX$3")) -> 96 | X87: 23 | Y87: =SUM(INDIRECT(TEXT(ROWS($1:25),"00")&"!$AY$3")) -> 20 | Z87: 3 | AA87: =SUM(INDIRECT(TEXT(ROWS($1:25),"00")&"!$AZ$3")) -> 103 | AB87: 9 | AC87: =SUM(INDIRECT(TEXT(ROWS($1:25),"00")&"!$BA$3")) -> 21 | AD87: 7 | AE87: =SUM(INDIRECT(TEXT(ROWS($1:25),"00")&"!$BB$3")) -> 98 | AF87: 20 | AG87: =SUM(INDIRECT(TEXT(ROWS($1:25),"00")&"!$BC$3")) -> 18 | AH87: 6 | AJ87: =SUM(pronos_journalier!N30) -> 303 | AK87: 4 | AL87: =INDIRECT(TEXT(ROWS($1:25),"00")&"!AI3") -> 10 | AM87: =INDIRECT(TEXT(ROWS($1:25),"00")&"!Ah3") -> 0.367965368 | AO87: =SUM(pronos_journalier!P30) -> 179 | AP87: 14 | AQ87: =INDIRECT(TEXT(ROWS($1:25),"00")&"!AK3") -> 24 | AR87: =INDIRECT(TEXT(ROWS($1:25),"00")&"!AJ3") -> 0.2207792208 | AT87: =SUM(pronos_journalier!R30) -> 90 | AU87: 14 | AV87: =INDIRECT(TEXT(ROWS($1:25),"00")&"!AM3") -> 43 | AW87: =INDIRECT(TEXT(ROWS($1:25),"00")&"!AL3") -> 0.1017316017

Sheet pronos
AD1: 2016-10-01
A2: 2016-10-27 | K2: 1 | L2: 2 | M2: 3 | N2: 4 | O2: 5 | P2: 6 | Q2: 7 | R2: 8 | U2: 1 | V2: 2 | W2: 3 | X2: 4 | Y2: 5 | Z2: 6 | AA2: 7 | AB2: 8 | AD2: 2016-10-02
A3: AIP | B3: 14 | C3: 15 | D3: 17 | E3: 9 | F3: 10 | G3: 13 | H3: 7 | I3: 18 | K3: =IF(VLOOKUP($A$2,INDIRECT("'"&$S3&"'!C6:BC5000"),37+2*K$2,FALSE)=MAX(OFFSET(INDIRECT("'"&$S3&"'!AM6:AM"&MATCH($A$2,INDIRECT("'"&$S3&"'!C1:C5000"),0)),0,2*K$2)),pronos!B4,"") ->  | L3: =IF(VLOOKUP($A$2,INDIRECT("'"&$S3&"'!C6:BC5000"),37+2*L$2,FALSE)=MAX(OFFSET(INDIRECT("'"&$S3&"'!AM6:AM"&MATCH($A$2,INDIRECT("'"&$S3&"'!C1:C5000"),0)),0,2*L$2)),pronos!C4,"") ->  | M3: =IF(VLOOKUP($A$2,INDIRECT("'"&$S3&"'!C6:BC5000"),37+2*M$2,FALSE)=MAX(OFFSET(INDIRECT("'"&$S3&"'!AM6:AM"&MATCH($A$2,INDIRECT("'"&$S3&"'!C1:C5000"),0)),0,2*M$2)),pronos!D4,"") ->  | N3: =IF(VLOOKUP($A$2,INDIRECT("'"&$S3&"'!C6:BC5000"),37+2*N$2,FALSE)=MAX(OFFSET(INDIRECT("'"&$S3&"'!AM6:AM"&MATCH($A$2,INDIRECT("'"&$S3&"'!C1:C5000"),0)),0,2*N$2)),pronos!E4,"") ->  | O3: =IF(VLOOKUP($A$2,INDIRECT("'"&$S3&"'!C6:BC5000"),37+2*O$2,FALSE)=MAX(OFFSET(INDIRECT("'"&$S3&"'!AM6:AM"&MATCH($A$2,INDIRECT("'"&$S3&"'!C1:C5000"),0)),0,2*O$2)),pronos!F4,"") ->  | P3: =IF(VLOOKUP($A$2,INDIRECT("'"&$S3&"'!C6:BC5000"),37+2*P$2,FALSE)=MAX(OFFSET(INDIRECT("'"&$S3&"'!AM6:AM"&MATCH($A$2,INDIRECT("'"&$S3&"'!C1:C5000"),0)),0,2*P$2)),pronos!G4,"") ->  | Q3: =IF(VLOOKUP($A$2,INDIRECT("'"&$S3&"'!C6:BC5000"),37+2*Q$2,FALSE)=MAX(OFFSET(INDIRECT("'"&$S3&"'!AM6:AM"&MATCH($A$2,INDIRECT("'"&$S3&"'!C1:C5000"),0)),0,2*Q$2)),pronos!H4,"") ->  | R3: =IF(VLOOKUP($A$2,INDIRECT("'"&$S3&"'!C6:BC5000"),37+2*R$2,FALSE)=MAX(OFFSET(INDIRECT("'"&$S3&"'!AM6:AM"&MATCH($A$2,INDIRECT("'"&$S3&"'!C1:C5000"),0)),0,2*R$2)),pronos!I4,"") ->  | S3: 01 | U3: =pronos_journalier!U6 -> 2 | V3: =pronos_journalier!V6 -> 3 | W3: =pronos_journalier!W6 -> 8 | X3: =pronos_journalier!X6 -> 4 | Y3: =pronos_journalier!Y6 -> 1 | Z3: =pronos_journalier!Z6 -> 9 | AA3: =pronos_journalier!AA6 -> 3 | AB3: =pronos_journalier!AB6 -> 1 | AD3: 2016-10-03
A4: Bilto | B4: 15 | C4: 17 | D4: 14 | E4: 10 | F4: 13 | G4: 16 | H4: 6 | I4: 2 | K4: =IF(VLOOKUP($A$2,INDIRECT("'"&$S4&"'!C6:BC5000"),37+2*K$2,FALSE)=MAX(OFFSET(INDIRECT("'"&$S4&"'!AM6:AM"&MATCH($A$2,INDIRECT("'"&$S4&"'!C1:C5000"),0)),0,2*K$2)),pronos!B5,"") ->  | L4: =IF(VLOOKUP($A$2,INDIRECT("'"&$S4&"'!C6:BC5000"),37+2*L$2,FALSE)=MAX(OFFSET(INDIRECT("'"&$S4&"'!AM6:AM"&MATCH($A$2,INDIRECT("'"&$S4&"'!C1:C5000"),0)),0,2*L$2)),pronos!C5,"") ->  | M4: =IF(VLOOKUP($A$2,INDIRECT("'"&$S4&"'!C6:BC5000"),37+2*M$2,FALSE)=MAX(OFFSET(INDIRECT("'"&$S4&"'!AM6:AM"&MATCH($A$2,INDIRECT("'"&$S4&"'!C1:C5000"),0)),0,2*M$2)),pronos!D5,"") ->  | N4: =IF(VLOOKUP($A$2,INDIRECT("'"&$S4&"'!C6:BC5000"),37+2*N$2,FALSE)=MAX(OFFSET(INDIRECT("'"&$S4&"'!AM6:AM"&MATCH($A$2,INDIRECT("'"&$S4&"'!C1:C5000"),0)),0,2*N$2)),pronos!E5,"") ->  | O4: =IF(VLOOKUP($A$2,INDIRECT("'"&$S4&"'!C6:BC5000"),37+2*O$2,FALSE)=MAX(OFFSET(INDIRECT("'"&$S4&"'!AM6:AM"&MATCH($A$2,INDIRECT("'"&$S4&"'!C1:C5000"),0)),0,2*O$2)),pronos!F5,"") ->  | P4: =IF(VLOOKUP($A$2,INDIRECT("'"&$S4&"'!C6:BC5000"),37+2*P$2,FALSE)=MAX(OFFSET(INDIRECT("'"&$S4&"'!AM6:AM"&MATCH($A$2,INDIRECT("'"&$S4&"'!C1:C5000"),0)),0,2*P$2)),pronos!G5,"") ->  | Q4: =IF(VLOOKUP($A$2,INDIRECT("'"&$S4&"'!C6:BC5000"),37+2*Q$2,FALSE)=MAX(OFFSET(INDIRECT("'"&$S4&"'!AM6:AM"&MATCH($A$2,INDIRECT("'"&$S4&"'!C1:C5000"),0)),0,2*Q$2)),pronos!H5,"") ->  | R4: =IF(VLOOKUP($A$2,INDIRECT("'"&$S4&"'!C6:BC5000"),37+2*R$2,FALSE)=MAX(OFFSET(INDIRECT("'"&$S4&"'!AM6:AM"&MATCH($A$2,INDIRECT("'"&$S4&"'!C1:C5000"),0)),0,2*R$2)),pronos!I5,"") ->  | S4: 02 | U4: =pronos_journalier!U7 -> 2 | V4: =pronos_journalier!V7 -> 2 | W4: =pronos_journalier!W7 -> 3 | X4: =pronos_journalier!X7 -> 3 | Y4: =pronos_journalier!Y7 -> 1 | Z4: =pronos_journalier!Z7 -> 3 | AA4: =pronos_journalier!AA7 -> 17 | AB4: =pronos_journalier!AB7 -> 1 | AD4: 2016-10-04
A5: Bilto.fr | B5: 14 | C5: 17 | D5: 15 | E5: 16 | F5: 6 | G5: 18 | H5: 13 | I5: 9 | K5: =IF(VLOOKUP($A$2,INDIRECT("'"&$S5&"'!C6:BC5000"),37+2*K$2,FALSE)=MAX(OFFSET(INDIRECT("'"&$S5&"'!AM6:AM"&MATCH($A$2,INDIRECT("'"&$S5&"'!C1:C5000"),0)),0,2*K$2)),pronos!B6,"") ->  | L5: =IF(VLOOKUP($A$2,INDIRECT("'"&$S5&"'!C6:BC5000"),37+2*L$2,FALSE)=MAX(OFFSET(INDIRECT("'"&$S5&"'!AM6:AM"&MATCH($A$2,INDIRECT("'"&$S5&"'!C1:C5000"),0)),0,2*L$2)),pronos!C6,"") -> 17 | M5: =IF(VLOOKUP($A$2,INDIRECT("'"&$S5&"'!C6:BC5000"),37+2*M$2,FALSE)=MAX(OFFSET(INDIRECT("'"&$S5&"'!AM6:AM"&MATCH($A$2,INDIRECT("'"&$S5&"'!C1:C5000"),0)),0,2*M$2)),pronos!D6,"") ->  | N5: =IF(VLOOKUP($A$2,INDIRECT("'"&$S5&"'!C6:BC5000"),37+2*N$2,FALSE)=MAX(OFFSET(INDIRECT("'"&$S5&"'!AM6:AM"&MATCH($A$2,INDIRECT("'"&$S5&"'!C1:C5000"),0)),0,2*N$2)),pronos!E6,"") ->  | O5: =IF(VLOOKUP($A$2,INDIRECT("'"&$S5&"'!C6:BC5000"),37+2*O$2,FALSE)=MAX(OFFSET(INDIRECT("'"&$S5&"'!AM6:AM"&MATCH($A$2,INDIRECT("'"&$S5&"'!C1:C5000"),0)),0,2*O$2)),pronos!F6,"") ->  | P5: =IF(VLOOKUP($A$2,INDIRECT("'"&$S5&"'!C6:BC5000"),37+2*P$2,FALSE)=MAX(OFFSET(INDIRECT("'"&$S5&"'!AM6:AM"&MATCH($A$2,INDIRECT("'"&$S5&"'!C1:C5000"),0)),0,2*P$2)),pronos!G6,"") ->  | Q5: =IF(VLOOKUP($A$2,INDIRECT("'"&$S5&"'!C6:BC5000"),37+2*Q$2,FALSE)=MAX(OFFSET(INDIRECT("'"&$S5&"'!AM6:AM"&MATCH($A$2,INDIRECT("'"&$S5&"'!C1:C5000"),0)),0,2*Q$2)),pronos!H6,"") ->  | R5: =IF(VLOOKUP($A$2,INDIRECT("'"&$S5&"'!C6:BC5000"),37+2*R$2,FALSE)=MAX(OFFSET(INDIRECT("'"&$S5&"'!AM6:AM"&MATCH($A$2,INDIRECT("'"&$S5&"'!C1:C5000"),0)),0,2*R$2)),pronos!I6,"") ->  | S5: 03 | U5: =pronos_journalier!U8 -> 2 | V5: =pronos_journalier!V8 -> 2 | W5: =pronos_journalier!W8 -> 3 | X5: =pronos_journalier!X8 -> 4 | Y5: =pronos_journalier!Y8 -> 5 | Z5: =pronos_journalier!Z8 -> 3 | AA5: =pronos_journalier!AA8 -> 4 | AB5: =pronos_journalier!AB8 -> 1 | AD5: 2016-10-05
A6: Europe I | B6: 2 | C6: 17 | D6: 14 | E6: 1 | F6: 6 | G6: 8 | H6: 10 | I6: 16 | K6: =IF(VLOOKUP($A$2,INDIRECT("'"&$S6&"'!C6:BC5000"),37+2*K$2,FALSE)=MAX(OFFSET(INDIRECT("'"&$S6&"'!AM6:AM"&MATCH($A$2,INDIRECT("'"&$S6&"'!C1:C5000"),0)),0,2*K$2)),pronos!B7,"") ->  | L6: =IF(VLOOKUP($A$2,INDIRECT("'"&$S6&"'!C6:BC5000"),37+2*L$2,FALSE)=MAX(OFFSET(INDIRECT("'"&$S6&"'!AM6:AM"&MATCH($A$2,INDIRECT("'"&$S6&"'!C1:C5000"),0)),0,2*L$2)),pronos!C7,"") ->  | M6: =IF(VLOOKUP($A$2,INDIRECT("'"&$S6&"'!C6:BC5000"),37+2*M$2,FALSE)=MAX(OFFSET(INDIRECT("'"&$S6&"'!AM6:AM"&MATCH($A$2,INDIRECT("'"&$S6&"'!C1:C5000"),0)),0,2*M$2)),pronos!D7,"") ->  | N6: =IF(VLOOKUP($A$2,INDIRECT("'"&$S6&"'!C6:BC5000"),37+2*N$2,FALSE)=MAX(OFFSET(INDIRECT("'"&$S6&"'!AM6:AM"&MATCH($A$2,INDIRECT("'"&$S6&"'!C1:C5000"),0)),0,2*N$2)),pronos!E7,"") ->  | O6: =IF(VLOOKUP($A$2,INDIRECT("'"&$S6&"'!C6:BC5000"),37+2*O$2,FALSE)=MAX(OFFSET(INDIRECT("'"&$S6&"'!AM6:AM"&MATCH($A$2,INDIRECT("'"&$S6&"'!C1:C5000"),0)),0,2*O$2)),pronos!F7,"") ->  | P6: =IF(VLOOKUP($A$2,INDIRECT("'"&$S6&"'!C6:BC5000"),37+2*P$2,FALSE)=MAX(OFFSET(INDIRECT("'"&$S6&"'!AM6:AM"&MATCH($A$2,INDIRECT("'"&$S6&"'!C1:C5000"),0)),0,2*P$2)),pronos!G7,"") ->  | Q6: =IF(VLOOKUP($A$2,INDIRECT("'"&$S6&"'!C6:BC5000"),37+2*Q$2,FALSE)=MAX(OFFSET(INDIRECT("'"&$S6&"'!AM6:AM"&MATCH($A$2,INDIRECT("'"&$S6&"'!C1:C5000"),0)),0,2*Q$2)),pronos!H7,"") ->  | R6: =IF(VLOOKUP($A$2,INDIRECT("'"&$S6&"'!C6:BC5000"),37+2*R$2,FALSE)=MAX(OFFSET(INDIRECT("'"&$S6&"'!AM6:AM"&MATCH($A$2,INDIRECT("'"&$S6&"'!C1:C5000"),0)),0,2*R$2)),pronos!I7,"") ->  | S6: 04 | U6: =pronos_journalier!U9 -> 2 | V6: =pronos_journalier!V9 -> 4 | W6: =pronos_journalier!W9 -> 1 | X6: =pronos_journalier!X9 -> 3 | Y6: =pronos_journalier!Y9 -> 10 | Z6: =pronos_journalier!Z9 -> 14 | AA6: =pronos_journalier!AA9 -> 9 | AB6: =pronos_journalier!AB9 -> 2 | AD6: 2016-10-06
A7: La Gazette des Courses | B7: 15 | C7: 7 | D7: 13 | E7: 16 | F7: 11 | G7: 17 | H7: 6 | I7: 2 | K7: =IF(VLOOKUP($A$2,INDIRECT("'"&$S7&"'!C6:BC5000"),37+2*K$2,FALSE)=MAX(OFFSET(INDIRECT("'"&$S7&"'!AM6:AM"&MATCH($A$2,INDIRECT("'"&$S7&"'!C1:C5000"),0)),0,2*K$2)),pronos!B8,"") ->  | L7: =IF(VLOOKUP($A$2,INDIRECT("'"&$S7&"'!C6:BC5000"),37+2*L$2,FALSE)=MAX(OFFSET(INDIRECT("'"&$S7&"'!AM6:AM"&MATCH($A$2,INDIRECT("'"&$S7&"'!C1:C5000"),0)),0,2*L$2)),pronos!C8,"") ->  | M7: =IF(VLOOKUP($A$2,INDIRECT("'"&$S7&"'!C6:BC5000"),37+2*M$2,FALSE)=MAX(OFFSET(INDIRECT("'"&$S7&"'!AM6:AM"&MATCH($A$2,INDIRECT("'"&$S7&"'!C1:C5000"),0)),0,2*M$2)),pronos!D8,"") ->  | N7: =IF(VLOOKUP($A$2,INDIRECT("'"&$S7&"'!C6:BC5000"),37+2*N$2,FALSE)=MAX(OFFSET(INDIRECT("'"&$S7&"'!AM6:AM"&MATCH($A$2,INDIRECT("'"&$S7&"'!C1:C5000"),0)),0,2*N$2)),pronos!E8,"") ->  | O7: =IF(VLOOKUP($A$2,INDIRECT("'"&$S7&"'!C6:BC5000"),37+2*O$2,FALSE)=MAX(OFFSET(INDIRECT("'"&$S7&"'!AM6:AM"&MATCH($A$2,INDIRECT("'"&$S7&"'!C1:C5000"),0)),0,2*O$2)),pronos!F8,"") ->  | P7: =IF(VLOOKUP($A$2,INDIRECT("'"&$S7&"'!C6:BC5000"),37+2*P$2,FALSE)=MAX(OFFSET(INDIRECT("'"&$S7&"'!AM6:AM"&MATCH($A$2,INDIRECT("'"&$S7&"'!C1:C5000"),0)),0,2*P$2)),pronos!G8,"") ->  | Q7: =IF(VLOOKUP($A$2,INDIRECT("'"&$S7&"'!C6:BC5000"),37+2*Q$2,FALSE)=MAX(OFFSET(INDIRECT("'"&$S7&"'!AM6:AM"&MATCH($A$2,INDIRECT("'"&$S7&"'!C1:C5000"),0)),0,2*Q$2)),pronos!H8,"") ->  | R7: =IF(VLOOKUP($A$2,INDIRECT("'"&$S7&"'!C6:BC5000"),37+2*R$2,FALSE)=MAX(OFFSET(INDIRECT("'"&$S7&"'!AM6:AM"&MATCH($A$2,INDIRECT("'"&$S7&"'!C1:C5000"),0)),0,2*R$2)),pronos!I8,"") ->  | S7: 05 | U7: =pronos_journalier!U10 -> 2 | V7: =pronos_journalier!V10 -> 1 | W7: =pronos_journalier!W10 -> 2 | X7: =pronos_journalier!X10 -> 4 | Y7: =pronos_journalier!Y10 -> 8 | Z7: =pronos_journalier!Z10 -> 1 | AA7: =pronos_journalier!AA10 -> 1 | AB7: =pronos_journalier!AB10 -> 6 | AD7: 2016-10-07
A8: Le Dauphiné Libéré | B8: 14 | C8: 17 | D8: 6 | E8: 7 | F8: 10 | G8: 9 | H8: 8 | I8: 13 | K8: =IF(VLOOKUP($A$2,INDIRECT("'"&$S8&"'!C6:BC5000"),37+2*K$2,FALSE)=MAX(OFFSET(INDIRECT("'"&$S8&"'!AM6:AM"&MATCH($A$2,INDIRECT("'"&$S8&"'!C1:C5000"),0)),0,2*K$2)),pronos!B9,"") ->  | L8: =IF(VLOOKUP($A$2,INDIRECT("'"&$S8&"'!C6:BC5000"),37+2*L$2,FALSE)=MAX(OFFSET(INDIRECT("'"&$S8&"'!AM6:AM"&MATCH($A$2,INDIRECT("'"&$S8&"'!C1:C5000"),0)),0,2*L$2)),pronos!C9,"") ->  | M8: =IF(VLOOKUP($A$2,INDIRECT("'"&$S8&"'!C6:BC5000"),37+2*M$2,FALSE)=MAX(OFFSET(INDIRECT("'"&$S8&"'!AM6:AM"&MATCH($A$2,INDIRECT("'"&$S8&"'!C1:C5000"),0)),0,2*M$2)),pronos!D9,"") ->  | N8: =IF(VLOOKUP($A$2,INDIRECT("'"&$S8&"'!C6:BC5000"),37+2*N$2,FALSE)=MAX(OFFSET(INDIRECT("'"&$S8&"'!AM6:AM"&MATCH($A$2,INDIRECT("'"&$S8&"'!C1:C5000"),0)),0,2*N$2)),pronos!E9,"") ->  | O8: =IF(VLOOKUP($A$2,INDIRECT("'"&$S8&"'!C6:BC5000"),37+2*O$2,FALSE)=MAX(OFFSET(INDIRECT("'"&$S8&"'!AM6:AM"&MATCH($A$2,INDIRECT("'"&$S8&"'!C1:C5000"),0)),0,2*O$2)),pronos!F9,"") ->  | P8: =IF(VLOOKUP($A$2,INDIRECT("'"&$S8&"'!C6:BC5000"),37+2*P$2,FALSE)=MAX(OFFSET(INDIRECT("'"&$S8&"'!AM6:AM"&MATCH($A$2,INDIRECT("'"&$S8&"'!C1:C5000"),0)),0,2*P$2)),pronos!G9,"") ->  | Q8: =IF(VLOOKUP($A$2,INDIRECT("'"&$S8&"'!C6:BC5000"),37+2*Q$2,FALSE)=MAX(OFFSET(INDIRECT("'"&$S8&"'!AM6:AM"&MATCH($A$2,INDIRECT("'"&$S8&"'!C1:C5000"),0)),0,2*Q$2)),pronos!H9,"") ->  | R8: =IF(VLOOKUP($A$2,INDIRECT("'"&$S8&"'!C6:BC5000"),37+2*R$2,FALSE)=MAX(OFFSET(INDIRECT("'"&$S8&"'!AM6:AM"&MATCH($A$2,INDIRECT("'"&$S8&"'!C1:C5000"),0)),0,2*R$2)),pronos!I9,"") ->  | S8: 06 | U8: =pronos_journalier!U11 -> 2 | V8: =pronos_journalier!V11 -> 3 | W8: =pronos_journalier!W11 -> 2 | X8: =pronos_journalier!X11 -> 3 | Y8: =pronos_journalier!Y11 -> 4 | Z8: =pronos_journalier!Z11 -> 3 | AA8: =pronos_journalier!AA11 -> 1 | AB8: =pronos_journalier!AB11 -> 11 | AD8: 2016-10-08
A9: Le Parisien | B9: 14 | C9: 17 | D9: 10 | E9: 13 | F9: 15 | G9: 16 | H9: 18 | I9: 6 | K9: =IF(VLOOKUP($A$2,INDIRECT("'"&$S9&"'!C6:BC5000"),37+2*K$2,FALSE)=MAX(OFFSET(INDIRECT("'"&$S9&"'!AM6:AM"&MATCH($A$2,INDIRECT("'"&$S9&"'!C1:C5000"),0)),0,2*K$2)),pronos!B10,"") ->  | L9: =IF(VLOOKUP($A$2,INDIRECT("'"&$S9&"'!C6:BC5000"),37+2*L$2,FALSE)=MAX(OFFSET(INDIRECT("'"&$S9&"'!AM6:AM"&MATCH($A$2,INDIRECT("'"&$S9&"'!C1:C5000"),0)),0,2*L$2)),pronos!C10,"") ->  | M9: =IF(VLOOKUP($A$2,INDIRECT("'"&$S9&"'!C6:BC5000"),37+2*M$2,FALSE)=MAX(OFFSET(INDIRECT("'"&$S9&"'!AM6:AM"&MATCH($A$2,INDIRECT("'"&$S9&"'!C1:C5000"),0)),0,2*M$2)),pronos!D10,"") ->  | N9: =IF(VLOOKUP($A$2,INDIRECT("'"&$S9&"'!C6:BC5000"),37+2*N$2,FALSE)=MAX(OFFSET(INDIRECT("'"&$S9&"'!AM6:AM"&MATCH($A$2,INDIRECT("'"&$S9&"'!C1:C5000"),0)),0,2*N$2)),pronos!E10,"") ->  | O9: =IF(VLOOKUP($A$2,INDIRECT("'"&$S9&"'!C6:BC5000"),37+2*O$2,FALSE)=MAX(OFFSET(INDIRECT("'"&$S9&"'!AM6:AM"&MATCH($A$2,INDIRECT("'"&$S9&"'!C1:C5000"),0)),0,2*O$2)),pronos!F10,"") ->  | P9: =IF(VLOOKUP($A$2,INDIRECT("'"&$S9&"'!C6:BC5000"),37+2*P$2,FALSE)=MAX(OFFSET(INDIRECT("'"&$S9&"'!AM6:AM"&MATCH($A$2,INDIRECT("'"&$S9&"'!C1:C5000"),0)),0,2*P$2)),pronos!G10,"") ->  | Q9: =IF(VLOOKUP($A$2,INDIRECT("'"&$S9&"'!C6:BC5000"),37+2*Q$2,FALSE)=MAX(OFFSET(INDIRECT("'"&$S9&"'!AM6:AM"&MATCH($A$2,INDIRECT("'"&$S9&"'!C1:C5000"),0)),0,2*Q$2)),pronos!H10,"") ->  | R9: =IF(VLOOKUP($A$2,INDIRECT("'"&$S9&"'!C6:BC5000"),37+2*R$2,FALSE)=MAX(OFFSET(INDIRECT("'"&$S9&"'!AM6:AM"&MATCH($A$2,INDIRECT("'"&$S9&"'!C1:C5000"),0)),0,2*R$2)),pronos!I10,"") ->  | S9: 07 | U9: =pronos_journalier!U12 -> 2 | V9: =pronos_journalier!V12 -> 3 | W9: =pronos_journalier!W12 -> 3 | X9: =pronos_journalier!X12 -> 6 | Y9: =pronos_journalier!Y12 -> 2 | Z9: =pronos_journalier!Z12 -> 2 | AA9: =pronos_journalier!AA12 -> 1 | AB9: =pronos_journalier!AB12 -> 12 | AD9: 2016-10-09
A10: Le Républicain Lorrain | B10: 14 | C10: 17 | D10: 7 | E10: 10 | F10: 15 | G10: 13 | H10: 18 | I10: 6 | K10: =IF(VLOOKUP($A$2,INDIRECT("'"&$S10&"'!C6:BC5000"),37+2*K$2,FALSE)=MAX(OFFSET(INDIRECT("'"&$S10&"'!AM6:AM"&MATCH($A$2,INDIRECT("'"&$S10&"'!C1:C5000"),0)),0,2*K$2)),pronos!B11,"") ->  | L10: =IF(VLOOKUP($A$2,INDIRECT("'"&$S10&"'!C6:BC5000"),37+2*L$2,FALSE)=MAX(OFFSET(INDIRECT("'"&$S10&"'!AM6:AM"&MATCH($A$2,INDIRECT("'"&$S10&"'!C1:C5000"),0)),0,2*L$2)),pronos!C11,"") ->  | M10: =IF(VLOOKUP($A$2,INDIRECT("'"&$S10&"'!C6:BC5000"),37+2*M$2,FALSE)=MAX(OFFSET(INDIRECT("'"&$S10&"'!AM6:AM"&MATCH($A$2,INDIRECT("'"&$S10&"'!C1:C5000"),0)),0,2*M$2)),pronos!D11,"") ->  | N10: =IF(VLOOKUP($A$2,INDIRECT("'"&$S10&"'!C6:BC5000"),37+2*N$2,FALSE)=MAX(OFFSET(INDIRECT("'"&$S10&"'!AM6:AM"&MATCH($A$2,INDIRECT("'"&$S10&"'!C1:C5000"),0)),0,2*N$2)),pronos!E11,"") ->  | O10: =IF(VLOOKUP($A$2,INDIRECT("'"&$S10&"'!C6:BC5000"),37+2*O$2,FALSE)=MAX(OFFSET(INDIRECT("'"&$S10&"'!AM6:AM"&MATCH($A$2,INDIRECT("'"&$S10&"'!C1:C5000"),0)),0,2*O$2)),pronos!F11,"") ->  | P10: =IF(VLOOKUP($A$2,INDIRECT("'"&$S10&"'!C6:BC5000"),37+2*P$2,FALSE)=MAX(OFFSET(INDIRECT("'"&$S10&"'!AM6:AM"&MATCH($A$2,INDIRECT("'"&$S10&"'!C1:C5000"),0)),0,2*P$2)),pronos!G11,"") ->  | Q10: =IF(VLOOKUP($A$2,INDIRECT("'"&$S10&"'!C6:BC5000"),37+2*Q$2,FALSE)=MAX(OFFSET(INDIRECT("'"&$S10&"'!AM6:AM"&MATCH($A$2,INDIRECT("'"&$S10&"'!C1:C5000"),0)),0,2*Q$2)),pronos!H11,"") ->  | R10: =IF(VLOOKUP($A$2,INDIRECT("'"&$S10&"'!C6:BC5000"),37+2*R$2,FALSE)=MAX(OFFSET(INDIRECT("'"&$S10&"'!AM6:AM"&MATCH($A$2,INDIRECT("'"&$S10&"'!C1:C5000"),0)),0,2*R$2)),pronos!I11,"") ->  | S10: 08 | U10: =pronos_journalier!U13 -> 2 | V10: =pronos_journalier!V13 -> 4 | W10: =pronos_journalier!W13 -> 1 | X10: =pronos_journalier!X13 -> 4 | Y10: =pronos_journalier!Y13 -> 8 | Z10: =pronos_journalier!Z13 -> 3 | AA10: =pronos_journalier!AA13 -> 3 | AB10: =pronos_journalier!AB13 -> 1 | AD10: 2016-10-10
A11: Geny,com | B11: 14 | C11: 17 | D11: 7 | E11: 18 | F11: 13 | G11: 15 | H11: 10 | I11: 6 | K11: =IF(VLOOKUP($A$2,INDIRECT("'"&$S11&"'!C6:BC5000"),37+2*K$2,FALSE)=MAX(OFFSET(INDIRECT("'"&$S11&"'!AM6:AM"&MATCH($A$2,INDIRECT("'"&$S11&"'!C1:C5000"),0)),0,2*K$2)),pronos!B12,"") ->  | L11: =IF(VLOOKUP($A$2,INDIRECT("'"&$S11&"'!C6:BC5000"),37+2*L$2,FALSE)=MAX(OFFSET(INDIRECT("'"&$S11&"'!AM6:AM"&MATCH($A$2,INDIRECT("'"&$S11&"'!C1:C5000"),0)),0,2*L$2)),pronos!C12,"") ->  | M11: =IF(VLOOKUP($A$2,INDIRECT("'"&$S11&"'!C6:BC5000"),37+2*M$2,FALSE)=MAX(OFFSET(INDIRECT("'"&$S11&"'!AM6:AM"&MATCH($A$2,INDIRECT("'"&$S11&"'!C1:C5000"),0)),0,2*M$2)),pronos!D12,"") ->  | N11: =IF(VLOOKUP($A$2,INDIRECT("'"&$S11&"'!C6:BC5000"),37+2*N$2,FALSE)=MAX(OFFSET(INDIRECT("'"&$S11&"'!AM6:AM"&MATCH($A$2,INDIRECT("'"&$S11&"'!C1:C5000"),0)),0,2*N$2)),pronos!E12,"") ->  | O11: =IF(VLOOKUP($A$2,INDIRECT("'"&$S11&"'!C6:BC5000"),37+2*O$2,FALSE)=MAX(OFFSET(INDIRECT("'"&$S11&"'!AM6:AM"&MATCH($A$2,INDIRECT("'"&$S11&"'!C1:C5000"),0)),0,2*O$2)),pronos!F12,"") ->  | P11: =IF(VLOOKUP($A$2,INDIRECT("'"&$S11&"'!C6:BC5000"),37+2*P$2,FALSE)=MAX(OFFSET(INDIRECT("'"&$S11&"'!AM6:AM"&MATCH($A$2,INDIRECT("'"&$S11&"'!C1:C5000"),0)),0,2*P$2)),pronos!G12,"") ->  | Q11: =IF(VLOOKUP($A$2,INDIRECT("'"&$S11&"'!C6:BC5000"),37+2*Q$2,FALSE)=MAX(OFFSET(INDIRECT("'"&$S11&"'!AM6:AM"&MATCH($A$2,INDIRECT("'"&$S11&"'!C1:C5000"),0)),0,2*Q$2)),pronos!H12,"") ->  | R11: =IF(VLOOKUP($A$2,INDIRECT("'"&$S11&"'!C6:BC5000"),37+2*R$2,FALSE)=MAX(OFFSET(INDIRECT("'"&$S11&"'!AM6:AM"&MATCH($A$2,INDIRECT("'"&$S11&"'!C1:C5000"),0)),0,2*R$2)),pronos!I12,"") ->  | S11: 09 | U11: =pronos_journalier!U14 -> 2 | V11: =pronos_journalier!V14 -> 3 | W11: =pronos_journalier!W14 -> 5 | X11: =pronos_journalier!X14 -> 6 | Y11: =pronos_journalier!Y14 -> 2 | Z11: =pronos_journalier!Z14 -> 10 | AA11: =pronos_journalier!AA14 -> 1 | AB11: =pronos_journalier!AB14 -> 4 | AD11: 2016-10-11
A12: Ouest-France | B12: 14 | C12: 17 | D12: 7 | E12: 10 | F12: 8 | G12: 1 | H12: 16 | I12: 9 | K12: =IF(VLOOKUP($A$2,INDIRECT("'"&$S12&"'!C6:BC5000"),37+2*K$2,FALSE)=MAX(OFFSET(INDIRECT("'"&$S12&"'!AM6:AM"&MATCH($A$2,INDIRECT("'"&$S12&"'!C1:C5000"),0)),0,2*K$2)),pronos!B13,"") ->  | L12: =IF(VLOOKUP($A$2,INDIRECT("'"&$S12&"'!C6:BC5000"),37+2*L$2,FALSE)=MAX(OFFSET(INDIRECT("'"&$S12&"'!AM6:AM"&MATCH($A$2,INDIRECT("'"&$S12&"'!C1:C5000"),0)),0,2*L$2)),pronos!C13,"") ->  | M12: =IF(VLOOKUP($A$2,INDIRECT("'"&$S12&"'!C6:BC5000"),37+2*M$2,FALSE)=MAX(OFFSET(INDIRECT("'"&$S12&"'!AM6:AM"&MATCH($A$2,INDIRECT("'"&$S12&"'!C1:C5000"),0)),0,2*M$2)),pronos!D13,"") ->  | N12: =IF(VLOOKUP($A$2,INDIRECT("'"&$S12&"'!C6:BC5000"),37+2*N$2,FALSE)=MAX(OFFSET(INDIRECT("'"&$S12&"'!AM6:AM"&MATCH($A$2,INDIRECT("'"&$S12&"'!C1:C5000"),0)),0,2*N$2)),pronos!E13,"") ->  | O12: =IF(VLOOKUP($A$2,INDIRECT("'"&$S12&"'!C6:BC5000"),37+2*O$2,FALSE)=MAX(OFFSET(INDIRECT("'"&$S12&"'!AM6:AM"&MATCH($A$2,INDIRECT("'"&$S12&"'!C1:C5000"),0)),0,2*O$2)),pronos!F13,"") ->  | P12: =IF(VLOOKUP($A$2,INDIRECT("'"&$S12&"'!C6:BC5000"),37+2*P$2,FALSE)=MAX(OFFSET(INDIRECT("'"&$S12&"'!AM6:AM"&MATCH($A$2,INDIRECT("'"&$S12&"'!C1:C5000"),0)),0,2*P$2)),pronos!G13,"") ->  | Q12: =IF(VLOOKUP($A$2,INDIRECT("'"&$S12&"'!C6:BC5000"),37+2*Q$2,FALSE)=MAX(OFFSET(INDIRECT("'"&$S12&"'!AM6:AM"&MATCH($A$2,INDIRECT("'"&$S12&"'!C1:C5000"),0)),0,2*Q$2)),pronos!H13,"") ->  | R12: =IF(VLOOKUP($A$2,INDIRECT("'"&$S12&"'!C6:BC5000"),37+2*R$2,FALSE)=MAX(OFFSET(INDIRECT("'"&$S12&"'!AM6:AM"&MATCH($A$2,INDIRECT("'"&$S12&"'!C1:C5000"),0)),0,2*R$2)),pronos!I13,"") ->  | S12: 10 | U12: =pronos_journalier!U15 -> 4 | V12: =pronos_journalier!V15 -> 2 | W12: =pronos_journalier!W15 -> 3 | X12: =pronos_journalier!X15 -> 3 | Y12: =pronos_journalier!Y15 -> 6 | Z12: =pronos_journalier!Z15 -> 1 | AA12: =pronos_journalier!AA15 -> 8 | AB12: =pronos_journalier!AB15 -> 12 | AD12: 2016-10-12
A13: Paris Courses | B13: 14 | C13: 17 | D13: 15 | E13: 3 | F13: 6 | G13: 10 | H13: 9 | I13: 18 | K13: =IF(VLOOKUP($A$2,INDIRECT("'"&$S13&"'!C6:BC5000"),37+2*K$2,FALSE)=MAX(OFFSET(INDIRECT("'"&$S13&"'!AM6:AM"&MATCH($A$2,INDIRECT("'"&$S13&"'!C1:C5000"),0)),0,2*K$2)),pronos!B14,"") ->  | L13: =IF(VLOOKUP($A$2,INDIRECT("'"&$S13&"'!C6:BC5000"),37+2*L$2,FALSE)=MAX(OFFSET(INDIRECT("'"&$S13&"'!AM6:AM"&MATCH($A$2,INDIRECT("'"&$S13&"'!C1:C5000"),0)),0,2*L$2)),pronos!C14,"") ->  | M13: =IF(VLOOKUP($A$2,INDIRECT("'"&$S13&"'!C6:BC5000"),37+2*M$2,FALSE)=MAX(OFFSET(INDIRECT("'"&$S13&"'!AM6:AM"&MATCH($A$2,INDIRECT("'"&$S13&"'!C1:C5000"),0)),0,2*M$2)),pronos!D14,"") ->  | N13: =IF(VLOOKUP($A$2,INDIRECT("'"&$S13&"'!C6:BC5000"),37+2*N$2,FALSE)=MAX(OFFSET(INDIRECT("'"&$S13&"'!AM6:AM"&MATCH($A$2,INDIRECT("'"&$S13&"'!C1:C5000"),0)),0,2*N$2)),pronos!E14,"") ->  | O13: =IF(VLOOKUP($A$2,INDIRECT("'"&$S13&"'!C6:BC5000"),37+2*O$2,FALSE)=MAX(OFFSET(INDIRECT("'"&$S13&"'!AM6:AM"&MATCH($A$2,INDIRECT("'"&$S13&"'!C1:C5000"),0)),0,2*O$2)),pronos!F14,"") ->  | P13: =IF(VLOOKUP($A$2,INDIRECT("'"&$S13&"'!C6:BC5000"),37+2*P$2,FALSE)=MAX(OFFSET(INDIRECT("'"&$S13&"'!AM6:AM"&MATCH($A$2,INDIRECT("'"&$S13&"'!C1:C5000"),0)),0,2*P$2)),pronos!G14,"") ->  | Q13: =IF(VLOOKUP($A$2,INDIRECT("'"&$S13&"'!C6:BC5000"),37+2*Q$2,FALSE)=MAX(OFFSET(INDIRECT("'"&$S13&"'!AM6:AM"&MATCH($A$2,INDIRECT("'"&$S13&"'!C1:C5000"),0)),0,2*Q$2)),pronos!H14,"") ->  | R13: =IF(VLOOKUP($A$2,INDIRECT("'"&$S13&"'!C6:BC5000"),37+2*R$2,FALSE)=MAX(OFFSET(INDIRECT("'"&$S13&"'!AM6:AM"&MATCH($A$2,INDIRECT("'"&$S13&"'!C1:C5000"),0)),0,2*R$2)),pronos!I14,"") ->  | S13: 11 | U13: =pronos_journalier!U16 -> 2 | V13: =pronos_journalier!V16 -> 4 | W13: =pronos_journalier!W16 -> 3 | X13: =pronos_journalier!X16 -> 1 | Y13: =pronos_journalier!Y16 -> 2 | Z13: =pronos_journalier!Z16 -> 10 | AA13: =pronos_journalier!AA16 -> 5 | AB13: =pronos_journalier!AB16 -> 12 | AD13: 2016-10-13
A14: Paris-Courses.com | B14: 14 | C14: 17 | D14: 110 | E14: 13 | F14: 15 | G14: 7 | H14: 9 | I14: 16 | K14: =IF(VLOOKUP($A$2,INDIRECT("'"&$S14&"'!C6:BC5000"),37+2*K$2,FALSE)=MAX(OFFSET(INDIRECT("'"&$S14&"'!AM6:AM"&MATCH($A$2,INDIRECT("'"&$S14&"'!C1:C5000"),0)),0,2*K$2)),pronos!B15,"") ->  | L14: =IF(VLOOKUP($A$2,INDIRECT("'"&$S14&"'!C6:BC5000"),37+2*L$2,FALSE)=MAX(OFFSET(INDIRECT("'"&$S14&"'!AM6:AM"&MATCH($A$2,INDIRECT("'"&$S14&"'!C1:C5000"),0)),0,2*L$2)),pronos!C15,"") ->  | M14: =IF(VLOOKUP($A$2,INDIRECT("'"&$S14&"'!C6:BC5000"),37+2*M$2,FALSE)=MAX(OFFSET(INDIRECT("'"&$S14&"'!AM6:AM"&MATCH($A$2,INDIRECT("'"&$S14&"'!C1:C5000"),0)),0,2*M$2)),pronos!D15,"") ->  | N14: =IF(VLOOKUP($A$2,INDIRECT("'"&$S14&"'!C6:BC5000"),37+2*N$2,FALSE)=MAX(OFFSET(INDIRECT("'"&$S14&"'!AM6:AM"&MATCH($A$2,INDIRECT("'"&$S14&"'!C1:C5000"),0)),0,2*N$2)),pronos!E15,"") ->  | O14: =IF(VLOOKUP($A$2,INDIRECT("'"&$S14&"'!C6:BC5000"),37+2*O$2,FALSE)=MAX(OFFSET(INDIRECT("'"&$S14&"'!AM6:AM"&MATCH($A$2,INDIRECT("'"&$S14&"'!C1:C5000"),0)),0,2*O$2)),pronos!F15,"") ->  | P14: =IF(VLOOKUP($A$2,INDIRECT("'"&$S14&"'!C6:BC5000"),37+2*P$2,FALSE)=MAX(OFFSET(INDIRECT("'"&$S14&"'!AM6:AM"&MATCH($A$2,INDIRECT("'"&$S14&"'!C1:C5000"),0)),0,2*P$2)),pronos!G15,"") ->  | Q14: =IF(VLOOKUP($A$2,INDIRECT("'"&$S14&"'!C6:BC5000"),37+2*Q$2,FALSE)=MAX(OFFSET(INDIRECT("'"&$S14&"'!AM6:AM"&MATCH($A$2,INDIRECT("'"&$S14&"'!C1:C5000"),0)),0,2*Q$2)),pronos!H15,"") ->  | R14: =IF(VLOOKUP($A$2,INDIRECT("'"&$S14&"'!C6:BC5000"),37+2*R$2,FALSE)=MAX(OFFSET(INDIRECT("'"&$S14&"'!AM6:AM"&MATCH($A$2,INDIRECT("'"&$S14&"'!C1:C5000"),0)),0,2*R$2)),pronos!I15,"") ->  | S14: 12 | U14: =pronos_journalier!U17 -> 2 | V14: =pronos_journalier!V17 -> 2 | W14: =pronos_journalier!W17 -> 5 | X14: =pronos_journalier!X17 -> 12 | Y14: =pronos_journalier!Y17 -> 3 | Z14: =pronos_journalier!Z17 -> 7 | AA14: =pronos_journalier!AA17 -> 1 | AB14: =pronos_journalier!AB17 -> 2 | AD14: 2016-10-14
A15: Paris-Turf | B15: 14 | C15: 17 | D15: 7 | E15: 15 | F15: 10 | G15: 13 | H15: 18 | I15: 9 | K15: =IF(VLOOKUP($A$2,INDIRECT("'"&$S15&"'!C6:BC5000"),37+2*K$2,FALSE)=MAX(OFFSET(INDIRECT("'"&$S15&"'!AM6:AM"&MATCH($A$2,INDIRECT("'"&$S15&"'!C1:C5000"),0)),0,2*K$2)),pronos!B16,"") ->  | L15: =IF(VLOOKUP($A$2,INDIRECT("'"&$S15&"'!C6:BC5000"),37+2*L$2,FALSE)=MAX(OFFSET(INDIRECT("'"&$S15&"'!AM6:AM"&MATCH($A$2,INDIRECT("'"&$S15&"'!C1:C5000"),0)),0,2*L$2)),pronos!C16,"") ->  | M15: =IF(VLOOKUP($A$2,INDIRECT("'"&$S15&"'!C6:BC5000"),37+2*M$2,FALSE)=MAX(OFFSET(INDIRECT("'"&$S15&"'!AM6:AM"&MATCH($A$2,INDIRECT("'"&$S15&"'!C1:C5000"),0)),0,2*M$2)),pronos!D16,"") ->  | N15: =IF(VLOOKUP($A$2,INDIRECT("'"&$S15&"'!C6:BC5000"),37+2*N$2,FALSE)=MAX(OFFSET(INDIRECT("'"&$S15&"'!AM6:AM"&MATCH($A$2,INDIRECT("'"&$S15&"'!C1:C5000"),0)),0,2*N$2)),pronos!E16,"") ->  | O15: =IF(VLOOKUP($A$2,INDIRECT("'"&$S15&"'!C6:BC5000"),37+2*O$2,FALSE)=MAX(OFFSET(INDIRECT("'"&$S15&"'!AM6:AM"&MATCH($A$2,INDIRECT("'"&$S15&"'!C1:C5000"),0)),0,2*O$2)),pronos!F16,"") ->  | P15: =IF(VLOOKUP($A$2,INDIRECT("'"&$S15&"'!C6:BC5000"),37+2*P$2,FALSE)=MAX(OFFSET(INDIRECT("'"&$S15&"'!AM6:AM"&MATCH($A$2,INDIRECT("'"&$S15&"'!C1:C5000"),0)),0,2*P$2)),pronos!G16,"") ->  | Q15: =IF(VLOOKUP($A$2,INDIRECT("'"&$S15&"'!C6:BC5000"),37+2*Q$2,FALSE)=MAX(OFFSET(INDIRECT("'"&$S15&"'!AM6:AM"&MATCH($A$2,INDIRECT("'"&$S15&"'!C1:C5000"),0)),0,2*Q$2)),pronos!H16,"") ->  | R15: =IF(VLOOKUP($A$2,INDIRECT("'"&$S15&"'!C6:BC5000"),37+2*R$2,FALSE)=MAX(OFFSET(INDIRECT("'"&$S15&"'!AM6:AM"&MATCH($A$2,INDIRECT("'"&$S15&"'!C1:C5000"),0)),0,2*R$2)),pronos!I16,"") ->  | S15: 13 | U15: =pronos_journalier!U18 -> 2 | V15: =pronos_journalier!V18 -> 2 | W15: =pronos_journalier!W18 -> 1 | X15: =pronos_journalier!X18 -> 10 | Y15: =pronos_journalier!Y18 -> 3 | Z15: =pronos_journalier!Z18 -> 3 | AA15: =pronos_journalier!AA18 -> 20 | AB15: =pronos_journalier!AB18 -> 8 | AD15: 2016-10-15
A16: Gény courses | B16: 14 | C16: 6 | D16: 7 | E16: 17 | F16: 9 | G16: 15 | H16: 8 | I16: 10 | K16: =IF(VLOOKUP($A$2,INDIRECT("'"&$S16&"'!C6:BC5000"),37+2*K$2,FALSE)=MAX(OFFSET(INDIRECT("'"&$S16&"'!AM6:AM"&MATCH($A$2,INDIRECT("'"&$S16&"'!C1:C5000"),0)),0,2*K$2)),pronos!B17,"") ->  | L16: =IF(VLOOKUP($A$2,INDIRECT("'"&$S16&"'!C6:BC5000"),37+2*L$2,FALSE)=MAX(OFFSET(INDIRECT("'"&$S16&"'!AM6:AM"&MATCH($A$2,INDIRECT("'"&$S16&"'!C1:C5000"),0)),0,2*L$2)),pronos!C17,"") ->  | M16: =IF(VLOOKUP($A$2,INDIRECT("'"&$S16&"'!C6:BC5000"),37+2*M$2,FALSE)=MAX(OFFSET(INDIRECT("'"&$S16&"'!AM6:AM"&MATCH($A$2,INDIRECT("'"&$S16&"'!C1:C5000"),0)),0,2*M$2)),pronos!D17,"") ->  | N16: =IF(VLOOKUP($A$2,INDIRECT("'"&$S16&"'!C6:BC5000"),37+2*N$2,FALSE)=MAX(OFFSET(INDIRECT("'"&$S16&"'!AM6:AM"&MATCH($A$2,INDIRECT("'"&$S16&"'!C1:C5000"),0)),0,2*N$2)),pronos!E17,"") ->  | O16: =IF(VLOOKUP($A$2,INDIRECT("'"&$S16&"'!C6:BC5000"),37+2*O$2,FALSE)=MAX(OFFSET(INDIRECT("'"&$S16&"'!AM6:AM"&MATCH($A$2,INDIRECT("'"&$S16&"'!C1:C5000"),0)),0,2*O$2)),pronos!F17,"") ->  | P16: =IF(VLOOKUP($A$2,INDIRECT("'"&$S16&"'!C6:BC5000"),37+2*P$2,FALSE)=MAX(OFFSET(INDIRECT("'"&$S16&"'!AM6:AM"&MATCH($A$2,INDIRECT("'"&$S16&"'!C1:C5000"),0)),0,2*P$2)),pronos!G17,"") ->  | Q16: =IF(VLOOKUP($A$2,INDIRECT("'"&$S16&"'!C6:BC5000"),37+2*Q$2,FALSE)=MAX(OFFSET(INDIRECT("'"&$S16&"'!AM6:AM"&MATCH($A$2,INDIRECT("'"&$S16&"'!C1:C5000"),0)),0,2*Q$2)),pronos!H17,"") ->  | R16: =IF(VLOOKUP($A$2,INDIRECT("'"&$S16&"'!C6:BC5000"),37+2*R$2,FALSE)=MAX(OFFSET(INDIRECT("'"&$S16&"'!AM6:AM"&MATCH($A$2,INDIRECT("'"&$S16&"'!C1:C5000"),0)),0,2*R$2)),pronos!I17,"") ->  | S16: 14 | U16: =pronos_journalier!U19 -> 11 | V16: =pronos_journalier!V19 -> 2 | W16: =pronos_journalier!W19 -> 3 | X16: =pronos_journalier!X19 -> 5 | Y16: =pronos_journalier!Y19 -> 2 | Z16: =pronos_journalier!Z19 -> 2 | AA16: =pronos_journalier!AA19 -> 10 | AB16: =pronos_journalier!AB19 -> 9 | AD16: 2016-10-16
A17: Paris-Turf TIP | B17: 14 | C17: 17 | D17: 6 | E17: 16 | F17: 10 | G17: 15 | H17: 13 | I17: 9 | K17: =IF(VLOOKUP($A$2,INDIRECT("'"&$S17&"'!C6:BC5000"),37+2*K$2,FALSE)=MAX(OFFSET(INDIRECT("'"&$S17&"'!AM6:AM"&MATCH($A$2,INDIRECT("'"&$S17&"'!C1:C5000"),0)),0,2*K$2)),pronos!B18,"") -> 14 | L17: =IF(VLOOKUP($A$2,INDIRECT("'"&$S17&"'!C6:BC5000"),37+2*L$2,FALSE)=MAX(OFFSET(INDIRECT("'"&$S17&"'!AM6:AM"&MATCH($A$2,INDIRECT("'"&$S17&"'!C1:C5000"),0)),0,2*L$2)),pronos!C18,"") ->  | M17: =IF(VLOOKUP($A$2,INDIRECT("'"&$S17&"'!C6:BC5000"),37+2*M$2,FALSE)=MAX(OFFSET(INDIRECT("'"&$S17&"'!AM6:AM"&MATCH($A$2,INDIRECT("'"&$S17&"'!C1:C5000"),0)),0,2*M$2)),pronos!D18,"") ->  | N17: =IF(VLOOKUP($A$2,INDIRECT("'"&$S17&"'!C6:BC5000"),37+2*N$2,FALSE)=MAX(OFFSET(INDIRECT("'"&$S17&"'!AM6:AM"&MATCH($A$2,INDIRECT("'"&$S17&"'!C1:C5000"),0)),0,2*N$2)),pronos!E18,"") ->  | O17: =IF(VLOOKUP($A$2,INDIRECT("'"&$S17&"'!C6:BC5000"),37+2*O$2,FALSE)=MAX(OFFSET(INDIRECT("'"&$S17&"'!AM6:AM"&MATCH($A$2,INDIRECT("'"&$S17&"'!C1:C5000"),0)),0,2*O$2)),pronos!F18,"") ->  | P17: =IF(VLOOKUP($A$2,INDIRECT("'"&$S17&"'!C6:BC5000"),37+2*P$2,FALSE)=MAX(OFFSET(INDIRECT("'"&$S17&"'!AM6:AM"&MATCH($A$2,INDIRECT("'"&$S17&"'!C1:C5000"),0)),0,2*P$2)),pronos!G18,"") ->  | Q17: =IF(VLOOKUP($A$2,INDIRECT("'"&$S17&"'!C6:BC5000"),37+2*Q$2,FALSE)=MAX(OFFSET(INDIRECT("'"&$S17&"'!AM6:AM"&MATCH($A$2,INDIRECT("'"&$S17&"'!C1:C5000"),0)),0,2*Q$2)),pronos!H18,"") ->  | R17: =IF(VLOOKUP($A$2,INDIRECT("'"&$S17&"'!C6:BC5000"),37+2*R$2,FALSE)=MAX(OFFSET(INDIRECT("'"&$S17&"'!AM6:AM"&MATCH($A$2,INDIRECT("'"&$S17&"'!C1:C5000"),0)),0,2*R$2)),pronos!I18,"") ->  | S17: 15 | U17: =pronos_journalier!U20 -> 3 | V17: =pronos_journalier!V20 -> 3 | W17: =pronos_journalier!W20 -> 2 | X17: =pronos_journalier!X20 -> 2 | Y17: =pronos_journalier!Y20 -> 4 | Z17: =pronos_journalier!Z20 -> 6 | AA17: =pronos_journalier!AA20 -> 6 | AB17: =pronos_journalier!AB20 -> 8 | AD17: 2016-10-17
A18: Paris-Turf.com | B18: 14 | C18: 17 | D18: 6 | E18: 15 | F18: 7 | G18: 13 | H18: 9 | I18: 10 | K18: =IF(VLOOKUP($A$2,INDIRECT("'"&$S18&"'!C6:BC5000"),37+2*K$2,FALSE)=MAX(OFFSET(INDIRECT("'"&$S18&"'!AM6:AM"&MATCH($A$2,INDIRECT("'"&$S18&"'!C1:C5000"),0)),0,2*K$2)),pronos!B19,"") ->  | L18: =IF(VLOOKUP($A$2,INDIRECT("'"&$S18&"'!C6:BC5000"),37+2*L$2,FALSE)=MAX(OFFSET(INDIRECT("'"&$S18&"'!AM6:AM"&MATCH($A$2,INDIRECT("'"&$S18&"'!C1:C5000"),0)),0,2*L$2)),pronos!C19,"") ->  | M18: =IF(VLOOKUP($A$2,INDIRECT("'"&$S18&"'!C6:BC5000"),37+2*M$2,FALSE)=MAX(OFFSET(INDIRECT("'"&$S18&"'!AM6:AM"&MATCH($A$2,INDIRECT("'"&$S18&"'!C1:C5000"),0)),0,2*M$2)),pronos!D19,"") ->  | N18: =IF(VLOOKUP($A$2,INDIRECT("'"&$S18&"'!C6:BC5000"),37+2*N$2,FALSE)=MAX(OFFSET(INDIRECT("'"&$S18&"'!AM6:AM"&MATCH($A$2,INDIRECT("'"&$S18&"'!C1:C5000"),0)),0,2*N$2)),pronos!E19,"") ->  | O18: =IF(VLOOKUP($A$2,INDIRECT("'"&$S18&"'!C6:BC5000"),37+2*O$2,FALSE)=MAX(OFFSET(INDIRECT("'"&$S18&"'!AM6:AM"&MATCH($A$2,INDIRECT("'"&$S18&"'!C1:C5000"),0)),0,2*O$2)),pronos!F19,"") ->  | P18: =IF(VLOOKUP($A$2,INDIRECT("'"&$S18&"'!C6:BC5000"),37+2*P$2,FALSE)=MAX(OFFSET(INDIRECT("'"&$S18&"'!AM6:AM"&MATCH($A$2,INDIRECT("'"&$S18&"'!C1:C5000"),0)),0,2*P$2)),pronos!G19,"") ->  | Q18: =IF(VLOOKUP($A$2,INDIRECT("'"&$S18&"'!C6:BC5000"),37+2*Q$2,FALSE)=MAX(OFFSET(INDIRECT("'"&$S18&"'!AM6:AM"&MATCH($A$2,INDIRECT("'"&$S18&"'!C1:C5000"),0)),0,2*Q$2)),pronos!H19,"") ->  | R18: =IF(VLOOKUP($A$2,INDIRECT("'"&$S18&"'!C6:BC5000"),37+2*R$2,FALSE)=MAX(OFFSET(INDIRECT("'"&$S18&"'!AM6:AM"&MATCH($A$2,INDIRECT("'"&$S18&"'!C1:C5000"),0)),0,2*R$2)),pronos!I19,"") ->  | S18: 16 | U18: =pronos_journalier!U21 -> 2 | V18: =pronos_journalier!V21 -> 4 | W18: =pronos_journalier!W21 -> 1 | X18: =pronos_journalier!X21 -> 5 | Y18: =pronos_journalier!Y21 -> 3 | Z18: =pronos_journalier!Z21 -> 14 | AA18: =pronos_journalier!AA21 -> 3 | AB18: =pronos_journalier!AB21 -> 3 | AD18: 2016-10-18
A19: PronoSMART | B19: 17 | C19: 13 | D19: 15 | E19: 9 | F19: 14 | G19: 16 | H19: 18 | I19: 7 | K19: =IF(VLOOKUP($A$2,INDIRECT("'"&$S19&"'!C6:BC5000"),37+2*K$2,FALSE)=MAX(OFFSET(INDIRECT("'"&$S19&"'!AM6:AM"&MATCH($A$2,INDIRECT("'"&$S19&"'!C1:C5000"),0)),0,2*K$2)),pronos!B20,"") ->  | L19: =IF(VLOOKUP($A$2,INDIRECT("'"&$S19&"'!C6:BC5000"),37+2*L$2,FALSE)=MAX(OFFSET(INDIRECT("'"&$S19&"'!AM6:AM"&MATCH($A$2,INDIRECT("'"&$S19&"'!C1:C5000"),0)),0,2*L$2)),pronos!C20,"") ->  | M19: =IF(VLOOKUP($A$2,INDIRECT("'"&$S19&"'!C6:BC5000"),37+2*M$2,FALSE)=MAX(OFFSET(INDIRECT("'"&$S19&"'!AM6:AM"&MATCH($A$2,INDIRECT("'"&$S19&"'!C1:C5000"),0)),0,2*M$2)),pronos!D20,"") ->  | N19: =IF(VLOOKUP($A$2,INDIRECT("'"&$S19&"'!C6:BC5000"),37+2*N$2,FALSE)=MAX(OFFSET(INDIRECT("'"&$S19&"'!AM6:AM"&MATCH($A$2,INDIRECT("'"&$S19&"'!C1:C5000"),0)),0,2*N$2)),pronos!E20,"") ->  | O19: =IF(VLOOKUP($A$2,INDIRECT("'"&$S19&"'!C6:BC5000"),37+2*O$2,FALSE)=MAX(OFFSET(INDIRECT("'"&$S19&"'!AM6:AM"&MATCH($A$2,INDIRECT("'"&$S19&"'!C1:C5000"),0)),0,2*O$2)),pronos!F20,"") ->  | P19: =IF(VLOOKUP($A$2,INDIRECT("'"&$S19&"'!C6:BC5000"),37+2*P$2,FALSE)=MAX(OFFSET(INDIRECT("'"&$S19&"'!AM6:AM"&MATCH($A$2,INDIRECT("'"&$S19&"'!C1:C5000"),0)),0,2*P$2)),pronos!G20,"") ->  | Q19: =IF(VLOOKUP($A$2,INDIRECT("'"&$S19&"'!C6:BC5000"),37+2*Q$2,FALSE)=MAX(OFFSET(INDIRECT("'"&$S19&"'!AM6:AM"&MATCH($A$2,INDIRECT("'"&$S19&"'!C1:C5000"),0)),0,2*Q$2)),pronos!H20,"") ->  | R19: =IF(VLOOKUP($A$2,INDIRECT("'"&$S19&"'!C6:BC5000"),37+2*R$2,FALSE)=MAX(OFFSET(INDIRECT("'"&$S19&"'!AM6:AM"&MATCH($A$2,INDIRECT("'"&$S19&"'!C1:C5000"),0)),0,2*R$2)),pronos!I20,"") ->  | S19: 17 | U19: =pronos_journalier!U22 -> 1 | V19: =pronos_journalier!V22 -> 2 | W19: =pronos_journalier!W22 -> 4 | X19: =pronos_journalier!X22 -> 4 | Y19: =pronos_journalier!Y22 -> 3 | Z19: =pronos_journalier!Z22 -> 3 | AA19: =pronos_journalier!AA22 -> 10 | AB19: =pronos_journalier!AB22 -> 10 | AD19: 2016-10-19
A20: RTL | B20: 10 | C20: 15 | D20: 17 | E20: 16 | F20: 14 | G20: 8 | H20: 13 | I20: 1 | K20: =IF(VLOOKUP($A$2,INDIRECT("'"&$S20&"'!C6:BC5000"),37+2*K$2,FALSE)=MAX(OFFSET(INDIRECT("'"&$S20&"'!AM6:AM"&MATCH($A$2,INDIRECT("'"&$S20&"'!C1:C5000"),0)),0,2*K$2)),pronos!B21,"") ->  | L20: =IF(VLOOKUP($A$2,INDIRECT("'"&$S20&"'!C6:BC5000"),37+2*L$2,FALSE)=MAX(OFFSET(INDIRECT("'"&$S20&"'!AM6:AM"&MATCH($A$2,INDIRECT("'"&$S20&"'!C1:C5000"),0)),0,2*L$2)),pronos!C21,"") ->  | M20: =IF(VLOOKUP($A$2,INDIRECT("'"&$S20&"'!C6:BC5000"),37+2*M$2,FALSE)=MAX(OFFSET(INDIRECT("'"&$S20&"'!AM6:AM"&MATCH($A$2,INDIRECT("'"&$S20&"'!C1:C5000"),0)),0,2*M$2)),pronos!D21,"") ->  | N20: =IF(VLOOKUP($A$2,INDIRECT("'"&$S20&"'!C6:BC5000"),37+2*N$2,FALSE)=MAX(OFFSET(INDIRECT("'"&$S20&"'!AM6:AM"&MATCH($A$2,INDIRECT("'"&$S20&"'!C1:C5000"),0)),0,2*N$2)),pronos!E21,"") ->  | O20: =IF(VLOOKUP($A$2,INDIRECT("'"&$S20&"'!C6:BC5000"),37+2*O$2,FALSE)=MAX(OFFSET(INDIRECT("'"&$S20&"'!AM6:AM"&MATCH($A$2,INDIRECT("'"&$S20&"'!C1:C5000"),0)),0,2*O$2)),pronos!F21,"") -> 13 | P20: =IF(VLOOKUP($A$2,INDIRECT("'"&$S20&"'!C6:BC5000"),37+2*P$2,FALSE)=MAX(OFFSET(INDIRECT("'"&$S20&"'!AM6:AM"&MATCH($A$2,INDIRECT("'"&$S20&"'!C1:C5000"),0)),0,2*P$2)),pronos!G21,"") ->  | Q20: =IF(VLOOKUP($A$2,INDIRECT("'"&$S20&"'!C6:BC5000"),37+2*Q$2,FALSE)=MAX(OFFSET(INDIRECT("'"&$S20&"'!AM6:AM"&MATCH($A$2,INDIRECT("'"&$S20&"'!C1:C5000"),0)),0,2*Q$2)),pronos!H21,"") ->  | R20: =IF(VLOOKUP($A$2,INDIRECT("'"&$S20&"'!C6:BC5000"),37+2*R$2,FALSE)=MAX(OFFSET(INDIRECT("'"&$S20&"'!AM6:AM"&MATCH($A$2,INDIRECT("'"&$S20&"'!C1:C5000"),0)),0,2*R$2)),pronos!I21,"") ->  | S20: 18 | U20: =pronos_journalier!U23 -> 4 | V20: =pronos_journalier!V23 -> 2 | W20: =pronos_journalier!W23 -> 4 | X20: =pronos_journalier!X23 -> 2 | Y20: =pronos_journalier!Y23 -> 5 | Z20: =pronos_journalier!Z23 -> 5 | AA20: =pronos_journalier!AA23 -> 1 | AB20: =pronos_journalier!AB23 -> 11 | AD20: 2016-10-20
A21: Equidia live | B21: 14 | C21: 17 | D21: 8 | E21: 2 | F21: 13 | G21: 15 | H21: 3 | I21: 9 | K21: =IF(VLOOKUP($A$2,INDIRECT("'"&$S21&"'!C6:BC5000"),37+2*K$2,FALSE)=MAX(OFFSET(INDIRECT("'"&$S21&"'!AM6:AM"&MATCH($A$2,INDIRECT("'"&$S21&"'!C1:C5000"),0)),0,2*K$2)),pronos!B22,"") ->  | L21: =IF(VLOOKUP($A$2,INDIRECT("'"&$S21&"'!C6:BC5000"),37+2*L$2,FALSE)=MAX(OFFSET(INDIRECT("'"&$S21&"'!AM6:AM"&MATCH($A$2,INDIRECT("'"&$S21&"'!C1:C5000"),0)),0,2*L$2)),pronos!C22,"") ->  | M21: =IF(VLOOKUP($A$2,INDIRECT("'"&$S21&"'!C6:BC5000"),37+2*M$2,FALSE)=MAX(OFFSET(INDIRECT("'"&$S21&"'!AM6:AM"&MATCH($A$2,INDIRECT("'"&$S21&"'!C1:C5000"),0)),0,2*M$2)),pronos!D22,"") ->  | N21: =IF(VLOOKUP($A$2,INDIRECT("'"&$S21&"'!C6:BC5000"),37+2*N$2,FALSE)=MAX(OFFSET(INDIRECT("'"&$S21&"'!AM6:AM"&MATCH($A$2,INDIRECT("'"&$S21&"'!C1:C5000"),0)),0,2*N$2)),pronos!E22,"") ->  | O21: =IF(VLOOKUP($A$2,INDIRECT("'"&$S21&"'!C6:BC5000"),37+2*O$2,FALSE)=MAX(OFFSET(INDIRECT("'"&$S21&"'!AM6:AM"&MATCH($A$2,INDIRECT("'"&$S21&"'!C1:C5000"),0)),0,2*O$2)),pronos!F22,"") ->  | P21: =IF(VLOOKUP($A$2,INDIRECT("'"&$S21&"'!C6:BC5000"),37+2*P$2,FALSE)=MAX(OFFSET(INDIRECT("'"&$S21&"'!AM6:AM"&MATCH($A$2,INDIRECT("'"&$S21&"'!C1:C5000"),0)),0,2*P$2)),pronos!G22,"") ->  | Q21: =IF(VLOOKUP($A$2,INDIRECT("'"&$S21&"'!C6:BC5000"),37+2*Q$2,FALSE)=MAX(OFFSET(INDIRECT("'"&$S21&"'!AM6:AM"&MATCH($A$2,INDIRECT("'"&$S21&"'!C1:C5000"),0)),0,2*Q$2)),pronos!H22,"") ->  | R21: =IF(VLOOKUP($A$2,INDIRECT("'"&$S21&"'!C6:BC5000"),37+2*R$2,FALSE)=MAX(OFFSET(INDIRECT("'"&$S21&"'!AM6:AM"&MATCH($A$2,INDIRECT("'"&$S21&"'!C1:C5000"),0)),0,2*R$2)),pronos!I22,"") ->  | S21: 19 | U21: =pronos_journalier!U24 -> 2 | V21: =pronos_journalier!V24 -> 6 | W21: =pronos_journalier!W24 -> 6 | X21: =pronos_journalier!X24 -> 5 | Y21: =pronos_journalier!Y24 -> 2 | Z21: =pronos_journalier!Z24 -> 1 | AA21: =pronos_journalier!AA24 -> 1 | AB21: =pronos_journalier!AB24 -> 10 | AD21: 2016-10-21
A22: Stato Turf | B22: 7 | C22: 11 | D22: 15 | E22: 14 | F22: 6 | G22: 8 | H22: 9 | I22: 11 | K22: =IF(VLOOKUP($A$2,INDIRECT("'"&$S22&"'!C6:BC5000"),37+2*K$2,FALSE)=MAX(OFFSET(INDIRECT("'"&$S22&"'!AM6:AM"&MATCH($A$2,INDIRECT("'"&$S22&"'!C1:C5000"),0)),0,2*K$2)),pronos!B23,"") ->  | L22: =IF(VLOOKUP($A$2,INDIRECT("'"&$S22&"'!C6:BC5000"),37+2*L$2,FALSE)=MAX(OFFSET(INDIRECT("'"&$S22&"'!AM6:AM"&MATCH($A$2,INDIRECT("'"&$S22&"'!C1:C5000"),0)),0,2*L$2)),pronos!C23,"") ->  | M22: =IF(VLOOKUP($A$2,INDIRECT("'"&$S22&"'!C6:BC5000"),37+2*M$2,FALSE)=MAX(OFFSET(INDIRECT("'"&$S22&"'!AM6:AM"&MATCH($A$2,INDIRECT("'"&$S22&"'!C1:C5000"),0)),0,2*M$2)),pronos!D23,"") ->  | N22: =IF(VLOOKUP($A$2,INDIRECT("'"&$S22&"'!C6:BC5000"),37+2*N$2,FALSE)=MAX(OFFSET(INDIRECT("'"&$S22&"'!AM6:AM"&MATCH($A$2,INDIRECT("'"&$S22&"'!C1:C5000"),0)),0,2*N$2)),pronos!E23,"") ->  | O22: =IF(VLOOKUP($A$2,INDIRECT("'"&$S22&"'!C6:BC5000"),37+2*O$2,FALSE)=MAX(OFFSET(INDIRECT("'"&$S22&"'!AM6:AM"&MATCH($A$2,INDIRECT("'"&$S22&"'!C1:C5000"),0)),0,2*O$2)),pronos!F23,"") ->  | P22: =IF(VLOOKUP($A$2,INDIRECT("'"&$S22&"'!C6:BC5000"),37+2*P$2,FALSE)=MAX(OFFSET(INDIRECT("'"&$S22&"'!AM6:AM"&MATCH($A$2,INDIRECT("'"&$S22&"'!C1:C5000"),0)),0,2*P$2)),pronos!G23,"") ->  | Q22: =IF(VLOOKUP($A$2,INDIRECT("'"&$S22&"'!C6:BC5000"),37+2*Q$2,FALSE)=MAX(OFFSET(INDIRECT("'"&$S22&"'!AM6:AM"&MATCH($A$2,INDIRECT("'"&$S22&"'!C1:C5000"),0)),0,2*Q$2)),pronos!H23,"") ->  | R22: =IF(VLOOKUP($A$2,INDIRECT("'"&$S22&"'!C6:BC5000"),37+2*R$2,FALSE)=MAX(OFFSET(INDIRECT("'"&$S22&"'!AM6:AM"&MATCH($A$2,INDIRECT("'"&$S22&"'!C1:C5000"),0)),0,2*R$2)),pronos!I23,"") ->  | S22: 20 | U22: =pronos_journalier!U25 -> 4 | V22: =pronos_journalier!V25 -> 2 | W22: =pronos_journalier!W25 -> 4 | X22: =pronos_journalier!X25 -> 3 | Y22: =pronos_journalier!Y25 -> 2 | Z22: =pronos_journalier!Z25 -> 3 | AA22: =pronos_journalier!AA25 -> 1 | AB22: =pronos_journalier!AB25 -> 12 | AD22: 2016-10-22
A23: Tiercé Magazine | B23: 14 | C23: 15 | D23: 17 | E23: 13 | F23: 16 | G23: 10 | H23: 8 | I23: 9 | K23: =IF(VLOOKUP($A$2,INDIRECT("'"&$S23&"'!C6:BC5000"),37+2*K$2,FALSE)=MAX(OFFSET(INDIRECT("'"&$S23&"'!AM6:AM"&MATCH($A$2,INDIRECT("'"&$S23&"'!C1:C5000"),0)),0,2*K$2)),pronos!B24,"") ->  | L23: =IF(VLOOKUP($A$2,INDIRECT("'"&$S23&"'!C6:BC5000"),37+2*L$2,FALSE)=MAX(OFFSET(INDIRECT("'"&$S23&"'!AM6:AM"&MATCH($A$2,INDIRECT("'"&$S23&"'!C1:C5000"),0)),0,2*L$2)),pronos!C24,"") ->  | M23: =IF(VLOOKUP($A$2,INDIRECT("'"&$S23&"'!C6:BC5000"),37+2*M$2,FALSE)=MAX(OFFSET(INDIRECT("'"&$S23&"'!AM6:AM"&MATCH($A$2,INDIRECT("'"&$S23&"'!C1:C5000"),0)),0,2*M$2)),pronos!D24,"") ->  | N23: =IF(VLOOKUP($A$2,INDIRECT("'"&$S23&"'!C6:BC5000"),37+2*N$2,FALSE)=MAX(OFFSET(INDIRECT("'"&$S23&"'!AM6:AM"&MATCH($A$2,INDIRECT("'"&$S23&"'!C1:C5000"),0)),0,2*N$2)),pronos!E24,"") ->  | O23: =IF(VLOOKUP($A$2,INDIRECT("'"&$S23&"'!C6:BC5000"),37+2*O$2,FALSE)=MAX(OFFSET(INDIRECT("'"&$S23&"'!AM6:AM"&MATCH($A$2,INDIRECT("'"&$S23&"'!C1:C5000"),0)),0,2*O$2)),pronos!F24,"") ->  | P23: =IF(VLOOKUP($A$2,INDIRECT("'"&$S23&"'!C6:BC5000"),37+2*P$2,FALSE)=MAX(OFFSET(INDIRECT("'"&$S23&"'!AM6:AM"&MATCH($A$2,INDIRECT("'"&$S23&"'!C1:C5000"),0)),0,2*P$2)),pronos!G24,"") ->  | Q23: =IF(VLOOKUP($A$2,INDIRECT("'"&$S23&"'!C6:BC5000"),37+2*Q$2,FALSE)=MAX(OFFSET(INDIRECT("'"&$S23&"'!AM6:AM"&MATCH($A$2,INDIRECT("'"&$S23&"'!C1:C5000"),0)),0,2*Q$2)),pronos!H24,"") ->  | R23: =IF(VLOOKUP($A$2,INDIRECT("'"&$S23&"'!C6:BC5000"),37+2*R$2,FALSE)=MAX(OFFSET(INDIRECT("'"&$S23&"'!AM6:AM"&MATCH($A$2,INDIRECT("'"&$S23&"'!C1:C5000"),0)),0,2*R$2)),pronos!I24,"") ->  | S23: 21 | U23: =pronos_journalier!U26 -> 2 | V23: =pronos_journalier!V26 -> 2 | W23: =pronos_journalier!W26 -> 3 | X23: =pronos_journalier!X26 -> 3 | Y23: =pronos_journalier!Y26 -> 12 | Z23: =pronos_journalier!Z26 -> 1 | AA23: =pronos_journalier!AA26 -> 1 | AB23: =pronos_journalier!AB26 -> 7 | AD23: 2016-10-23
A24: Tiercé-Magazine.com | B24: 14 | C24: 17 | D24: 6 | E24: 7 | F24: 10 | G24: 9 | H24: 8 | I24: 13 | K24: =IF(VLOOKUP($A$2,INDIRECT("'"&$S24&"'!C6:BC5000"),37+2*K$2,FALSE)=MAX(OFFSET(INDIRECT("'"&$S24&"'!AM6:AM"&MATCH($A$2,INDIRECT("'"&$S24&"'!C1:C5000"),0)),0,2*K$2)),pronos!B25,"") ->  | L24: =IF(VLOOKUP($A$2,INDIRECT("'"&$S24&"'!C6:BC5000"),37+2*L$2,FALSE)=MAX(OFFSET(INDIRECT("'"&$S24&"'!AM6:AM"&MATCH($A$2,INDIRECT("'"&$S24&"'!C1:C5000"),0)),0,2*L$2)),pronos!C25,"") ->  | M24: =IF(VLOOKUP($A$2,INDIRECT("'"&$S24&"'!C6:BC5000"),37+2*M$2,FALSE)=MAX(OFFSET(INDIRECT("'"&$S24&"'!AM6:AM"&MATCH($A$2,INDIRECT("'"&$S24&"'!C1:C5000"),0)),0,2*M$2)),pronos!D25,"") ->  | N24: =IF(VLOOKUP($A$2,INDIRECT("'"&$S24&"'!C6:BC5000"),37+2*N$2,FALSE)=MAX(OFFSET(INDIRECT("'"&$S24&"'!AM6:AM"&MATCH($A$2,INDIRECT("'"&$S24&"'!C1:C5000"),0)),0,2*N$2)),pronos!E25,"") ->  | O24: =IF(VLOOKUP($A$2,INDIRECT("'"&$S24&"'!C6:BC5000"),37+2*O$2,FALSE)=MAX(OFFSET(INDIRECT("'"&$S24&"'!AM6:AM"&MATCH($A$2,INDIRECT("'"&$S24&"'!C1:C5000"),0)),0,2*O$2)),pronos!F25,"") ->  | P24: =IF(VLOOKUP($A$2,INDIRECT("'"&$S24&"'!C6:BC5000"),37+2*P$2,FALSE)=MAX(OFFSET(INDIRECT("'"&$S24&"'!AM6:AM"&MATCH($A$2,INDIRECT("'"&$S24&"'!C1:C5000"),0)),0,2*P$2)),pronos!G25,"") ->  | Q24: =IF(VLOOKUP($A$2,INDIRECT("'"&$S24&"'!C6:BC5000"),37+2*Q$2,FALSE)=MAX(OFFSET(INDIRECT("'"&$S24&"'!AM6:AM"&MATCH($A$2,INDIRECT("'"&$S24&"'!C1:C5000"),0)),0,2*Q$2)),pronos!H25,"") ->  | R24: =IF(VLOOKUP($A$2,INDIRECT("'"&$S24&"'!C6:BC5000"),37+2*R$2,FALSE)=MAX(OFFSET(INDIRECT("'"&$S24&"'!AM6:AM"&MATCH($A$2,INDIRECT("'"&$S24&"'!C1:C5000"),0)),0,2*R$2)),pronos!I25,"") ->  | S24: 22 | U24: =pronos_journalier!U27 -> 2 | V24: =pronos_journalier!V27 -> 4 | W24: =pronos_journalier!W27 -> 5 | X24: =pronos_journalier!X27 -> 3 | Y24: =pronos_journalier!Y27 -> 2 | Z24: =pronos_journalier!Z27 -> 3 | AA24: =pronos_journalier!AA27 -> 1 | AB24: =pronos_journalier!AB27 -> 7 | AD24: 2016-10-24
A25: Tropiques FM | B25: 17 | C25: 10 | D25: 7 | E25: 6 | F25: 8 | G25: 14 | H25: 13 | I25: 15 | K25: =IF(VLOOKUP($A$2,INDIRECT("'"&$S25&"'!C6:BC5000"),37+2*K$2,FALSE)=MAX(OFFSET(INDIRECT("'"&$S25&"'!AM6:AM"&MATCH($A$2,INDIRECT("'"&$S25&"'!C1:C5000"),0)),0,2*K$2)),pronos!B26,"") ->  | L25: =IF(VLOOKUP($A$2,INDIRECT("'"&$S25&"'!C6:BC5000"),37+2*L$2,FALSE)=MAX(OFFSET(INDIRECT("'"&$S25&"'!AM6:AM"&MATCH($A$2,INDIRECT("'"&$S25&"'!C1:C5000"),0)),0,2*L$2)),pronos!C26,"") ->  | M25: =IF(VLOOKUP($A$2,INDIRECT("'"&$S25&"'!C6:BC5000"),37+2*M$2,FALSE)=MAX(OFFSET(INDIRECT("'"&$S25&"'!AM6:AM"&MATCH($A$2,INDIRECT("'"&$S25&"'!C1:C5000"),0)),0,2*M$2)),pronos!D26,"") ->  | N25: =IF(VLOOKUP($A$2,INDIRECT("'"&$S25&"'!C6:BC5000"),37+2*N$2,FALSE)=MAX(OFFSET(INDIRECT("'"&$S25&"'!AM6:AM"&MATCH($A$2,INDIRECT("'"&$S25&"'!C1:C5000"),0)),0,2*N$2)),pronos!E26,"") ->  | O25: =IF(VLOOKUP($A$2,INDIRECT("'"&$S25&"'!C6:BC5000"),37+2*O$2,FALSE)=MAX(OFFSET(INDIRECT("'"&$S25&"'!AM6:AM"&MATCH($A$2,INDIRECT("'"&$S25&"'!C1:C5000"),0)),0,2*O$2)),pronos!F26,"") ->  | P25: =IF(VLOOKUP($A$2,INDIRECT("'"&$S25&"'!C6:BC5000"),37+2*P$2,FALSE)=MAX(OFFSET(INDIRECT("'"&$S25&"'!AM6:AM"&MATCH($A$2,INDIRECT("'"&$S25&"'!C1:C5000"),0)),0,2*P$2)),pronos!G26,"") ->  | Q25: =IF(VLOOKUP($A$2,INDIRECT("'"&$S25&"'!C6:BC5000"),37+2*Q$2,FALSE)=MAX(OFFSET(INDIRECT("'"&$S25&"'!AM6:AM"&MATCH($A$2,INDIRECT("'"&$S25&"'!C1:C5000"),0)),0,2*Q$2)),pronos!H26,"") ->  | R25: =IF(VLOOKUP($A$2,INDIRECT("'"&$S25&"'!C6:BC5000"),37+2*R$2,FALSE)=MAX(OFFSET(INDIRECT("'"&$S25&"'!AM6:AM"&MATCH($A$2,INDIRECT("'"&$S25&"'!C1:C5000"),0)),0,2*R$2)),pronos!I26,"") ->  | S25: 23 | U25: =pronos_journalier!U28 -> 1 | V25: =pronos_journalier!V28 -> 2 | W25: =pronos_journalier!W28 -> 2 | X25: =pronos_journalier!X28 -> 6 | Y25: =pronos_journalier!Y28 -> 5 | Z25: =pronos_journalier!Z28 -> 3 | AA25: =pronos_journalier!AA28 -> 8 | AB25: =pronos_journalier!AB28 -> 1 | AD25: 2016-10-25
A26: Week-End | B26: 14 | C26: 15 | D26: 8 | E26: 6 | F26: 17 | G26: 9 | H26: 7 | I26: 18 | K26: =IF(VLOOKUP($A$2,INDIRECT("'"&$S26&"'!C6:BC5000"),37+2*K$2,FALSE)=MAX(OFFSET(INDIRECT("'"&$S26&"'!AM6:AM"&MATCH($A$2,INDIRECT("'"&$S26&"'!C1:C5000"),0)),0,2*K$2)),pronos!B27,"") ->  | L26: =IF(VLOOKUP($A$2,INDIRECT("'"&$S26&"'!C6:BC5000"),37+2*L$2,FALSE)=MAX(OFFSET(INDIRECT("'"&$S26&"'!AM6:AM"&MATCH($A$2,INDIRECT("'"&$S26&"'!C1:C5000"),0)),0,2*L$2)),pronos!C27,"") ->  | M26: =IF(VLOOKUP($A$2,INDIRECT("'"&$S26&"'!C6:BC5000"),37+2*M$2,FALSE)=MAX(OFFSET(INDIRECT("'"&$S26&"'!AM6:AM"&MATCH($A$2,INDIRECT("'"&$S26&"'!C1:C5000"),0)),0,2*M$2)),pronos!D27,"") ->  | N26: =IF(VLOOKUP($A$2,INDIRECT("'"&$S26&"'!C6:BC5000"),37+2*N$2,FALSE)=MAX(OFFSET(INDIRECT("'"&$S26&"'!AM6:AM"&MATCH($A$2,INDIRECT("'"&$S26&"'!C1:C5000"),0)),0,2*N$2)),pronos!E27,"") ->  | O26: =IF(VLOOKUP($A$2,INDIRECT("'"&$S26&"'!C6:BC5000"),37+2*O$2,FALSE)=MAX(OFFSET(INDIRECT("'"&$S26&"'!AM6:AM"&MATCH($A$2,INDIRECT("'"&$S26&"'!C1:C5000"),0)),0,2*O$2)),pronos!F27,"") ->  | P26: =IF(VLOOKUP($A$2,INDIRECT("'"&$S26&"'!C6:BC5000"),37+2*P$2,FALSE)=MAX(OFFSET(INDIRECT("'"&$S26&"'!AM6:AM"&MATCH($A$2,INDIRECT("'"&$S26&"'!C1:C5000"),0)),0,2*P$2)),pronos!G27,"") ->  | Q26: =IF(VLOOKUP($A$2,INDIRECT("'"&$S26&"'!C6:BC5000"),37+2*Q$2,FALSE)=MAX(OFFSET(INDIRECT("'"&$S26&"'!AM6:AM"&MATCH($A$2,INDIRECT("'"&$S26&"'!C1:C5000"),0)),0,2*Q$2)),pronos!H27,"") ->  | R26: =IF(VLOOKUP($A$2,INDIRECT("'"&$S26&"'!C6:BC5000"),37+2*R$2,FALSE)=MAX(OFFSET(INDIRECT("'"&$S26&"'!AM6:AM"&MATCH($A$2,INDIRECT("'"&$S26&"'!C1:C5000"),0)),0,2*R$2)),pronos!I27,"") ->  | S26: 24 | U26: =pronos_journalier!U29 -> 4 | V26: =pronos_journalier!V29 -> 2 | W26: =pronos_journalier!W29 -> 1 | X26: =pronos_journalier!X29 -> 9 | Y26: =pronos_journalier!Y29 -> 5 | Z26: =pronos_journalier!Z29 -> 6 | AA26: =pronos_journalier!AA29 -> 3 | AB26: =pronos_journalier!AB29 -> 9 | AD26: 2016-10-26
A27: Week-End-Turf.com | B27: 17 | C27: 15 | D27: 16 | E27: 14 | F27: 10 | G27: 3 | H27: 7 | I27: 6 | K27: =IF(VLOOKUP($A$2,INDIRECT("'"&$S27&"'!C6:BC5000"),37+2*K$2,FALSE)=MAX(OFFSET(INDIRECT("'"&$S27&"'!AM6:AM"&MATCH($A$2,INDIRECT("'"&$S27&"'!C1:C5000"),0)),0,2*K$2)),pronos!B28,"") ->  | L27: =IF(VLOOKUP($A$2,INDIRECT("'"&$S27&"'!C6:BC5000"),37+2*L$2,FALSE)=MAX(OFFSET(INDIRECT("'"&$S27&"'!AM6:AM"&MATCH($A$2,INDIRECT("'"&$S27&"'!C1:C5000"),0)),0,2*L$2)),pronos!C28,"") ->  | M27: =IF(VLOOKUP($A$2,INDIRECT("'"&$S27&"'!C6:BC5000"),37+2*M$2,FALSE)=MAX(OFFSET(INDIRECT("'"&$S27&"'!AM6:AM"&MATCH($A$2,INDIRECT("'"&$S27&"'!C1:C5000"),0)),0,2*M$2)),pronos!D28,"") ->  | N27: =IF(VLOOKUP($A$2,INDIRECT("'"&$S27&"'!C6:BC5000"),37+2*N$2,FALSE)=MAX(OFFSET(INDIRECT("'"&$S27&"'!AM6:AM"&MATCH($A$2,INDIRECT("'"&$S27&"'!C1:C5000"),0)),0,2*N$2)),pronos!E28,"") ->  | O27: =IF(VLOOKUP($A$2,INDIRECT("'"&$S27&"'!C6:BC5000"),37+2*O$2,FALSE)=MAX(OFFSET(INDIRECT("'"&$S27&"'!AM6:AM"&MATCH($A$2,INDIRECT("'"&$S27&"'!C1:C5000"),0)),0,2*O$2)),pronos!F28,"") ->  | P27: =IF(VLOOKUP($A$2,INDIRECT("'"&$S27&"'!C6:BC5000"),37+2*P$2,FALSE)=MAX(OFFSET(INDIRECT("'"&$S27&"'!AM6:AM"&MATCH($A$2,INDIRECT("'"&$S27&"'!C1:C5000"),0)),0,2*P$2)),pronos!G28,"") ->  | Q27: =IF(VLOOKUP($A$2,INDIRECT("'"&$S27&"'!C6:BC5000"),37+2*Q$2,FALSE)=MAX(OFFSET(INDIRECT("'"&$S27&"'!AM6:AM"&MATCH($A$2,INDIRECT("'"&$S27&"'!C1:C5000"),0)),0,2*Q$2)),pronos!H28,"") ->  | R27: =IF(VLOOKUP($A$2,INDIRECT("'"&$S27&"'!C6:BC5000"),37+2*R$2,FALSE)=MAX(OFFSET(INDIRECT("'"&$S27&"'!AM6:AM"&MATCH($A$2,INDIRECT("'"&$S27&"'!C1:C5000"),0)),0,2*R$2)),pronos!I28,"") ->  | S27: 25 | U27: =pronos_journalier!U30 -> 1 | V27: =pronos_journalier!V30 -> 4 | W27: =pronos_journalier!W30 -> 4 | X27: =pronos_journalier!X30 -> 2 | Y27: =pronos_journalier!Y30 -> 1 | Z27: =pronos_journalier!Z30 -> 23 | AA27: =pronos_journalier!AA30 -> 9 | AB27: =pronos_journalier!AB30 -> 20 | AD27: 2016-10-27
AD28: 2016-10-28
AD29: 2016-10-29
AD30: 2016-10-30
AD31: 2016-10-31
AD32: 2016-11-01
AD33: 2016-11-02
AD34: 2016-11-03
AD35: 2016-11-04
AD36: 2016-11-05
AD37: 2016-11-06
AD38: 2016-11-07
AD39: 2016-11-08
AD40: 2016-11-09
AD41: 2016-11-10
AD42: 2016-11-11
AD43: 2016-11-12
AD44: 2016-11-13
AD45: 2016-11-14
AD46: 2016-11-15
AD47: 2016-11-16
AD48: 2016-11-17
AD49: 2016-11-18
AD50: 2016-11-19
AD51: 2016-11-20
AD52: 2016-11-21
AD53: 2016-11-22
AD54: 2016-11-23
AD55: 2016-11-24
AD56: 2016-11-25
AD57: 2016-11-26
AD58: 2016-11-27
AD59: 2016-11-28
AD60: 2016-11-29
AD61: 2016-11-30
AD62: 2016-12-01
AD63: 2016-12-02
AD64: 2016-12-03
AD65: 2016-12-04
AD66: 2016-12-05
AD67: 2016-12-06
AD68: 2016-12-07
AD69: 2016-12-08
AD70: 2016-12-09
AD71: 2016-12-10
AD72: 2016-12-11
AD73: 2016-12-12
AD74: 2016-12-13
AD75: 2016-12-14
AD76: 2016-12-15
AD77: 2016-12-16
AD78: 2016-12-17
AD79: 2016-12-18
AD80: 2016-12-19
AD81: 2016-12-20
AD82: 2016-12-21
AD83: 2016-12-22
AD84: 2016-12-23
AD85: 2016-12-24
AD86: 2016-12-25
AD87: 2016-12-26
AD88: 2016-12-27
AD89: 2016-12-28
AD90: 2016-12-29
AD91: 2016-12-30
AD92: 2016-12-31
AD93: 2017-01-01
AD94: 2017-01-02
AD95: 2017-01-03
AD96: 2017-01-04
AD97: 2017-01-05
AD98: 2017-01-06
AD99: 2017-01-07
AD100: 2017-01-08
AD101: 2017-01-09
AD102: 2017-01-10
AD103: 2017-01-11
AD104: 2017-01-12
AD105: 2017-01-13
AD106: 2017-01-14
AD107: 2017-01-15
AD108: 2017-01-16
AD109: 2017-01-17
AD110: 2017-01-18
AD111: 2017-01-19
AD112: 2017-01-20
AD113: 2017-01-21
AD114: 2017-01-22
AD115: 2017-01-23
AD116: 2017-01-24
AD117: 2017-01-25
AD118: 2017-01-26
AD119: 2017-01-27
AD120: 2017-01-28
AD121: 2017-01-29
AD122: 2017-01-30
AD123: 2017-01-31
AD124: 2017-02-01
AD125: 2017-02-02
AD126: 2017-02-03
AD127: 2017-02-04
AD128: 2017-02-05
AD129: 2017-02-06
AD130: 2017-02-07
AD131: 2017-02-08
AD132: 2017-02-09
AD133: 2017-02-10
AD134: 2017-02-11
AD135: 2017-02-12
AD136: 2017-02-13
AD137: 2017-02-14
AD138: 2017-02-15
AD139: 2017-02-16
AD140: 2017-02-17
AD141: 2017-02-18
AD142: 2017-02-19
AD143: 2017-02-20
AD144: 2017-02-21
AD145: 2017-02-22
AD146: 2017-02-23
AD147: 2017-02-24
AD148: 2017-02-25
AD149: 2017-02-26
AD150: 2017-02-27
AD151: 2017-02-28
AD152: 2017-03-01
AD153: 2017-03-02
AD154: 2017-03-03
AD155: 2017-03-04
AD156: 2017-03-05
AD157: 2017-03-06
AD158: 2017-03-07
AD159: 2017-03-08
AD160: 2017-03-09
AD161: 2017-03-10
AD162: 2017-03-11
AD163: 2017-03-12
AD164: 2017-03-13
AD165: 2017-03-14
AD166: 2017-03-15
AD167: 2017-03-16
AD168: 2017-03-17
AD169: 2017-03-18
AD170: 2017-03-19
AD171: 2017-03-20
AD172: 2017-03-21
AD173: 2017-03-22
AD174: 2017-03-23
AD175: 2017-03-24
AD176: 2017-03-25
AD177: 2017-03-26
AD178: 2017-03-27
AD179: 2017-03-28
AD180: 2017-03-29
AD181: 2017-03-30
AD182: 2017-03-31
AD183: 2017-04-01
AD184: 2017-04-02
AD185: 2017-04-03
AD186: 2017-04-04
AD187: 2017-04-05
AD188: 2017-04-06
AD189: 2017-04-07
AD190: 2017-04-08
AD191: 2017-04-09
AD192: 2017-04-10
AD193: 2017-04-11
AD194: 2017-04-12
AD195: 2017-04-13
AD196: 2017-04-14
AD197: 2017-04-15
AD198: 2017-04-16
AD199: 2017-04-17
AD200: 2017-04-18
... 326 more rows

Sheet pronos_journalier
A1: 1
B4: SYNTHESE POUR LA JOURNEE DU : | D4: 2016-12-31 | N4: TIERCE | P4: QUARTE | R4: QUINTE+
N5: Nbre | O5: Ecart | P5: Nbre | Q5: Ecart | R5: Nbre | S5: Ecart | U5: 1 | V5: 2 | W5: 3 | X5: 4 | Y5: 5 | Z5: 6 | AA5: 7 | AB5: 8 | AC5: T | AD5: Q | AE5: Q+ | AF5: TOTAL
B6: 1 | C6: AIP | D6: 14 | E6: 15 | F6: 17 | G6: 9 | H6: 10 | I6: 13 | J6: 7 | K6: 18 | N6: =IFERROR(SUM(INDIRECT("'"&TEXT(ROW(A1),"00")&"'!AH7:AH1000")),"") -> 332 | O6: =IFERROR(IF(Dte>TODAY(),"",VLOOKUP(Dte,INDIRECT("'"&TEXT(ROW(A1),"00")&"'!$C$7:$AM$37"),33,FALSE)),"") ->  | P6: =IFERROR(SUM(INDIRECT("'"&TEXT(ROW(A1),"00")&"'!AJ7:AJ1000")),"") -> 200 | Q6: =IFERROR(IF(Dte>TODAY(),"",VLOOKUP(Dte,INDIRECT("'"&TEXT(ROW(A1),"00")&"'!$C$7:$AM$37"),35,FALSE)),"") ->  | R6: =IFERROR(SUM(INDIRECT("'"&TEXT(ROW(A1),"00")&"'!AL7:AL1000")),"") -> 109 | S6: =IFERROR(IF(Dte>TODAY(),"",VLOOKUP(Dte,INDIRECT("'"&TEXT(ROW(A1),"00")&"'!$C$7:$AM$37"),37,FALSE)),"") ->  | T6: 1 | U6: =LOOKUP(9^9,INDIRECT("'"&TEXT(ROW(A1),"00")&"'!$AO$6:$AO$1000")) -> 2 | V6: =LOOKUP(9^9,INDIRECT("'"&TEXT(ROW(B1),"00")&"'!$Aq$6:$AQ$1000")) -> 3 | W6: =LOOKUP(9^9,INDIRECT("'"&TEXT(ROW(C1),"00")&"'!$AS$6:$AS$1000")) -> 8 | X6: =LOOKUP(9^9,INDIRECT("'"&TEXT(ROW(D1),"00")&"'!$AU$6:$AU$1000")) -> 4 | Y6: =LOOKUP(9^9,INDIRECT("'"&TEXT(ROW(E1),"00")&"'!$AW$6:$AW$1000")) -> 1 | Z6: =LOOKUP(9^9,INDIRECT("'"&TEXT(ROW(F1),"00")&"'!$AY$6:$AY$1000")) -> 9 | AA6: =LOOKUP(9^9,INDIRECT("'"&TEXT(ROW(G1),"00")&"'!$BA$6:$BA$1000")) -> 3 | AB6: =LOOKUP(9^9,INDIRECT("'"&TEXT(ROW(H1),"00")&"'!$BC$6:$BC$1000")) -> 1 | AC6: =SUM('01'!$AH$1) -> 137 | AD6: ='01'!$AJ$1 -> 76 | AE6: ='01'!$AL$1 -> 40 | AF6: =SUM(AC6:AE6) -> 253
B7: 2 | C7: Bilto | D7: 15 | E7: 17 | F7: 14 | G7: 10 | H7: 13 | I7: 16 | J7: 6 | K7: 2 | N7: 355 | P7: 211 | R7: 112 | T7: 2 | U7: =LOOKUP(9^9,INDIRECT("'"&TEXT(ROW(A2),"00")&"'!$AO$6:$AO$1000")) -> 2 | V7: 2 | W7: 3 | X7: =LOOKUP(9^9,INDIRECT("'"&TEXT(ROW(D2),"00")&"'!$AU$6:$AU$1000")) -> 3 | Y7: =LOOKUP(9^9,INDIRECT("'"&TEXT(ROW(E2),"00")&"'!$AW$6:$AW$1000")) -> 1 | Z7: =LOOKUP(9^9,INDIRECT("'"&TEXT(ROW(F2),"00")&"'!$AY$6:$AY$1000")) -> 3 | AA7: =LOOKUP(9^9,INDIRECT("'"&TEXT(ROW(G2),"00")&"'!$BA$6:$BA$1000")) -> 17 | AB7: =LOOKUP(9^9,INDIRECT("'"&TEXT(ROW(H2),"00")&"'!$BC$6:$BC$1000")) -> 1 | AC7: =SUM('02'!$AH$1) -> 154 | AD7: ='02'!$AJ$1 -> 86 | AE7: ='02'!$AL$1 -> 45 | AF7: =SUM(AC7:AE7) -> 285
B8: 3 | C8: Bilto.fr | D8: 14 | E8: 17 | F8: 15 | G8: 16 | H8: 6 | I8: 18 | J8: 13 | K8: 9 | N8: 357 | P8: 222 | R8: 128 | T8: 3 | U8: 2 | V8: 2 | W8: 3 | X8: 4 | Y8: 5 | Z8: 3 | AA8: 4 | AB8: 1 | AC8: =SUM('03'!$AH$1) -> 150 | AD8: ='03'!$AJ$1 -> 84 | AE8: ='03'!$AL$1 -> 46 | AF8: 280
B9: 4 | C9: Europe I | D9: 2 | E9: 17 | F9: 14 | G9: 1 | H9: 6 | I9: 8 | J9: 10 | K9: 16 | N9: 318 | P9: 179 | R9: 94 | T9: 4 | U9: 2 | V9: 4 | W9: 1 | X9: 3 | Y9: 10 | Z9: 14 | AA9: 9 | AB9: 2 | AC9: =SUM('04'!$AH$1) -> 135 | AD9: ='04'!$AJ$1 -> 76 | AE9: ='04'!$AL$1 -> 40 | AF9: 251
B10: 5 | C10: La Gazette des Courses | D10: 15 | E10: 7 | F10: 13 | G10: 16 | H10: 11 | I10: 17 | J10: 6 | K10: 2 | N10: 322 | P10: 187 | R10: 90 | T10: 5 | U10: 2 | V10: 1 | W10: 2 | X10: 4 | Y10: 8 | Z10: 1 | AA10: 1 | AB10: 6 | AC10: =SUM('05'!$AH$1) -> 138 | AD10: ='05'!$AJ$1 -> 77 | AE10: ='05'!$AL$1 -> 42 | AF10: 257
B11: 6 | C11: Le Dauphiné Libéré | D11: 14 | E11: 17 | F11: 6 | G11: 7 | H11: 10 | I11: 9 | J11: 8 | K11: 13 | N11: 326 | P11: 185 | R11: 94 | T11: 6 | U11: 2 | V11: 3 | W11: 2 | X11: 3 | Y11: 4 | Z11: 3 | AA11: 1 | AB11: 11 | AC11: =SUM('06'!$AH$1) -> 143 | AD11: ='06'!$AJ$1 -> 71 | AE11: ='06'!$AL$1 -> 41 | AF11: 255
B12: 7 | C12: Le Parisien | D12: 14 | E12: 17 | F12: 10 | G12: 13 | H12: 15 | I12: 16 | J12: 18 | K12: 6 | N12: 332 | P12: 192 | R12: 110 | T12: 7 | U12: 2 | V12: 3 | W12: 3 | X12: 6 | Y12: 2 | Z12: 2 | AA12: 1 | AB12: 12 | AC12: =SUM('07'!$AH$1) -> 136 | AD12: ='07'!$AJ$1 -> 78 | AE12: ='07'!$AL$1 -> 37 | AF12: 251
B13: 8 | C13: Le Républicain Lorrain | D13: 14 | E13: 17 | F13: 7 | G13: 10 | H13: 15 | I13: 13 | J13: 18 | K13: 6 | N13: =IFERROR(SUM(INDIRECT("'"&TEXT(ROW(A8),"00")&"'!AH7:AH1000")),"") -> 332 | O13: =IFERROR(IF(Dte>TODAY(),"",VLOOKUP(Dte,INDIRECT("'"&TEXT(ROW(A8),"00")&"'!$C$7:$AM$37"),33,FALSE)),"") ->  | P13: 200 | Q13: =IFERROR(IF(Dte>TODAY(),"",VLOOKUP(Dte,INDIRECT("'"&TEXT(ROW(A8),"00")&"'!$C$7:$AM$37"),35,FALSE)),"") ->  | R13: 101 | S13: =IFERROR(IF(Dte>TODAY(),"",VLOOKUP(Dte,INDIRECT("'"&TEXT(ROW(A8),"00")&"'!$C$7:$AM$37"),37,FALSE)),"") ->  | T13: 8 | U13: 2 | V13: 4 | W13: 1 | X13: 4 | Y13: 8 | Z13: 3 | AA13: 3 | AB13: 1 | AC13: =SUM('08'!$AH$1) -> 144 | AD13: ='08'!$AJ$1 -> 80 | AE13: ='08'!$AL$1 -> 50 | AF13: 274
B14: 9 | C14: Geny,com | D14: 14 | E14: 17 | F14: 7 | G14: 18 | H14: 13 | I14: 15 | J14: 10 | K14: 6 | N14: =IFERROR(SUM(INDIRECT("'"&TEXT(ROW(A9),"00")&"'!AH7:AH1000")),"") -> 323 | O14: =IFERROR(IF(Dte>TODAY(),"",VLOOKUP(Dte,INDIRECT("'"&TEXT(ROW(A9),"00")&"'!$C$7:$AM$37"),33,FALSE)),"") ->  | P14: 185 | Q14: =IFERROR(IF(Dte>TODAY(),"",VLOOKUP(Dte,INDIRECT("'"&TEXT(ROW(A9),"00")&"'!$C$7:$AM$37"),35,FALSE)),"") ->  | R14: 97 | S14: =IFERROR(IF(Dte>TODAY(),"",VLOOKUP(Dte,INDIRECT("'"&TEXT(ROW(A9),"00")&"'!$C$7:$AM$37"),37,FALSE)),"") ->  | T14: 9 | U14: =LOOKUP(9^9,INDIRECT("'"&TEXT(ROW(A9),"00")&"'!$AO$6:$AO$900")) -> 2 | V14: =LOOKUP(9^9,INDIRECT("'"&TEXT(ROW(B9),"00")&"'!$Aq$6:$AQ$900")) -> 3 | W14: =LOOKUP(9^9,INDIRECT("'"&TEXT(ROW(C9),"00")&"'!$AS$6:$AS$900")) -> 5 | X14: =LOOKUP(9^9,INDIRECT("'"&TEXT(ROW(D9),"00")&"'!$AU$6:$AU$900")) -> 6 | Y14: =LOOKUP(9^9,INDIRECT("'"&TEXT(ROW(E9),"00")&"'!$AW$6:$AW$900")) -> 2 | Z14: =LOOKUP(9^9,INDIRECT("'"&TEXT(ROW(F9),"00")&"'!$AY$6:$AY$900")) -> 10 | AA14: =LOOKUP(9^9,INDIRECT("'"&TEXT(ROW(G9),"00")&"'!$BA$6:$BA$900")) -> 1 | AB14: =LOOKUP(9^9,INDIRECT("'"&TEXT(ROW(H9),"00")&"'!$BC$6:$BC$900")) -> 4 | AC14: =SUM('09'!$AH$1) -> 135 | AD14: ='09'!$AJ$1 -> 65 | AE14: ='09'!$AL$1 -> 33 | AF14: 233
B15: 10 | C15: Ouest-France | D15: 14 | E15: 17 | F15: 7 | G15: 10 | H15: 8 | I15: 1 | J15: 16 | K15: 9 | N15: =IFERROR(SUM(INDIRECT("'"&TEXT(ROW(A10),"00")&"'!AH7:AH1000")),"") -> 303 | O15: =IFERROR(IF(Dte>TODAY(),"",VLOOKUP(Dte,INDIRECT("'"&TEXT(ROW(A10),"00")&"'!$C$7:$AM$37"),33,FALSE)),"") ->  | P15: 174 | Q15: =IFERROR(IF(Dte>TODAY(),"",VLOOKUP(Dte,INDIRECT("'"&TEXT(ROW(A10),"00")&"'!$C$7:$AM$37"),35,FALSE)),"") ->  | R15: 95 | S15: =IFERROR(IF(Dte>TODAY(),"",VLOOKUP(Dte,INDIRECT("'"&TEXT(ROW(A10),"00")&"'!$C$7:$AM$37"),37,FALSE)),"") ->  | T15: 10 | U15: 4 | V15: 2 | W15: 3 | X15: 3 | Y15: 6 | Z15: 1 | AA15: 8 | AB15: 12 | AC15: =SUM('10'!$AH$1) -> 136 | AD15: ='10'!$AJ$1 -> 78 | AE15: ='10'!$AL$1 -> 43 | AF15: 257
B16: 11 | C16: Paris Courses | D16: 14 | E16: 17 | F16: 15 | G16: 3 | H16: 6 | I16: 10 | J16: 9 | K16: 18 | N16: =IFERROR(SUM(INDIRECT("'"&TEXT(ROW(A11),"00")&"'!AH7:AH1000")),"") -> 335 | O16: =IFERROR(IF(Dte>TODAY(),"",VLOOKUP(Dte,INDIRECT("'"&TEXT(ROW(A11),"00")&"'!$C$7:$AM$37"),33,FALSE)),"") ->  | P16: 195 | Q16: =IFERROR(IF(Dte>TODAY(),"",VLOOKUP(Dte,INDIRECT("'"&TEXT(ROW(A11),"00")&"'!$C$7:$AM$37"),35,FALSE)),"") ->  | R16: 104 | S16: =IFERROR(IF(Dte>TODAY(),"",VLOOKUP(Dte,INDIRECT("'"&TEXT(ROW(A11),"00")&"'!$C$7:$AM$37"),37,FALSE)),"") ->  | T16: 11 | U16: 2 | V16: 4 | W16: 3 | X16: 1 | Y16: 2 | Z16: 10 | AA16: 5 | AB16: 12 | AC16: =SUM('11'!$AH$1) -> 147 | AD16: ='11'!$AJ$1 -> 80 | AE16: ='11'!$AL$1 -> 46 | AF16: 273
B17: 12 | C17: Paris-Courses.com | D17: 14 | E17: 17 | F17: 110 | G17: 13 | H17: 15 | I17: 7 | J17: 9 | K17: 16 | N17: =IFERROR(SUM(INDIRECT("'"&TEXT(ROW(A12),"00")&"'!AH7:AH1000")),"") -> 338 | O17: =IFERROR(IF(Dte>TODAY(),"",VLOOKUP(Dte,INDIRECT("'"&TEXT(ROW(A12),"00")&"'!$C$7:$AM$37"),33,FALSE)),"") ->  | P17: 195 | Q17: =IFERROR(IF(Dte>TODAY(),"",VLOOKUP(Dte,INDIRECT("'"&TEXT(ROW(A12),"00")&"'!$C$7:$AM$37"),35,FALSE)),"") ->  | R17: 106 | S17: =IFERROR(IF(Dte>TODAY(),"",VLOOKUP(Dte,INDIRECT("'"&TEXT(ROW(A12),"00")&"'!$C$7:$AM$37"),37,FALSE)),"") ->  | T17: 12 | U17: 2 | V17: 2 | W17: 5 | X17: 12 | Y17: 3 | Z17: 7 | AA17: 1 | AB17: 2 | AC17: =SUM('12'!$AH$1) -> 141 | AD17: ='12'!$AJ$1 -> 66 | AE17: ='12'!$AL$1 -> 39 | AF17: 246
B18: 13 | C18: Paris-Turf | D18: 14 | E18: 17 | F18: 7 | G18: 15 | H18: 10 | I18: 13 | J18: 18 | K18: 9 | N18: 350 | P18: 212 | R18: 116 | T18: 13 | U18: 2 | V18: 2 | W18: 1 | X18: 10 | Y18: 3 | Z18: 3 | AA18: 20 | AB18: 8 | AC18: =SUM('13'!$AH$1) -> 146 | AD18: ='13'!$AJ$1 -> 84 | AE18: ='13'!$AL$1 -> 46 | AF18: 276
B19: 14 | C19: Gény courses | D19: 14 | E19: 6 | F19: 7 | G19: 17 | H19: 9 | I19: 15 | J19: 8 | K19: 10 | N19: 124 | P19: 68 | R19: 32 | T19: 14 | U19: 11 | V19: 2 | W19: 3 | X19: 5 | Y19: 2 | Z19: 2 | AA19: 10 | AB19: 9 | AC19: =SUM('14'!$AH$1) -> 51 | AD19: ='14'!$AJ$1 -> 30 | AE19: ='14'!$AL$1 -> 14 | AF19: 95
B20: 15 | C20: Paris-Turf TIP | D20: 14 | E20: 17 | F20: 6 | G20: 16 | H20: 10 | I20: 15 | J20: 13 | K20: 9 | N20: 142 | P20: 77 | R20: 44 | T20: 15 | U20: 3 | V20: 3 | W20: 2 | X20: 2 | Y20: 4 | Z20: 6 | AA20: 6 | AB20: 8 | AC20: =SUM('15'!$AH$1) -> 62 | AD20: ='15'!$AJ$1 -> 29 | AE20: ='15'!$AL$1 -> 16 | AF20: 107
B21: 16 | C21: Paris-Turf.com | D21: 14 | E21: 17 | F21: 6 | G21: 15 | H21: 7 | I21: 13 | J21: 9 | K21: 10 | N21: 348 | P21: 213 | R21: 117 | T21: 16 | U21: 2 | V21: 4 | W21: 1 | X21: 5 | Y21: 3 | Z21: 14 | AA21: 3 | AB21: 3 | AC21: =SUM('16'!$AH$1) -> 147 | AD21: ='16'!$AJ$1 -> 91 | AE21: ='16'!$AL$1 -> 49 | AF21: 287
B22: 17 | C22: PronoSMART | D22: 17 | E22: 13 | F22: 15 | G22: 9 | H22: 14 | I22: 16 | J22: 18 | K22: 7 | N22: 336 | P22: 192 | R22: 110 | T22: 17 | U22: 1 | V22: 2 | W22: 4 | X22: 4 | Y22: 3 | Z22: 3 | AA22: 10 | AB22: 10 | AC22: =SUM('17'!$AH$1) -> 131 | AD22: ='17'!$AJ$1 -> 70 | AE22: ='17'!$AL$1 -> 40 | AF22: 241
B23: 18 | C23: RTL | D23: 10 | E23: 15 | F23: 17 | G23: 16 | H23: 14 | I23: 8 | J23: 13 | K23: 1 | N23: 294 | P23: 188 | Q23: =IFERROR(IF(Dte>TODAY(),"",VLOOKUP(Dte,INDIRECT("'"&TEXT(ROW(A18),"00")&"'!$C$7:$AM$37"),35,FALSE)),"") ->  | R23: 99 | T23: 18 | U23: 4 | V23: 2 | W23: 4 | X23: 2 | Y23: 5 | Z23: 5 | AA23: 1 | AB23: 11 | AC23: =SUM('18'!$AH$1) -> 125 | AD23: ='18'!$AJ$1 -> 82 | AE23: ='18'!$AL$1 -> 43 | AF23: 250
B24: 19 | C24: Equidia live | D24: 14 | E24: 17 | F24: 8 | G24: 2 | H24: 13 | I24: 15 | J24: 3 | K24: 9 | N24: =IFERROR(SUM(INDIRECT("'"&TEXT(ROW(A19),"00")&"'!AH220:AH1000")),"") -> 236 | O24: =IFERROR(IF(Dte>TODAY(),"",VLOOKUP(Dte,INDIRECT("'"&TEXT(ROW(A19),"00")&"'!$C$220:$AM$3220"),33,FALSE)),"") -> 2 | P24: 185 | Q24: =IFERROR(IF(Dte>TODAY(),"",VLOOKUP(Dte,INDIRECT("'"&TEXT(ROW(A19),"00")&"'!$C$7:$AM$37"),35,FALSE)),"") ->  | R24: 93 | S24: =IFERROR(IF(Dte>TODAY(),"",VLOOKUP(Dte,INDIRECT("'"&TEXT(ROW(A19),"00")&"'!$C$220:$AM$3220"),3220,FALSE)),"") ->  | T24: 19 | U24: 2 | V24: 6 | W24: 6 | X24: 5 | Y24: 2 | Z24: 1 | AA24: 1 | AB24: 10 | AC24: =SUM('19'!$AH$1) -> 133 | AD24: ='19'!$AJ$1 -> 81 | AE24: ='19'!$AL$1 -> 45 | AF24: 259
B25: 20 | C25: Stato Turf | D25: 7 | E25: 11 | F25: 15 | G25: 14 | H25: 6 | I25: 8 | J25: 9 | K25: 11 | N25: 338 | P25: 191 | Q25: =IFERROR(IF(Dte>TODAY(),"",VLOOKUP(Dte,INDIRECT("'"&TEXT(ROW(A20),"00")&"'!$C$7:$AM$37"),35,FALSE)),"") ->  | R25: 107 | T25: 20 | U25: 4 | V25: 2 | W25: 4 | X25: 3 | Y25: 2 | Z25: 3 | AA25: 1 | AB25: 12 | AC25: =SUM('20'!$AH$1) -> 152 | AD25: ='20'!$AJ$1 -> 81 | AE25: ='20'!$AL$1 -> 49 | AF25: 282
B26: 21 | C26: Tiercé Magazine | D26: 14 | E26: 15 | F26: 17 | G26: 13 | H26: 16 | I26: 10 | J26: 8 | K26: 9 | N26: 354 | P26: 207 | R26: 111 | T26: 21 | U26: 2 | V26: 2 | W26: 3 | X26: 3 | Y26: 12 | Z26: 1 | AA26: 1 | AB26: 7 | AC26: =SUM('21'!$AH$1) -> 156 | AD26: ='21'!$AJ$1 -> 85 | AE26: ='21'!$AL$1 -> 47 | AF26: 288
B27: 22 | C27: Tiercé-Magazine.com | D27: 14 | E27: 17 | F27: 6 | G27: 7 | H27: 10 | I27: 9 | J27: 8 | K27: 13 | N27: 348 | P27: 212 | R27: 114 | T27: 22 | U27: 2 | V27: 4 | W27: 5 | X27: 3 | Y27: 2 | Z27: 3 | AA27: 1 | AB27: 7 | AC27: =SUM('22'!$AH$1) -> 142 | AD27: ='22'!$AJ$1 -> 82 | AE27: ='22'!$AL$1 -> 46 | AF27: 270
B28: 23 | C28: Tropiques FM | D28: 17 | E28: 10 | F28: 7 | G28: 6 | H28: 8 | I28: 14 | J28: 13 | K28: 15 | N28: 325 | P28: 174 | R28: 88 | T28: 23 | U28: 1 | V28: 2 | W28: 2 | X28: 6 | Y28: 5 | Z28: 3 | AA28: 8 | AB28: 1 | AC28: =SUM('23'!$AH$1) -> 143 | AD28: ='23'!$AJ$1 -> 80 | AE28: ='23'!$AL$1 -> 42 | AF28: 265
B29: 24 | C29: Week-End | D29: 14 | E29: 15 | F29: 8 | G29: 6 | H29: 17 | I29: 9 | J29: 7 | K29: 18 | N29: 338 | P29: 199 | R29: 107 | T29: 24 | U29: 4 | V29: 2 | W29: 1 | X29: 9 | Y29: 5 | Z29: 6 | AA29: 3 | AB29: 9 | AC29: =SUM('24'!$AH$1) -> 151 | AD29: ='24'!$AJ$1 -> 82 | AE29: ='24'!$AL$1 -> 47 | AF29: 280
B30: 25 | C30: Week-End-Turf.com | D30: 17 | E30: 15 | F30: 16 | G30: 14 | H30: 10 | I30: 3 | J30: 7 | K30: 6 | N30: 303 | P30: 179 | R30: 90 | T30: 25 | U30: 1 | V30: 4 | W30: 4 | X30: 2 | Y30: 1 | Z30: 23 | AA30: 9 | AB30: 20 | AC30: =SUM('25'!$AH$1) -> 131 | AD30: ='25'!$AJ$1 -> 76 | AE30: ='25'!$AL$1 -> 37 | AF30: 244
B31: 26
B32: 27
B33: 28
B34: 29
B35: 30
B36: 31
B37: 32
B38: 33
B39: 34
B40: 35
B41: 36
B42: 37
B43: 38
B44: 39
B45: 40
B46: 41
B47: 42
B48: 43
B49: 44
B50: 45
B51: 46
B52: 47
B53: 48
B54: 49
B55: 50
B56: 51
B57: 52
B58: 53
B59: 54
B60: 55
B61: 56
B62: 57
B63: 58
B64: 59
B65: 60
B66: 61
B67: 62
B68: 63
B69: 64
B70: 65
B71: 66
B72: 67
B73: 68
B74: 69
B75: 70
B76: 71
B77: 72
B78: 73
B79: 74
B80: 75
B81: 76
B82: 77
B83: 78
B84: 79
B85: 80
B86: 81
B87: 82
B88: 83
B89: 84
B90: 85
B91: 86
B92: 87
B93: 88
B94: 89
B95: 90
B96: 91
B97: 92
B98: 93
B99: 94
B100: 95
B101: 96
B102: 97
B103: 98
B104: 99
B105: 100
B106: 101
B107: 102
B108: 103
B109: 104
B110: 105
B111: 106
B112: 107
B113: 108
B114: 109
B115: 110
B116: 111
B117: 112
B118: 113
B119: 114
B120: 115
B121: 116
B122: 117
B123: 118
B124: 119
B125: 120
B126: 121
B127: 122
B128: 123
B129: 124
B130: 125
B131: 126
B132: 127
B133: 128
B134: 129
B135: 130
B136: 131
B137: 132
B138: 133
B139: 134
B140: 135
B141: 136
B142: 137
B143: 138
B144: 139
B145: 140
B146: 141
B147: 142
B148: 143
B149: 144
B150: 145
B151: 146
B152: 147
B153: 148
B154: 149
B155: 150
B156: 151
B157: 152
B158: 153
B159: 154
B160: 155
B161: 156
B162: 157
B163: 158
B164: 159
B165: 160
B166: 161
B167: 162
B168: 163
B169: 164
B170: 165
B171: 166
B172: 167
B173: 168
B174: 169
B175: 170
B176: 171
B177: 172
B178: 173
B179: 174
B180: 175
B181: 176
B182: 177
B183: 178
B184: 179
B185: 180
B186: 181
B187: 182
B188: 183
B189: 184
B190: 185
B191: 186
B192: 187
B193: 188
B194: 189
B195: 190
B196: 191
B197: 192
B198: 193
B199: 194
B200: 195
B201: 196
B202: 197
... 298 more rows

Sheet 01
C1: Agence TIP | AH1: =SUM(AH191:AH556) -> 137 | AJ1: =SUM(AJ191:AJ556) -> 76 | AL1: =SUM(AL191:AL556) -> 40
W2: NUMERO D ARRIVEE | AH2: RESULTATS T.Q.Q+ | AN2: RESULTATS PRONOS SIMPLES PLACES
AC3: 1 | AD3: 2 | AE3: 3 | AF3: 4 | AG3: 5 | AH3: =SUM(AH7:AH470)/MAX($A$7:$A$470) -> 0.4069264069 | AI3: =MAX(AI7:AI470) -> 9 | AJ3: =SUM(AJ7:AJ470)/MAX($A$7:$A$470) -> 0.2380952381 | AK3: =MAX(AK7:AK470) -> 14 | AL3: =SUM(AL7:AL470)/MAX($A$7:$A$470) -> 0.1298701299 | AM3: =MAX(AM7:AM470) -> 24 | AN3: =SUM(AN7:AN495) -> 194 | AO3: =MAX(AO7:AO470) -> 8 | AP3: =SUM(AP7:AP495) -> 164 | AQ3: =MAX(AQ7:AQ470) -> 14 | AR3: =SUM(AR7:AR495) -> 147 | AS3: =MAX(AS7:AS470) -> 19 | AT3: =SUM(AT7:AT495) -> 124 | AU3: =MAX(AU7:AU470) -> 17 | AV3: =SUM(AV7:AV495) -> 132 | AW3: =MAX(AW7:AW470) -> 23 | AX3: =SUM(AX7:AX495) -> 127 | AY3: =MAX(AY7:AY470) -> 14 | AZ3: =SUM(AZ7:AZ495) -> 94 | BA3: =MAX(BA7:BA470) -> 22 | BB3: =SUM(BB7:BB495) -> 86 | BC3: =MAX(BC7:BC470) -> 24
T4: 1 | U4: 2 | V4: 3 | W4: 4 | X4: 5 | Y4: 6 | Z4: 7 | AA4: 8 | AC4: 1 | AD4: 2 | AE4: 3 | AF4: 4 | AG4: 5 | AH4: TIERCE | AJ4: QUARTE | AL4: QUINTE | AN4: 1 | AP4: 2 | AR4: 3 | AT4: 4 | AV4: 5 | AX4: 6 | AZ4: 7 | BB4: 8
C5: dates | AH5: nombre | AI5: ecart | AJ5: nombre | AK5: ecart | AL5: nombre | AM5: ecart | AN5: nbre | AO5: ecart | AP5: nbre | AQ5: ecart | AR5: nbre | AS5: ecart | AT5: nbre | AU5: ecart | AV5: nbre | AW5: ecart | AX5: nbre | AY5: ecart | AZ5: nbre | BA5: ecart | BB5: nbre | BC5: ecart
AI6: 0 | AK6: 0 | AM6: 0 | AO6: 0 | AQ6: 0 | AS6: 0 | AU6: 0 | AW6: 0 | AY6: 0 | BA6: 0 | BC6: 0
A7: =IF(COUNTA(C7:K7)<8,"",MAX(A$6:A6)+1) -> 1 | C7: 2015-07-01 | D7: 14 | E7: 2 | F7: 3 | G7: 6 | H7: 10 | I7: 16 | J7: 12 | K7: 7 | L7: 4 | M7: 7 | N7: 16 | O7: 12 | P7: 14 | T7: =IFERROR(MATCH(D7,L7:P7,0),"") -> 5 | U7: =IFERROR(MATCH(E7,L7:P7,0),"") ->  | V7: =IFERROR(MATCH(F7,L7:P7,0),"") ->  | W7: =IFERROR(MATCH(G7,L7:P7,0),"") ->  | X7: =IFERROR(MATCH(H7,L7:P7,0),"") ->  | Y7: =IFERROR(MATCH(I7,L7:P7,0),"") -> 3 | Z7: =IFERROR(MATCH(J7,L7:P7,0),"") -> 4 | AA7: =IFERROR(MATCH(K7,L7:P7,0),"") -> 2 | AC7: =IFERROR(MATCH(AC$3,$T7:$AA7,0),"") ->  | AD7: 8 | AE7: 6 | AF7: 7 | AG7: 1 | AH7: =IFERROR(IF(BD7=1,"",IF(AND(HLOOKUP(1,T7:AA7,1,FALSE)=1,HLOOKUP(2,T7:AA7,1,FALSE)=2,HLOOKUP(3,T7:AA7,1,FALSE)=3),1,"")),"") ->  | AI7: =IF(C7>TODAY(),"",IF(AH7="",AI6+1,0)) -> 1 | AJ7: =IFERROR(IF(BF7=1,"",IF(AND(HLOOKUP(1,T7:AA7,1,FALSE)=1,HLOOKUP(2,T7:AA7,1,FALSE)=2,HLOOKUP(3,T7:AA7,1,FALSE)=3,HLOOKUP(4,T7:AA7,1,FALSE)=4),1,"")),"") ->  | AK7: =IF(C7>TODAY(),"",IF(AJ7="",AK6+1,0)) -> 1 | AL7: =IFERROR(IF(BG7=1,"",IF(AND(HLOOKUP(1,T7:AA7,1,FALSE)=1,HLOOKUP(2,T7:AA7,1,FALSE)=2,HLOOKUP(3,T7:AA7,1,FALSE)=3,HLOOKUP(4,T7:AA7,1,FALSE)=4,HLOOKUP(5,T7:AA7,1,FALSE)=5),1,"")),"") ->  | AM7: =IF(C7>TODAY(),"",IF(AL7="",AM6+1,0)) -> 1 | AN7: =IF(COUNTIF(L7:N7,D7)=0,"",1) ->  | AO7: =IF(C7>TODAY(),"",IF(AN7="",AO6+1,0)) -> 1 | AP7: =IF(COUNTIF(L7:N7,E7)=0,"",1) ->  | AQ7: =IF(C7>TODAY(),"",IF(AP7="",AQ6+1,0)) -> 1 | AR7: =IF(COUNTIF(L7:N7,F7)=0,"",1) ->  | AS7: =IF(C7>TODAY(),"",IF(AR7="",AS6+1,0)) -> 1 | AT7: =IF(COUNTIF(L7:N7,G7)=0,"",1) ->  | AU7: =IF(C7>TODAY(),"",IF(AT7="",AU6+1,0)) -> 1 | AV7: =IF(COUNTIF(L7:N7,H7)=0,"",1) ->  | AW7: =IF(C7>TODAY(),"",IF(AV7="",AW6+1,0)) -> 1 | AX7: =IF(COUNTIF(L7:N7,I7)=0,"",1) -> 1 | AY7: =IF(C7>TODAY(),"",IF(AX7="",AY6+1,0)) -> 0 | AZ7: =IF(COUNTIF(L7:N7,J7)=0,"",1) ->  | BA7: =IF(C7>TODAY(),"",IF(AZ7="",BA6+1,0)) -> 1 | BB7: =IF(COUNTIF(L7:N7,K7)=0,"",1) -> 1 | BC7: =IF(C7>TODAY(),"",IF(BB7="",BC6+1,0)) -> 0
A8: =IF(COUNTA(C8:K8)<8,"",MAX(A$6:A7)+1) -> 2 | C8: 2015-07-02 | D8: 12 | E8: 13 | F8: 4 | G8: 9 | H8: 17 | I8: 3 | J8: 11 | K8: 5 | L8: 9 | M8: 17 | N8: 3 | O8: 7 | P8: 8 | T8: =IFERROR(MATCH(D8,L8:P8,0),"") ->  | U8: =IFERROR(MATCH(E8,L8:P8,0),"") ->  | V8: =IFERROR(MATCH(F8,L8:P8,0),"") ->  | W8: =IFERROR(MATCH(G8,L8:P8,0),"") -> 1 | X8: =IFERROR(MATCH(H8,L8:P8,0),"") -> 2 | Y8: =IFERROR(MATCH(I8,L8:P8,0),"") -> 3 | Z8: =IFERROR(MATCH(J8,L8:P8,0),"") ->  | AA8: =IFERROR(MATCH(K8,L8:P8,0),"") ->  | AC8: 4 | AD8: 5 | AE8: 6 | AH8: =IFERROR(IF(BD8=1,"",IF(AND(HLOOKUP(1,T8:AA8,1,FALSE)=1,HLOOKUP(2,T8:AA8,1,FALSE)=2,HLOOKUP(3,T8:AA8,1,FALSE)=3),1,"")),"") -> 1 | AI8: =IF(C8>TODAY(),"",IF(AH8="",AI7+1,0)) -> 0 | AJ8: =IFERROR(IF(BF8=1,"",IF(AND(HLOOKUP(1,T8:AA8,1,FALSE)=1,HLOOKUP(2,T8:AA8,1,FALSE)=2,HLOOKUP(3,T8:AA8,1,FALSE)=3,HLOOKUP(4,T8:AA8,1,FALSE)=4),1,"")),"") ->  | AK8: =IF(C8>TODAY(),"",IF(AJ8="",AK7+1,0)) -> 2 | AL8: =IFERROR(IF(BG8=1,"",IF(AND(HLOOKUP(1,T8:AA8,1,FALSE)=1,HLOOKUP(2,T8:AA8,1,FALSE)=2,HLOOKUP(3,T8:AA8,1,FALSE)=3,HLOOKUP(4,T8:AA8,1,FALSE)=4,HLOOKUP(5,T8:AA8,1,FALSE)=5),1,"")),"") ->  | AM8: =IF(C8>TODAY(),"",IF(AL8="",AM7+1,0)) -> 2 | AN8: =IF(COUNTIF(L8:N8,D8)=0,"",1) ->  | AO8: =IF(C8>TODAY(),"",IF(AN8="",AO7+1,0)) -> 2 | AP8: =IF(COUNTIF(L8:N8,E8)=0,"",1) ->  | AQ8: =IF(C8>TODAY(),"",IF(AP8="",AQ7+1,0)) -> 2 | AR8: =IF(COUNTIF(L8:N8,F8)=0,"",1) ->  | AS8: =IF(C8>TODAY(),"",IF(AR8="",AS7+1,0)) -> 2 | AT8: =IF(COUNTIF(L8:N8,G8)=0,"",1) -> 1 | AU8: =IF(C8>TODAY(),"",IF(AT8="",AU7+1,0)) -> 0 | AV8: =IF(COUNTIF(L8:N8,H8)=0,"",1) -> 1 | AW8: =IF(C8>TODAY(),"",IF(AV8="",AW7+1,0)) -> 0 | AX8: =IF(COUNTIF(L8:N8,I8)=0,"",1) -> 1 | AY8: =IF(C8>TODAY(),"",IF(AX8="",AY7+1,0)) -> 0 | AZ8: =IF(COUNTIF(L8:N8,J8)=0,"",1) ->  | BA8: =IF(C8>TODAY(),"",IF(AZ8="",BA7+1,0)) -> 2 | BB8: =IF(COUNTIF(L8:N8,K8)=0,"",1) ->  | BC8: =IF(C8>TODAY(),"",IF(BB8="",BC7+1,0)) -> 1
A9: =IF(COUNTA(C9:K9)<8,"",MAX(A$6:A8)+1) -> 3 | C9: 2015-07-03 | D9: 16 | E9: 8 | F9: 10 | G9: 3 | H9: 11 | I9: 12 | J9: 7 | K9: 2 | L9: 10 | M9: 16 | N9: 15 | O9: 11 | P9: 3 | T9: 2 | V9: 1 | W9: 5 | X9: 4 | AC9: 3 | AD9: 1 | AF9: 5 | AG9: 4 | AI9: 1 | AK9: 3 | AM9: 3 | AN9: 1 | AO9: 0 | AQ9: 3 | AR9: 1 | AS9: 0 | AU9: 1 | AW9: 1 | AY9: 1 | BA9: 3 | BC9: 2
A10: =IF(COUNTA(C10:K10)<8,"",MAX(A$6:A9)+1) -> 4 | C10: 2015-07-04 | D10: 8 | E10: 1 | F10: 3 | G10: 11 | H10: 5 | I10: 9 | J10: 2 | K10: 6 | L10: 8 | M10: 1 | N10: 9 | O10: 11 | P10: 7 | T10: 1 | U10: 2 | W10: 4 | Y10: 3 | AC10: =IFERROR(MATCH(AC$3,$T10:$AA10,0),"") -> 1 | AD10: 2 | AE10: 6 | AF10: 4 | AH10: 1 | AI10: 0 | AJ10: 1 | AK10: 0 | AM10: 4 | AN10: 1 | AO10: 0 | AP10: 1 | AQ10: 0 | AS10: 1 | AU10: 2 | AW10: 2 | AX10: 1 | AY10: 0 | BA10: 4 | BC10: 3
A11: =IF(COUNTA(C11:K11)<8,"",MAX(A$6:A10)+1) -> 5 | C11: 2015-07-05 | D11: 11 | E11: 12 | F11: 6 | G11: 5 | H11: 9 | I11: 10 | J11: 2 | K11: 4 | L11: 15 | M11: 16 | N11: 12 | O11: 13 | P11: 5 | U11: 3 | W11: 5 | AE11: 2 | AG11: 4 | AI11: 1 | AK11: 1 | AM11: 5 | AO11: 1 | AP11: 1 | AQ11: 0 | AS11: 2 | AU11: 3 | AW11: 3 | AY11: 1 | BA11: 5 | BC11: 4
A12: =IF(COUNTA(C12:K12)<8,"",MAX(A$6:A11)+1) -> 6 | C12: 2015-07-06 | D12: 5 | E12: 1 | F12: 3 | G12: 9 | H12: 4 | I12: 11 | J12: 16 | K12: 13 | L12: 3 | M12: 1 | N12: 11 | O12: 4 | P12: 13 | U12: 2 | V12: 1 | X12: 4 | Y12: 3 | AA12: 5 | AC12: 3 | AD12: 2 | AE12: 6 | AF12: 5 | AG12: 8 | AH12: 1 | AI12: 0 | AJ12: 1 | AK12: 0 | AL12: 1 | AM12: 0 | AO12: 2 | AP12: 1 | AQ12: 0 | AR12: 1 | AS12: 0 | AU12: 4 | AW12: 4 | AX12: 1 | AY12: 0 | BA12: 6 | BC12: 5
A13: =IF(COUNTA(C13:K13)<8,"",MAX(A$6:A12)+1) -> 7 | C13: 2015-07-07 | D13: 3 | E13: 16 | F13: 18 | G13: 6 | H13: 14 | I13: 10 | J13: 1 | K13: 5 | L13: 15 | M13: 16 | N13: 6 | O13: 3 | P13: 5 | T13: 4 | U13: 2 | W13: 3 | AA13: 5 | AD13: 2 | AE13: 4 | AF13: 1 | AG13: 8 | AI13: 1 | AK13: 1 | AM13: 1 | AO13: 3 | AP13: 1 | AQ13: 0 | AS13: 1 | AT13: 1 | AU13: 0 | AW13: 5 | AY13: 1 | BA13: 7 | BC13: 6
A14: =IF(COUNTA(C14:K14)<8,"",MAX(A$6:A13)+1) -> 8 | C14: 2015-07-08 | D14: 2 | E14: 3 | F14: 11 | G14: 5 | H14: 16 | I14: 13 | J14: 1 | K14: 10 | L14: 2 | M14: 1 | N14: 6 | O14: 11 | P14: 12 | T14: 1 | V14: 4 | Z14: 2 | AC14: 1 | AD14: 7 | AF14: 3 | AI14: 2 | AK14: 2 | AM14: 2 | AN14: 1 | AO14: 0 | AQ14: 1 | AS14: 2 | AU14: 1 | AW14: 6 | AY14: 2 | AZ14: 1 | BA14: 0 | BC14: 7
A15: =IF(COUNTA(C15:K15)<8,"",MAX(A$6:A14)+1) -> 9 | C15: 2015-07-09 | D15: 1 | E15: 7 | F15: 15 | G15: 4 | H15: 2 | I15: 9 | J15: 3 | K15: 10 | L15: 9 | M15: 3 | N15: 4 | O15: 8 | P15: 2 | W15: 3 | X15: 5 | Y15: 1 | Z15: 2 | AC15: 6 | AD15: 7 | AE15: 4 | AG15: 5 | AH15: 1 | AI15: 0 | AK15: 3 | AM15: 3 | AO15: 1 | AQ15: 2 | AS15: 3 | AT15: 1 | AU15: 0 | AW15: 7 | AX15: 1 | AY15: 0 | AZ15: 1 | BA15: 0 | BC15: 8
A16: =IF(COUNTA(C16:K16)<8,"",MAX(A$6:A15)+1) -> 10 | C16: 2015-07-10 | D16: 2 | E16: 16 | F16: 9 | G16: 1 | H16: 7 | I16: 4 | J16: 11 | K16: 13 | L16: 2 | M16: 5 | N16: 15 | O16: 7 | P16: 9 | T16: 1 | V16: 5 | X16: 4 | AC16: 1 | AF16: 5 | AG16: 3 | AI16: 1 | AK16: 4 | AM16: 4 | AN16: 1 | AO16: 0 | AQ16: 3 | AS16: 4 | AU16: 1 | AW16: 8 | AY16: 1 | BA16: 1 | BC16: 9
A17: =IF(COUNTA(C17:K17)<8,"",MAX(A$6:A16)+1) -> 11 | C17: 2015-07-11 | D17: 5 | E17: 11 | F17: 12 | G17: 2 | H17: 6 | I17: 14 | J17: 9 | K17: 3 | L17: 5 | M17: 6 | N17: 1 | O17: 10 | P17: 11 | T17: 1 | U17: 5 | X17: 2 | AC17: 1 | AD17: 5 | AG17: 2 | AI17: 2 | AK17: 5 | AM17: 5 | AN17: 1 | AO17: 0 | AQ17: 4 | AS17: 5 | AU17: 2 | AV17: 1 | AW17: 0 | AY17: 2 | BA17: 2 | BC17: 10
A18: =IF(COUNTA(C18:K18)<8,"",MAX(A$6:A17)+1) -> 12 | C18: 2015-07-12 | D18: 2 | E18: 7 | F18: 3 | G18: 6 | H18: 1 | I18: 5 | J18: 13 | K18: 12 | L18: 2 | M18: 6 | N18: 7 | O18: 5 | P18: 12 | T18: 1 | U18: 3 | W18: 2 | Y18: 4 | AA18: 5 | AC18: 1 | AD18: 4 | AE18: 2 | AF18: 6 | AG18: 8 | AH18: 1 | AI18: 0 | AJ18: 1 | AK18: 0 | AL18: 1 | AM18: 0 | AN18: 1 | AO18: 0 | AP18: 1 | AQ18: 0 | AS18: 6 | AT18: 1 | AU18: 0 | AW18: 1 | AY18: 3 | BA18: 3 | BC18: 11
A19: =IF(COUNTA(C19:K19)<8,"",MAX(A$6:A18)+1) -> 13 | C19: 2015-07-13 | D19: 8 | E19: 6 | F19: 14 | G19: 11 | H19: 7 | I19: 5 | J19: 9 | K19: 3 | L19: 14 | M19: 9 | N19: 6 | O19: 5 | P19: 12 | U19: 3 | V19: 1 | Y19: 4 | Z19: 2 | AC19: 3 | AD19: 7 | AE19: 2 | AF19: 6 | AH19: 1 | AI19: 0 | AJ19: 1 | AK19: 0 | AM19: 1 | AO19: 1 | AP19: 1 | AQ19: 0 | AR19: 1 | AS19: 0 | AU19: 1 | AW19: 2 | AY19: 4 | AZ19: 1 | BA19: 0 | BC19: 12
A20: =IF(COUNTA(C20:K20)<8,"",MAX(A$6:A19)+1) -> 14 | C20: 2015-07-14 | D20: 13 | E20: 1 | F20: 8 | G20: 16 | H20: 2 | I20: 4 | J20: 15 | K20: 12 | L20: 8 | M20: 15 | N20: 6 | O20: 5 | P20: 3 | V20: 1 | Z20: 2 | AC20: 3 | AD20: 7 | AI20: 1 | AK20: 1 | AM20: 2 | AO20: 2 | AQ20: 1 | AR20: 1 | AS20: 0 | AU20: 2 | AW20: 3 | AY20: 5 | AZ20: 1 | BA20: 0 | BC20: 13
A21: =IF(COUNTA(C21:K21)<8,"",MAX(A$6:A20)+1) -> 15 | C21: 2015-07-15 | D21: 14 | E21: 12 | F21: 18 | G21: 13 | H21: 4 | I21: 7 | J21: 3 | K21: 8 | L21: 18 | M21: 14 | N21: 3 | O21: 6 | P21: 5 | T21: 2 | V21: 1 | Z21: 3 | AC21: 3 | AD21: 1 | AE21: 7 | AH21: 1 | AI21: 0 | AK21: 2 | AM21: 3 | AN21: 1 | AO21: 0 | AQ21: 2 | AR21: 1 | AS21: 0 | AU21: 3 | AW21: 4 | AY21: 6 | AZ21: 1 | BA21: 0 | BC21: 14
A22: =IF(COUNTA(C22:K22)<8,"",MAX(A$6:A21)+1) -> 16 | C22: 2015-07-16 | D22: 3 | E22: 6 | F22: 10 | G22: 16 | H22: 1 | I22: 12 | J22: 14 | K22: 9 | L22: 3 | M22: 2 | N22: 12 | O22: 1 | P22: 10 | T22: 1 | V22: 5 | X22: 4 | Y22: 3 | AC22: 1 | AE22: 6 | AF22: 5 | AG22: 3 | AI22: 1 | AK22: 3 | AM22: 4 | AN22: 1 | AO22: 0 | AQ22: 3 | AS22: 1 | AU22: 4 | AW22: 5 | AX22: 1 | AY22: 0 | BA22: 1 | BC22: 15
A23: =IF(COUNTA(C23:K23)<8,"",MAX(A$6:A22)+1) -> 17 | C23: 2015-07-17 | D23: 2 | E23: 3 | F23: 4 | G23: 8 | H23: 6 | I23: 9 | J23: 10 | K23: 5 | L23: 13 | M23: 6 | N23: 16 | O23: 9 | P23: 5 | X23: 2 | Y23: 4 | AA23: 5 | AD23: 5 | AF23: 6 | AG23: 8 | AI23: 2 | AK23: 4 | AM23: 5 | AO23: 1 | AQ23: 4 | AS23: 2 | AU23: 5 | AV23: 1 | AW23: 0 | AY23: 1 | BA23: 2 | BC23: 16
A24: =IF(COUNTA(C24:K24)<8,"",MAX(A$6:A23)+1) -> 18 | C24: 2015-07-18 | D24: 3 | E24: 4 | F24: 9 | G24: 10 | H24: 11 | I24: 8 | J24: 16 | K24: 7 | L24: 11 | M24: 9 | N24: 4 | O24: 13 | P24: 15 | U24: 3 | V24: 2 | X24: 1 | AC24: 5 | AD24: 3 | AE24: 2 | AH24: 1 | AI24: 0 | AK24: 5 | AM24: 6 | AO24: 2 | AP24: 1 | AQ24: 0 | AR24: 1 | AS24: 0 | AU24: 6 | AV24: 1 | AW24: 0 | AY24: 2 | BA24: 3 | BC24: 17
A25: =IF(COUNTA(C25:K25)<8,"",MAX(A$6:A24)+1) -> 19 | C25: 2015-07-19 | D25: 12 | E25: 1 | F25: 11 | G25: 2 | H25: 6 | I25: 5 | J25: 4 | K25: 18 | L25: 6 | M25: 8 | N25: 11 | O25: 18 | P25: 12 | T25: 5 | V25: 3 | X25: 1 | AA25: 4 | AC25: 5 | AE25: 3 | AF25: 8 | AG25: 1 | AI25: 1 | AK25: 6 | AM25: 7 | AO25: 3 | AQ25: 1 | AR25: 1 | AS25: 0 | AU25: 7 | AV25: 1 | AW25: 0 | AY25: 3 | BA25: 4 | BC25: 18
A26: =IF(COUNTA(C26:K26)<8,"",MAX(A$6:A25)+1) -> 20 | C26: 2015-07-20 | D26: 6 | E26: 9 | F26: 7 | G26: 8 | H26: 14 | I26: 5 | J26: 2 | K26: 4 | L26: 13 | M26: 9 | N26: 2 | O26: 7 | P26: 6 | T26: 5 | U26: 2 | V26: 4 | Z26: 3 | AD26: 2 | AE26: 7 | AF26: 3 | AG26: 1 | AI26: 2 | AK26: 7 | AM26: 8 | AO26: 4 | AP26: 1 | AQ26: 0 | AS26: 1 | AU26: 8 | AW26: 1 | AY26: 4 | AZ26: 1 | BA26: 0 | BC26: 19
A27: =IF(COUNTA(C27:K27)<8,"",MAX(A$6:A26)+1) -> 21 | C27: 2015-07-21 | D27: 5 | E27: 8 | F27: 4 | G27: 10 | H27: 3 | I27: 2 | J27: 7 | K27: 12 | L27: 8 | M27: 4 | N27: 14 | O27: 1 | P27: 3 | U27: 1 | V27: 2 | X27: 5 | AC27: 2 | AD27: 3 | AG27: 5 | AI27: 3 | AK27: 8 | AM27: 9 | AO27: 5 | AP27: 1 | AQ27: 0 | AR27: 1 | AS27: 0 | AU27: 9 | AW27: 2 | AY27: 5 | BA27: 1 | BC27: 20
A28: =IF(COUNTA(C28:K28)<8,"",MAX(A$6:A27)+1) -> 22 | C28: 2015-07-22 | D28: 15 | E28: 13 | F28: 11 | G28: 14 | H28: 12 | I28: 5 | J28: 4 | K28: 16 | L28: 15 | M28: 5 | N28: 4 | O28: 14 | P28: 16 | T28: 1 | W28: 4 | Y28: 2 | Z28: 3 | AA28: 5 | AC28: 1 | AD28: 6 | AE28: 7 | AF28: 4 | AG28: 8 | AH28: 1 | AI28: 0 | AJ28: 1 | AK28: 0 | AL28: 1 | AM28: 0 | AN28: 1 | AO28: 0 | AQ28: 1 | AS28: 1 | AU28: 10 | AW28: 3 | AX28: 1 | AY28: 0 | AZ28: 1 | BA28: 0 | BC28: 21
A29: =IF(COUNTA(C29:K29)<8,"",MAX(A$6:A28)+1) -> 23 | C29: 2015-07-23 | D29: 14 | E29: 4 | F29: 1 | G29: 6 | H29: 9 | I29: 10 | J29: 5 | K29: 12 | L29: 4 | M29: 5 | N29: 14 | O29: 15 | P29: 6 | T29: 3 | U29: 1 | W29: 5 | Z29: 2 | AC29: 2 | AD29: 7 | AE29: 1 | AG29: 4 | AH29: 1 | AI29: 0 | AK29: 1 | AM29: 1 | AN29: 1 | AO29: 0 | AP29: 1 | AQ29: 0 | AS29: 2 | AU29: 11 | AW29: 4 | AY29: 1 | AZ29: 1 | BA29: 0 | BC29: 22
A30: =IF(COUNTA(C30:K30)<8,"",MAX(A$6:A29)+1) -> 24 | C30: 2015-07-24 | D30: 11 | E30: 16 | F30: 2 | G30: 13 | H30: 7 | I30: 3 | J30: 6 | K30: 1 | L30: 7 | M30: 16 | N30: 2 | O30: 15 | P30: 1 | U30: 2 | V30: 3 | X30: 1 | AA30: 5 | AC30: 5 | AD30: 2 | AE30: 3 | AG30: 8 | AH30: 1 | AI30: 0 | AK30: 2 | AM30: 2 | AO30: 1 | AP30: 1 | AQ30: 0 | AR30: 1 | AS30: 0 | AU30: 12 | AV30: 1 | AW30: 0 | AY30: 2 | BA30: 1 | BC30: 23
A31: =IF(COUNTA(C31:K31)<8,"",MAX(A$6:A30)+1) -> 25 | C31: 2015-07-25 | D31: 3 | E31: 2 | F31: 8 | G31: 13 | H31: 4 | I31: 6 | J31: 5 | K31: 14 | L31: 2 | M31: 8 | N31: 3 | O31: 6 | P31: 4 | T31: 3 | U31: 1 | V31: 2 | X31: 5 | Y31: 4 | AC31: 2 | AD31: 3 | AE31: 1 | AF31: 6 | AG31: 5 | AH31: 1 | AI31: 0 | AJ31: 1 | AK31: 0 | AL31: 1 | AM31: 0 | AN31: 1 | AO31: 0 | AP31: 1 | AQ31: 0 | AR31: 1 | AS31: 0 | AU31: 13 | AW31: 1 | AY31: 3 | BA31: 2 | BC31: 24
A32: =IF(COUNTA(C32:K32)<8,"",MAX(A$6:A31)+1) -> 26 | C32: 2015-07-26 | D32: 6 | E32: 9 | F32: 10 | G32: 4 | H32: 7 | I32: 2 | J32: 16 | K32: 1 | L32: 1 | M32: 7 | N32: 10 | O32: 2 | P32: 4 | V32: 3 | W32: 5 | X32: 2 | Y32: 4 | AA32: 1 | AC32: 8 | AD32: 5 | AE32: 3 | AF32: 6 | AG32: 4 | AH32: 1 | AI32: 0 | AJ32: 1 | AK32: 0 | AL32: 1 | AM32: 0 | AO32: 1 | AQ32: 1 | AR32: 1 | AS32: 0 | AU32: 14 | AV32: 1 | AW32: 0 | AY32: 4 | BA32: 3 | BB32: 1 | BC32: 0
A33: =IF(COUNTA(C33:K33)<8,"",MAX(A$6:A32)+1) -> 27 | C33: 2015-07-27 | D33: 8 | E33: 3 | F33: 5 | G33: 7 | H33: 14 | I33: 2 | J33: 13 | K33: 4 | L33: 14 | M33: 5 | N33: 9 | O33: 11 | P33: 7 | V33: 2 | W33: 5 | X33: 1 | AC33: 5 | AD33: 3 | AG33: 4 | AI33: 1 | AK33: 1 | AM33: 1 | AO33: 2 | AQ33: 2 | AR33: 1 | AS33: 0 | AU33: 15 | AV33: 1 | AW33: 0 | AY33: 5 | BA33: 4 | BC33: 1
A34: =IF(COUNTA(C34:K34)<8,"",MAX(A$6:A33)+1) -> 28 | C34: 2015-07-28 | D34: 6 | E34: 1 | F34: 5 | G34: 15 | H34: 4 | I34: 14 | J34: 10 | K34: 13 | L34: 4 | M34: 10 | N34: 2 | O34: 15 | P34: 1 | U34: 5 | W34: 4 | X34: 1 | Z34: 2 | AC34: 5 | AD34: 7 | AF34: 4 | AG34: 2 | AI34: 2 | AK34: 2 | AM34: 2 | AO34: 3 | AQ34: 3 | AS34: 1 | AU34: 16 | AV34: 1 | AW34: 0 | AY34: 6 | AZ34: 1 | BA34: 0 | BC34: 2
A35: =IF(COUNTA(C35:K35)<8,"",MAX(A$6:A34)+1) -> 29 | C35: 2015-07-29 | D35: 13 | E35: 5 | F35: 7 | G35: 1 | H35: 12 | I35: 2 | J35: 14 | K35: 15 | L35: 6 | M35: 1 | N35: 12 | O35: 7 | P35: 5 | U35: 5 | V35: 4 | W35: 2 | X35: 3 | AD35: 4 | AE35: 5 | AF35: 3 | AG35: 2 | AI35: 3 | AK35: 3 | AM35: 3 | AO35: 4 | AQ35: 4 | AS35: 2 | AT35: 1 | AU35: 0 | AV35: 1 | AW35: 0 | AY35: 7 | BA35: 1 | BC35: 3
A36: =IF(COUNTA(C36:K36)<8,"",MAX(A$6:A35)+1) -> 30 | C36: 2015-07-30 | D36: 8 | E36: 4 | F36: 13 | G36: 7 | H36: 10 | I36: 1 | J36: 15 | K36: 16 | L36: 12 | M36: 6 | N36: 8 | O36: 13 | P36: 1 | T36: 3 | V36: 4 | Y36: 5 | AE36: 1 | AF36: 3 | AG36: 6 | AI36: 4 | AK36: 4 | AM36: 4 | AN36: 1 | AO36: 0 | AQ36: 5 | AS36: 3 | AU36: 1 | AW36: 1 | AY36: 8 | BA36: 2 | BC36: 4
A37: =IF(COUNTA(C37:K37)<8,"",MAX(A$6:A36)+1) -> 31 | C37: 2015-07-31 | D37: 13 | E37: 2 | F37: 6 | G37: 12 | H37: 5 | I37: 7 | J37: 9 | K37: 16 | L37: 4 | M37: 5 | N37: 13 | O37: 9 | P37: 6 | T37: 3 | V37: 5 | X37: 2 | Z37: 4 | AD37: 5 | AE37: 1 | AF37: 7 | AG37: 3 | AI37: 5 | AK37: 5 | AM37: 5 | AN37: 1 | AO37: 0 | AQ37: 6 | AS37: 4 | AU37: 2 | AV37: 1 | AW37: 0 | AY37: 9 | BA37: 3 | BC37: 5 | BH37: =SUM(AH7:AH37) -> 13
A38: =IF(COUNTA(C38:K38)<8,"",MAX(A$6:A37)+1) -> 32 | C38: 2015-08-01 | D38: 7 | E38: 5 | F38: 2 | G38: 8 | H38: 14 | I38: 1 | J38: 11 | K38: 13 | L38: 10 | M38: 11 | N38: 12 | O38: 7 | P38: 1 | T38: 4 | Y38: 5 | Z38: 2 | AD38: 7 | AF38: 1 | AG38: 6 | AI38: 6 | AK38: 6 | AM38: 6 | AO38: 1 | AQ38: 7 | AS38: 5 | AU38: 3 | AW38: 1 | AY38: 10 | AZ38: 1 | BA38: 0 | BC38: 6
A39: =IF(COUNTA(C39:K39)<8,"",MAX(A$6:A38)+1) -> 33 | C39: 2015-08-02 | D39: 5 | E39: 1 | F39: 7 | G39: 2 | H39: 6 | I39: 12 | J39: 13 | K39: 14 | L39: 5 | M39: 12 | N39: 15 | O39: 3 | P39: 7 | T39: 1 | V39: 5 | Y39: 2 | AC39: 1 | AD39: 6 | AG39: 3 | AI39: 7 | AK39: 7 | AM39: 7 | AN39: 1 | AO39: 0 | AQ39: 8 | AS39: 6 | AU39: 4 | AW39: 2 | AX39: 1 | AY39: 0 | BA39: 1 | BC39: 7
A40: =IF(COUNTA(C40:K40)<8,"",MAX(A$6:A39)+1) -> 34 | C40: 2015-08-03 | D40: 5 | E40: 1 | F40: 10 | G40: 8 | H40: 9 | I40: 6 | J40: 13 | K40: 14 | L40: 6 | M40: 9 | N40: 14 | O40: 15 | P40: 1 | U40: 5 | X40: 2 | Y40: 1 | AA40: 3 | AC40: 6 | AD40: 5 | AE40: 8 | AG40: 2 | AH40: 1 | AI40: 0 | AK40: 8 | AM40: 8 | AO40: 1 | AQ40: 9 | AS40: 7 | AU40: 5 | AV40: 1 | AW40: 0 | AX40: 1 | AY40: 0 | BA40: 2 | BB40: 1 | BC40: 0
A41: =IF(COUNTA(C41:K41)<8,"",MAX(A$6:A40)+1) -> 35 | C41: 2015-08-04 | D41: 5 | E41: 8 | F41: 9 | G41: 3 | H41: 7 | I41: 4 | J41: 6 | K41: 14 | L41: 14 | M41: 6 | N41: 5 | O41: 8 | P41: 7 | T41: 3 | U41: 4 | X41: 5 | Z41: 2 | AA41: 1 | AC41: 8 | AD41: 7 | AE41: 1 | AF41: 2 | AG41: 5 | AH41: 1 | AI41: 0 | AJ41: 1 | AK41: 0 | AL41: 1 | AM41: 0 | AN41: 1 | AO41: 0 | AQ41: 10 | AS41: 8 | AU41: 6 | AW41: 1 | AY41: 1 | AZ41: 1 | BA41: 0 | BB41: 1 | BC41: 0
A42: =IF(COUNTA(C42:K42)<8,"",MAX(A$6:A41)+1) -> 36 | C42: 2015-08-05 | D42: 12 | E42: 10 | F42: 3 | G42: 8 | H42: 1 | I42: 13 | J42: 14 | K42: 5 | L42: 6 | M42: 8 | N42: 1 | O42: 7 | P42: 3 | V42: 5 | W42: 2 | X42: 3 | AD42: 4 | AE42: 5 | AG42: 3 | AI42: 1 | AK42: 1 | AM42: 1 | AO42: 1 | AQ42: 11 | AS42: 9 | AT42: 1 | AU42: 0 | AV42: 1 | AW42: 0 | AY42: 2 | BA42: 1 | BC42: 1
A43: =IF(COUNTA(C43:K43)<8,"",MAX(A$6:A42)+1) -> 37 | C43: 2015-08-06 | D43: 12 | E43: 10 | F43: 3 | G43: 8 | H43: 1 | I43: 13 | J43: 14 | K43: 5 | L43: 1 | M43: 13 | N43: 12 | O43: 3 | P43: 2 | T43: 3 | V43: 4 | X43: 1 | Y43: 2 | AC43: 5 | AD43: 6 | AE43: 1 | AF43: 3 | AH43: 1 | AI43: 0 | AJ43: 1 | AK43: 0 | AM43: 2 | AN43: 1 | AO43: 0 | AQ43: 12 | AS43: 10 | AU43: 1 | AV43: 1 | AW43: 0 | AX43: 1 | AY43: 0 | BA43: 2 | BC43: 2
A44: =IF(COUNTA(C44:K44)<8,"",MAX(A$6:A43)+1) -> 38 | C44: 2015-08-07 | D44: 15 | E44: 3 | F44: 5 | G44: 12 | H44: 1 | I44: 6 | J44: 4 | K44: 16 | L44: 12 | M44: 15 | N44: 5 | O44: 4 | P44: 3 | T44: 2 | U44: 5 | V44: 3 | W44: 1 | Z44: 4 | AC44: 4 | AD44: 1 | AE44: 3 | AF44: 7 | AG44: 2 | AH44: 1 | AI44: 0 | AJ44: 1 | AK44: 0 | AL44: 1 | AM44: 0 | AN44: 1 | AO44: 0 | AQ44: 13 | AR44: 1 | AS44: 0 | AT44: 1 | AU44: 0 | AW44: 1 | AY44: 1 | BA44: 3 | BC44: 3
A45: =IF(COUNTA(C45:K45)<8,"",MAX(A$6:A44)+1) -> 39 | C45: 2015-08-08 | D45: 10 | E45: 6 | F45: 7 | G45: 15 | H45: 14 | I45: 11 | J45: 8 | K45: 2 | L45: 6 | M45: 14 | N45: 10 | O45: 16 | P45: 8 | T45: 3 | U45: 1 | X45: 2 | Z45: 5 | AC45: 2 | AD45: 5 | AE45: 1 | AG45: 7 | AH45: 1 | AI45: 0 | AK45: 1 | AM45: 1 | AN45: 1 | AO45: 0 | AP45: 1 | AQ45: 0 | AS45: 1 | AU45: 1 | AV45: 1 | AW45: 0 | AY45: 2 | BA45: 4 | BC45: 4
A46: =IF(COUNTA(C46:K46)<8,"",MAX(A$6:A45)+1) -> 40 | C46: 2015-08-09 | D46: 4 | E46: 6 | F46: 2 | G46: 7 | H46: 1 | I46: 8 | J46: 11 | K46: 3 | L46: 8 | M46: 16 | N46: 11 | O46: 7 | P46: 4 | T46: 5 | W46: 4 | Y46: 1 | Z46: 3 | AC46: 6 | AE46: 7 | AF46: 4 | AG46: 1 | AI46: 1 | AK46: 2 | AM46: 2 | AO46: 1 | AQ46: 1 | AS46: 2 | AU46: 2 | AW46: 1 | AX46: 1 | AY46: 0 | AZ46: 1 | BA46: 0 | BC46: 5
A47: =IF(COUNTA(C47:K47)<8,"",MAX(A$6:A46)+1) -> 41 | C47: 2015-08-10 | D47: 1 | E47: 13 | F47: 9 | G47: 4 | H47: 3 | I47: 14 | J47: 2 | K47: 7 | L47: 7 | M47: 1 | N47: 10 | O47: 17 | P47: 11 | T47: 2 | AA47: 1 | AC47: 8 | AD47: 1 | AI47: 2 | AK47: 3 | AM47: 3 | AN47: 1 | AO47: 0 | AQ47: 2 | AS47: 3 | AU47: 3 | AW47: 2 | AY47: 1 | BA47: 1 | BB47: 1 | BC47: 0
A48: =IF(COUNTA(C48:K48)<8,"",MAX(A$6:A47)+1) -> 42 | C48: 2015-08-11 | D48: 1 | E48: 14 | F48: 4 | G48: 2 | H48: 7 | I48: 3 | J48: 13 | K48: 5 | L48: 11 | M48: 1 | N48: 4 | O48: 13 | P48: 7 | T48: 2 | V48: 3 | X48: 5 | Z48: 4 | AD48: 1 | AE48: 3 | AF48: 7 | AG48: 5 | AI48: 3 | AK48: 4 | AM48: 4 | AN48: 1 | AO48: 0 | AQ48: 3 | AR48: 1 | AS48: 0 | AU48: 4 | AW48: 3 | AY48: 2 | BA48: 2 | BC48: 1
A49: =IF(COUNTA(C49:K49)<8,"",MAX(A$6:A48)+1) -> 43 | C49: 2015-08-12 | D49: 5 | E49: 8 | F49: 12 | G49: 10 | H49: 4 | I49: 9 | J49: 2 | K49: 6 | L49: 8 | M49: 2 | N49: 5 | O49: 4 | P49: 6 | T49: 3 | U49: 1 | X49: 4 | Z49: 2 | AA49: 5 | AC49: 2 | AD49: 7 | AE49: 1 | AF49: 5 | AG49: 8 | AH49: 1 | AI49: 0 | AJ49: 1 | AK49: 0 | AL49: 1 | AM49: 0 | AN49: 1 | AO49: 0 | AP49: 1 | AQ49: 0 | AS49: 1 | AU49: 5 | AW49: 4 | AY49: 3 | AZ49: 1 | BA49: 0 | BC49: 2
A50: =IF(COUNTA(C50:K50)<8,"",MAX(A$6:A49)+1) -> 44 | C50: 2015-08-13 | D50: 4 | E50: 2 | F50: 10 | G50: 1 | H50: 9 | I50: 6 | J50: 11 | K50: 15 | L50: 1 | M50: 5 | N50: 8 | O50: 4 | P50: 13 | T50: 4 | W50: 1 | AC50: 4 | AF50: 1 | AI50: 1 | AK50: 1 | AM50: 1 | AO50: 1 | AQ50: 1 | AS50: 2 | AT50: 1 | AU50: 0 | AW50: 5 | AY50: 4 | BA50: 1 | BC50: 3
A51: =IF(COUNTA(C51:K51)<8,"",MAX(A$6:A50)+1) -> 45 | C51: 2015-08-14 | D51: 12 | E51: 8 | F51: 1 | G51: 15 | H51: 6 | I51: 9 | J51: 10 | K51: 7 | L51: 10 | M51: 8 | N51: 6 | O51: 15 | P51: 7 | U51: 2 | W51: 4 | X51: 3 | Z51: 1 | AA51: 5 | AC51: 7 | AD51: 2 | AE51: 5 | AF51: 4 | AG51: 8 | AH51: 1 | AI51: 0 | AJ51: 1 | AK51: 0 | AL51: 1 | AM51: 0 | AO51: 2 | AP51: 1 | AQ51: 0 | AS51: 3 | AU51: 1 | AV51: 1 | AW51: 0 | AY51: 5 | AZ51: 1 | BA51: 0 | BC51: 4
A52: =IF(COUNTA(C52:K52)<8,"",MAX(A$6:A51)+1) -> 46 | C52: 2015-08-15 | D52: 2 | E52: 8 | F52: 11 | G52: 16 | H52: 6 | I52: 5 | J52: 10 | K52: 14 | L52: 16 | M52: 1 | N52: 15 | O52: 3 | P52: 8 | U52: 5 | W52: 1 | AC52: 4 | AG52: 2 | AI52: 1 | AK52: 1 | AM52: 1 | AO52: 3 | AQ52: 1 | AS52: 4 | AT52: 1 | AU52: 0 | AW52: 1 | AY52: 6 | BA52: 1 | BC52: 5
A53: =IF(COUNTA(C53:K53)<8,"",MAX(A$6:A52)+1) -> 47 | C53: 2015-08-16 | D53: 3 | E53: 15 | F53: 5 | G53: 2 | H53: 6 | I53: 8 | J53: 4 | K53: 7 | L53: 2 | M53: 3 | N53: 14 | O53: 15 | P53: 8 | T53: 2 | U53: 4 | W53: 1 | Y53: 5 | AC53: 4 | AD53: 1 | AF53: 2 | AG53: 6 | AI53: 2 | AK53: 2 | AM53: 2 | AN53: 1 | AO53: 0 | AQ53: 2 | AS53: 5 | AT53: 1 | AU53: 0 | AW53: 2 | AY53: 7 | BA53: 2 | BC53: 6
A54: =IF(COUNTA(C54:K54)<8,"",MAX(A$6:A53)+1) -> 48 | C54: 2015-08-17 | D54: 5 | E54: 7 | F54: 1 | G54: 2 | H54: 6 | I54: 13 | J54: 8 | K54: 10 | L54: 10 | M54: 2 | N54: 1 | O54: 15 | P54: 5 | T54: 5 | V54: 3 | W54: 2 | AA54: 1 | AC54: 8 | AD54: 4 | AE54: 3 | AG54: 1 | AH54: 1 | AI54: 0 | AK54: 3 | AM54: 3 | AO54: 1 | AQ54: 3 | AR54: 1 | AS54: 0 | AT54: 1 | AU54: 0 | AW54: 3 | AY54: 8 | BA54: 3 | BB54: 1 | BC54: 0
A55: =IF(COUNTA(C55:K55)<8,"",MAX(A$6:A54)+1) -> 49 | C55: 2015-08-18 | D55: 3 | E55: 2 | F55: 6 | G55: 1 | H55: 9 | I55: 5 | J55: 17 | K55: 18 | L55: 3 | M55: 5 | N55: 2 | O55: 13 | P55: 15 | T55: 1 | U55: 3 | Y55: 2 | AC55: 1 | AD55: 6 | AE55: 2 | AH55: 1 | AI55: 0 | AK55: 4 | AM55: 4 | AN55: 1 | AO55: 0 | AP55: 1 | AQ55: 0 | AS55: 1 | AU55: 1 | AW55: 4 | AX55: 1 | AY55: 0 | BA55: 4 | BC55: 1
A56: =IF(COUNTA(C56:K56)<8,"",MAX(A$6:A55)+1) -> 50 | C56: 2015-08-19 | D56: 9 | E56: 3 | F56: 11 | G56: 13 | H56: 16 | I56: 18 | J56: 10 | K56: 1 | L56: 11 | M56: 15 | N56: 18 | O56: 10 | P56: 1 | V56: 1 | Y56: 3 | Z56: 4 | AA56: 5 | AC56: 3 | AE56: 6 | AF56: 7 | AG56: 8 | AI56: 1 | AK56: 5 | AM56: 5 | AO56: 1 | AQ56: 1 | AR56: 1 | AS56: 0 | AU56: 2 | AW56: 5 | AX56: 1 | AY56: 0 | BA56: 5 | BC56: 2
A57: =IF(COUNTA(C57:K57)<8,"",MAX(A$6:A56)+1) -> 51 | C57: 2015-08-20 | D57: 6 | E57: 4 | F57: 3 | G57: 10 | H57: 2 | I57: 11 | J57: 8 | K57: 9 | L57: 12 | M57: 6 | N57: 13 | O57: 4 | P57: 16 | T57: 2 | U57: 4 | AD57: 1 | AF57: 2 | AI57: 2 | AK57: 6 | AM57: 6 | AN57: 1 | AO57: 0 | AQ57: 2 | AS57: 1 | AU57: 3 | AW57: 6 | AY57: 1 | BA57: 6 | BC57: 3
A58: =IF(COUNTA(C58:K58)<8,"",MAX(A$6:A57)+1) -> 52 | C58: 2015-08-21 | D58: 3 | E58: 10 | F58: 16 | G58: 14 | H58: 7 | I58: 1 | J58: 6 | K58: 5 | L58: 3 | M58: 6 | N58: 4 | O58: 7 | P58: 15 | T58: 1 | X58: 4 | Z58: 2 | AC58: 1 | AD58: 7 | AF58: 5 | AI58: 3 | AK58: 7 | AM58: 7 | AN58: 1 | AO58: 0 | AQ58: 3 | AS58: 2 | AU58: 4 | AW58: 7 | AY58: 2 | AZ58: 1 | BA58: 0 | BC58: 4
A59: =IF(COUNTA(C59:K59)<8,"",MAX(A$6:A58)+1) -> 53 | C59: 2015-08-22 | D59: 8 | E59: 10 | F59: 7 | G59: 1 | H59: 3 | I59: 2 | J59: 14 | K59: 9 | L59: 9 | M59: 8 | N59: 10 | O59: 6 | P59: 5 | T59: 2 | U59: 3 | AA59: 1 | AC59: 8 | AD59: 1 | AE59: 2 | AH59: 1 | AI59: 0 | AK59: 8 | AM59: 8 | AN59: 1 | AO59: 0 | AP59: 1 | AQ59: 0 | AS59: 3 | AU59: 5 | AW59: 8 | AY59: 3 | BA59: 1 | BB59: 1 | BC59: 0
A60: =IF(COUNTA(C60:K60)<8,"",MAX(A$6:A59)+1) -> 54 | C60: 2015-08-23 | D60: 2 | E60: 9 | F60: 7 | G60: 15 | H60: 1 | I60: 10 | J60: 4 | K60: 5 | L60: 16 | M60: 14 | N60: 5 | O60: 2 | P60: 9 | T60: 4 | U60: 5 | AA60: 3 | AE60: 8 | AF60: 1 | AG60: 2 | AI60: 1 | AK60: 9 | AM60: 9 | AO60: 1 | AQ60: 1 | AS60: 4 | AU60: 6 | AW60: 9 | AY60: 4 | BA60: 2 | BB60: 1 | BC60: 0
A61: =IF(COUNTA(C61:K61)<8,"",MAX(A$6:A60)+1) -> 55 | C61: 2015-08-24 | D61: 3 | E61: 7 | F61: 13 | G61: 12 | H61: 10 | I61: 11 | J61: 4 | K61: 6 | L61: 3 | M61: 13 | N61: 7 | O61: 10 | P61: 6 | T61: 1 | U61: 3 | V61: 2 | X61: 4 | AA61: 5 | AC61: =IFERROR(MATCH(AC$3,$T61:$AA61,0),"") -> 1 | AD61: 3 | AE61: 2 | AF61: 5 | AG61: 8 | AH61: 1 | AI61: 0 | AJ61: 1 | AK61: 0 | AL61: 1 | AM61: 0 | AN61: 1 | AO61: 0 | AP61: 1 | AQ61: 0 | AR61: 1 | AS61: 0 | AU61: 7 | AW61: 10 | AY61: 5 | BA61: 3 | BC61: 1
A62: =IF(COUNTA(C62:K62)<8,"",MAX(A$6:A61)+1) -> 56 | C62: 2015-08-25 | D62: 2 | E62: 5 | F62: 8 | G62: 9 | H62: 14 | I62: 4 | J62: 10 | K62: 3 | L62: 10 | M62: 9 | N62: 13 | O62: 4 | P62: 6 | W62: 2 | Y62: 4 | Z62: 1 | AC62: 7 | AD62: 4 | AF62: 6 | AI62: 1 | AK62: 1 | AM62: 1 | AO62: 1 | AQ62: 1 | AS62: 1 | AT62: 1 | AU62: 0 | AW62: 11 | AY62: 6 | AZ62: 1 | BA62: 0 | BC62: 2
A63: =IF(COUNTA(C63:K63)<8,"",MAX(A$6:A62)+1) -> 57 | C63: 2015-08-26 | D63: 9 | E63: 14 | F63: 13 | G63: 4 | H63: 11 | I63: 2 | J63: 7 | K63: 3 | L63: 4 | M63: 3 | N63: 5 | O63: 7 | P63: 14 | U63: 5 | W63: 1 | Z63: 4 | AA63: 2 | AC63: 4 | AD63: 8 | AF63: 7 | AG63: 2 | AI63: 2 | AK63: 2 | AM63: 2 | AO63: 2 | AQ63: 2 | AS63: 2 | AT63: 1 | AU63: 0 | AW63: 12 | AY63: 7 | BA63: 1 | BB63: 1 | BC63: 0
A64: =IF(COUNTA(C64:K64)<8,"",MAX(A$6:A63)+1) -> 58 | C64: 2015-08-27 | D64: 2 | E64: 6 | F64: 4 | G64: 10 | H64: 1 | I64: 3 | J64: 11 | K64: 5 | L64: 16 | M64: 1 | N64: 13 | O64: 10 | P64: 14 | W64: 4 | X64: 2 | AD64: 5 | AF64: 4 | AI64: 3 | AK64: 3 | AM64: 3 | AO64: 3 | AQ64: 3 | AS64: 3 | AU64: 1 | AV64: 1 | AW64: 0 | AY64: 8 | BA64: 2 | BC64: 1
A65: =IF(COUNTA(C65:K65)<8,"",MAX(A$6:A64)+1) -> 59 | C65: 2015-08-28 | D65: 4 | E65: 5 | F65: 6 | G65: 2 | H65: 1 | I65: 13 | J65: 10 | K65: 12 | L65: 4 | M65: 6 | N65: 10 | O65: 1 | P65: 12 | T65: 1 | V65: 2 | X65: 4 | Z65: 3 | AA65: 5 | AC65: 1 | AD65: 3 | AE65: 7 | AF65: 5 | AG65: 8 | AH65: 1 | AI65: 0 | AJ65: 1 | AK65: 0 | AL65: 1 | AM65: 0 | AN65: 1 | AO65: 0 | AQ65: 4 | AR65: 1 | AS65: 0 | AU65: 2 | AW65: 1 | AY65: 9 | AZ65: 1 | BA65: 0 | BC65: 2
A66: =IF(COUNTA(C66:K66)<8,"",MAX(A$6:A65)+1) -> 60 | C66: 2015-08-29 | D66: 14 | E66: 17 | F66: 12 | G66: 7 | H66: 10 | I66: 11 | J66: 15 | K66: 16 | L66: 14 | M66: 7 | N66: 15 | O66: 12 | P66: 5 | T66: 1 | V66: 4 | W66: 2 | Z66: 3 | AC66: 1 | AD66: 4 | AE66: 7 | AF66: 3 | AH66: 1 | AI66: 0 | AJ66: 1 | AK66: 0 | AM66: 1 | AN66: 1 | AO66: 0 | AQ66: 5 | AS66: 1 | AT66: 1 | AU66: 0 | AW66: 2 | AY66: 10 | AZ66: 1 | BA66: 0 | BC66: 3
A67: =IF(COUNTA(C67:K67)<8,"",MAX(A$6:A66)+1) -> 61 | C67: 2015-08-30 | D67: 10 | E67: 9 | F67: 8 | G67: 4 | H67: 15 | I67: 7 | J67: 6 | K67: 12 | L67: 8 | M67: 1 | N67: 11 | O67: 7 | P67: 6 | V67: 1 | Y67: 4 | Z67: 5 | AC67: 3 | AF67: 6 | AG67: 7 | AI67: 1 | AK67: 1 | AM67: 2 | AO67: 1 | AQ67: 6 | AR67: 1 | AS67: 0 | AU67: 1 | AW67: 3 | AY67: 11 | BA67: 1 | BC67: 4
A68: =IF(COUNTA(C68:K68)<8,"",MAX(A$6:A67)+1) -> 62 | C68: 2015-08-31 | D68: 4 | E68: 13 | F68: 2 | G68: 16 | H68: 7 | I68: 9 | J68: 3 | K68: 12 | L68: 1 | M68: 6 | N68: 16 | O68: 4 | P68: 7 | T68: 4 | W68: 3 | X68: 5 | AE68: 4 | AF68: 1 | AG68: 5 | AI68: 2 | AK68: 2 | AM68: 3 | AO68: 2 | AQ68: 7 | AS68: 1 | AT68: 1 | AU68: 0 | AW68: 4 | AY68: 12 | BA68: 2 | BC68: 5 | BH68: =SUM(AH38:AH68) -> 13
A69: =IF(COUNTA(C69:K69)<8,"",MAX(A$6:A68)+1) -> 63 | C69: 2015-09-01 | D69: 7 | E69: 12 | F69: 5 | G69: 8 | H69: 9 | I69: 6 | J69: 15 | K69: 2 | L69: 6 | M69: 1 | N69: 9 | O69: 14 | P69: 8 | W69: 5 | X69: 3 | Y69: 1 | AC69: 6 | AE69: 5 | AG69: 4 | AI69: 3 | AK69: 3 | AM69: 4 | AO69: 3 | AQ69: 8 | AS69: 2 | AU69: 1 | AV69: 1 | AW69: 0 | AX69: 1 | AY69: 0 | BA69: 3 | BC69: 6
A70: =IF(COUNTA(C70:K70)<8,"",MAX(A$6:A69)+1) -> 64 | C70: 2015-09-02 | D70: 12 | E70: 13 | F70: 2 | G70: 14 | H70: 16 | I70: 1 | J70: 6 | K70: 18 | L70: 7 | M70: 16 | N70: 13 | O70: 12 | P70: 2 | T70: 4 | U70: 3 | V70: 5 | X70: 2 | AD70: 5 | AE70: 2 | AF70: 1 | AG70: 3 | AI70: 4 | AK70: 4 | AM70: 5 | AO70: 4 | AP70: 1 | AQ70: 0 | AS70: 3 | AU70: 2 | AV70: 1 | AW70: 0 | AY70: 1 | BA70: 4 | BC70: 7
A71: =IF(COUNTA(C71:K71)<8,"",MAX(A$6:A70)+1) -> 65 | C71: 2015-09-03 | D71: 4 | E71: 5 | F71: 9 | G71: 15 | H71: 3 | I71: 14 | J71: 17 | K71: 1 | L71: 9 | M71: 4 | N71: 14 | O71: 3 | P71: 15 | T71: 2 | V71: 1 | W71: 5 | X71: 4 | Y71: 3 | AC71: 3 | AD71: 1 | AE71: 6 | AF71: 5 | AG71: 4 | AH71: 1 | AI71: 0 | AJ71: 1 | AK71: 0 | AL71: 1 | AM71: 0 | AN71: 1 | AO71: 0 | AQ71: 1 | AR71: 1 | AS71: 0 | AU71: 3 | AW71: 1 | AX71: 1 | AY71: 0 | BA71: 5 | BC71: 8
A72: =IF(COUNTA(C72:K72)<8,"",MAX(A$6:A71)+1) -> 66 | C72: 2015-09-04 | D72: 7 | E72: 13 | F72: 4 | G72: 15 | H72: 2 | I72: 1 | J72: 10 | K72: 14 | L72: 13 | M72: 1 | N72: 15 | O72: 6 | P72: 12 | T72: =IFERROR(MATCH(D72,L72:P72,0),"") ->  | U72: =IFERROR(MATCH(E72,L72:P72,0),"") -> 1 | V72: =IFERROR(MATCH(F72,L72:P72,0),"") ->  | W72: =IFERROR(MATCH(G72,L72:P72,0),"") -> 3 | X72: =IFERROR(MATCH(H72,L72:P72,0),"") ->  | Y72: =IFERROR(MATCH(I72,L72:P72,0),"") -> 2 | Z72: =IFERROR(MATCH(J72,L72:P72,0),"") ->  | AA72: =IFERROR(MATCH(K72,L72:P72,0),"") ->  | AC72: 2 | AD72: 6 | AE72: 4 | AH72: =IFERROR(IF(BD72=1,"",IF(AND(HLOOKUP(1,T72:AA72,1,FALSE)=1,HLOOKUP(2,T72:AA72,1,FALSE)=2,HLOOKUP(3,T72:AA72,1,FALSE)=3),1,"")),"") -> 1 | AI72: =IF(C72>TODAY(),"",IF(AH72="",AI71+1,0)) -> 0 | AJ72: =IFERROR(IF(BF72=1,"",IF(AND(HLOOKUP(1,T72:AA72,1,FALSE)=1,HLOOKUP(2,T72:AA72,1,FALSE)=2,HLOOKUP(3,T72:AA72,1,FALSE)=3,HLOOKUP(4,T72:AA72,1,FALSE)=4),1,"")),"") ->  | AK72: =IF(C72>TODAY(),"",IF(AJ72="",AK71+1,0)) -> 1 | AL72: =IFERROR(IF(BG72=1,"",IF(AND(HLOOKUP(1,T72:AA72,1,FALSE)=1,HLOOKUP(2,T72:AA72,1,FALSE)=2,HLOOKUP(3,T72:AA72,1,FALSE)=3,HLOOKUP(4,T72:AA72,1,FALSE)=4,HLOOKUP(5,T72:AA72,1,FALSE)=5),1,"")),"") ->  | AM72: =IF(C72>TODAY(),"",IF(AL72="",AM71+1,0)) -> 1 | AN72: =IF(COUNTIF(L72:N72,D72)=0,"",1) ->  | AO72: =IF(C72>TODAY(),"",IF(AN72="",AO71+1,0)) -> 1 | AP72: =IF(COUNTIF(L72:N72,E72)=0,"",1) -> 1 | AQ72: =IF(C72>TODAY(),"",IF(AP72="",AQ71+1,0)) -> 0 | AR72: =IF(COUNTIF(L72:N72,F72)=0,"",1) ->  | AS72: =IF(C72>TODAY(),"",IF(AR72="",AS71+1,0)) -> 1 | AT72: =IF(COUNTIF(L72:N72,G72)=0,"",1) -> 1 | AU72: =IF(C72>TODAY(),"",IF(AT72="",AU71+1,0)) -> 0 | AV72: =IF(COUNTIF(L72:N72,H72)=0,"",1) ->  | AW72: =IF(C72>TODAY(),"",IF(AV72="",AW71+1,0)) -> 2 | AX72: =IF(COUNTIF(L72:N72,I72)=0,"",1) -> 1 | AY72: =IF(C72>TODAY(),"",IF(AX72="",AY71+1,0)) -> 0 | AZ72: =IF(COUNTIF(L72:N72,J72)=0,"",1) ->  | BA72: =IF(C72>TODAY(),"",IF(AZ72="",BA71+1,0)) -> 6 | BB72: =IF(COUNTIF(L72:N72,K72)=0,"",1) ->  | BC72: =IF(C72>TODAY(),"",IF(BB72="",BC71+1,0)) -> 9
A73: =IF(COUNTA(C73:K73)<8,"",MAX(A$6:A72)+1) -> 67 | C73: 2015-09-05 | D73: 4 | E73: 13 | F73: 11 | G73: 8 | H73: 7 | I73: 3 | J73: 15 | K73: 14 | L73: 4 | M73: 11 | N73: 13 | O73: 15 | P73: 3 | T73: 1 | U73: 3 | V73: 2 | Y73: 5 | Z73: 4 | AC73: 1 | AD73: 3 | AE73: 2 | AF73: 7 | AG73: 6 | AH73: 1 | AI73: 0 | AJ73: 1 | AK73: 0 | AL73: 1 | AM73: 0 | AN73: 1 | AO73: 0 | AP73: 1 | AQ73: 0 | AR73: 1 | AS73: 0 | AU73: 1 | AW73: 3 | AY73: 1 | BA73: 7 | BC73: 10
A74: =IF(COUNTA(C74:K74)<8,"",MAX(A$6:A73)+1) -> 68 | C74: 2015-09-06 | D74: 14 | E74: 2 | F74: 5 | G74: 1 | H74: 15 | I74: 3 | J74: 9 | K74: 13 | L74: 13 | M74: 11 | N74: 1 | O74: 3 | P74: 14 | T74: 5 | W74: 3 | Y74: 4 | AA74: 1 | AC74: 8 | AE74: 4 | AF74: 6 | AG74: 1 | AI74: 1 | AK74: 1 | AM74: 1 | AO74: 1 | AQ74: 1 | AS74: 1 | AT74: 1 | AU74: 0 | AW74: 4 | AY74: 2 | BA74: 8 | BB74: 1 | BC74: 0
A75: =IF(COUNTA(C75:K75)<8,"",MAX(A$6:A74)+1) -> 69 | C75: 2015-09-07 | D75: 9 | E75: 2 | F75: 6 | G75: 4 | H75: 5 | I75: 3 | J75: 7 | K75: 11 | L75: 6 | M75: 2 | N75: 9 | O75: 7 | P75: 10 | T75: 3 | U75: 2 | V75: 1 | Z75: 4 | AC75: 3 | AD75: 2 | AE75: 1 | AF75: 7 | AH75: 1 | AI75: 0 | AJ75: 1 | AK75: 0 | AM75: 2 | AN75: 1 | AO75: 0 | AP75: 1 | AQ75: 0 | AR75: 1 | AS75: 0 | AU75: 1 | AW75: 5 | AY75: 3 | BA75: 9 | BC75: 1
A76: =IF(COUNTA(C76:K76)<8,"",MAX(A$6:A75)+1) -> 70 | C76: 2015-09-08 | D76: 1 | E76: 7 | F76: 5 | G76: 6 | H76: 10 | I76: 4 | J76: 14 | K76: 12 | L76: 4 | M76: 12 | N76: 13 | O76: 2 | P76: 1 | T76: 5 | Y76: 1 | AA76: 2 | AC76: 6 | AD76: 8 | AG76: 1 | AI76: 1 | AK76: 1 | AM76: 3 | AO76: 1 | AQ76: 1 | AS76: 1 | AU76: 2 | AW76: 6 | AX76: 1 | AY76: 0 | BA76: 10 | BB76: 1 | BC76: 0
A77: =IF(COUNTA(C77:K77)<8,"",MAX(A$6:A76)+1) -> 71 | C77: 2015-09-09 | D77: 11 | E77: 4 | F77: 6 | G77: 7 | H77: 1 | I77: 13 | J77: 12 | K77: 8 | L77: 10 | M77: 9 | N77: 12 | O77: 8 | P77: 13 | Y77: 5 | Z77: 3 | AA77: 4 | AE77: 7 | AF77: 8 | AG77: 6 | AI77: 2 | AK77: 2 | AM77: 4 | AO77: 2 | AQ77: 2 | AS77: 2 | AU77: 3 | AW77: 7 | AY77: 1 | AZ77: 1 | BA77: 0 | BC77: 1
A78: =IF(COUNTA(C78:K78)<8,"",MAX(A$6:A77)+1) -> 72 | C78: 2015-09-10 | D78: 7 | E78: 15 | F78: 2 | G78: 4 | H78: 12 | I78: 9 | J78: 13 | K78: 10 | L78: 4 | M78: 12 | N78: 5 | O78: 7 | P78: 13 | T78: 4 | W78: 1 | X78: 2 | Z78: 5 | AC78: 4 | AD78: 5 | AF78: 1 | AG78: 7 | AI78: 3 | AK78: 3 | AM78: 5 | AO78: 3 | AQ78: 3 | AS78: 3 | AT78: 1 | AU78: 0 | AV78: 1 | AW78: 0 | AY78: 2 | BA78: 1 | BC78: 2
A79: =IF(COUNTA(C79:K79)<8,"",MAX(A$6:A78)+1) -> 73 | C79: 2015-09-11 | D79: 10 | E79: 6 | F79: 11 | G79: 1 | H79: 12 | I79: 2 | J79: 14 | K79: 3 | L79: 12 | M79: 10 | N79: 11 | O79: 14 | P79: 3 | T79: 2 | V79: 3 | X79: 1 | Z79: 4 | AA79: 5 | AC79: 5 | AD79: 1 | AE79: 3 | AF79: 7 | AG79: 8 | AH79: 1 | AI79: 0 | AJ79: 1 | AK79: 0 | AL79: 1 | AM79: 0 | AN79: 1 | AO79: 0 | AQ79: 4 | AR79: 1 | AS79: 0 | AU79: 1 | AV79: 1 | AW79: 0 | AY79: 3 | BA79: 2 | BC79: 3
A80: =IF(COUNTA(C80:K80)<8,"",MAX(A$6:A79)+1) -> 74 | C80: 2015-09-12 | D80: 16 | E80: 12 | F80: 9 | G80: 6 | H80: 8 | I80: 3 | J80: 18 | K80: 5 | L80: 16 | M80: 9 | N80: 12 | O80: 18 | P80: 15 | T80: 1 | U80: 3 | V80: 2 | Z80: 4 | AC80: 1 | AD80: 3 | AE80: 2 | AF80: 7 | AH80: 1 | AI80: 0 | AJ80: 1 | AK80: 0 | AM80: 1 | AN80: 1 | AO80: 0 | AP80: 1 | AQ80: 0 | AR80: 1 | AS80: 0 | AU80: 2 | AW80: 1 | AY80: 4 | BA80: 3 | BC80: 4
A81: =IF(COUNTA(C81:K81)<8,"",MAX(A$6:A80)+1) -> 75 | C81: 2015-09-13 | D81: 4 | E81: 8 | F81: 9 | G81: 6 | H81: 11 | I81: 7 | J81: 5 | K81: 10 | L81: 11 | M81: 7 | N81: 6 | O81: 15 | P81: 9 | V81: 5 | W81: 3 | X81: 1 | Y81: 2 | AC81: 5 | AD81: 6 | AE81: 4 | AG81: 3 | AH81: 1 | AI81: 0 | AK81: 1 | AM81: 2 | AO81: 1 | AQ81: 1 | AS81: 1 | AT81: 1 | AU81: 0 | AV81: 1 | AW81: 0 | AX81: 1 | AY81: 0 | BA81: 4 | BC81: 5
A82: =IF(COUNTA(C82:K82)<8,"",MAX(A$6:A81)+1) -> 76 | C82: 2015-09-14 | D82: 5 | E82: 11 | F82: 7 | G82: 2 | H82: 8 | I82: 3 | J82: 17 | K82: 13 | L82: 2 | M82: 5 | N82: 8 | O82: 4 | P82: 12 | T82: 2 | W82: 1 | X82: 3 | AC82: 4 | AD82: 1 | AE82: 5 | AH82: 1 | AI82: 0 | AK82: 2 | AM82: 3 | AN82: 1 | AO82: 0 | AQ82: 2 | AS82: 2 | AT82: 1 | AU82: 0 | AV82: 1 | AW82: 0 | AY82: 1 | BA82: 5 | BC82: 6
A83: =IF(COUNTA(C83:K83)<8,"",MAX(A$6:A82)+1) -> 77 | C83: 2015-09-15 | D83: 7 | E83: 4 | F83: 6 | G83: 1 | H83: 13 | I83: 3 | J83: 12 | K83: 2 | L83: 4 | M83: 3 | N83: 5 | O83: 9 | P83: 15 | U83: 1 | Y83: 2 | AC83: 2 | AD83: 6 | AI83: 1 | AK83: 3 | AM83: 4 | AO83: 1 | AP83: 1 | AQ83: 0 | AS83: 3 | AU83: 1 | AW83: 1 | AX83: 1 | AY83: 0 | BA83: 6 | BC83: 7
A84: =IF(COUNTA(C84:K84)<8,"",MAX(A$6:A83)+1) -> 78 | C84: 2015-09-16 | D84: 14 | E84: 8 | F84: 2 | G84: 5 | H84: 10 | I84: 3 | J84: 4 | K84: 7 | L84: 8 | M84: 10 | N84: 3 | O84: 9 | P84: 2 | U84: 1 | V84: 5 | X84: 2 | Y84: 3 | AC84: 2 | AD84: 5 | AE84: 6 | AG84: 3 | AH84: 1 | AI84: 0 | AK84: 4 | AM84: 5 | AO84: 2 | AP84: 1 | AQ84: 0 | AS84: 4 | AU84: 2 | AV84: 1 | AW84: 0 | AX84: 1 | AY84: 0 | BA84: 7 | BC84: 8
A85: =IF(COUNTA(C85:K85)<8,"",MAX(A$6:A84)+1) -> 79 | C85: 2015-09-17 | D85: 4 | E85: 17 | F85: 13 | G85: 15 | H85: 18 | I85: 16 | J85: 9 | K85: 3 | L85: 14 | M85: 18 | N85: 4 | O85: 16 | P85: 17 | T85: 3 | U85: 5 | X85: 2 | Y85: 4 | AD85: 5 | AE85: 1 | AF85: 6 | AG85: 2 | AI85: 1 | AK85: 5 | AM85: 6 | AN85: 1 | AO85: 0 | AQ85: 1 | AS85: 5 | AU85: 3 | AV85: 1 | AW85: 0 | AY85: 1 | BA85: 8 | BC85: 9
A86: =IF(COUNTA(C86:K86)<8,"",MAX(A$6:A85)+1) -> 80 | C86: 2015-09-18 | D86: 15 | E86: 17 | F86: 16 | G86: 14 | H86: 10 | I86: 13 | J86: 12 | K86: 9 | L86: 15 | M86: 4 | N86: 13 | O86: 14 | P86: 17 | T86: 1 | U86: 5 | W86: 4 | Y86: 3 | AC86: 1 | AE86: 6 | AF86: 4 | AG86: 2 | AI86: 2 | AK86: 6 | AM86: 7 | AN86: 1 | AO86: 0 | AQ86: 2 | AS86: 6 | AU86: 4 | AW86: 1 | AX86: 1 | AY86: 0 | BA86: 9 | BC86: 10
A87: =IF(COUNTA(C87:K87)<8,"",MAX(A$6:A86)+1) -> 81 | C87: 2015-09-19 | D87: 1 | E87: 7 | F87: 4 | G87: 6 | H87: 11 | I87: 2 | J87: 8 | K87: 13 | L87: 1 | M87: 13 | N87: 4 | O87: 11 | P87: 6 | T87: 1 | V87: 3 | W87: 5 | X87: 4 | AA87: 2 | AC87: 1 | AD87: 8 | AE87: 3 | AF87: 5 | AG87: 4 | AH87: 1 | AI87: 0 | AJ87: 1 | AK87: 0 | AL87: 1 | AM87: 0 | AN87: 1 | AO87: 0 | AQ87: 3 | AR87: 1 | AS87: 0 | AU87: 5 | AW87: 2 | AY87: 1 | BA87: 10 | BB87: 1 | BC87: 0
A88: =IF(COUNTA(C88:K88)<8,"",MAX(A$6:A87)+1) -> 82 | C88: 2015-09-20 | D88: 17 | E88: 7 | F88: 12 | G88: 10 | H88: 4 | I88: 6 | J88: 3 | K88: 8 | L88: 7 | M88: 8 | N88: 13 | O88: 6 | P88: 12 | U88: 1 | V88: 5 | Y88: 4 | AA88: 2 | AC88: 2 | AD88: 8 | AF88: 6 | AG88: 3 | AI88: 1 | AK88: 1 | AM88: 1 | AO88: 1 | AP88: 1 | AQ88: 0 | AS88: 1 | AU88: 6 | AW88: 3 | AY88: 2 | BA88: 11 | BB88: 1 | BC88: 0
A89: =IF(COUNTA(C89:K89)<8,"",MAX(A$6:A88)+1) -> 83 | C89: 2015-09-21 | D89: 1 | E89: 12 | F89: 2 | G89: 5 | H89: 14 | I89: 15 | J89: 4 | K89: 7 | L89: 8 | M89: 1 | N89: 12 | O89: 4 | P89: 2 | T89: 2 | U89: 3 | V89: 5 | Z89: 4 | AD89: 1 | AE89: 2 | AF89: 7 | AG89: 3 | AI89: 2 | AK89: 2 | AM89: 2 | AN89: 1 | AO89: 0 | AP89: 1 | AQ89: 0 | AS89: 2 | AU89: 7 | AW89: 4 | AY89: 3 | BA89: 12 | BC89: 1
A90: =IF(COUNTA(C90:K90)<8,"",MAX(A$6:A89)+1) -> 84 | C90: 2015-09-22 | D90: 3 | E90: 9 | F90: 1 | G90: 6 | H90: 2 | I90: 12 | J90: 5 | K90: 15 | L90: 9 | M90: 3 | N90: 2 | O90: 15 | P90: 13 | T90: 2 | U90: 1 | X90: 3 | AA90: 4 | AC90: 2 | AD90: 1 | AE90: 5 | AF90: 8 | AH90: 1 | AI90: 0 | AJ90: 1 | AK90: 0 | AM90: 3 | AN90: 1 | AO90: 0 | AP90: 1 | AQ90: 0 | AS90: 3 | AU90: 8 | AV90: 1 | AW90: 0 | AY90: 4 | BA90: 13 | BC90: 2
A91: =IF(COUNTA(C91:K91)<8,"",MAX(A$6:A90)+1) -> 85 | C91: 2015-09-23 | D91: 9 | E91: 8 | F91: 1 | G91: 4 | H91: 11 | I91: 14 | J91: 2 | K91: 7 | L91: 11 | M91: 6 | N91: 10 | O91: 8 | P91: 4 | U91: 4 | W91: 5 | X91: 1 | AC91: 5 | AF91: 2 | AG91: 4 | AI91: 1 | AK91: 1 | AM91: 4 | AO91: 1 | AQ91: 1 | AS91: 4 | AU91: 9 | AV91: 1 | AW91: 0 | AY91: 5 | BA91: 14 | BC91: 3
A92: =IF(COUNTA(C92:K92)<8,"",MAX(A$6:A91)+1) -> 86 | C92: 2015-09-24 | D92: 1 | E92: 6 | F92: 5 | G92: 4 | H92: 14 | I92: 12 | J92: 7 | K92: 15 | L92: 6 | M92: 3 | N92: 5 | O92: 16 | P92: 4 | U92: 1 | V92: 3 | W92: 5 | AC92: 2 | AE92: 3 | AG92: 4 | AI92: 2 | AK92: 2 | AM92: 5 | AO92: 2 | AP92: 1 | AQ92: 0 | AR92: 1 | AS92: 0 | AU92: 10 | AW92: 1 | AY92: 6 | BA92: 15 | BC92: 4
A93: =IF(COUNTA(C93:K93)<8,"",MAX(A$6:A92)+1) -> 87 | C93: 2015-09-25 | D93: 5 | E93: 9 | F93: 14 | G93: 2 | H93: 16 | I93: 11 | J93: 10 | K93: 8 | L93: 8 | M93: 10 | N93: 16 | O93: 2 | P93: 13 | W93: 4 | X93: 3 | Z93: 2 | AA93: 1 | AC93: 8 | AD93: 7 | AE93: 5 | AF93: 4 | AH93: 1 | AI93: 0 | AJ93: 1 | AK93: 0 | AM93: 6 | AO93: 3 | AQ93: 1 | AS93: 1 | AU93: 11 | AV93: 1 | AW93: 0 | AY93: 7 | AZ93: 1 | BA93: 0 | BB93: 1 | BC93: 0
A94: =IF(COUNTA(C94:K94)<8,"",MAX(A$6:A93)+1) -> 88 | C94: 2015-09-26 | D94: 8 | E94: 3 | F94: 11 | G94: 5 | H94: 4 | I94: 2 | J94: 9 | K94: 6 | L94: 11 | M94: 13 | N94: 4 | O94: 15 | P94: 10 | V94: 1 | X94: 3 | AC94: 3 | AE94: 5 | AI94: 1 | AK94: 1 | AM94: 7 | AO94: 4 | AQ94: 2 | AR94: 1 | AS94: 0 | AU94: 12 | AV94: 1 | AW94: 0 | AY94: 8 | BA94: 1 | BC94: 1
A95: =IF(COUNTA(C95:K95)<8,"",MAX(A$6:A94)+1) -> 89 | C95: 2015-09-27 | D95: 9 | E95: 2 | F95: 15 | G95: 1 | H95: 4 | I95: 14 | J95: 13 | K95: 12 | L95: 2 | M95: 10 | N95: 15 | O95: 4 | P95: 8 | U95: 1 | V95: 3 | X95: 4 | AC95: 2 | AE95: 3 | AF95: 5 | AI95: 2 | AK95: 2 | AM95: 8 | AO95: 5 | AP95: 1 | AQ95: 0 | AR95: 1 | AS95: 0 | AU95: 13 | AW95: 1 | AY95: 9 | BA95: 2 | BC95: 2
A96: =IF(COUNTA(C96:K96)<8,"",MAX(A$6:A95)+1) -> 90 | C96: 2015-09-28 | D96: 10 | E96: 2 | F96: 12 | G96: 15 | H96: 6 | I96: 14 | J96: 1 | K96: 3 | L96: 12 | M96: 1 | N96: 7 | O96: 15 | P96: 14 | V96: 1 | W96: 4 | Y96: 5 | Z96: 2 | AC96: 3 | AD96: 7 | AF96: 4 | AG96: 6 | AI96: 3 | AK96: 3 | AM96: 9 | AO96: 6 | AQ96: 1 | AR96: 1 | AS96: 0 | AU96: 14 | AW96: 2 | AY96: 10 | AZ96: 1 | BA96: 0 | BC96: 3
A97: =IF(COUNTA(C97:K97)<8,"",MAX(A$6:A96)+1) -> 91 | C97: 2015-09-29 | D97: 14 | E97: 2 | F97: 7 | G97: 1 | H97: 12 | I97: 6 | J97: 11 | K97: 10 | L97: 2 | M97: 9 | N97: 14 | O97: 8 | P97: 10 | T97: 3 | U97: 1 | AA97: 5 | AC97: 2 | AE97: 1 | AG97: 8 | AI97: 4 | AK97: 4 | AM97: 10 | AN97: 1 | AO97: 0 | AP97: 1 | AQ97: 0 | AS97: 1 | AU97: 15 | AW97: 3 | AY97: 11 | BA97: 1 | BC97: 4
A98: =IF(COUNTA(C98:K98)<8,"",MAX(A$6:A97)+1) -> 92 | C98: 2015-09-30 | D98: 4 | E98: 7 | F98: 16 | G98: 18 | H98: 14 | I98: 3 | J98: 1 | K98: 13 | L98: 18 | M98: 4 | N98: 14 | O98: 8 | P98: 3 | T98: 2 | W98: 1 | X98: 3 | Y98: 5 | AC98: 4 | AD98: 1 | AE98: 5 | AG98: 6 | AH98: 1 | AI98: 0 | AK98: 5 | AM98: 11 | AN98: 1 | AO98: 0 | AQ98: 1 | AS98: 2 | AT98: 1 | AU98: 0 | AV98: 1 | AW98: 0 | AY98: 12 | BA98: 2 | BC98: 5 | BH98: =SUM(AH69:AH98) -> 13
A99: =IF(COUNTA(C99:K99)<8,"",MAX(A$6:A98)+1) -> 93 | C99: 2015-10-01 | D99: 5 | E99: 11 | F99: 2 | G99: 3 | H99: 4 | I99: 8 | J99: 9 | K99: 1 | L99: 5 | M99: 3 | N99: 2 | O99: 11 | P99: 1 | T99: 1 | U99: 4 | V99: 3 | W99: 2 | AA99: 5 | AC99: 1 | AD99: 4 | AE99: 3 | AF99: 2 | AG99: 8 | AH99: 1 | AI99: 0 | AJ99: 1 | AK99: 0 | AL99: 1 | AM99: 0 | AN99: 1 | AO99: 0 | AQ99: 2 | AR99: 1 | AS99: 0 | AT99: 1 | AU99: 0 | AW99: 1 | AY99: 13 | BA99: 3 | BC99: 6
A100: =IF(COUNTA(C100:K100)<8,"",MAX(A$6:A99)+1) -> 94 | C100: 2015-10-02 | D100: 3 | E100: 5 | F100: 2 | G100: 7 | H100: 4 | I100: 14 | J100: 11 | K100: 6 | L100: 3 | M100: 2 | N100: 16 | O100: 14 | P100: 6 | T100: 1 | V100: 2 | Y100: 4 | AA100: 5 | AC100: 1 | AD100: 3 | AF100: 6 | AG100: 8 | AI100: 1 | AK100: 1 | AM100: 1 | AN100: 1 | AO100: 0 | AQ100: 3 | AR100: 1 | AS100: 0 | AU100: 1 | AW100: 2 | AY100: 14 | BA100: 4 | BC100: 7
A101: =IF(COUNTA(C101:K101)<8,"",MAX(A$6:A100)+1) -> 95 | C101: 2015-10-03 | D101: 15 | E101: 5 | F101: 7 | G101: 8 | H101: 16 | I101: 4 | J101: 1 | K101: 11 | L101: 7 | M101: 11 | N101: 4 | O101: 14 | P101: 3 | V101: 1 | Y101: 3 | AA101: 2 | AC101: 3 | AD101: 8 | AE101: 6 | AH101: 1 | AI101: 0 | AK101: 2 | AM101: 2 | AO101: 1 | AQ101: 4 | AR101: 1 | AS101: 0 | AU101: 2 | AW101: 3 | AX101: 1 | AY101: 0 | BA101: 5 | BB101: 1 | BC101: 0
A102: =IF(COUNTA(C102:K102)<8,"",MAX(A$6:A101)+1) -> 96 | C102: 2015-10-04 | D102: 9 | E102: 13 | F102: 16 | G102: 1 | H102: 7 | I102: 8 | J102: 3 | K102: 15 | L102: 16 | M102: 1 | N102: 13 | O102: 9 | P102: 15 | T102: 4 | U102: 3 | V102: 1 | W102: 2 | AA102: 5 | AC102: 3 | AD102: 4 | AE102: 2 | AF102: 1 | AG102: 8 | AH102: 1 | AI102: 0 | AJ102: 1 | AK102: 0 | AL102: 1 | AM102: 0 | AO102: 2 | AP102: 1 | AQ102: 0 | AR102: 1 | AS102: 0 | AT102: 1 | AU102: 0 | AW102: 4 | AY102: 1 | BA102: 6 | BC102: 1
A103: =IF(COUNTA(C103:K103)<8,"",MAX(A$6:A102)+1) -> 97 | C103: 2015-10-05 | D103: 8 | E103: 14 | F103: 6 | G103: 17 | H103: 15 | I103: 7 | J103: 12 | K103: 5 | L103: 15 | M103: 14 | N103: 17 | O103: 8 | P103: 11 | T103: 4 | U103: 2 | W103: 3 | X103: 1 | AC103: 5 | AD103: 2 | AE103: 4 | AF103: 1 | AH103: 1 | AI103: 0 | AJ103: 1 | AK103: 0 | AM103: 1 | AO103: 3 | AP103: 1 | AQ103: 0 | AS103: 1 | AT103: 1 | AU103: 0 | AV103: 1 | AW103: 0 | AY103: 2 | BA103: 7 | BC103: 2
A104: =IF(COUNTA(C104:K104)<8,"",MAX(A$6:A103)+1) -> 98 | C104: 2015-10-06 | D104: 3 | E104: 10 | F104: 2 | G104: 4 | H104: 17 | I104: 15 | J104: 12 | K104: 7 | L104: 15 | M104: 6 | N104: 2 | O104: 17 | P104: 10 | U104: 5 | V104: 3 | X104: 4 | Y104: 1 | AC104: 6 | AE104: 3 | AF104: 5 | AG104: 2 | AI104: 1 | AK104: 1 | AM104: 2 | AO104: 4 | AQ104: 1 | AR104: 1 | AS104: 0 | AU104: 1 | AW104: 1 | AX104: 1 | AY104: 0 | BA104: 8 | BC104: 3
A105: =IF(COUNTA(C105:K105)<8,"",MAX(A$6:A104)+1) -> 99 | C105: 2015-10-07 | D105: 4 | E105: 1 | F105: 2 | G105: 5 | H105: 13 | I105: 7 | J105: 3 | K105: 10 | L105: 1 | M105: 2 | N105: 10 | O105: 3 | P105: 16 | U105: 1 | V105: 2 | Z105: 4 | AA105: 3 | AC105: 2 | AD105: 3 | AE105: 8 | AF105: 7 | AH105: 1 | AI105: 0 | AJ105: 1 | AK105: 0 | AM105: 3 | AO105: 5 | AP105: 1 | AQ105: 0 | AR105: 1 | AS105: 0 | AU105: 2 | AW105: 2 | AY105: 1 | BA105: 9 | BB105: 1 | BC105: 0
A106: =IF(COUNTA(C106:K106)<8,"",MAX(A$6:A105)+1) -> 100 | C106: 2015-10-08 | D106: 15 | E106: 6 | F106: 1 | G106: 5 | H106: 16 | I106: 7 | J106: 19 | K106: 3 | L106: 6 | M106: 19 | N106: 16 | O106: 14 | P106: 7 | U106: 1 | X106: 3 | Y106: 5 | Z106: 2 | AC106: 2 | AD106: 7 | AE106: 5 | AG106: 6 | AH106: 1 | AI106: 0 | AK106: 1 | AM106: 4 | AO106: 6 | AP106: 1 | AQ106: 0 | AS106: 1 | AU106: 3 | AV106: 1 | AW106: 0 | AY106: 2 | AZ106: 1 | BA106: 0 | BC106: 1
A107: =IF(COUNTA(C107:K107)<8,"",MAX(A$6:A106)+1) -> 101 | C107: 2015-10-09 | D107: 12 | E107: 5 | F107: 11 | G107: 3 | H107: 10 | I107: 4 | J107: 7 | K107: 6 | L107: 4 | M107: 6 | N107: 7 | O107: 2 | P107: 5 | U107: 5 | Y107: 1 | Z107: 3 | AA107: 2 | AC107: 6 | AD107: 8 | AE107: 7 | AG107: 2 | AH107: 1 | AI107: 0 | AK107: 2 | AM107: 5 | AO107: 7 | AQ107: 1 | AS107: 2 | AU107: 4 | AW107: 1 | AX107: 1 | AY107: 0 | AZ107: 1 | BA107: 0 | BB107: 1 | BC107: 0
A108: =IF(COUNTA(C108:K108)<8,"",MAX(A$6:A107)+1) -> 102 | C108: 2015-10-10 | D108: 10 | E108: 5 | F108: 7 | G108: 4 | H108: 9 | I108: 3 | J108: 1 | K108: 15 | L108: 12 | M108: 14 | N108: 6 | O108: 3 | P108: 4 | W108: 5 | Y108: 4 | AF108: 6 | AG108: 4 | AI108: 1 | AK108: 3 | AM108: 6 | AO108: 8 | AQ108: 2 | AS108: 3 | AU108: 5 | AW108: 2 | AY108: 1 | BA108: 1 | BC108: 1
A109: =IF(COUNTA(C109:K109)<8,"",MAX(A$6:A108)+1) -> 103 | C109: 2015-10-11 | D109: 17 | E109: 4 | F109: 2 | G109: 13 | H109: 20 | I109: 14 | J109: 16 | K109: 7 | L109: 17 | M109: 14 | N109: 16 | O109: 2 | P109: 18 | T109: 1 | V109: 4 | Y109: 2 | Z109: 3 | AC109: 1 | AD109: 6 | AE109: 7 | AF109: 3 | AH109: 1 | AI109: 0 | AJ109: 1 | AK109: 0 | AM109: 7 | AN109: 1 | AO109: 0 | AQ109: 3 | AS109: 4 | AU109: 6 | AW109: 3 | AX109: 1 | AY109: 0 | AZ109: 1 | BA109: 0 | BC109: 2
A110: =IF(COUNTA(C110:K110)<8,"",MAX(A$6:A109)+1) -> 104 | C110: 2015-10-12 | D110: 13 | E110: 12 | F110: 5 | G110: 4 | H110: 15 | I110: 9 | J110: 2 | K110: 3 | L110: 13 | M110: 9 | N110: 6 | O110: 4 | P110: 11 | T110: 1 | W110: 4 | Y110: 2 | AC110: 1 | AD110: 6 | AF110: 4 | AI110: 1 | AK110: 1 | AM110: 8 | AN110: 1 | AO110: 0 | AQ110: 4 | AS110: 5 | AU110: 7 | AW110: 4 | AX110: 1 | AY110: 0 | BA110: 1 | BC110: 3
A111: =IF(COUNTA(C111:K111)<8,"",MAX(A$6:A110)+1) -> 105 | C111: 2015-10-13 | D111: 3 | E111: 12 | F111: 6 | G111: 14 | H111: 2 | I111: 15 | J111: 8 | K111: 10 | L111: 14 | M111: 8 | N111: 6 | O111: 15 | P111: 16 | V111: 3 | W111: 1 | Y111: 4 | Z111: 2 | AC111: 4 | AD111: 7 | AE111: 3 | AF111: 6 | AH111: 1 | AI111: 0 | AJ111: 1 | AK111: 0 | AM111: 9 | AO111: 1 | AQ111: 5 | AR111: 1 | AS111: 0 | AT111: 1 | AU111: 0 | AW111: 5 | AY111: 1 | AZ111: 1 | BA111: 0 | BC111: 4
A112: =IF(COUNTA(C112:K112)<8,"",MAX(A$6:A111)+1) -> 106 | C112: 2015-10-14 | D112: 3 | E112: 16 | F112: 15 | G112: 12 | H112: 5 | I112: 13 | J112: 14 | K112: 2 | L112: 13 | M112: 3 | N112: 4 | O112: 14 | P112: 16 | T112: 2 | U112: 5 | Y112: 1 | Z112: 4 | AC112: =IFERROR(MATCH(AC$3,$T112:$AA112,0),"") -> 6 | AD112: 1 | AF112: 7 | AG112: 2 | AI112: 1 | AK112: 1 | AM112: 10 | AN112: 1 | AO112: 0 | AQ112: 6 | AS112: 1 | AU112: 1 | AW112: 6 | AX112: 1 | AY112: 0 | BA112: 1 | BC112: 5
A113: =IF(COUNTA(C113:K113)<8,"",MAX(A$6:A112)+1) -> 107 | C113: 2015-10-15 | D113: 5 | E113: 9 | F113: 4 | G113: 6 | H113: 1 | I113: 13 | J113: 7 | K113: 16 | L113: 13 | M113: 15 | N113: 5 | O113: 14 | P113: 12 | T113: 3 | Y113: 1 | AC113: 6 | AE113: 1 | AI113: =IF(C113+"14:01">NOW(),"",IF(AH113="",AI112+1,0)) -> 2 | AK113: =IF(C113+"14:01">NOW(),"",IF(AJ113="",AK112+1,0)) -> 2 | AM113: =IF(C113+"14:01">NOW(),"",IF(AL113="",AM112+1,0)) -> 11 | AN113: 1 | AO113: =IF(C113+"14:01">NOW(),"",IF(AN113="",AO112+1,0)) -> 0 | AQ113: =IF(C113+"14:01">NOW(),"",IF(AP113="",AQ112+1,0)) -> 7 | AS113: =IF(C113+"14:01">NOW(),"",IF(AR113="",AS112+1,0)) -> 2 | AU113: =IF(C113+"14:01">NOW(),"",IF(AT113="",AU112+1,0)) -> 2 | AW113: =IF(C113+"14:01">NOW(),"",IF(AV113="",AW112+1,0)) -> 7 | AX113: 1 | AY113: =IF(C113+"14:01">NOW(),"",IF(AX113="",AY112+1,0)) -> 0 | BA113: =IF(C113+"14:01">NOW(),"",IF(AZ113="",BA112+1,0)) -> 2 | BC113: =IF(C113+"14:01">NOW(),"",IF(BB113="",BC112+1,0)) -> 6
A114: =IF(COUNTA(C114:K114)<8,"",MAX(A$6:A113)+1) -> 108 | C114: 2015-10-16 | D114: 1 | E114: 8 | F114: 15 | G114: 5 | H114: 2 | I114: 4 | J114: 7 | K114: 9 | L114: 1 | M114: 5 | N114: 4 | O114: 2 | P114: 8 | T114: 1 | U114: 5 | W114: 2 | X114: 4 | Y114: 3 | AC114: 1 | AD114: 4 | AE114: 6 | AF114: 5 | AG114: 2 | AH114: =IFERROR(IF(BD114=1,"",IF(AND(HLOOKUP(1,T114:AA114,1,FALSE)=1,HLOOKUP(2,T114:AA114,1,FALSE)=2,HLOOKUP(3,T114:AA114,1,FALSE)=3),1,"")),"") -> 1 | AI114: =IF(C114+"14:01">NOW(),"",IF(AH114="",AI113+1,0)) -> 0 | AJ114: =IFERROR(IF(BF114=1,"",IF(AND(HLOOKUP(1,T114:AA114,1,FALSE)=1,HLOOKUP(2,T114:AA114,1,FALSE)=2,HLOOKUP(3,T114:AA114,1,FALSE)=3,HLOOKUP(4,T114:AA114,1,FALSE)=4),1,"")),"") -> 1 | AK114: =IF(C114+"14:01">NOW(),"",IF(AJ114="",AK113+1,0)) -> 0 | AL114: =IFERROR(IF(BG114=1,"",IF(AND(HLOOKUP(1,T114:AA114,1,FALSE)=1,HLOOKUP(2,T114:AA114,1,FALSE)=2,HLOOKUP(3,T114:AA114,1,FALSE)=3,HLOOKUP(4,T114:AA114,1,FALSE)=4,HLOOKUP(5,T114:AA114,1,FALSE)=5),1,"")),"") -> 1 | AM114: =IF(C114+"14:01">NOW(),"",IF(AL114="",AM113+1,0)) -> 0 | AN114: =IF(COUNTIF(L114:N114,D114)=0,"",1) -> 1 | AO114: =IF(C114+"14:01">NOW(),"",IF(AN114="",AO113+1,0)) -> 0 | AP114: =IF(COUNTIF(L114:N114,E114)=0,"",1) ->  | AQ114: =IF(C114+"14:01">NOW(),"",IF(AP114="",AQ113+1,0)) -> 8 | AR114: =IF(COUNTIF(L114:N114,F114)=0,"",1) ->  | AS114: =IF(C114+"14:01">NOW(),"",IF(AR114="",AS113+1,0)) -> 3 | AT114: =IF(COUNTIF(L114:N114,G114)=0,"",1) -> 1 | AU114: =IF(C114+"14:01">NOW(),"",IF(AT114="",AU113+1,0)) -> 0 | AV114: =IF(COUNTIF(L114:N114,H114)=0,"",1) ->  | AW114: =IF(C114+"14:01">NOW(),"",IF(AV114="",AW113+1,0)) -> 8 | AX114: =IF(COUNTIF(L114:N114,I114)=0,"",1) -> 1 | AY114: =IF(C114+"14:01">NOW(),"",IF(AX114="",AY113+1,0)) -> 0 | AZ114: =IF(COUNTIF(L114:N114,J114)=0,"",1) ->  | BA114: =IF(C114+"14:01">NOW(),"",IF(AZ114="",BA113+1,0)) -> 3 | BB114: =IF(COUNTIF(L114:N114,K114)=0,"",1) ->  | BC114: =IF(C114+"14:01">NOW(),"",IF(BB114="",BC113+1,0)) -> 7
A115: =IF(COUNTA(C115:K115)<8,"",MAX(A$6:A114)+1) -> 109 | C115: 2015-10-17 | D115: 14 | E115: 10 | F115: 8 | G115: 2 | H115: 11 | I115: 5 | J115: 1 | K115: 17 | L115: 17 | M115: 1 | N115: 14 | O115: 10 | P115: 12 | T115: 3 | U115: 4 | Z115: 2 | AA115: 1 | AC115: 8 | AD115: 7 | AE115: 1 | AF115: 2 | AH115: 1 | AI115: 0 | AJ115: 1 | AK115: 0 | AM115: 1 | AN115: 1 | AO115: 0 | AQ115: 9 | AS115: 4 | AU115: 1 | AW115: 9 | AY115: 1 | AZ115: 1 | BA115: 0 | BB115: 1 | BC115: 0
A116: =IF(COUNTA(C116:K116)<8,"",MAX(A$6:A115)+1) -> 110 | C116: 2015-10-18 | D116: 6 | E116: 7 | F116: 4 | G116: 2 | H116: 3 | I116: 8 | J116: 5 | K116: 15 | L116: 1 | M116: 4 | N116: 16 | O116: 5 | P116: 8 | V116: 2 | Y116: 5 | Z116: 4 | AD116: 3 | AF116: 7 | AG116: 6 | AI116: 1 | AK116: 1 | AM116: 2 | AO116: 1 | AQ116: 10 | AR116: 1 | AS116: 0 | AU116: 2 | AW116: 10 | AY116: 2 | BA116: 1 | BC116: 1
A117: =IF(COUNTA(C117:K117)<8,"",MAX(A$6:A116)+1) -> 111 | C117: 2015-10-19 | D117: 1 | E117: 17 | F117: 6 | G117: 4 | H117: 7 | I117: 3 | J117: 8 | K117: 14 | L117: 17 | M117: 3 | N117: 1 | O117: 7 | P117: 4 | T117: 3 | U117: 1 | W117: 5 | X117: 4 | Y117: 2 | AC117: 2 | AD117: 6 | AE117: 1 | AF117: 5 | AG117: 4 | AH117: 1 | AI117: 0 | AJ117: 1 | AK117: 0 | AL117: 1 | AM117: 0 | AN117: 1 | AO117: 0 | AP117: 1 | AQ117: 0 | AS117: 1 | AU117: 3 | AW117: 11 | AX117: 1 | AY117: 0 | BA117: 2 | BC117: 2
A118: =IF(COUNTA(C118:K118)<8,"",MAX(A$6:A117)+1) -> 112 | C118: 2015-10-20 | D118: 1 | E118: 8 | F118: 10 | G118: 4 | H118: 6 | I118: 14 | J118: 11 | K118: 16 | L118: 11 | M118: 8 | N118: 4 | O118: 16 | P118: 6 | U118: 2 | W118: 3 | X118: 5 | Z118: 1 | AA118: 4 | AC118: 7 | AD118: 2 | AE118: 4 | AF118: 8 | AG118: 5 | AH118: 1 | AI118: 0 | AJ118: 1 | AK118: 0 | AL118: 1 | AM118: 0 | AO118: 1 | AP118: 1 | AQ118: 0 | AS118: 2 | AT118: 1 | AU118: 0 | AW118: 12 | AY118: 1 | AZ118: 1 | BA118: 0 | BC118: 3
A119: =IF(COUNTA(C119:K119)<8,"",MAX(A$6:A118)+1) -> 113 | C119: 2015-10-21 | D119: 1 | E119: 5 | F119: 10 | G119: 2 | H119: 9 | I119: 13 | J119: 16 | K119: 4 | L119: 5 | M119: 6 | N119: 7 | O119: 10 | P119: 2 | U119: 1 | V119: 4 | W119: 5 | AC119: 2 | AF119: 3 | AG119: 4 | AI119: 1 | AK119: 1 | AM119: 1 | AO119: 2 | AP119: 1 | AQ119: 0 | AS119: 3 | AU119: 1 | AW119: 13 | AY119: 2 | BA119: 1 | BC119: 4
A120: =IF(COUNTA(C120:K120)<8,"",MAX(A$6:A119)+1) -> 114 | C120: 2015-10-22 | D120: 6 | E120: 8 | F120: 5 | G120: 4 | H120: 7 | I120: 1 | J120: 2 | K120: 3 | L120: 8 | M120: 4 | N120: 9 | O120: 13 | P120: 5 | U120: 1 | V120: 5 | W120: 2 | AC120: 2 | AD120: 4 | AG120: 3 | AI120: 2 | AK120: 2 | AM120: 2 | AO120: 3 | AP120: 1 | AQ120: 0 | AS120: 4 | AT120: 1 | AU120: 0 | AW120: 14 | AY120: 3 | BA120: 2 | BC120: 5
A121: =IF(COUNTA(C121:K121)<8,"",MAX(A$6:A120)+1) -> 115 | C121: 2015-10-23 | D121: 9 | E121: 3 | F121: 8 | G121: 6 | H121: 4 | I121: 1 | J121: 2 | K121: 16 | L121: 3 | M121: 16 | N121: 8 | O121: 2 | P121: 12 | U121: 1 | V121: 3 | Z121: 4 | AA121: 2 | AC121: 2 | AD121: 8 | AE121: 3 | AF121: 7 | AH121: 1 | AI121: 0 | AJ121: 1 | AK121: 0 | AM121: 3 | AO121: 4 | AP121: 1 | AQ121: 0 | AR121: 1 | AS121: 0 | AU121: 1 | AW121: 15 | AY121: 4 | BA121: 3 | BB121: 1 | BC121: 0
A122: =IF(COUNTA(C122:K122)<8,"",MAX(A$6:A121)+1) -> 116 | C122: 2015-10-24 | D122: 7 | E122: 6 | F122: 4 | G122: 1 | H122: 2 | I122: 3 | J122: 12 | K122: 11 | L122: 9 | M122: 16 | N122: 3 | O122: 12 | P122: 15 | Y122: 3 | Z122: 4 | AE122: 6 | AF122: 7 | AI122: 1 | AK122: 1 | AM122: 4 | AO122: 5 | AQ122: 1 | AS122: 1 | AU122: 2 | AW122: 16 | AX122: 1 | AY122: 0 | BA122: 4 | BC122: 1
A123: =IF(COUNTA(C123:K123)<8,"",MAX(A$6:A122)+1) -> 117 | C123: 2015-10-25 | D123: 4 | E123: 8 | F123: 1 | G123: 9 | H123: 6 | I123: 5 | J123: 14 | K123: 12 | L123: 15 | M123: 9 | N123: 1 | O123: 8 | P123: 16 | U123: 4 | V123: 3 | W123: 2 | AD123: 4 | AE123: 3 | AF123: 2 | AI123: 2 | AK123: 2 | AM123: 5 | AO123: 6 | AQ123: 2 | AR123: 1 | AS123: 0 | AT123: 1 | AU123: 0 | AW123: 17 | AY123: 1 | BA123: 5 | BC123: 2
A124: =IF(COUNTA(C124:K124)<8,"",MAX(A$6:A123)+1) -> 118 | C124: 2015-10-26 | D124: 1 | E124: 2 | F124: 5 | G124: 12 | H124: 4 | I124: 6 | J124: 13 | K124: 10 | L124: 1 | M124: 7 | N124: 2 | O124: 10 | P124: 13 | T124: 1 | U124: 3 | Z124: 5 | AA124: 4 | AC124: 1 | AE124: 2 | AF124: 8 | AG124: 7 | AI124: 3 | AK124: 3 | AM124: 6 | AN124: 1 | AO124: 0 | AP124: 1 | AQ124: 0 | AS124: 1 | AU124: 1 | AW124: 18 | AY124: 2 | BA124: 6 | BC124: 3
A125: =IF(COUNTA(C125:K125)<8,"",MAX(A$6:A124)+1) -> 119 | C125: 2015-10-27 | D125: 7 | E125: 5 | F125: 4 | G125: 11 | H125: 1 | I125: 2 | J125: 15 | K125: 14 | L125: 15 | M125: 4 | N125: 2 | O125: 11 | P125: 5 | U125: 5 | V125: 2 | W125: 4 | Y125: 3 | Z125: 1 | AC125: 7 | AD125: 3 | AE125: 6 | AF125: 4 | AG125: 2 | AH125: 1 | AI125: 0 | AJ125: 1 | AK125: 0 | AL125: 1 | AM125: 0 | AO125: 1 | AQ125: 1 | AR125: 1 | AS125: 0 | AU125: 2 | AW125: 19 | AX125: 1 | AY125: 0 | AZ125: 1 | BA125: 0 | BC125: 4
A126: =IF(COUNTA(C126:K126)<8,"",MAX(A$6:A125)+1) -> 120 | C126: 2015-10-28 | D126: 15 | E126: 8 | F126: 5 | G126: 12 | H126: 2 | I126: 13 | J126: 14 | K126: 16 | L126: 16 | M126: 18 | N126: 6 | O126: 11 | P126: 5 | V126: 5 | AA126: 1 | AC126: 8 | AG126: 3 | AI126: 1 | AK126: 1 | AM126: 1 | AO126: 2 | AQ126: 2 | AS126: 1 | AU126: 3 | AW126: 20 | AY126: 1 | BA126: 1 | BB126: 1 | BC126: 0
A127: =IF(COUNTA(C127:K127)<8,"",MAX(A$6:A126)+1) -> 121 | C127: 2015-10-29 | D127: 5 | E127: 2 | F127: 7 | G127: 9 | H127: 11 | I127: 4 | J127: 1 | K127: 13 | L127: 16 | M127: 15 | N127: 13 | O127: 2 | P127: 5 | T127: 5 | U127: 4 | AA127: 3 | AE127: 8 | AF127: 2 | AG127: 1 | AI127: 2 | AK127: 2 | AM127: 2 | AO127: 3 | AQ127: 3 | AS127: 2 | AU127: 4 | AW127: 21 | AY127: 2 | BA127: 2 | BB127: 1 | BC127: 0
A128: =IF(COUNTA(C128:K128)<8,"",MAX(A$6:A127)+1) -> 122 | C128: 2015-10-30 | D128: 4 | E128: 2 | F128: 17 | G128: 6 | H128: 9 | I128: 13 | J128: 1 | K128: 18 | L128: 4 | M128: 2 | N128: 7 | O128: 6 | P128: 1 | T128: 1 | U128: 2 | W128: 4 | Z128: 5 | AC128: 1 | AD128: 2 | AF128: 4 | AG128: 7 | AI128: 3 | AK128: 3 | AM128: 3 | AN128: 1 | AO128: 0 | AP128: 1 | AQ128: 0 | AS128: 3 | AU128: 5 | AW128: 22 | AY128: 3 | BA128: 3 | BC128: 1
A129: =IF(COUNTA(C129:K129)<8,"",MAX(A$6:A128)+1) -> 123 | C129: 2015-10-31 | D129: 7 | E129: 4 | F129: 2 | G129: 13 | H129: 10 | I129: 3 | J129: 1 | K129: 9 | L129: 7 | M129: 3 | N129: 14 | O129: 10 | P129: 9 | T129: 1 | X129: 4 | Y129: 2 | AA129: 5 | AC129: 1 | AD129: 6 | AF129: 5 | AG129: 8 | AI129: 4 | AK129: 4 | AM129: 4 | AN129: 1 | AO129: 0 | AQ129: 1 | AS129: 4 | AU129: 6 | AW129: 23 | AX129: 1 | AY129: 0 | BA129: 4 | BC129: 2 | BH129: =SUM(AH99:AH129) -> 15
A130: =IF(COUNTA(C130:K130)<8,"",MAX(A$6:A129)+1) -> 124 | C130: 2015-11-01 | D130: 7 | E130: 9 | F130: 3 | G130: 4 | H130: 11 | I130: 5 | J130: 6 | K130: 10 | L130: 1 | M130: 15 | N130: 11 | O130: 8 | P130: 9 | U130: 5 | X130: 3 | AE130: 5 | AG130: 2 | AI130: 5 | AK130: 5 | AM130: 5 | AO130: 1 | AQ130: 2 | AS130: 5 | AU130: 7 | AV130: 1 | AW130: 0 | AY130: 1 | BA130: 5 | BC130: 3
A131: =IF(COUNTA(C131:K131)<8,"",MAX(A$6:A130)+1) -> 125 | C131: 2015-11-02 | D131: 1 | E131: 15 | F131: 13 | G131: 10 | H131: 4 | I131: 7 | J131: 5 | K131: 6 | L131: 13 | M131: 4 | N131: 15 | O131: 8 | P131: 1 | T131: 5 | U131: 3 | V131: 1 | X131: 2 | AC131: 3 | AD131: 5 | AE131: 2 | AG131: 1 | AH131: 1 | AI131: 0 | AK131: 6 | AM131: 6 | AO131: 2 | AP131: 1 | AQ131: 0 | AR131: 1 | AS131: 0 | AU131: 8 | AV131: 1 | AW131: 0 | AY131: 2 | BA131: 6 | BC131: 4
A132: =IF(COUNTA(C132:K132)<8,"",MAX(A$6:A131)+1) -> 126 | C132: 2015-11-03 | D132: 7 | E132: 6 | F132: 16 | G132: 1 | H132: 4 | I132: 12 | J132: 3 | K132: 14 | L132: 16 | M132: 2 | N132: 4 | O132: 12 | P132: 1 | V132: 1 | W132: 5 | X132: 3 | Y132: 4 | AC132: 3 | AE132: 5 | AF132: 6 | AG132: 4 | AI132: 1 | AK132: 7 | AM132: 7 | AO132: 3 | AQ132: 1 | AR132: 1 | AS132: 0 | AU132: 9 | AV132: 1 | AW132: 0 | AY132: 3 | BA132: 7 | BC132: 5
A133: =IF(COUNTA(C133:K133)<8,"",MAX(A$6:A132)+1) -> 127 | C133: 2015-11-04 | D133: 8 | E133: 2 | F133: 9 | G133: 11 | H133: 3 | I133: 4 | J133: 5 | K133: 6 | L133: 9 | M133: 8 | N133: 5 | O133: 13 | P133: 11 | T133: 2 | V133: 1 | W133: 5 | Z133: 3 | AC133: 3 | AD133: 1 | AE133: 7 | AG133: 4 | AH133: 1 | AI133: 0 | AK133: 8 | AM133: 8 | AN133: 1 | AO133: 0 | AQ133: 2 | AR133: 1 | AS133: 0 | AU133: 10 | AW133: 1 | AY133: 4 | AZ133: 1 | BA133: 0 | BC133: 6
A134: =IF(COUNTA(C134:K134)<8,"",MAX(A$6:A133)+1) -> 128 | C134: 2015-11-05 | D134: 7 | E134: 15 | F134: 16 | G134: 2 | H134: 8 | I134: 3 | J134: 18 | K134: 17 | L134: 7 | M134: 8 | N134: 16 | O134: 15 | P134: 12 | T134: =IFERROR(MATCH(D134,L134:P134,0),"") -> 1 | U134: =IFERROR(MATCH(E134,L134:P134,0),"") -> 4 | V134: =IFERROR(MATCH(F134,L134:P134,0),"") -> 3 | W134: =IFERROR(MATCH(G134,L134:P134,0),"") ->  | X134: =IFERROR(MATCH(H134,L134:P134,0),"") -> 2 | Y134: =IFERROR(MATCH(I134,L134:P134,0),"") ->  | Z134: =IFERROR(MATCH(J134,L134:P134,0),"") ->  | AA134: =IFERROR(MATCH(K134,L134:P134,0),"") ->  | AC134: 1 | AD134: 5 | AE134: 3 | AF134: 2 | AH134: 1 | AI134: 0 | AJ134: 1 | AK134: 0 | AM134: 9 | AN134: 1 | AO134: 0 | AQ134: 3 | AR134: 1 | AS134: 0 | AU134: 11 | AV134: 1 | AW134: 0 | AY134: 5 | BA134: 1 | BC134: 7
A135: =IF(COUNTA(C135:K135)<8,"",MAX(A$6:A134)+1) -> 129 | C135: 2015-11-06 | D135: 1 | E135: 9 | F135: 3 | G135: 10 | H135: 8 | I135: 13 | J135: 11 | K135: 6 | L135: 7 | M135: 3 | N135: 9 | O135: 10 | P135: 6 | U135: 3 | V135: 2 | W135: 4 | AA135: 5 | AC135: =IFERROR(MATCH(AC$3,$T135:$AA135,0),"") ->  | AD135: 3 | AE135: 2 | AF135: 4 | AG135: 8 | AI135: 1 | AK135: 1 | AM135: 10 | AO135: 1 | AP135: 1 | AQ135: 0 | AR135: 1 | AS135: 0 | AU135: 12 | AW135: 1 | AY135: 6 | BA135: 2 | BC135: 8
A136: =IF(COUNTA(C136:K136)<8,"",MAX(A$6:A135)+1) -> 130 | C136: 2015-11-07 | D136: 3 | E136: 15 | F136: 13 | G136: 8 | H136: 10 | I136: 18 | J136: 4 | K136: 5 | L136: 13 | M136: 3 | N136: 10 | O136: 14 | P136: 20 | T136: 2 | V136: 1 | X136: 3 | AC136: 3 | AD136: 1 | AE136: 5 | AH136: 1 | AI136: 0 | AK136: 2 | AM136: 11 | AN136: 1 | AO136: 0 | AQ136: 1 | AR136: 1 | AS136: 0 | AU136: 13 | AV136: 1 | AW136: 0 | AY136: 7 | BA136: 3 | BC136: 9
A137: =IF(COUNTA(C137:K137)<8,"",MAX(A$6:A136)+1) -> 131 | C137: 2015-11-08 | D137: 3 | E137: 1 | F137: 11 | G137: 8 | H137: 7 | I137: 4 | J137: 5 | K137: 2 | L137: 8 | M137: 11 | N137: 16 | O137: 15 | P137: 4 | V137: 2 | W137: 1 | Y137: 5 | AC137: 4 | AD137: 3 | AG137: 6 | AI137: 1 | AK137: 3 | AM137: 12 | AO137: 1 | AQ137: 2 | AR137: 1 | AS137: 0 | AT137: 1 | AU137: 0 | AW137: 1 | AY137: 8 | BA137: 4 | BC137: 10
A138: =IF(COUNTA(C138:K138)<8,"",MAX(A$6:A137)+1) -> 132 | C138: 2015-11-09 | D138: 15 | E138: 16 | F138: 14 | G138: 10 | H138: 6 | I138: 13 | J138: 7 | K138: 5 | L138: 10 | M138: 9 | N138: 11 | O138: 1 | P138: 15 | T138: 5 | W138: 1 | AC138: 4 | AG138: 1 | AI138: 2 | AK138: 4 | AM138: 13 | AO138: 2 | AQ138: 3 | AS138: 1 | AT138: 1 | AU138: 0 | AW138: 2 | AY138: 9 | BA138: 5 | BC138: 11
A139: =IF(COUNTA(C139:K139)<8,"",MAX(A$6:A138)+1) -> 133 | C139: 2015-11-10 | D139: 7 | E139: 6 | F139: 3 | G139: 9 | H139: 18 | I139: 8 | J139: 16 | K139: 15 | L139: 3 | M139: 6 | N139: 7 | O139: 8 | P139: 5 | T139: 3 | U139: 2 | V139: 1 | Y139: 4 | AC139: 3 | AD139: 2 | AE139: 1 | AF139: 6 | AH139: 1 | AI139: 0 | AJ139: 1 | AK139: 0 | AM139: 14 | AN139: 1 | AO139: 0 | AP139: 1 | AQ139: 0 | AR139: 1 | AS139: 0 | AU139: 1 | AW139: 3 | AY139: 10 | BA139: 6 | BC139: 12
A140: =IF(COUNTA(C140:K140)<8,"",MAX(A$6:A139)+1) -> 134 | C140: 2015-11-11 | D140: 9 | E140: 4 | F140: 7 | G140: 1 | H140: 2 | I140: 6 | J140: 8 | K140: 14 | L140: 6 | M140: 12 | N140: 11 | O140: 13 | P140: 4 | U140: 5 | Y140: 1 | AC140: 6 | AG140: 2 | AI140: 1 | AK140: 1 | AM140: 15 | AO140: 1 | AQ140: 1 | AS140: 1 | AU140: 2 | AW140: 4 | AX140: 1 | AY140: 0 | BA140: 7 | BC140: 13
A141: =IF(COUNTA(C141:K141)<8,"",MAX(A$6:A140)+1) -> 135 | C141: 2015-11-12 | D141: 3 | E141: 7 | F141: 9 | G141: 4 | H141: 2 | I141: 5 | J141: 14 | K141: 13 | L141: 9 | M141: 4 | N141: 2 | O141: 13 | P141: 5 | V141: 1 | W141: 2 | X141: 3 | Y141: 5 | AA141: 4 | AC141: 3 | AD141: 4 | AE141: 5 | AF141: 8 | AG141: 6 | AH141: 1 | AI141: 0 | AJ141: 1 | AK141: 0 | AL141: 1 | AM141: 0 | AO141: 2 | AQ141: 2 | AR141: 1 | AS141: 0 | AT141: 1 | AU141: 0 | AV141: 1 | AW141: 0 | AY141: 1 | BA141: 8 | BC141: 14
A142: =IF(COUNTA(C142:K142)<8,"",MAX(A$6:A141)+1) -> 136 | C142: 2015-11-13 | D142: 3 | E142: 18 | F142: 2 | G142: 14 | H142: 4 | I142: 13 | J142: 1 | K142: 16 | L142: 2 | M142: 4 | N142: 18 | O142: 1 | P142: 14 | U142: 3 | V142: 1 | W142: 5 | X142: 2 | Z142: 4 | AC142: 3 | AD142: 5 | AE142: 2 | AF142: 7 | AG142: 4 | AH142: 1 | AI142: 0 | AJ142: 1 | AK142: 0 | AL142: 1 | AM142: 0 | AO142: 3 | AP142: 1 | AQ142: 0 | AR142: 1 | AS142: 0 | AU142: 1 | AV142: 1 | AW142: 0 | AY142: 2 | BA142: 9 | BC142: 15
A143: =IF(COUNTA(C143:K143)<8,"",MAX(A$6:A142)+1) ->  | C143: 2015-11-14 | AI143: 1 | AK143: 1 | AM143: 1 | AO143: 4 | AQ143: 1 | AS143: 1 | AU143: 2 | AW143: 1 | AY143: 3 | BA143: 10 | BC143: 16
A144: =IF(COUNTA(C144:K144)<8,"",MAX(A$6:A143)+1) ->  | C144: 2015-11-15 | L144: 3 | M144: 5 | N144: 8 | O144: 6 | P144: 7 | AI144: 2 | AK144: 2 | AM144: 2 | AO144: 5 | AQ144: 2 | AS144: 2 | AU144: 3 | AW144: 2 | AY144: 4 | BA144: 11 | BC144: 17
A145: =IF(COUNTA(C145:K145)<8,"",MAX(A$6:A144)+1) -> 137 | C145: 2015-11-16 | D145: 5 | E145: 14 | F145: 13 | G145: 6 | H145: 12 | I145: 11 | J145: 4 | K145: 10 | L145: 14 | M145: 5 | N145: 11 | O145: 6 | P145: 12 | T145: 2 | U145: 1 | W145: 4 | X145: 5 | Y145: 3 | AC145: 2 | AD145: 1 | AE145: 6 | AF145: 4 | AG145: 5 | AH145: 1 | AI145: 0 | AJ145: 1 | AK145: 0 | AL145: 1 | AM145: 0 | AN145: 1 | AO145: 0 | AP145: 1 | AQ145: 0 | AS145: 3 | AU145: 4 | AW145: 3 | AX145: 1 | AY145: 0 | BA145: 12 | BC145: 18
A146: =IF(COUNTA(C146:K146)<8,"",MAX(A$6:A145)+1) -> 138 | C146: 2015-11-17 | D146: 1 | E146: 3 | F146: 8 | G146: 15 | H146: 2 | I146: 5 | J146: 10 | K146: 11 | L146: 2 | M146: 16 | N146: 1 | O146: 3 | P146: 10 | T146: 3 | U146: 4 | X146: 1 | Z146: 5 | AC146: 5 | AE146: 1 | AF146: 2 | AG146: 7 | AI146: 1 | AK146: 1 | AM146: 1 | AN146: 1 | AO146: 0 | AQ146: 1 | AS146: 4 | AU146: 5 | AV146: 1 | AW146: 0 | AY146: 1 | BA146: 13 | BC146: 19
A147: =IF(COUNTA(C147:K147)<8,"",MAX(A$6:A146)+1) -> 139 | C147: 2015-11-18 | D147: 15 | E147: 5 | F147: 6 | G147: 2 | H147: 16 | I147: 8 | J147: 1 | K147: 11 | L147: 2 | M147: 6 | N147: 3 | O147: 18 | P147: 16 | V147: 2 | W147: 1 | X147: 5 | AC147: 4 | AD147: 3 | AG147: 5 | AI147: 2 | AK147: 2 | AM147: 2 | AO147: 1 | AQ147: 2 | AR147: 1 | AS147: 0 | AT147: 1 | AU147: 0 | AW147: 1 | AY147: 2 | BA147: 14 | BC147: 20
A148: =IF(COUNTA(C148:K148)<8,"",MAX(A$6:A147)+1) -> 140 | C148: 2015-11-19 | D148: 9 | E148: 15 | F148: 10 | G148: 13 | H148: 8 | I148: 14 | J148: 2 | K148: 5 | L148: 8 | M148: 9 | N148: 5 | O148: 7 | P148: 2 | T148: 2 | X148: 1 | Z148: 5 | AA148: 3 | AC148: 5 | AD148: 1 | AE148: 8 | AG148: 7 | AH148: 1 | AI148: 0 | AK148: 3 | AM148: 3 | AN148: 1 | AO148: 0 | AQ148: 3 | AS148: 1 | AU148: 1 | AV148: 1 | AW148: 0 | AY148: 3 | BA148: 15 | BB148: 1 | BC148: 0
A149: =IF(COUNTA(C149:K149)<8,"",MAX(A$6:A148)+1) -> 141 | C149: 2015-11-20 | D149: 1 | E149: 15 | F149: 12 | G149: 14 | H149: 7 | I149: 8 | J149: 9 | K149: 6 | L149: 16 | M149: 7 | N149: 1 | O149: 8 | P149: 3 | T149: 3 | X149: 2 | Y149: 4 | AD149: 5 | AE149: 1 | AF149: 6 | AI149: 1 | AK149: 4 | AM149: 4 | AN149: 1 | AO149: 0 | AQ149: 4 | AS149: 2 | AU149: 2 | AV149: 1 | AW149: 0 | AY149: 4 | BA149: 16 | BC149: 1
A150: =IF(COUNTA(C150:K150)<8,"",MAX(A$6:A149)+1) -> 142 | C150: 2015-11-21 | D150: 10 | E150: 2 | F150: 11 | G150: 9 | H150: 1 | I150: 8 | J150: 14 | K150: 13 | L150: 11 | M150: 2 | N150: 7 | O150: 12 | P150: 5 | U150: 2 | V150: 1 | AC150: 3 | AD150: 2 | AI150: 2 | AK150: 5 | AM150: 5 | AO150: 1 | AP150: 1 | AQ150: 0 | AR150: 1 | AS150: 0 | AU150: 3 | AW150: 1 | AY150: 5 | BA150: 17 | BC150: 2
A151: =IF(COUNTA(C151:K151)<8,"",MAX(A$6:A150)+1) -> 143 | C151: 2015-11-22 | D151: 9 | E151: 1 | F151: 2 | G151: 11 | H151: 14 | I151: 15 | J151: 16 | K151: 18 | L151: 11 | M151: 2 | N151: 10 | O151: 14 | P151: 8 | V151: 2 | W151: 1 | X151: 4 | AC151: 4 | AD151: 3 | AF151: 5 | AI151: 3 | AK151: 6 | AM151: 6 | AO151: 2 | AQ151: 1 | AR151: 1 | AS151: 0 | AT151: 1 | AU151: 0 | AW151: 2 | AY151: 6 | BA151: 18 | BC151: 3
A152: =IF(COUNTA(C152:K152)<8,"",MAX(A$6:A151)+1) -> 144 | C152: 2015-11-23 | D152: 16 | E152: 7 | F152: 12 | G152: 14 | H152: 8 | I152: 6 | J152: 3 | K152: 15 | L152: 16 | M152: 14 | N152: 12 | O152: 6 | P152: 7 | T152: 1 | U152: 5 | V152: 3 | W152: 2 | Y152: 4 | AC152: 1 | AD152: 4 | AE152: 3 | AF152: 6 | AG152: 2 | AH152: 1 | AI152: 0 | AJ152: 1 | AK152: 0 | AL152: 1 | AM152: 0 | AN152: 1 | AO152: 0 | AQ152: 2 | AR152: 1 | AS152: 0 | AT152: 1 | AU152: 0 | AW152: 3 | AY152: 7 | BA152: 19 | BC152: 4
A153: =IF(COUNTA(C153:K153)<8,"",MAX(A$6:A152)+1) -> 145 | C153: 2015-11-24 | D153: 2 | E153: 5 | F153: 1 | G153: 14 | H153: 11 | I153: 10 | J153: 8 | K153: 7 | L153: 5 | M153: 1 | N153: 13 | O153: 10 | P153: 9 | U153: 1 | V153: 2 | Y153: 4 | AC153: 2 | AD153: 3 | AF153: 6 | AI153: 1 | AK153: 1 | AM153: 1 | AO153: 1 | AP153: 1 | AQ153: 0 | AR153: 1 | AS153: 0 | AU153: 1 | AW153: 4 | AY153: 8 | BA153: 20 | BC153: 5
A154: =IF(COUNTA(C154:K154)<8,"",MAX(A$6:A153)+1) -> 146 | C154: 2015-11-25 | D154: 3 | E154: 18 | F154: 5 | G154: 9 | H154: 8 | I154: 12 | J154: 13 | K154: 15 | L154: 3 | M154: 5 | N154: 7 | O154: 12 | P154: 14 | T154: 1 | V154: 2 | Y154: 4 | AC154: 1 | AD154: 3 | AF154: 6 | AI154: 2 | AK154: 2 | AM154: 2 | AN154: 1 | AO154: 0 | AQ154: 1 | AR154: 1 | AS154: 0 | AU154: 2 | AW154: 5 | AY154: 9 | BA154: 21 | BC154: 6
A155: =IF(COUNTA(C155:K155)<8,"",MAX(A$6:A154)+1) -> 147 | C155: 2015-11-26 | D155: 16 | E155: 15 | F155: 7 | G155: 8 | H155: 13 | I155: 12 | J155: 6 | K155: 18 | L155: 16 | M155: 7 | N155: 1 | O155: 6 | P155: 3 | T155: 1 | V155: 2 | Z155: 4 | AC155: 1 | AD155: 3 | AF155: 7 | AI155: 3 | AK155: 3 | AM155: 3 | AN155: 1 | AO155: 0 | AQ155: 2 | AR155: 1 | AS155: 0 | AU155: 3 | AW155: 6 | AY155: 10 | BA155: 22 | BC155: 7
A156: =IF(COUNTA(C156:K156)<8,"",MAX(A$6:A155)+1) -> 148 | C156: 2015-11-27 | D156: 16 | E156: 1 | F156: 5 | G156: 15 | H156: 14 | I156: 13 | J156: 8 | K156: 4 | L156: 8 | M156: 14 | N156: 15 | O156: 1 | P156: 7 | U156: 4 | W156: 3 | X156: 2 | Z156: 1 | AC156: 7 | AD156: 5 | AE156: 4 | AF156: 2 | AH156: 1 | AI156: 0 | AJ156: 1 | AK156: 0 | AM156: 4 | AO156: 1 | AQ156: 3 | AS156: 1 | AT156: 1 | AU156: 0 | AV156: 1 | AW156: 0 | AY156: 11 | AZ156: 1 | BA156: 0 | BC156: 8
A157: =IF(COUNTA(C157:K157)<8,"",MAX(A$6:A156)+1) -> 149 | C157: 2015-11-28 | D157: 8 | E157: 12 | F157: 16 | G157: 3 | H157: 7 | I157: 5 | J157: 1 | K157: 2 | L157: 5 | M157: 8 | N157: 10 | O157: 12 | P157: 7 | T157: 2 | U157: 4 | X157: 5 | Y157: 1 | AC157: 6 | AD157: 1 | AF157: 2 | AG157: 5 | AI157: 1 | AK157: 1 | AM157: 5 | AN157: 1 | AO157: 0 | AQ157: 4 | AS157: 2 | AU157: 1 | AW157: 1 | AX157: 1 | AY157: 0 | BA157: 1 | BC157: 9
A158: =IF(COUNTA(C158:K158)<8,"",MAX(A$6:A157)+1) -> 150 | C158: 2015-11-29 | D158: 3 | E158: 4 | F158: 8 | G158: 5 | H158: 7 | I158: 1 | J158: 9 | K158: 6 | L158: 17 | M158: 6 | N158: 3 | O158: 14 | P158: 18 | T158: 3 | AA158: 2 | AD158: 8 | AE158: 1 | AI158: 2 | AK158: 2 | AM158: 6 | AN158: 1 | AO158: 0 | AQ158: 5 | AS158: 3 | AU158: 2 | AW158: 2 | AY158: 1 | BA158: 2 | BB158: 1 | BC158: 0
A159: =IF(COUNTA(C159:K159)<8,"",MAX(A$6:A158)+1) -> 151 | C159: 2015-11-30 | D159: 9 | E159: 1 | F159: 13 | G159: 2 | H159: 12 | I159: 5 | J159: 3 | K159: 15 | L159: 9 | M159: 12 | N159: 11 | O159: 6 | P159: 15 | T159: 1 | X159: 2 | AA159: 5 | AC159: 1 | AD159: 5 | AG159: 8 | AI159: 3 | AK159: 3 | AM159: 7 | AN159: 1 | AO159: 0 | AQ159: 6 | AS159: 4 | AU159: 3 | AV159: 1 | AW159: 0 | AY159: 2 | BA159: 3 | BC159: 1 | BH159: =SUM(AH130:AH159) -> 11
A160: =IF(COUNTA(C160:K160)<8,"",MAX(A$6:A159)+1) -> 152 | C160: 2015-12-01 | D160: 14 | E160: 12 | F160: 9 | G160: 10 | H160: 13 | I160: 11 | J160: 5 | K160: 16 | L160: 11 | M160: 5 | N160: 18 | O160: 16 | P160: 9 | V160: 5 | Y160: 1 | Z160: 2 | AA160: 4 | AC160: 6 | AD160: 7 | AF160: 8 | AG160: 3 | AI160: 4 | AK160: 4 | AM160: 8 | AO160: 1 | AQ160: 7 | AS160: 5 | AU160: 4 | AW160: 1 | AX160: 1 | AY160: 0 | AZ160: 1 | BA160: 0 | BC160: 2
A161: =IF(COUNTA(C161:K161)<8,"",MAX(A$6:A160)+1) -> 153 | C161: 2015-12-02 | D161: 8 | E161: 4 | F161: 6 | G161: 7 | H161: 10 | I161: 3 | J161: 15 | K161: 13 | L161: 8 | M161: 6 | N161: 15 | O161: 11 | P161: 7 | T161: 1 | V161: 2 | W161: 5 | Z161: 3 | AC161: 1 | AD161: 3 | AE161: 7 | AG161: 4 | AH161: 1 | AI161: 0 | AK161: 5 | AM161: 9 | AN161: 1 | AO161: 0 | AQ161: 8 | AR161: 1 | AS161: 0 | AU161: 5 | AW161: 2 | AY161: 1 | AZ161: 1 | BA161: 0 | BC161: 3
A162: =IF(COUNTA(C162:K162)<8,"",MAX(A$6:A161)+1) -> 154 | C162: 2015-12-03 | D162: 16 | E162: 6 | F162: 7 | G162: 8 | H162: 4 | I162: 12 | J162: 10 | K162: 9 | L162: 16 | M162: 9 | N162: 8 | O162: 6 | P162: 11 | T162: 1 | U162: 4 | W162: 3 | AA162: 2 | AC162: 1 | AD162: 8 | AE162: 4 | AF162: 2 | AH162: 1 | AI162: 0 | AJ162: 1 | AK162: 0 | AM162: 10 | AN162: 1 | AO162: 0 | AQ162: 9 | AS162: 1 | AT162: 1 | AU162: 0 | AW162: 3 | AY162: 2 | BA162: 1 | BB162: 1 | BC162: 0
A163: =IF(COUNTA(C163:K163)<8,"",MAX(A$6:A162)+1) -> 155 | C163: 2015-12-04 | D163: 12 | E163: 2 | F163: 9 | G163: 3 | H163: 16 | I163: 1 | J163: 6 | K163: 4 | L163: 1 | M163: 5 | N163: 15 | O163: 18 | P163: 16 | X163: 5 | Y163: 1 | AC163: 6 | AG163: 5 | AI163: 1 | AK163: 1 | AM163: 11 | AO163: 1 | AQ163: 10 | AS163: 2 | AU163: 1 | AW163: 4 | AX163: 1 | AY163: 0 | BA163: 2 | BC163: 1
A164: =IF(COUNTA(C164:K164)<8,"",MAX(A$6:A163)+1) -> 156 | C164: 2015-12-05 | D164: 13 | E164: 15 | F164: 16 | G164: 18 | H164: 9 | I164: 5 | J164: 2 | K164: 12 | L164: 13 | M164: 16 | N164: 5 | O164: 11 | P164: 12 | T164: 1 | V164: 2 | Y164: 3 | AA164: 5 | AC164: 1 | AD164: 3 | AE164: 6 | AG164: 8 | AH164: 1 | AI164: 0 | AK164: 2 | AM164: 12 | AN164: 1 | AO164: 0 | AQ164: 11 | AR164: 1 | AS164: 0 | AU164: 2 | AW164: 5 | AX164: 1 | AY164: 0 | BA164: 3 | BC164: 2
A165: =IF(COUNTA(C165:K165)<8,"",MAX(A$6:A164)+1) -> 157 | C165: 2015-12-06 | D165: 16 | E165: 9 | F165: 3 | G165: 2 | H165: 17 | I165: 10 | J165: 8 | K165: 11 | L165: 9 | M165: 2 | N165: 17 | O165: 8 | P165: 11 | U165: 1 | W165: 2 | X165: 3 | Z165: 4 | AA165: 5 | AC165: 2 | AD165: 4 | AE165: 5 | AF165: 7 | AG165: 8 | AH165: 1 | AI165: 0 | AJ165: 1 | AK165: 0 | AL165: 1 | AM165: 0 | AO165: 1 | AP165: 1 | AQ165: 0 | AS165: 1 | AT165: 1 | AU165: 0 | AV165: 1 | AW165: 0 | AY165: 1 | BA165: 4 | BC165: 3
A166: =IF(COUNTA(C166:K166)<8,"",MAX(A$6:A165)+1) -> 158 | C166: 2015-12-07 | D166: 2 | E166: 7 | F166: 4 | G166: 3 | H166: 10 | I166: 8 | J166: 9 | K166: 15 | L166: 5 | M166: 8 | N166: 12 | O166: 10 | P166: 11 | X166: 4 | Y166: 2 | AD166: 6 | AF166: 5 | AI166: 1 | AK166: 1 | AM166: 1 | AO166: 2 | AQ166: 1 | AS166: 2 | AU166: 1 | AW166: 1 | AX166: 1 | AY166: 0 | BA166: 5 | BC166: 4
A167: =IF(COUNTA(C167:K167)<8,"",MAX(A$6:A166)+1) -> 159 | C167: 2015-12-08 | D167: 15 | E167: 7 | F167: 12 | G167: 14 | H167: 11 | I167: 16 | J167: 13 | K167: 6 | L167: 3 | M167: 10 | N167: 7 | O167: 5 | P167: 14 | U167: 3 | W167: 5 | AE167: 2 | AG167: 4 | AI167: 2 | AK167: 2 | AM167: 2 | AO167: 3 | AP167: 1 | AQ167: 0 | AS167: 3 | AU167: 2 | AW167: 2 | AY167: 1 | BA167: 6 | BC167: 5
A168: =IF(COUNTA(C168:K168)<8,"",MAX(A$6:A167)+1) -> 160 | C168: 2015-12-09 | D168: 6 | E168: 1 | F168: 12 | G168: 9 | H168: 3 | I168: 18 | J168: 2 | K168: 5 | L168: 1 | M168: 12 | N168: 2 | O168: 3 | P168: 16 | U168: 1 | V168: 2 | X168: 4 | Z168: 3 | AC168: 2 | AD168: 3 | AE168: 7 | AF168: 5 | AH168: 1 | AI168: 0 | AJ168: 1 | AK168: 0 | AM168: 3 | AO168: 4 | AP168: 1 | AQ168: 0 | AR168: 1 | AS168: 0 | AU168: 3 | AW168: 3 | AY168: 2 | AZ168: 1 | BA168: 0 | BC168: 6
A169: =IF(COUNTA(C169:K169)<8,"",MAX(A$6:A168)+1) -> 161 | C169: 2015-12-10 | D169: 2 | E169: 5 | F169: 10 | G169: 12 | H169: 9 | I169: 11 | J169: 7 | K169: 6 | L169: 12 | M169: 5 | N169: 7 | O169: 4 | P169: 11 | U169: 2 | W169: 1 | Y169: 5 | Z169: 3 | AC169: 4 | AD169: 2 | AE169: 7 | AG169: 6 | AH169: 1 | AI169: 0 | AK169: 1 | AM169: 4 | AO169: 5 | AP169: 1 | AQ169: 0 | AS169: 1 | AT169: 1 | AU169: 0 | AW169: 4 | AY169: 3 | AZ169: 1 | BA169: 0 | BC169: 7
A170: =IF(COUNTA(C170:K170)<8,"",MAX(A$6:A169)+1) -> 162 | C170: 2015-12-11 | D170: 16 | E170: 9 | F170: 14 | G170: 12 | H170: 2 | I170: 5 | J170: 10 | K170: 8 | L170: 16 | M170: 9 | N170: 12 | O170: 14 | P170: 10 | T170: 1 | U170: 2 | V170: 4 | W170: 3 | Z170: 5 | AC170: 1 | AD170: 2 | AE170: 4 | AF170: 3 | AG170: 7 | AH170: 1 | AI170: 0 | AJ170: 1 | AK170: 0 | AL170: 1 | AM170: 0 | AN170: 1 | AO170: 0 | AP170: 1 | AQ170: 0 | AS170: 2 | AT170: 1 | AU170: 0 | AW170: 5 | AY170: 4 | BA170: 1 | BC170: 8
A171: =IF(COUNTA(C171:K171)<8,"",MAX(A$6:A170)+1) -> 163 | C171: 2015-12-12 | D171: 15 | E171: 10 | F171: 13 | G171: 9 | H171: 14 | I171: 12 | J171: 7 | K171: 5 | L171: 15 | M171: 10 | N171: 5 | O171: 6 | P171: 13 | T171: 1 | U171: 2 | V171: 5 | AA171: 3 | AC171: 1 | AD171: 2 | AE171: 8 | AG171: 3 | AH171: 1 | AI171: 0 | AK171: 1 | AM171: 1 | AN171: 1 | AO171: 0 | AP171: 1 | AQ171: 0 | AS171: 3 | AU171: 1 | AW171: 6 | AY171: 5 | BA171: 2 | BB171: 1 | BC171: 0
A172: =IF(COUNTA(C172:K172)<8,"",MAX(A$6:A171)+1) -> 164 | C172: 2015-12-13 | D172: 14 | E172: 7 | F172: 10 | G172: 11 | H172: 8 | I172: 13 | J172: 12 | K172: 6 | L172: 7 | M172: 11 | N172: 6 | O172: 9 | P172: 8 | U172: 1 | W172: 2 | X172: 5 | AA172: 3 | AC172: 2 | AD172: 4 | AE172: 8 | AG172: 5 | AH172: 1 | AI172: 0 | AK172: 2 | AM172: 2 | AO172: 1 | AP172: 1 | AQ172: 0 | AS172: 4 | AT172: 1 | AU172: 0 | AW172: 7 | AY172: 6 | BA172: 3 | BB172: 1 | BC172: 0
A173: =IF(COUNTA(C173:K173)<8,"",MAX(A$6:A172)+1) -> 165 | C173: 2015-12-14 | D173: 1 | E173: 2 | F173: 4 | G173: 11 | H173: 9 | I173: 8 | J173: 12 | K173: 10 | L173: 12 | M173: 4 | N173: 11 | O173: 2 | P173: 16 | U173: 4 | V173: 2 | W173: 3 | Z173: 1 | AC173: 7 | AD173: 3 | AE173: 4 | AF173: 2 | AH173: 1 | AI173: 0 | AJ173: 1 | AK173: 0 | AM173: 3 | AO173: 2 | AQ173: 1 | AR173: 1 | AS173: 0 | AT173: 1 | AU173: 0 | AW173: 8 | AY173: 7 | AZ173: 1 | BA173: 0 | BC173: 1
A174: =IF(COUNTA(C174:K174)<8,"",MAX(A$6:A173)+1) -> 166 | C174: 2015-12-15 | D174: 7 | E174: 2 | F174: 4 | G174: 5 | H174: 6 | I174: 3 | J174: 10 | K174: 8 | L174: 7 | M174: 4 | N174: 13 | O174: 6 | P174: 5 | T174: 1 | V174: 2 | W174: 5 | X174: 4 | AC174: 1 | AD174: 3 | AF174: 5 | AG174: 4 | AI174: 1 | AK174: 1 | AM174: 4 | AN174: 1 | AO174: 0 | AQ174: 2 | AR174: 1 | AS174: 0 | AU174: 1 | AW174: 9 | AY174: 8 | BA174: 1 | BC174: 2
A175: =IF(COUNTA(C175:K175)<8,"",MAX(A$6:A174)+1) -> 167 | C175: 2015-12-16 | D175: 9 | E175: 17 | F175: 18 | G175: 16 | H175: 14 | I175: 15 | J175: 1 | K175: 6 | L175: 18 | M175: 15 | N175: 8 | O175: 17 | P175: 6 | U175: 4 | V175: 1 | Y175: 2 | AA175: 5 | AC175: 3 | AD175: 6 | AF175: 2 | AG175: 8 | AI175: 2 | AK175: 2 | AM175: 5 | AO175: 1 | AQ175: 3 | AR175: 1 | AS175: 0 | AU175: 2 | AW175: 10 | AX175: 1 | AY175: 0 | BA175: 2 | BC175: 3
A176: =IF(COUNTA(C176:K176)<8,"",MAX(A$6:A175)+1) -> 168 | C176: 2015-12-17 | D176: 12 | E176: 6 | F176: 7 | G176: 10 | H176: 16 | I176: 13 | J176: 8 | K176: 3 | L176: 13 | M176: 16 | N176: 12 | O176: 11 | P176: 14 | T176: 3 | X176: 2 | Y176: 1 | AC176: 6 | AD176: 5 | AE176: 1 | AH176: 1 | AI176: 0 | AK176: 3 | AM176: 6 | AN176: 1 | AO176: 0 | AQ176: 4 | AS176: 1 | AU176: 3 | AV176: 1 | AW176: 0 | AX176: 1 | AY176: 0 | BA176: 3 | BC176: 4
A177: =IF(COUNTA(C177:K177)<8,"",MAX(A$6:A176)+1) -> 169 | C177: 2015-12-18 | D177: 18 | E177: 5 | F177: 2 | G177: 3 | H177: 6 | I177: 17 | J177: 4 | K177: 7 | L177: 17 | M177: 7 | N177: 12 | O177: 18 | P177: 6 | T177: 4 | X177: 5 | Y177: 1 | AA177: 2 | AC177: 6 | AD177: 8 | AF177: 1 | AG177: 5 | AI177: 1 | AK177: 4 | AM177: 7 | AO177: 1 | AQ177: 5 | AS177: 2 | AU177: 4 | AW177: 1 | AX177: 1 | AY177: 0 | BA177: 4 | BB177: 1 | BC177: 0
A178: =IF(COUNTA(C178:K178)<8,"",MAX(A$6:A177)+1) -> 170 | C178: 2015-12-19 | D178: 2 | E178: 3 | F178: 8 | G178: 10 | H178: 7 | I178: 1 | J178: 4 | K178: 5 | L178: 2 | M178: 8 | N178: 11 | O178: 13 | P178: 16 | T178: 1 | V178: 2 | AC178: 1 | AD178: 3 | AH178: =IFERROR(IF(BD178=1,"",IF(AND(HLOOKUP(1,T178:AA178,1,FALSE)=1,HLOOKUP(2,T178:AA178,1,FALSE)=2,HLOOKUP(3,T178:AA178,1,FALSE)=3),1,"")),"") ->  | AI178: =IF(C178+"14:01">NOW(),"",IF(AH178="",AI177+1,0)) -> 2 | AJ178: =IFERROR(IF(BF178=1,"",IF(AND(HLOOKUP(1,T178:AA178,1,FALSE)=1,HLOOKUP(2,T178:AA178,1,FALSE)=2,HLOOKUP(3,T178:AA178,1,FALSE)=3,HLOOKUP(4,T178:AA178,1,FALSE)=4),1,"")),"") ->  | AK178: =IF(C178+"14:01">NOW(),"",IF(AJ178="",AK177+1,0)) -> 5 | AL178: =IFERROR(IF(BG178=1,"",IF(AND(HLOOKUP(1,T178:AA178,1,FALSE)=1,HLOOKUP(2,T178:AA178,1,FALSE)=2,HLOOKUP(3,T178:AA178,1,FALSE)=3,HLOOKUP(4,T178:AA178,1,FALSE)=4,HLOOKUP(5,T178:AA178,1,FALSE)=5),1,"")),"") ->  | AM178: =IF(C178+"14:01">NOW(),"",IF(AL178="",AM177+1,0)) -> 8 | AN178: =IF(COUNTIF(L178:N178,D178)=0,"",1) -> 1 | AO178: =IF(C178+"14:01">NOW(),"",IF(AN178="",AO177+1,0)) -> 0 | AP178: =IF(COUNTIF(L178:N178,E178)=0,"",1) ->  | AQ178: =IF(C178+"14:01">NOW(),"",IF(AP178="",AQ177+1,0)) -> 6 | AR178: =IF(COUNTIF(L178:N178,F178)=0,"",1) -> 1 | AS178: =IF(C178+"14:01">NOW(),"",IF(AR178="",AS177+1,0)) -> 0 | AT178: =IF(COUNTIF(L178:N178,G178)=0,"",1) ->  | AU178: =IF(C178+"14:01">NOW(),"",IF(AT178="",AU177+1,0)) -> 5 | AV178: =IF(COUNTIF(L178:N178,H178)=0,"",1) ->  | AW178: =IF(C178+"14:01">NOW(),"",IF(AV178="",AW177+1,0)) -> 2 | AX178: =IF(COUNTIF(L178:N178,I178)=0,"",1) ->  | AY178: =IF(C178+"14:01">NOW(),"",IF(AX178="",AY177+1,0)) -> 1 | AZ178: =IF(COUNTIF(L178:N178,J178)=0,"",1) ->  | BA178: =IF(C178+"14:01">NOW(),"",IF(AZ178="",BA177+1,0)) -> 5 | BB178: =IF(COUNTIF(L178:N178,K178)=0,"",1) ->  | BC178: =IF(C178+"14:01">NOW(),"",IF(BB178="",BC177+1,0)) -> 1
A179: =IF(COUNTA(C179:K179)<8,"",MAX(A$6:A178)+1) -> 171 | C179: 2015-12-20 | D179: 8 | E179: 14 | F179: 13 | G179: 16 | H179: 6 | I179: 3 | J179: 18 | K179: 15 | L179: 13 | M179: 3 | N179: 15 | O179: 2 | P179: 6 | V179: 1 | X179: 5 | Y179: 2 | AA179: 3 | AC179: 3 | AD179: 6 | AE179: 8 | AG179: 5 | AH179: 1 | AI179: 0 | AK179: 6 | AM179: 9 | AO179: 1 | AQ179: 7 | AR179: 1 | AS179: 0 | AU179: 6 | AW179: 3 | AX179: 1 | AY179: 0 | BA179: 6 | BB179: 1 | BC179: 0
A180: =IF(COUNTA(C180:K180)<8,"",MAX(A$6:A179)+1) -> 172 | C180: 2015-12-21 | D180: 10 | E180: 2 | F180: 5 | G180: 1 | H180: 12 | I180: 3 | J180: 15 | K180: 8 | L180: 3 | M180: 6 | N180: 8 | O180: 5 | P180: 9 | V180: 4 | Y180: 1 | AA180: 3 | AC180: 6 | AE180: 8 | AF180: 3 | AI180: 1 | AK180: 7 | AM180: 10 | AO180: 2 | AQ180: 8 | AS180: 1 | AU180: 7 | AW180: 4 | AX180: 1 | AY180: 0 | BA180: 7 | BB180: 1 | BC180: 0
A181: =IF(COUNTA(C181:K181)<8,"",MAX(A$6:A180)+1) -> 173 | C181: 2015-12-22 | D181: 16 | E181: 2 | F181: 9 | G181: 13 | H181: 6 | I181: 11 | J181: 12 | K181: 8 | L181: 11 | M181: 16 | N181: 9 | O181: 2 | P181: 13 | T181: 2 | U181: 4 | V181: 3 | W181: 5 | Y181: 1 | AC181: 6 | AD181: 1 | AE181: 3 | AF181: 2 | AG181: 4 | AH181: 1 | AI181: 0 | AJ181: 1 | AK181: 0 | AL181: 1 | AM181: 0 | AN181: 1 | AO181: 0 | AQ181: 9 | AR181: 1 | AS181: 0 | AU181: 8 | AW181: 5 | AX181: 1 | AY181: 0 | BA181: 8 | BC181: 1 | BH181: =SUM(AH160:AH180) -> 12
A182: =IF(COUNTA(C182:K182)<8,"",MAX(A$6:A181)+1) -> 174 | C182: 2015-12-23 | D182: 1 | E182: 11 | F182: 3 | G182: 9 | H182: 4 | I182: 10 | J182: 5 | K182: 16 | L182: 11 | M182: 3 | N182: 5 | O182: 16 | P182: 2 | U182: 1 | V182: 2 | Z182: 3 | AA182: 4 | AC182: 2 | AD182: 3 | AE182: 7 | AF182: 8 | AI182: 1 | AJ182: 1 | AK182: 0 | AM182: 1 | AO182: 1 | AP182: 1 | AQ182: 0 | AR182: 1 | AS182: 0 | AU182: 9 | AW182: 6 | AY182: 1 | AZ182: 1 | BA182: 0 | BC182: 2
A183: =IF(COUNTA(C183:K183)<8,"",MAX(A$6:A182)+1) -> 175 | C183: 2015-12-24 | D183: 16 | E183: 2 | F183: 9 | G183: 5 | H183: 4 | I183: 13 | J183: 10 | K183: 8 | L183: 8 | M183: 16 | N183: 5 | O183: 2 | P183: 12 | T183: 2 | U183: 4 | W183: 3 | AA183: 1 | AC183: 8 | AD183: 1 | AE183: 4 | AF183: 2 | AI183: 2 | AJ183: 1 | AK183: 0 | AM183: 2 | AN183: 1 | AO183: 0 | AQ183: 1 | AS183: 1 | AT183: 1 | AU183: 0 | AW183: 7 | AY183: 2 | BA183: 1 | BB183: 1 | BC183: 0
A184: =IF(COUNTA(C184:K184)<8,"",MAX(A$6:A183)+1) -> 176 | C184: 2015-12-25 | D184: 8 | E184: 2 | F184: 14 | G184: 10 | H184: 4 | I184: 7 | J184: 13 | K184: 12 | L184: 11 | M184: 3 | N184: 14 | O184: 4 | P184: 13 | V184: 3 | X184: 4 | Z184: 5 | AE184: 3 | AF184: 5 | AG184: 7 | AI184: 3 | AK184: 1 | AM184: 3 | AO184: 1 | AQ184: 2 | AR184: 1 | AS184: 0 | AU184: 1 | AW184: 8 | AY184: 3 | BA184: 2 | BC184: 1
A185: =IF(COUNTA(C185:K185)<8,"",MAX(A$6:A184)+1) -> 177 | C185: 2015-12-26 | D185: 15 | E185: 4 | F185: 16 | G185: 18 | H185: 14 | I185: 1 | J185: 2 | K185: 7 | L185: 18 | M185: 1 | N185: 4 | O185: 17 | P185: 10 | U185: 3 | W185: 1 | Y185: 2 | AC185: 4 | AD185: 6 | AE185: 2 | AH185: 1 | AI185: 0 | AK185: 2 | AM185: 4 | AO185: 2 | AP185: 1 | AQ185: 0 | AS185: 1 | AT185: 1 | AU185: 0 | AW185: 9 | AX185: 1 | AY185: 0 | BA185: 3 | BC185: 2
A186: =IF(COUNTA(C186:K186)<8,"",MAX(A$6:A185)+1) -> 178 | C186: 2015-12-27 | D186: 5 | E186: 7 | F186: 6 | G186: 4 | H186: 1 | I186: 9 | J186: 12 | K186: 2 | L186: 5 | M186: 7 | N186: 6 | O186: 14 | P186: 1 | T186: 1 | U186: 2 | V186: 3 | X186: 5 | AC186: =IFERROR(MATCH(AC$3,$T186:$AA186,0),"") -> 1 | AD186: 2 | AE186: 3 | AG186: 5 | AH186: 1 | AI186: 0 | AK186: 3 | AM186: 5 | AN186: 1 | AO186: 0 | AP186: 1 | AQ186: 0 | AR186: 1 | AS186: 0 | AU186: 1 | AW186: 10 | AY186: 1 | BA186: 4 | BC186: 3
A187: =IF(COUNTA(C187:K187)<8,"",MAX(A$6:A186)+1) -> 179 | C187: 2015-12-28 | D187: 16 | E187: 17 | F187: 13 | G187: 6 | H187: 10 | I187: 15 | J187: 3 | K187: 12 | L187: 12 | M187: 16 | N187: 13 | O187: 17 | P187: 3 | T187: 2 | U187: 4 | V187: 3 | Z187: 5 | AA187: 1 | AC187: 8 | AD187: 1 | AE187: 3 | AF187: 2 | AG187: 7 | AH187: 1 | AI187: 0 | AJ187: 1 | AK187: 0 | AL187: 1 | AM187: 0 | AN187: 1 | AO187: 0 | AQ187: 1 | AR187: 1 | AS187: 0 | AU187: 2 | AW187: 11 | AY187: 2 | BA187: 5 | BB187: 1 | BC187: 0
A188: =IF(COUNTA(C188:K188)<8,"",MAX(A$6:A187)+1) -> 180 | C188: 2015-12-29 | D188: 4 | E188: 7 | F188: 3 | G188: 10 | H188: 18 | I188: 6 | J188: 15 | K188: 8 | L188: 3 | M188: 6 | N188: 10 | O188: 15 | P188: 14 | V188: 1 | W188: 3 | Y188: 2 | Z188: 4 | AC188: 3 | AD188: 6 | AE188: 4 | AF188: 7 | AH188: 1 | AI188: 0 | AJ188: 1 | AK188: 0 | AM188: 1 | AO188: 1 | AQ188: 2 | AR188: 1 | AS188: 0 | AT188: 1 | AU188: 0 | AW188: 12 | AX188: 1 | AY188: 0 | BA188: 6 | BC188: 1
A189: =IF(COUNTA(C189:K189)<8,"",MAX(A$6:A188)+1) -> 181 | C189: 2015-12-30 | D189: 7 | E189: 12 | F189: 4 | G189: 8 | H189: 1 | I189: 5 | J189: 10 | K189: 6 | L189: 14 | M189: 12 | N189: 2 | O189: 4 | P189: 3 | U189: 2 | V189: 4 | AD189: 2 | AF189: 3 | AI189: 1 | AK189: 1 | AM189: 2 | AO189: 2 | AP189: 1 | AQ189: 0 | AS189: 1 | AU189: 1 | AW189: 13 | AY189: 1 | BA189: 7 | BC189: 2
A190: =IF(COUNTA(C190:K190)<8,"",MAX(A$6:A189)+1) -> 182 | C190: 2015-12-31 | D190: 10 | E190: 7 | F190: 5 | G190: 2 | H190: 9 | I190: 18 | J190: 3 | K190: 14 | L190: 9 | M190: 10 | N190: 17 | O190: 4 | P190: 2 | T190: 2 | W190: 5 | X190: 1 | AC190: 5 | AD190: 1 | AG190: 4 | AI190: 2 | AK190: 2 | AM190: 3 | AN190: 1 | AO190: 0 | AQ190: 1 | AS190: 2 | AU190: 2 | AV190: 1 | AW190: 0 | AY190: 2 | BA190: 8 | BC190: 3
A191: =IF(COUNTA(C191:K191)<8,"",MAX(A$6:A190)+1) -> 183 | C191: 2016-01-01 | D191: 7 | E191: 9 | F191: 4 | G191: 12 | H191: 5 | I191: 2 | J191: 13 | K191: 1 | L191: 3 | M191: 4 | N191: 7 | O191: 2 | P191: 8 | T191: 3 | V191: 2 | Y191: 4 | AD191: 3 | AE191: 1 | AF191: 6 | AI191: 3 | AK191: 3 | AM191: 4 | AN191: 1 | AO191: 0 | AQ191: 2 | AR191: 1 | AS191: 0 | AU191: 3 | AW191: 1 | AY191: 3 | BA191: 9 | BC191: 4
A192: =IF(COUNTA(C192:K192)<8,"",MAX(A$6:A191)+1) -> 184 | C192: 2016-01-02 | D192: 10 | E192: 4 | F192: 12 | G192: 5 | H192: 6 | I192: 8 | J192: 1 | K192: 14 | L192: 12 | M192: 10 | N192: 11 | O192: 14 | P192: 9 | T192: 2 | V192: 1 | AA192: 4 | AC192: 3 | AD192: 1 | AF192: 8 | AI192: 4 | AK192: 4 | AM192: 5 | AN192: 1 | AO192: 0 | AQ192: 3 | AR192: 1 | AS192: 0 | AU192: 4 | AW192: 2 | AY192: 4 | BA192: 10 | BC192: 5
A193: =IF(COUNTA(C193:K193)<8,"",MAX(A$6:A192)+1) -> 185 | C193: 2016-01-03 | D193: 2 | E193: 3 | F193: 4 | G193: 9 | H193: 7 | I193: 10 | J193: 1 | K193: 11 | L193: 3 | M193: 12 | N193: 6 | O193: 2 | P193: 7 | T193: 4 | U193: 1 | X193: 5 | AC193: 2 | AF193: 1 | AG193: 5 | AI193: 5 | AK193: 5 | AM193: 6 | AO193: 1 | AP193: 1 | AQ193: 0 | AS193: 1 | AU193: 5 | AW193: 3 | AY193: 5 | BA193: 11 | BC193: 6
A194: =IF(COUNTA(C194:K194)<8,"",MAX(A$6:A193)+1) -> 186 | C194: 2016-01-04 | D194: 8 | E194: 13 | F194: 4 | G194: 1 | H194: 7 | I194: 9 | J194: 5 | K194: 14 | L194: 8 | M194: 5 | N194: 4 | O194: 3 | P194: 10 | T194: 1 | V194: 3 | Z194: 2 | AC194: 1 | AD194: 7 | AE194: 3 | AH194: 1 | AI194: 0 | AK194: 6 | AM194: 7 | AN194: 1 | AO194: 0 | AQ194: 1 | AR194: 1 | AS194: 0 | AU194: 6 | AW194: 4 | AY194: 6 | AZ194: 1 | BA194: 0 | BC194: 7
A195: =IF(COUNTA(C195:K195)<8,"",MAX(A$6:A194)+1) -> 187 | C195: 2016-01-05 | D195: 16 | E195: 13 | F195: 18 | G195: 10 | H195: 12 | I195: 15 | J195: 17 | K195: 2 | L195: 18 | M195: 10 | N195: 13 | O195: 17 | P195: 8 | U195: 3 | V195: 1 | W195: 2 | Z195: 4 | AC195: 3 | AD195: 4 | AE195: 2 | AF195: 7 | AH195: 1 | AI195: 0 | AJ195: 1 | AK195: 0 | AM195: 8 | AO195: 1 | AP195: 1 | AQ195: 0 | AR195: 1 | AS195: 0 | AT195: 1 | AU195: 0 | AW195: 5 | AY195: 7 | BA195: 1 | BC195: 8
A196: =IF(COUNTA(C196:K196)<8,"",MAX(A$6:A195)+1) -> 188 | C196: 2016-01-06 | D196: 11 | E196: 12 | F196: 1 | G196: 5 | H196: 16 | I196: 8 | J196: 18 | K196: 4 | L196: 12 | M196: 11 | N196: 2 | O196: 4 | P196: 1 | T196: 2 | U196: 1 | V196: 5 | AA196: 4 | AC196: 2 | AD196: 1 | AF196: 8 | AG196: 3 | AI196: 1 | AK196: 1 | AM196: 9 | AN196: 1 | AO196: 0 | AP196: 1 | AQ196: 0 | AS196: 1 | AU196: 1 | AW196: 6 | AY196: 8 | BA196: 2 | BC196: 9
A197: =IF(COUNTA(C197:K197)<8,"",MAX(A$6:A196)+1) -> 189 | C197: 2016-01-07 | D197: 2 | E197: 5 | F197: 4 | G197: 12 | H197: 1 | I197: 9 | J197: 3 | K197: 11 | L197: 5 | M197: 11 | N197: 4 | O197: 8 | P197: 9 | U197: 1 | V197: 3 | Y197: 5 | AA197: 2 | AC197: 2 | AD197: 8 | AE197: 3 | AG197: 6 | AH197: 1 | AI197: 0 | AK197: 2 | AM197: 10 | AO197: 1 | AP197: 1 | AQ197: 0 | AR197: 1 | AS197: 0 | AU197: 2 | AW197: 7 | AY197: 9 | BA197: 3 | BB197: 1 | BC197: 0
A198: =IF(COUNTA(C198:K198)<8,"",MAX(A$6:A197)+1) -> 190 | C198: 2016-01-08 | D198: 13 | E198: 16 | F198: 10 | G198: 9 | H198: 1 | I198: 5 | J198: 3 | K198: 6 | L198: 13 | M198: 7 | N198: 2 | O198: 1 | P198: 6 | T198: =IFERROR(MATCH(D198,L198:P198,0),"") -> 1 | U198: =IFERROR(MATCH(E198,L198:P198,0),"") ->  | V198: =IFERROR(MATCH(F198,L198:P198,0),"") ->  | W198: =IFERROR(MATCH(G198,L198:P198,0),"") ->  | X198: =IFERROR(MATCH(H198,L198:P198,0),"") -> 4 | Y198: =IFERROR(MATCH(I198,L198:P198,0),"") ->  | Z198: =IFERROR(MATCH(J198,L198:P198,0),"") ->  | AA198: =IFERROR(MATCH(K198,L198:P198,0),"") -> 5 | AC198: 1 | AF198: 5 | AG198: 8 | AI198: 1 | AK198: 3 | AM198: 11 | AN198: 1 | AO198: 0 | AQ198: 1 | AS198: 1 | AU198: 3 | AW198: 8 | AY198: 10 | BA198: 4 | BC198: 1
A199: =IF(COUNTA(C199:K199)<8,"",MAX(A$6:A198)+1) -> 191 | C199: 2016-01-09 | D199: 3 | E199: 7 | F199: 1 | G199: 15 | H199: 10 | I199: 8 | J199: 6 | K199: 13 | L199: 1 | M199: 8 | N199: 6 | O199: 12 | P199: 5 | V199: 1 | Y199: 2 | Z199: 3 | AC199: 3 | AD199: 6 | AE199: 7 | AH199: 1 | AI199: 0 | AK199: 4 | AM199: 12 | AO199: 1 | AQ199: 2 | AR199: 1 | AS199: 0 | AU199: 4 | AW199: 9 | AX199: 1 | AY199: 0 | AZ199: 1 | BA199: 0 | BC199: 2
A200: =IF(COUNTA(C200:K200)<8,"",MAX(A$6:A199)+1) -> 192 | C200: 2016-01-10 | D200: 8 | E200: 7 | F200: 4 | G200: 10 | H200: 6 | I200: 3 | J200: 9 | K200: 11 | L200: 7 | M200: 6 | N200: 4 | O200: 11 | P200: 12 | U200: 1 | V200: 3 | X200: 2 | AA200: 4 | AC200: 2 | AD200: 5 | AE200: 3 | AF200: 8 | AH200: 1 | AI200: 0 | AJ200: 1 | AK200: 0 | AM200: 13 | AO200: 2 | AP200: 1 | AQ200: 0 | AR200: 1 | AS200: 0 | AU200: 5 | AV200: 1 | AW200: 0 | AY200: 1 | BA200: 1 | BC200: 3
... 1133 more rows

Sheet 02
C1: Bilto | AH1: =SUM(AH191:AH556) -> 154 | AJ1: =SUM(AJ191:AJ556) -> 86 | AL1: =SUM(AL191:AL556) -> 45
W2: NUMERO D ARRIVEE | AH2: RESULTATS T.Q.Q+ | AN2: RESULTATS PRONOS SIMPLES PLACES
AC3: 1 | AD3: 2 | AE3: 3 | AF3: 4 | AG3: 5 | AH3: =SUM(AH7:AH470)/MAX($A$7:$A$470) -> 0.4285714286 | AI3: =MAX(AI7:AI470) -> 11 | AJ3: =SUM(AJ7:AJ470)/MAX($A$7:$A$470) -> 0.2575757576 | AK3: =MAX(AK7:AK470) -> 17 | AL3: =SUM(AL7:AL470)/MAX($A$7:$A$470) -> 0.1385281385 | AM3: =MAX(AM7:AM470) -> 24 | AN3: =SUM(AN7:AN495) -> 206 | AO3: =MAX(AO7:AO470) -> 8 | AP3: =SUM(AP7:AP495) -> 171 | AQ3: =MAX(AQ7:AQ470) -> 21 | AR3: =SUM(AR7:AR495) -> 152 | AS3: =MAX(AS7:AS470) -> 9 | AT3: =SUM(AT7:AT495) -> 125 | AU3: =MAX(AU7:AU470) -> 14 | AV3: =SUM(AV7:AV495) -> 119 | AW3: =MAX(AW7:AW470) -> 15 | AX3: =SUM(AX7:AX495) -> 114 | AY3: =MAX(AY7:AY470) -> 20 | AZ3: =SUM(AZ7:AZ495) -> 97 | BA3: =MAX(BA7:BA470) -> 18 | BB3: =SUM(BB7:BB495) -> 109 | BC3: =MAX(BC7:BC470) -> 19
AH4: TIERCE | AJ4: QUARTE | AL4: QUINTE | AN4: 1 | AP4: 2 | AR4: 3 | AT4: 4 | AV4: 5 | AX4: 6 | AZ4: 7 | BB4: 8
C5: dates | AH5: nombre | AI5: ecart | AJ5: nombre | AK5: ecart | AL5: nombre | AM5: ecart | AN5: nbre | AO5: ecart | AP5: nbre | AQ5: ecart | AR5: nbre | AS5: ecart | AT5: nbre | AU5: ecart | AV5: nbre | AW5: ecart | AX5: nbre | AY5: ecart | AZ5: nbre | BA5: ecart | BB5: nbre | BC5: ecart
AI6: 0 | AK6: 0 | AM6: 0 | AO6: 0 | AQ6: 0 | AS6: 0 | AU6: 0 | AW6: 0 | AY6: 0 | BA6: 0 | BC6: 0
A7: =IF(COUNTA(C7:K7)<8,"",MAX(A$6:A6)+1) -> 1 | C7: =IF('01'!C7="","",'01'!C7) -> 2015-07-01 | D7: 6 | E7: 16 | F7: 14 | G7: 10 | H7: 5 | I7: 12 | J7: 9 | K7: 3 | L7: =IF('01'!L7="","",'01'!L7) -> 4 | M7: =IF('01'!M7="","",'01'!M7) -> 7 | N7: =IF('01'!N7="","",'01'!N7) -> 16 | O7: =IF('01'!O7="","",'01'!O7) -> 12 | P7: =IF('01'!P7="","",'01'!P7) -> 14 | T7: =IFERROR(MATCH(D7,L7:P7,0),"") ->  | U7: =IFERROR(MATCH(E7,L7:P7,0),"") -> 3 | V7: =IFERROR(MATCH(F7,L7:P7,0),"") -> 5 | W7: =IFERROR(MATCH(G7,L7:P7,0),"") ->  | X7: =IFERROR(MATCH(H7,L7:P7,0),"") ->  | Y7: =IFERROR(MATCH(I7,L7:P7,0),"") -> 4 | Z7: =IFERROR(MATCH(J7,L7:P7,0),"") ->  | AA7: =IFERROR(MATCH(K7,L7:P7,0),"") ->  | AC7: =IFERROR(MATCH(AC$3,$T7:$AA7,0),"") ->  | AE7: 2 | AF7: 6 | AG7: 3 | AH7: =IFERROR(IF(BD7=1,"",IF(AND(HLOOKUP(1,T7:AA7,1,FALSE)=1,HLOOKUP(2,T7:AA7,1,FALSE)=2,HLOOKUP(3,T7:AA7,1,FALSE)=3),1,"")),"") ->  | AI7: =IF(C7>TODAY(),"",IF(AH7="",AI6+1,0)) -> 1 | AJ7: =IFERROR(IF(BF7=1,"",IF(AND(HLOOKUP(1,T7:AA7,1,FALSE)=1,HLOOKUP(2,T7:AA7,1,FALSE)=2,HLOOKUP(3,T7:AA7,1,FALSE)=3,HLOOKUP(4,T7:AA7,1,FALSE)=4),1,"")),"") ->  | AK7: =IF(C7>TODAY(),"",IF(AJ7="",AK6+1,0)) -> 1 | AL7: =IFERROR(IF(BG7=1,"",IF(AND(HLOOKUP(1,T7:AA7,1,FALSE)=1,HLOOKUP(2,T7:AA7,1,FALSE)=2,HLOOKUP(3,T7:AA7,1,FALSE)=3,HLOOKUP(4,T7:AA7,1,FALSE)=4,HLOOKUP(5,T7:AA7,1,FALSE)=5),1,"")),"") ->  | AM7: =IF(C7>TODAY(),"",IF(AL7="",AM6+1,0)) -> 1 | AN7: =IF(COUNTIF(L7:N7,D7)=0,"",1) ->  | AO7: =IF(C7>TODAY(),"",IF(AN7="",AO6+1,0)) -> 1 | AP7: =IF(COUNTIF(L7:N7,E7)=0,"",1) -> 1 | AQ7: =IF(C7>TODAY(),"",IF(AP7="",AQ6+1,0)) -> 0 | AR7: =IF(COUNTIF(L7:N7,F7)=0,"",1) ->  | AS7: =IF(C7>TODAY(),"",IF(AR7="",AS6+1,0)) -> 1 | AT7: =IF(COUNTIF(L7:N7,G7)=0,"",1) ->  | AU7: =IF(C7>TODAY(),"",IF(AT7="",AU6+1,0)) -> 1 | AV7: =IF(COUNTIF(L7:N7,H7)=0,"",1) ->  | AW7: =IF(C7>TODAY(),"",IF(AV7="",AW6+1,0)) -> 1 | AX7: =IF(COUNTIF(L7:N7,I7)=0,"",1) ->  | AY7: =IF(C7>TODAY(),"",IF(AX7="",AY6+1,0)) -> 1 | AZ7: =IF(COUNTIF(L7:N7,J7)=0,"",1) ->  | BA7: =IF(C7>TODAY(),"",IF(AZ7="",BA6+1,0)) -> 1 | BB7: =IF(COUNTIF(L7:N7,K7)=0,"",1) ->  | BC7: =IF(C7>TODAY(),"",IF(BB7="",BC6+1,0)) -> 1
A8: =IF(COUNTA(C8:K8)<8,"",MAX(A$6:A7)+1) -> 2 | C8: =IF('01'!C8="","",'01'!C8) -> 2015-07-02 | D8: 6 | E8: 9 | F8: 12 | G8: 3 | H8: 4 | I8: 13 | J8: 5 | K8: 11 | L8: =IF('01'!L8="","",'01'!L8) -> 9 | M8: =IF('01'!M8="","",'01'!M8) -> 17 | N8: =IF('01'!N8="","",'01'!N8) -> 3 | O8: =IF('01'!O8="","",'01'!O8) -> 7 | P8: =IF('01'!P8="","",'01'!P8) -> 8 | U8: 1 | W8: 3 | AC8: 2 | AE8: 4 | AH8: =IFERROR(IF(BD8=1,"",IF(AND(HLOOKUP(1,T8:AA8,1,FALSE)=1,HLOOKUP(2,T8:AA8,1,FALSE)=2,HLOOKUP(3,T8:AA8,1,FALSE)=3),1,"")),"") ->  | AI8: =IF(C8>TODAY(),"",IF(AH8="",AI7+1,0)) -> 2 | AJ8: =IFERROR(IF(BF8=1,"",IF(AND(HLOOKUP(1,T8:AA8,1,FALSE)=1,HLOOKUP(2,T8:AA8,1,FALSE)=2,HLOOKUP(3,T8:AA8,1,FALSE)=3,HLOOKUP(4,T8:AA8,1,FALSE)=4),1,"")),"") ->  | AK8: =IF(C8>TODAY(),"",IF(AJ8="",AK7+1,0)) -> 2 | AL8: =IFERROR(IF(BG8=1,"",IF(AND(HLOOKUP(1,T8:AA8,1,FALSE)=1,HLOOKUP(2,T8:AA8,1,FALSE)=2,HLOOKUP(3,T8:AA8,1,FALSE)=3,HLOOKUP(4,T8:AA8,1,FALSE)=4,HLOOKUP(5,T8:AA8,1,FALSE)=5),1,"")),"") ->  | AM8: =IF(C8>TODAY(),"",IF(AL8="",AM7+1,0)) -> 2 | AN8: =IF(COUNTIF(L8:N8,D8)=0,"",1) ->  | AO8: =IF(C8>TODAY(),"",IF(AN8="",AO7+1,0)) -> 2 | AP8: =IF(COUNTIF(L8:N8,E8)=0,"",1) -> 1 | AQ8: =IF(C8>TODAY(),"",IF(AP8="",AQ7+1,0)) -> 0 | AR8: =IF(COUNTIF(L8:N8,F8)=0,"",1) ->  | AS8: =IF(C8>TODAY(),"",IF(AR8="",AS7+1,0)) -> 2 | AT8: =IF(COUNTIF(L8:N8,G8)=0,"",1) -> 1 | AU8: =IF(C8>TODAY(),"",IF(AT8="",AU7+1,0)) -> 0 | AV8: =IF(COUNTIF(L8:N8,H8)=0,"",1) ->  | AW8: =IF(C8>TODAY(),"",IF(AV8="",AW7+1,0)) -> 2 | AX8: =IF(COUNTIF(L8:N8,I8)=0,"",1) ->  | AY8: =IF(C8>TODAY(),"",IF(AX8="",AY7+1,0)) -> 2 | AZ8: =IF(COUNTIF(L8:N8,J8)=0,"",1) ->  | BA8: =IF(C8>TODAY(),"",IF(AZ8="",BA7+1,0)) -> 2 | BB8: =IF(COUNTIF(L8:N8,K8)=0,"",1) ->  | BC8: =IF(C8>TODAY(),"",IF(BB8="",BC7+1,0)) -> 2
A9: =IF(COUNTA(C9:K9)<8,"",MAX(A$6:A8)+1) -> 3 | C9: =IF('01'!C9="","",'01'!C9) -> 2015-07-03 | D9: 16 | E9: 14 | F9: 3 | G9: 11 | H9: 10 | I9: 9 | J9: 8 | K9: 5 | L9: =IF('01'!L9="","",'01'!L9) -> 10 | M9: =IF('01'!M9="","",'01'!M9) -> 16 | N9: =IF('01'!N9="","",'01'!N9) -> 15 | O9: =IF('01'!O9="","",'01'!O9) -> 11 | P9: =IF('01'!P9="","",'01'!P9) -> 3 | T9: 2 | V9: 5 | W9: 4 | X9: 1 | AC9: 5 | AD9: 1 | AF9: 4 | AG9: 3 | AI9: =IF(C9>TODAY(),"",IF(AH9="",AI8+1,0)) -> 3 | AK9: =IF(C9>TODAY(),"",IF(AJ9="",AK8+1,0)) -> 3 | AM9: =IF(C9>TODAY(),"",IF(AL9="",AM8+1,0)) -> 3 | AN9: 1 | AO9: =IF(C9>TODAY(),"",IF(AN9="",AO8+1,0)) -> 0 | AQ9: =IF(C9>TODAY(),"",IF(AP9="",AQ8+1,0)) -> 1 | AS9: =IF(C9>TODAY(),"",IF(AR9="",AS8+1,0)) -> 3 | AU9: =IF(C9>TODAY(),"",IF(AT9="",AU8+1,0)) -> 1 | AV9: 1 | AW9: =IF(C9>TODAY(),"",IF(AV9="",AW8+1,0)) -> 0 | AY9: =IF(C9>TODAY(),"",IF(AX9="",AY8+1,0)) -> 3 | BA9: =IF(C9>TODAY(),"",IF(AZ9="",BA8+1,0)) -> 3 | BC9: =IF(C9>TODAY(),"",IF(BB9="",BC8+1,0)) -> 3
A10: =IF(COUNTA(C10:K10)<8,"",MAX(A$6:A9)+1) -> 4 | C10: =IF('01'!C10="","",'01'!C10) -> 2015-07-04 | D10: 8 | E10: 1 | F10: 3 | G10: 5 | H10: 2 | I10: 6 | J10: 9 | K10: 11 | L10: =IF('01'!L10="","",'01'!L10) -> 8 | M10: =IF('01'!M10="","",'01'!M10) -> 1 | N10: =IF('01'!N10="","",'01'!N10) -> 9 | O10: =IF('01'!O10="","",'01'!O10) -> 11 | P10: =IF('01'!P10="","",'01'!P10) -> 7 | T10: 1 | U10: 2 | Z10: 3 | AA10: 4 | AC10: 1 | AD10: 2 | AE10: 7 | AF10: 8 | AH10: 1 | AI10: 0 | AJ10: 1 | AK10: 0 | AM10: 4 | AN10: 1 | AO10: 0 | AP10: 1 | AQ10: 0 | AS10: 4 | AU10: 2 | AW10: 1 | AY10: 4 | AZ10: 1 | BA10: 0 | BC10: 4
A11: =IF(COUNTA(C11:K11)<8,"",MAX(A$6:A10)+1) -> 5 | C11: =IF('01'!C11="","",'01'!C11) -> 2015-07-05 | D11: 6 | E11: 11 | F11: 9 | G11: 13 | H11: 10 | I11: 5 | J11: 12 | K11: 4 | L11: =IF('01'!L11="","",'01'!L11) -> 15 | M11: =IF('01'!M11="","",'01'!M11) -> 16 | N11: =IF('01'!N11="","",'01'!N11) -> 12 | O11: =IF('01'!O11="","",'01'!O11) -> 13 | P11: =IF('01'!P11="","",'01'!P11) -> 5 | W11: 4 | Y11: 5 | Z11: 3 | AE11: 7 | AF11: 4 | AG11: 6 | AI11: 1 | AK11: 1 | AM11: 5 | AO11: 1 | AQ11: 1 | AS11: 5 | AU11: 3 | AW11: 2 | AY11: 5 | AZ11: 1 | BA11: 0 | BC11: 5
A12: =IF(COUNTA(C12:K12)<8,"",MAX(A$6:A11)+1) -> 6 | C12: =IF('01'!C12="","",'01'!C12) -> 2015-07-06 | D12: 1 | E12: 16 | F12: 17 | G12: 11 | H12: 3 | I12: 4 | J12: 9 | K12: 8 | L12: =IF('01'!L12="","",'01'!L12) -> 3 | M12: =IF('01'!M12="","",'01'!M12) -> 1 | N12: =IF('01'!N12="","",'01'!N12) -> 11 | O12: =IF('01'!O12="","",'01'!O12) -> 4 | P12: =IF('01'!P12="","",'01'!P12) -> 13 | T12: 2 | W12: 3 | X12: 1 | Y12: 4 | AC12: 5 | AD12: 1 | AE12: 4 | AF12: 6 | AH12: 1 | AI12: 0 | AJ12: 1 | AK12: 0 | AM12: 6 | AN12: 1 | AO12: 0 | AQ12: 2 | AS12: 6 | AT12: 1 | AU12: 0 | AV12: 1 | AW12: 0 | AY12: 6 | BA12: 1 | BC12: 6
A13: =IF(COUNTA(C13:K13)<8,"",MAX(A$6:A12)+1) -> 7 | C13: =IF('01'!C13="","",'01'!C13) -> 2015-07-07 | D13: 3 | E13: 6 | F13: 16 | G13: 18 | H13: 1 | I13: 14 | J13: 5 | K13: 15 | L13: =IF('01'!L13="","",'01'!L13) -> 15 | M13: =IF('01'!M13="","",'01'!M13) -> 16 | N13: =IF('01'!N13="","",'01'!N13) -> 6 | O13: =IF('01'!O13="","",'01'!O13) -> 3 | P13: =IF('01'!P13="","",'01'!P13) -> 5 | T13: 4 | U13: 3 | V13: 2 | Z13: 5 | AA13: 1 | AC13: 8 | AD13: 3 | AE13: 2 | AF13: 1 | AG13: 7 | AH13: 1 | AI13: 0 | AJ13: 1 | AK13: 0 | AL13: 1 | AM13: 0 | AO13: 1 | AP13: 1 | AQ13: 0 | AR13: 1 | AS13: 0 | AU13: 1 | AW13: 1 | AY13: 7 | BA13: 2 | BB13: 1 | BC13: 0
A14: =IF(COUNTA(C14:K14)<8,"",MAX(A$6:A13)+1) -> 8 | C14: =IF('01'!C14="","",'01'!C14) -> 2015-07-08 | D14: 3 | E14: 2 | F14: 11 | G14: 5 | H14: 13 | I14: 1 | J14: 8 | K14: 16 | L14: =IF('01'!L14="","",'01'!L14) -> 2 | M14: =IF('01'!M14="","",'01'!M14) -> 1 | N14: =IF('01'!N14="","",'01'!N14) -> 6 | O14: =IF('01'!O14="","",'01'!O14) -> 11 | P14: =IF('01'!P14="","",'01'!P14) -> 12 | U14: 1 | V14: 4 | Y14: 2 | AC14: 2 | AD14: 6 | AF14: 3 | AI14: 1 | AK14: 1 | AM14: 1 | AO14: 2 | AP14: 1 | AQ14: 0 | AS14: 1 | AU14: 2 | AW14: 2 | AX14: 1 | AY14: 0 | BA14: 3 | BC14: 1
A15: =IF(COUNTA(C15:K15)<8,"",MAX(A$6:A14)+1) -> 9 | C15: =IF('01'!C15="","",'01'!C15) -> 2015-07-09 | D15: 15 | E15: 1 | F15: 2 | G15: 4 | H15: 7 | I15: 9 | J15: 10 | K15: 3 | L15: =IF('01'!L15="","",'01'!L15) -> 9 | M15: =IF('01'!M15="","",'01'!M15) -> 3 | N15: =IF('01'!N15="","",'01'!N15) -> 4 | O15: =IF('01'!O15="","",'01'!O15) -> 8 | P15: =IF('01'!P15="","",'01'!P15) -> 2 | V15: 5 | W15: 3 | Y15: 1 | AA15: 2 | AC15: 6 | AD15: 8 | AE15: 4 | AG15: 3 | AH15: 1 | AI15: 0 | AK15: 2 | AM15: 2 | AO15: 3 | AQ15: 1 | AS15: 2 | AT15: 1 | AU15: 0 | AW15: 3 | AX15: 1 | AY15: 0 | BA15: 4 | BB15: 1 | BC15: 0
A16: =IF(COUNTA(C16:K16)<8,"",MAX(A$6:A15)+1) -> 10 | C16: =IF('01'!C16="","",'01'!C16) -> 2015-07-10 | D16: 2 | E16: 1 | F16: 4 | G16: 9 | H16: 16 | I16: 7 | J16: 8 | K16: 13 | L16: =IF('01'!L16="","",'01'!L16) -> 2 | M16: =IF('01'!M16="","",'01'!M16) -> 5 | N16: =IF('01'!N16="","",'01'!N16) -> 15 | O16: =IF('01'!O16="","",'01'!O16) -> 7 | P16: =IF('01'!P16="","",'01'!P16) -> 9 | T16: 1 | W16: 5 | Y16: 4 | AC16: 1 | AF16: 6 | AG16: 4 | AI16: 1 | AK16: 3 | AM16: 3 | AN16: 1 | AO16: 0 | AQ16: 2 | AS16: 3 | AU16: 1 | AW16: 4 | AY16: 1 | BA16: 5 | BC16: 1
A17: =IF(COUNTA(C17:K17)<8,"",MAX(A$6:A16)+1) -> 11 | C17: =IF('01'!C17="","",'01'!C17) -> 2015-07-11 | D17: 5 | E17: 2 | F17: 15 | G17: 12 | H17: 6 | I17: 14 | J17: 11 | K17: 3 | L17: =IF('01'!L17="","",'01'!L17) -> 5 | M17: =IF('01'!M17="","",'01'!M17) -> 6 | N17: =IF('01'!N17="","",'01'!N17) -> 1 | O17: =IF('01'!O17="","",'01'!O17) -> 10 | P17: =IF('01'!P17="","",'01'!P17) -> 11 | T17: 1 | X17: 2 | Z17: 5 | AC17: 1 | AD17: 5 | AG17: 7 | AI17: 2 | AK17: 4 | AM17: 4 | AN17: 1 | AO17: 0 | AQ17: 3 | AS17: 4 | AU17: 2 | AV17: 1 | AW17: 0 | AY17: 2 | BA17: 6 | BC17: 2
A18: =IF(COUNTA(C18:K18)<8,"",MAX(A$6:A17)+1) -> 12 | C18: =IF('01'!C18="","",'01'!C18) -> 2015-07-12 | D18: 5 | E18: 2 | F18: 7 | G18: 6 | H18: 1 | I18: 14 | J18: 3 | K18: 9 | L18: =IF('01'!L18="","",'01'!L18) -> 2 | M18: =IF('01'!M18="","",'01'!M18) -> 6 | N18: =IF('01'!N18="","",'01'!N18) -> 7 | O18: =IF('01'!O18="","",'01'!O18) -> 5 | P18: =IF('01'!P18="","",'01'!P18) -> 12 | T18: 4 | U18: 1 | V18: 3 | W18: 2 | AC18: 2 | AD18: 4 | AE18: 3 | AF18: 1 | AH18: 1 | AI18: 0 | AJ18: 1 | AK18: 0 | AM18: 5 | AO18: 1 | AP18: 1 | AQ18: 0 | AR18: 1 | AS18: 0 | AT18: 1 | AU18: 0 | AW18: 1 | AY18: 3 | BA18: 7 | BC18: 3
A19: =IF(COUNTA(C19:K19)<8,"",MAX(A$6:A18)+1) -> 13 | C19: =IF('01'!C19="","",'01'!C19) -> 2015-07-13 | D19: 8 | E19: 9 | F19: 6 | G19: 3 | H19: 11 | I19: 14 | J19: 4 | K19: 2 | L19: =IF('01'!L19="","",'01'!L19) -> 14 | M19: =IF('01'!M19="","",'01'!M19) -> 9 | N19: =IF('01'!N19="","",'01'!N19) -> 6 | O19: =IF('01'!O19="","",'01'!O19) -> 5 | P19: =IF('01'!P19="","",'01'!P19) -> 12 | U19: 2 | V19: 3 | Y19: 1 | AC19: 6 | AD19: 2 | AE19: 3 | AH19: 1 | AI19: 0 | AK19: 1 | AM19: 6 | AO19: 2 | AP19: 1 | AQ19: 0 | AR19: 1 | AS19: 0 | AU19: 1 | AW19: 2 | AX19: 1 | AY19: 0 | BA19: 8 | BC19: 4
A20: =IF(COUNTA(C20:K20)<8,"",MAX(A$6:A19)+1) -> 14 | C20: =IF('01'!C20="","",'01'!C20) -> 2015-07-14 | D20: 8 | E20: 12 | F20: 6 | G20: 13 | H20: 15 | I20: 16 | J20: 2 | K20: 1 | L20: =IF('01'!L20="","",'01'!L20) -> 8 | M20: =IF('01'!M20="","",'01'!M20) -> 15 | N20: =IF('01'!N20="","",'01'!N20) -> 6 | O20: =IF('01'!O20="","",'01'!O20) -> 5 | P20: =IF('01'!P20="","",'01'!P20) -> 3 | T20: 1 | V20: 3 | X20: 2 | AC20: 1 | AD20: 5 | AE20: 3 | AH20: 1 | AI20: 0 | AK20: 2 | AM20: 7 | AN20: 1 | AO20: 0 | AQ20: 1 | AR20: 1 | AS20: 0 | AU20: 2 | AV20: 1 | AW20: 0 | AY20: 1 | BA20: 9 | BC20: 5
A21: =IF(COUNTA(C21:K21)<8,"",MAX(A$6:A20)+1) -> 15 | C21: =IF('01'!C21="","",'01'!C21) -> 2015-07-15 | D21: 14 | E21: 4 | F21: 12 | G21: 7 | H21: 18 | I21: 3 | J21: 13 | K21: 5 | L21: =IF('01'!L21="","",'01'!L21) -> 18 | M21: =IF('01'!M21="","",'01'!M21) -> 14 | N21: =IF('01'!N21="","",'01'!N21) -> 3 | O21: =IF('01'!O21="","",'01'!O21) -> 6 | P21: =IF('01'!P21="","",'01'!P21) -> 5 | T21: 2 | X21: 1 | Y21: 3 | AA21: 5 | AC21: 5 | AD21: 1 | AE21: 6 | AG21: 8 | AH21: 1 | AI21: 0 | AK21: 3 | AM21: 8 | AN21: 1 | AO21: 0 | AQ21: 2 | AS21: 1 | AU21: 3 | AV21: 1 | AW21: 0 | AX21: 1 | AY21: 0 | BA21: 10 | BC21: 6
A22: =IF(COUNTA(C22:K22)<8,"",MAX(A$6:A21)+1) -> 16 | C22: =IF('01'!C22="","",'01'!C22) -> 2015-07-16 | D22: 14 | E22: 6 | F22: 3 | G22: 15 | H22: 16 | I22: 5 | J22: 9 | K22: 7 | L22: =IF('01'!L22="","",'01'!L22) -> 3 | M22: =IF('01'!M22="","",'01'!M22) -> 2 | N22: =IF('01'!N22="","",'01'!N22) -> 12 | O22: =IF('01'!O22="","",'01'!O22) -> 1 | P22: =IF('01'!P22="","",'01'!P22) -> 10 | V22: 1 | AC22: 3 | AI22: 1 | AK22: 4 | AM22: 9 | AO22: 1 | AQ22: 3 | AR22: 1 | AS22: 0 | AU22: 4 | AW22: 1 | AY22: 1 | BA22: 11 | BC22: 7
A23: =IF(COUNTA(C23:K23)<8,"",MAX(A$6:A22)+1) -> 17 | C23: =IF('01'!C23="","",'01'!C23) -> 2015-07-17 | D23: 3 | E23: 2 | F23: 8 | G23: 4 | H23: 9 | I23: 10 | J23: 6 | K23: 16 | L23: =IF('01'!L23="","",'01'!L23) -> 13 | M23: =IF('01'!M23="","",'01'!M23) -> 6 | N23: =IF('01'!N23="","",'01'!N23) -> 16 | O23: =IF('01'!O23="","",'01'!O23) -> 9 | P23: =IF('01'!P23="","",'01'!P23) -> 5 | X23: 4 | Z23: 2 | AA23: 3 | AD23: 7 | AE23: 8 | AF23: 5 | AI23: 2 | AK23: 5 | AM23: 10 | AO23: 2 | AQ23: 4 | AS23: 1 | AU23: 5 | AW23: 2 | AY23: 2 | AZ23: 1 | BA23: 0 | BB23: 1 | BC23: 0
A24: =IF(COUNTA(C24:K24)<8,"",MAX(A$6:A23)+1) -> 18 | C24: =IF('01'!C24="","",'01'!C24) -> 2015-07-18 | D24: 3 | E24: 4 | F24: 8 | G24: 9 | H24: 7 | I24: 11 | J24: 6 | K24: 10 | L24: =IF('01'!L24="","",'01'!L24) -> 11 | M24: =IF('01'!M24="","",'01'!M24) -> 9 | N24: =IF('01'!N24="","",'01'!N24) -> 4 | O24: =IF('01'!O24="","",'01'!O24) -> 13 | P24: =IF('01'!P24="","",'01'!P24) -> 15 | U24: 3 | W24: 2 | Y24: 1 | AC24: 6 | AD24: 4 | AE24: 2 | AH24: 1 | AI24: 0 | AK24: 6 | AM24: 11 | AO24: 3 | AP24: 1 | AQ24: 0 | AS24: 2 | AT24: 1 | AU24: 0 | AW24: 3 | AX24: 1 | AY24: 0 | BA24: 1 | BC24: 1
A25: =IF(COUNTA(C25:K25)<8,"",MAX(A$6:A24)+1) -> 19 | C25: =IF('01'!C25="","",'01'!C25) -> 2015-07-19 | D25: 12 | E25: 2 | F25: 18 | G25: 8 | H25: 11 | I25: 4 | J25: 6 | K25: 16 | L25: =IF('01'!L25="","",'01'!L25) -> 6 | M25: =IF('01'!M25="","",'01'!M25) -> 8 | N25: =IF('01'!N25="","",'01'!N25) -> 11 | O25: =IF('01'!O25="","",'01'!O25) -> 18 | P25: =IF('01'!P25="","",'01'!P25) -> 12 | T25: 5 | V25: 4 | W25: 2 | X25: 3 | Z25: 1 | AC25: 7 | AD25: 4 | AE25: 5 | AF25: 3 | AG25: 1 | AH25: 1 | AI25: 0 | AJ25: 1 | AK25: 0 | AL25: 1 | AM25: 0 | AO25: 4 | AQ25: 1 | AS25: 3 | AT25: 1 | AU25: 0 | AV25: 1 | AW25: 0 | AY25: 1 | AZ25: 1 | BA25: 0 | BC25: 2
A26: =IF(COUNTA(C26:K26)<8,"",MAX(A$6:A25)+1) -> 20 | C26: =IF('01'!C26="","",'01'!C26) -> 2015-07-20 | D26: 5 | E26: 7 | F26: 9 | G26: 12 | H26: 4 | I26: 1 | J26: 2 | K26: 14 | L26: =IF('01'!L26="","",'01'!L26) -> 13 | M26: =IF('01'!M26="","",'01'!M26) -> 9 | N26: =IF('01'!N26="","",'01'!N26) -> 2 | O26: =IF('01'!O26="","",'01'!O26) -> 7 | P26: =IF('01'!P26="","",'01'!P26) -> 6 | U26: 4 | V26: 2 | Z26: 3 | AD26: 3 | AE26: 7 | AF26: 2 | AI26: 1 | AK26: 1 | AM26: 1 | AO26: 5 | AQ26: 2 | AR26: 1 | AS26: 0 | AU26: 1 | AW26: 1 | AY26: 2 | AZ26: 1 | BA26: 0 | BC26: 3
A27: =IF(COUNTA(C27:K27)<8,"",MAX(A$6:A26)+1) -> 21 | C27: =IF('01'!C27="","",'01'!C27) -> 2015-07-21 | D27: 8 | E27: 3 | F27: 12 | G27: 7 | H27: 6 | I27: 4 | J27: 10 | K27: 2 | L27: =IF('01'!L27="","",'01'!L27) -> 8 | M27: =IF('01'!M27="","",'01'!M27) -> 4 | N27: =IF('01'!N27="","",'01'!N27) -> 14 | O27: =IF('01'!O27="","",'01'!O27) -> 1 | P27: =IF('01'!P27="","",'01'!P27) -> 3 | T27: 1 | U27: 5 | Y27: 2 | AC27: 1 | AD27: 6 | AG27: 2 | AI27: 2 | AK27: 2 | AM27: 2 | AN27: 1 | AO27: 0 | AQ27: 3 | AS27: 1 | AU27: 2 | AW27: 2 | AX27: 1 | AY27: 0 | BA27: 1 | BC27: 4
A28: =IF(COUNTA(C28:K28)<8,"",MAX(A$6:A27)+1) -> 22 | C28: =IF('01'!C28="","",'01'!C28) -> 2015-07-22 | D28: 15 | E28: 13 | F28: 12 | G28: 14 | H28: 4 | I28: 11 | J28: 9 | K28: 3 | L28: =IF('01'!L28="","",'01'!L28) -> 15 | M28: =IF('01'!M28="","",'01'!M28) -> 5 | N28: =IF('01'!N28="","",'01'!N28) -> 4 | O28: =IF('01'!O28="","",'01'!O28) -> 14 | P28: =IF('01'!P28="","",'01'!P28) -> 16 | T28: 1 | W28: 4 | X28: 3 | AC28: 1 | AE28: 5 | AF28: 4 | AI28: 3 | AK28: 3 | AM28: 3 | AN28: 1 | AO28: 0 | AQ28: 4 | AS28: 2 | AU28: 3 | AV28: 1 | AW28: 0 | AY28: 1 | BA28: 2 | BC28: 5
A29: =IF(COUNTA(C29:K29)<8,"",MAX(A$6:A28)+1) -> 23 | C29: =IF('01'!C29="","",'01'!C29) -> 2015-07-23 | D29: 1 | E29: 14 | F29: 10 | G29: 6 | H29: 12 | I29: 15 | J29: 11 | K29: 9 | L29: =IF('01'!L29="","",'01'!L29) -> 4 | M29: =IF('01'!M29="","",'01'!M29) -> 5 | N29: =IF('01'!N29="","",'01'!N29) -> 14 | O29: =IF('01'!O29="","",'01'!O29) -> 15 | P29: =IF('01'!P29="","",'01'!P29) -> 6 | U29: 3 | W29: 5 | Y29: 4 | AC29: =IFERROR(MATCH(AC$3,$T29:$AA29,0),"") ->  | AE29: 2 | AF29: 6 | AG29: 4 | AI29: 4 | AK29: 4 | AM29: 4 | AO29: 1 | AP29: 1 | AQ29: 0 | AS29: 3 | AU29: 4 | AW29: 1 | AY29: 2 | BA29: 3 | BC29: 6
A30: =IF(COUNTA(C30:K30)<8,"",MAX(A$6:A29)+1) -> 24 | C30: =IF('01'!C30="","",'01'!C30) -> 2015-07-24 | D30: 11 | E30: 16 | F30: 4 | G30: 7 | H30: 6 | I30: 15 | J30: 13 | K30: 2 | L30: =IF('01'!L30="","",'01'!L30) -> 7 | M30: =IF('01'!M30="","",'01'!M30) -> 16 | N30: =IF('01'!N30="","",'01'!N30) -> 2 | O30: =IF('01'!O30="","",'01'!O30) -> 15 | P30: =IF('01'!P30="","",'01'!P30) -> 1 | U30: 2 | W30: 1 | Y30: 4 | AA30: 3 | AC30: 4 | AD30: 2 | AE30: 8 | AF30: 6 | AH30: 1 | AI30: 0 | AJ30: 1 | AK30: 0 | AM30: 5 | AO30: 2 | AP30: 1 | AQ30: 0 | AS30: 4 | AT30: 1 | AU30: 0 | AW30: 2 | AY30: 3 | BA30: 4 | BB30: 1 | BC30: 0
A31: =IF(COUNTA(C31:K31)<8,"",MAX(A$6:A30)+1) -> 25 | C31: =IF('01'!C31="","",'01'!C31) -> 2015-07-25 | D31: 3 | E31: 2 | F31: 8 | G31: 13 | H31: 6 | I31: 5 | J31: 4 | K31: 10 | L31: =IF('01'!L31="","",'01'!L31) -> 2 | M31: =IF('01'!M31="","",'01'!M31) -> 8 | N31: =IF('01'!N31="","",'01'!N31) -> 3 | O31: =IF('01'!O31="","",'01'!O31) -> 6 | P31: =IF('01'!P31="","",'01'!P31) -> 4 | T31: 3 | U31: 1 | V31: 2 | X31: 4 | Z31: 5 | AC31: 2 | AD31: 3 | AE31: 1 | AF31: 5 | AG31: 7 | AH31: 1 | AI31: 0 | AJ31: 1 | AK31: 0 | AL31: 1 | AM31: 0 | AN31: 1 | AO31: 0 | AP31: 1 | AQ31: 0 | AR31: 1 | AS31: 0 | AU31: 1 | AW31: 3 | AY31: 4 | BA31: 5 | BC31: 1
A32: =IF(COUNTA(C32:K32)<8,"",MAX(A$6:A31)+1) -> 26 | C32: =IF('01'!C32="","",'01'!C32) -> 2015-07-26 | D32: 6 | E32: 16 | F32: 10 | G32: 9 | H32: 7 | I32: 4 | J32: 13 | K32: 1 | L32: =IF('01'!L32="","",'01'!L32) -> 1 | M32: =IF('01'!M32="","",'01'!M32) -> 7 | N32: =IF('01'!N32="","",'01'!N32) -> 10 | O32: =IF('01'!O32="","",'01'!O32) -> 2 | P32: =IF('01'!P32="","",'01'!P32) -> 4 | V32: 3 | X32: 2 | Y32: 5 | AA32: 1 | AC32: 8 | AD32: 5 | AE32: 3 | AG32: 6 | AH32: 1 | AI32: 0 | AK32: 1 | AM32: 1 | AO32: 1 | AQ32: 1 | AR32: 1 | AS32: 0 | AU32: 2 | AV32: 1 | AW32: 0 | AY32: 5 | BA32: 6 | BB32: 1 | BC32: 0
A33: =IF(COUNTA(C33:K33)<8,"",MAX(A$6:A32)+1) -> 27 | C33: =IF('01'!C33="","",'01'!C33) -> 2015-07-27 | D33: 5 | E33: 8 | F33: 6 | G33: 3 | H33: 7 | I33: 14 | J33: 4 | K33: 2 | L33: =IF('01'!L33="","",'01'!L33) -> 14 | M33: =IF('01'!M33="","",'01'!M33) -> 5 | N33: =IF('01'!N33="","",'01'!N33) -> 9 | O33: =IF('01'!O33="","",'01'!O33) -> 11 | P33: =IF('01'!P33="","",'01'!P33) -> 7 | T33: 2 | X33: 5 | Y33: 1 | AC33: 6 | AD33: 1 | AG33: 5 | AI33: 1 | AK33: 2 | AM33: 2 | AN33: 1 | AO33: 0 | AQ33: 2 | AS33: 1 | AU33: 3 | AW33: 1 | AX33: 1 | AY33: 0 | BA33: 7 | BC33: 1
A34: =IF(COUNTA(C34:K34)<8,"",MAX(A$6:A33)+1) -> 28 | C34: =IF('01'!C34="","",'01'!C34) -> 2015-07-28 | D34: 6 | E34: 13 | F34: 15 | G34: 10 | H34: 5 | I34: 1 | J34: 4 | K34: 2 | L34: =IF('01'!L34="","",'01'!L34) -> 4 | M34: =IF('01'!M34="","",'01'!M34) -> 10 | N34: =IF('01'!N34="","",'01'!N34) -> 2 | O34: =IF('01'!O34="","",'01'!O34) -> 15 | P34: =IF('01'!P34="","",'01'!P34) -> 1 | V34: 4 | W34: 2 | Y34: 5 | Z34: 1 | AA34: 3 | AC34: 7 | AD34: 4 | AE34: 8 | AF34: 3 | AG34: 6 | AH34: 1 | AI34: 0 | AJ34: 1 | AK34: 0 | AL34: 1 | AM34: 0 | AO34: 1 | AQ34: 3 | AS34: 2 | AT34: 1 | AU34: 0 | AW34: 2 | AY34: 1 | AZ34: 1 | BA34: 0 | BB34: 1 | BC34: 0
A35: =IF(COUNTA(C35:K35)<8,"",MAX(A$6:A34)+1) -> 29 | C35: =IF('01'!C35="","",'01'!C35) -> 2015-07-29 | D35: 7 | E35: 5 | F35: 13 | G35: 9 | H35: 1 | I35: 2 | J35: 14 | K35: 15 | L35: =IF('01'!L35="","",'01'!L35) -> 6 | M35: =IF('01'!M35="","",'01'!M35) -> 1 | N35: =IF('01'!N35="","",'01'!N35) -> 12 | O35: =IF('01'!O35="","",'01'!O35) -> 7 | P35: =IF('01'!P35="","",'01'!P35) -> 5 | T35: 4 | U35: 5 | X35: 2 | AD35: 5 | AF35: 1 | AG35: 2 | AI35: 1 | AK35: 1 | AM35: 1 | AO35: 2 | AQ35: 4 | AS35: 3 | AU35: 1 | AV35: 1 | AW35: 0 | AY35: 2 | BA35: 1 | BC35: 1
A36: =IF(COUNTA(C36:K36)<8,"",MAX(A$6:A35)+1) -> 30 | C36: =IF('01'!C36="","",'01'!C36) -> 2015-07-30 | D36: 16 | E36: 10 | F36: 13 | G36: 4 | H36: 8 | I36: 7 | J36: 15 | K36: 14 | L36: =IF('01'!L36="","",'01'!L36) -> 12 | M36: =IF('01'!M36="","",'01'!M36) -> 6 | N36: =IF('01'!N36="","",'01'!N36) -> 8 | O36: =IF('01'!O36="","",'01'!O36) -> 13 | P36: =IF('01'!P36="","",'01'!P36) -> 1 | V36: 4 | X36: 3 | AE36: 5 | AF36: 3 | AI36: 2 | AK36: 2 | AM36: 2 | AO36: 3 | AQ36: 5 | AS36: 4 | AU36: 2 | AV36: 1 | AW36: 0 | AY36: 3 | BA36: 2 | BC36: 2
A37: =IF(COUNTA(C37:K37)<8,"",MAX(A$6:A36)+1) -> 31 | C37: =IF('01'!C37="","",'01'!C37) -> 2015-07-31 | D37: 13 | E37: 2 | F37: 6 | G37: 12 | H37: 16 | I37: 4 | J37: 5 | K37: 11 | L37: =IF('01'!L37="","",'01'!L37) -> 4 | M37: =IF('01'!M37="","",'01'!M37) -> 5 | N37: =IF('01'!N37="","",'01'!N37) -> 13 | O37: =IF('01'!O37="","",'01'!O37) -> 9 | P37: =IF('01'!P37="","",'01'!P37) -> 6 | T37: 3 | V37: 5 | Y37: 1 | Z37: 2 | AC37: 6 | AD37: 7 | AE37: 1 | AG37: 3 | AH37: 1 | AI37: 0 | AK37: 3 | AM37: 3 | AN37: 1 | AO37: 0 | AQ37: 6 | AS37: 5 | AU37: 3 | AW37: 1 | AX37: 1 | AY37: 0 | AZ37: 1 | BA37: 0 | BC37: 3
A38: =IF(COUNTA(C38:K38)<8,"",MAX(A$6:A37)+1) -> 32 | C38: =IF('01'!C38="","",'01'!C38) -> 2015-08-01 | D38: 7 | E38: 1 | F38: 14 | G38: 8 | H38: 5 | I38: 3 | J38: 12 | K38: 13 | L38: =IF('01'!L38="","",'01'!L38) -> 10 | M38: =IF('01'!M38="","",'01'!M38) -> 11 | N38: =IF('01'!N38="","",'01'!N38) -> 12 | O38: =IF('01'!O38="","",'01'!O38) -> 7 | P38: =IF('01'!P38="","",'01'!P38) -> 1 | T38: 4 | U38: 5 | Z38: 3 | AE38: 7 | AF38: 1 | AG38: 2 | AI38: 1 | AK38: 4 | AM38: 4 | AO38: 1 | AQ38: 7 | AS38: 6 | AU38: 4 | AW38: 2 | AY38: 1 | AZ38: 1 | BA38: 0 | BC38: 4
A39: =IF(COUNTA(C39:K39)<8,"",MAX(A$6:A38)+1) -> 33 | C39: =IF('01'!C39="","",'01'!C39) -> 2015-08-02 | D39: 3 | E39: 2 | F39: 7 | G39: 5 | H39: 1 | I39: 6 | J39: 12 | K39: 14 | L39: =IF('01'!L39="","",'01'!L39) -> 5 | M39: =IF('01'!M39="","",'01'!M39) -> 12 | N39: =IF('01'!N39="","",'01'!N39) -> 15 | O39: =IF('01'!O39="","",'01'!O39) -> 3 | P39: =IF('01'!P39="","",'01'!P39) -> 7 | T39: 4 | V39: 5 | W39: 1 | Z39: 2 | AC39: 4 | AD39: 7 | AF39: 1 | AG39: 3 | AI39: 2 | AK39: 5 | AM39: 5 | AO39: 2 | AQ39: 8 | AS39: 7 | AT39: 1 | AU39: 0 | AW39: 3 | AY39: 2 | AZ39: 1 | BA39: 0 | BC39: 5
A40: =IF(COUNTA(C40:K40)<8,"",MAX(A$6:A39)+1) -> 34 | C40: =IF('01'!C40="","",'01'!C40) -> 2015-08-03 | D40: 6 | E40: 8 | F40: 9 | G40: 5 | H40: 1 | I40: 10 | J40: 13 | K40: 16 | L40: =IF('01'!L40="","",'01'!L40) -> 6 | M40: =IF('01'!M40="","",'01'!M40) -> 9 | N40: =IF('01'!N40="","",'01'!N40) -> 14 | O40: =IF('01'!O40="","",'01'!O40) -> 15 | P40: =IF('01'!P40="","",'01'!P40) -> 1 | T40: 1 | V40: 2 | X40: 5 | AC40: 1 | AD40: 3 | AG40: 5 | AI40: 3 | AK40: 6 | AM40: 6 | AN40: 1 | AO40: 0 | AQ40: 9 | AR40: 1 | AS40: 0 | AU40: 1 | AW40: 4 | AY40: 3 | BA40: 1 | BC40: 6
A41: =IF(COUNTA(C41:K41)<8,"",MAX(A$6:A40)+1) -> 35 | C41: =IF('01'!C41="","",'01'!C41) -> 2015-08-04 | D41: 5 | E41: 2 | F41: 8 | G41: 3 | H41: 4 | I41: 9 | J41: 1 | K41: 12 | L41: =IF('01'!L41="","",'01'!L41) -> 14 | M41: =IF('01'!M41="","",'01'!M41) -> 6 | N41: =IF('01'!N41="","",'01'!N41) -> 5 | O41: =IF('01'!O41="","",'01'!O41) -> 8 | P41: =IF('01'!P41="","",'01'!P41) -> 7 | T41: =IFERROR(MATCH(D41,L41:P41,0),"") -> 3 | U41: =IFERROR(MATCH(E41,L41:P41,0),"") ->  | V41: =IFERROR(MATCH(F41,L41:P41,0),"") -> 4 | W41: =IFERROR(MATCH(G41,L41:P41,0),"") ->  | X41: =IFERROR(MATCH(H41,L41:P41,0),"") ->  | Y41: =IFERROR(MATCH(I41,L41:P41,0),"") ->  | Z41: =IFERROR(MATCH(J41,L41:P41,0),"") ->  | AA41: =IFERROR(MATCH(K41,L41:P41,0),"") ->  | AE41: 1 | AF41: 3 | AI41: =IF(C41>TODAY(),"",IF(AH41="",AI40+1,0)) -> 4 | AK41: =IF(C41>TODAY(),"",IF(AJ41="",AK40+1,0)) -> 7 | AM41: =IF(C41>TODAY(),"",IF(AL41="",AM40+1,0)) -> 7 | AN41: =IF(COUNTIF(L41:N41,D41)=0,"",1) -> 1 | AO41: =IF(C41>TODAY(),"",IF(AN41="",AO40+1,0)) -> 0 | AP41: =IF(COUNTIF(L41:N41,E41)=0,"",1) ->  | AQ41: =IF(C41>TODAY(),"",IF(AP41="",AQ40+1,0)) -> 10 | AR41: =IF(COUNTIF(L41:N41,F41)=0,"",1) ->  | AS41: =IF(C41>TODAY(),"",IF(AR41="",AS40+1,0)) -> 1 | AT41: =IF(COUNTIF(L41:N41,G41)=0,"",1) ->  | AU41: =IF(C41>TODAY(),"",IF(AT41="",AU40+1,0)) -> 2 | AV41: =IF(COUNTIF(L41:N41,H41)=0,"",1) ->  | AW41: =IF(C41>TODAY(),"",IF(AV41="",AW40+1,0)) -> 5 | AX41: =IF(COUNTIF(L41:N41,I41)=0,"",1) ->  | AY41: =IF(C41>TODAY(),"",IF(AX41="",AY40+1,0)) -> 4 | AZ41: =IF(COUNTIF(L41:N41,J41)=0,"",1) ->  | BA41: =IF(C41>TODAY(),"",IF(AZ41="",BA40+1,0)) -> 2 | BB41: =IF(COUNTIF(L41:N41,K41)=0,"",1) ->  | BC41: =IF(C41>TODAY(),"",IF(BB41="",BC40+1,0)) -> 7
A42: =IF(COUNTA(C42:K42)<8,"",MAX(A$6:A41)+1) -> 36 | C42: =IF('01'!C42="","",'01'!C42) -> 2015-08-05 | D42: 12 | E42: 11 | F42: 14 | G42: 10 | H42: 5 | I42: 3 | J42: 8 | K42: 1 | L42: =IF('01'!L42="","",'01'!L42) -> 6 | M42: =IF('01'!M42="","",'01'!M42) -> 8 | N42: =IF('01'!N42="","",'01'!N42) -> 1 | O42: =IF('01'!O42="","",'01'!O42) -> 7 | P42: =IF('01'!P42="","",'01'!P42) -> 3 | Y42: 5 | Z42: 2 | AA42: 3 | AD42: 7 | AE42: 8 | AG42: 6 | AH42: =IFERROR(IF(BD42=1,"",IF(AND(HLOOKUP(1,T42:AA42,1,FALSE)=1,HLOOKUP(2,T42:AA42,1,FALSE)=2,HLOOKUP(3,T42:AA42,1,FALSE)=3),1,"")),"") ->  | AI42: 5 | AJ42: =IFERROR(IF(BF42=1,"",IF(AND(HLOOKUP(1,T42:AA42,1,FALSE)=1,HLOOKUP(2,T42:AA42,1,FALSE)=2,HLOOKUP(3,T42:AA42,1,FALSE)=3,HLOOKUP(4,T42:AA42,1,FALSE)=4),1,"")),"") ->  | AK42: 8 | AL42: =IFERROR(IF(BG42=1,"",IF(AND(HLOOKUP(1,T42:AA42,1,FALSE)=1,HLOOKUP(2,T42:AA42,1,FALSE)=2,HLOOKUP(3,T42:AA42,1,FALSE)=3,HLOOKUP(4,T42:AA42,1,FALSE)=4,HLOOKUP(5,T42:AA42,1,FALSE)=5),1,"")),"") ->  | AM42: 8 | AO42: 1 | AQ42: 11 | AS42: 2 | AU42: 3 | AW42: 6 | AY42: 5 | AZ42: 1 | BA42: 0 | BB42: 1 | BC42: 0
A43: =IF(COUNTA(C43:K43)<8,"",MAX(A$6:A42)+1) -> 37 | C43: =IF('01'!C43="","",'01'!C43) -> 2015-08-06 | D43: 12 | E43: 11 | F43: 14 | G43: 10 | H43: 5 | I43: 3 | J43: 8 | K43: 1 | L43: =IF('01'!L43="","",'01'!L43) -> 1 | M43: =IF('01'!M43="","",'01'!M43) -> 13 | N43: =IF('01'!N43="","",'01'!N43) -> 12 | O43: =IF('01'!O43="","",'01'!O43) -> 3 | P43: =IF('01'!P43="","",'01'!P43) -> 2 | T43: 3 | Y43: 4 | AA43: 1 | AC43: 8 | AE43: 1 | AF43: 6 | AI43: 6 | AK43: 9 | AM43: 9 | AN43: 1 | AO43: 0 | AQ43: 12 | AS43: 3 | AU43: 4 | AW43: 7 | AY43: 6 | BA43: 1 | BB43: 1 | BC43: 0
A44: =IF(COUNTA(C44:K44)<8,"",MAX(A$6:A43)+1) -> 38 | C44: =IF('01'!C44="","",'01'!C44) -> 2015-08-07 | D44: 15 | E44: 3 | F44: 1 | G44: 5 | H44: 4 | I44: 6 | J44: 7 | K44: 12 | L44: =IF('01'!L44="","",'01'!L44) -> 12 | M44: =IF('01'!M44="","",'01'!M44) -> 15 | N44: =IF('01'!N44="","",'01'!N44) -> 5 | O44: =IF('01'!O44="","",'01'!O44) -> 4 | P44: =IF('01'!P44="","",'01'!P44) -> 3 | T44: 2 | U44: 5 | W44: 3 | X44: 4 | AA44: 1 | AC44: 8 | AD44: 1 | AE44: 4 | AF44: 5 | AG44: 2 | AH44: 1 | AI44: 0 | AJ44: 1 | AK44: 0 | AL44: 1 | AM44: 0 | AN44: 1 | AO44: 0 | AQ44: 13 | AS44: 4 | AT44: 1 | AU44: 0 | AW44: 8 | AY44: 7 | BA44: 2 | BB44: 1 | BC44: 0
A45: =IF(COUNTA(C45:K45)<8,"",MAX(A$6:A44)+1) -> 39 | C45: =IF('01'!C45="","",'01'!C45) -> 2015-08-08 | D45: 6 | E45: 8 | F45: 15 | G45: 10 | H45: 7 | I45: 14 | J45: 11 | K45: 13 | L45: =IF('01'!L45="","",'01'!L45) -> 6 | M45: =IF('01'!M45="","",'01'!M45) -> 14 | N45: =IF('01'!N45="","",'01'!N45) -> 10 | O45: =IF('01'!O45="","",'01'!O45) -> 16 | P45: =IF('01'!P45="","",'01'!P45) -> 8 | T45: 1 | U45: 5 | W45: 3 | Y45: 2 | AC45: 1 | AD45: 6 | AE45: 4 | AG45: 2 | AH45: 1 | AI45: 0 | AK45: 1 | AM45: 1 | AN45: 1 | AO45: 0 | AQ45: 14 | AS45: 5 | AT45: 1 | AU45: 0 | AW45: 9 | AX45: 1 | AY45: 0 | BA45: 3 | BC45: 1
A46: =IF(COUNTA(C46:K46)<8,"",MAX(A$6:A45)+1) -> 40 | C46: =IF('01'!C46="","",'01'!C46) -> 2015-08-09 | D46: 12 | E46: 7 | F46: 1 | G46: 4 | H46: 6 | I46: 2 | J46: 16 | K46: 9 | L46: =IF('01'!L46="","",'01'!L46) -> 8 | M46: =IF('01'!M46="","",'01'!M46) -> 16 | N46: =IF('01'!N46="","",'01'!N46) -> 11 | O46: =IF('01'!O46="","",'01'!O46) -> 7 | P46: =IF('01'!P46="","",'01'!P46) -> 4 | U46: 4 | W46: 5 | Z46: 2 | AD46: 7 | AF46: 2 | AG46: 4 | AI46: 1 | AK46: 2 | AM46: 2 | AO46: 1 | AQ46: 15 | AS46: 6 | AU46: 1 | AW46: 10 | AY46: 1 | AZ46: 1 | BA46: 0 | BC46: 2
A47: =IF(COUNTA(C47:K47)<8,"",MAX(A$6:A46)+1) -> 41 | C47: =IF('01'!C47="","",'01'!C47) -> 2015-08-10 | D47: 13 | E47: 3 | F47: 1 | G47: 2 | H47: 7 | I47: 9 | J47: 6 | K47: 11 | L47: =IF('01'!L47="","",'01'!L47) -> 7 | M47: =IF('01'!M47="","",'01'!M47) -> 1 | N47: =IF('01'!N47="","",'01'!N47) -> 10 | O47: =IF('01'!O47="","",'01'!O47) -> 17 | P47: =IF('01'!P47="","",'01'!P47) -> 11 | V47: 2 | X47: 1 | AA47: 5 | AC47: 5 | AD47: 3 | AG47: 8 | AI47: 2 | AK47: 3 | AM47: 3 | AO47: 2 | AQ47: 16 | AR47: 1 | AS47: 0 | AU47: 2 | AV47: 1 | AW47: 0 | AY47: 2 | BA47: 1 | BC47: 3
A48: =IF(COUNTA(C48:K48)<8,"",MAX(A$6:A47)+1) -> 42 | C48: =IF('01'!C48="","",'01'!C48) -> 2015-08-11 | D48: 14 | E48: 13 | F48: 2 | G48: 1 | H48: 4 | I48: 3 | J48: 7 | K48: 11 | L48: =IF('01'!L48="","",'01'!L48) -> 11 | M48: =IF('01'!M48="","",'01'!M48) -> 1 | N48: =IF('01'!N48="","",'01'!N48) -> 4 | O48: =IF('01'!O48="","",'01'!O48) -> 13 | P48: =IF('01'!P48="","",'01'!P48) -> 7 | U48: 4 | W48: 2 | X48: 3 | Z48: 5 | AA48: 1 | AC48: 8 | AD48: 4 | AE48: 5 | AF48: 2 | AG48: 7 | AH48: 1 | AI48: 0 | AJ48: 1 | AK48: 0 | AL48: 1 | AM48: 0 | AO48: 3 | AQ48: 17 | AS48: 1 | AT48: 1 | AU48: 0 | AV48: 1 | AW48: 0 | AY48: 3 | BA48: 2 | BB48: 1 | BC48: 0
A49: =IF(COUNTA(C49:K49)<8,"",MAX(A$6:A48)+1) -> 43 | C49: =IF('01'!C49="","",'01'!C49) -> 2015-08-12 | D49: 5 | E49: 15 | F49: 8 | G49: 6 | H49: 12 | I49: 9 | J49: 10 | K49: 7 | L49: =IF('01'!L49="","",'01'!L49) -> 8 | M49: =IF('01'!M49="","",'01'!M49) -> 2 | N49: =IF('01'!N49="","",'01'!N49) -> 5 | O49: =IF('01'!O49="","",'01'!O49) -> 4 | P49: =IF('01'!P49="","",'01'!P49) -> 6 | T49: 3 | V49: 1 | W49: 5 | AC49: 3 | AE49: 1 | AG49: 4 | AI49: 1 | AK49: 1 | AM49: 1 | AN49: 1 | AO49: 0 | AQ49: 18 | AR49: 1 | AS49: 0 | AU49: 1 | AW49: 1 | AY49: 4 | BA49: 3 | BC49: 1
A50: =IF(COUNTA(C50:K50)<8,"",MAX(A$6:A49)+1) -> 44 | C50: =IF('01'!C50="","",'01'!C50) -> 2015-08-13 | D50: 2 | E50: 11 | F50: 4 | G50: 3 | H50: 5 | I50: 7 | J50: 13 | K50: 10 | L50: =IF('01'!L50="","",'01'!L50) -> 1 | M50: =IF('01'!M50="","",'01'!M50) -> 5 | N50: =IF('01'!N50="","",'01'!N50) -> 8 | O50: =IF('01'!O50="","",'01'!O50) -> 4 | P50: =IF('01'!P50="","",'01'!P50) -> 13 | V50: 4 | X50: 2 | Z50: 5 | AD50: 5 | AF50: 3 | AG50: 7 | AI50: 2 | AK50: 2 | AM50: 2 | AO50: 1 | AQ50: 19 | AS50: 1 | AU50: 2 | AV50: 1 | AW50: 0 | AY50: 5 | BA50: 4 | BC50: 2
A51: =IF(COUNTA(C51:K51)<8,"",MAX(A$6:A50)+1) -> 45 | C51: =IF('01'!C51="","",'01'!C51) -> 2015-08-14 | D51: 12 | E51: 15 | F51: 10 | G51: 8 | H51: 7 | I51: 6 | J51: 9 | K51: 2 | L51: =IF('01'!L51="","",'01'!L51) -> 10 | M51: =IF('01'!M51="","",'01'!M51) -> 8 | N51: =IF('01'!N51="","",'01'!N51) -> 6 | O51: =IF('01'!O51="","",'01'!O51) -> 15 | P51: =IF('01'!P51="","",'01'!P51) -> 7 | U51: 4 | V51: 1 | W51: 2 | X51: 5 | Y51: 3 | AC51: 3 | AD51: 4 | AE51: 6 | AF51: 2 | AG51: 5 | AH51: 1 | AI51: 0 | AJ51: 1 | AK51: 0 | AL51: 1 | AM51: 0 | AO51: 2 | AQ51: 20 | AR51: 1 | AS51: 0 | AT51: 1 | AU51: 0 | AW51: 1 | AX51: 1 | AY51: 0 | BA51: 5 | BC51: 3
A52: =IF(COUNTA(C52:K52)<8,"",MAX(A$6:A51)+1) -> 46 | C52: =IF('01'!C52="","",'01'!C52) -> 2015-08-15 | D52: 8 | E52: 11 | F52: 16 | G52: 2 | H52: 1 | I52: 5 | J52: 15 | K52: 14 | L52: =IF('01'!L52="","",'01'!L52) -> 16 | M52: =IF('01'!M52="","",'01'!M52) -> 1 | N52: =IF('01'!N52="","",'01'!N52) -> 15 | O52: =IF('01'!O52="","",'01'!O52) -> 3 | P52: =IF('01'!P52="","",'01'!P52) -> 8 | T52: 5 | V52: 1 | X52: 2 | Z52: 3 | AC52: 3 | AD52: 5 | AE52: 7 | AG52: 1 | AH52: 1 | AI52: 0 | AK52: 1 | AM52: 1 | AO52: 3 | AQ52: 21 | AR52: 1 | AS52: 0 | AU52: 1 | AV52: 1 | AW52: 0 | AY52: 1 | AZ52: 1 | BA52: 0 | BC52: 4
